Workbook

Sheet BASEOld
G1: Livraison du | J1: 2015-02-18 | L1: au | M1: =J1+6 -> 2015-02-24
A2: Etablissement: | D2: Date de dépôt | G2: =BASEOld!L2 -> 00:00:00 | R2: Produits plus spécifiques à noter vous-même selon vos besoins
A3: Bon de commande Produits annexes
A5: FR | B5: FAMILLE | C5: Sous-famille | D5: Intitulés produits | E5: Réf | F5: P/U Achat | G5: P/U | H5: CDT | I5: U/V | J5: MAJ | K5: P/U HT € | L5: TVA | M5: Qté com | N5: Qté liv | O5: M. T. HT € prévisionnel | P5: M. T. HT € facturé
A6: Brake | B6: Divers | D6: Emmental rapé 1 KG | E6: 80280 | F6: 4,9 | G6: 4.9 | H6: 1 | I6: SHT | J6: 1.1 | K6: =ROUNDUP(G6*J6,2) -> 5.39 | O6: =M6*K6*H6 -> 0 | P6: =N6*K6*H6 -> 0
A7: Brake | B7: Divers | D7: Jambon de Paris 10 tranches 400g | E7: 47642 | F7: 2.67 | G7: 2.67 | H7: 1 | I7: PQT | J7: 1.1 | K7: 2.94 | O7: =M7*K7*H7 -> 0 | P7: =N7*K7*H7 -> 0 | R7: Prévisionnel sur commande | U7: Réel sur livraison
A8: TransG | B8: Divers | D8: Jambon de Paris 20 tranches 800g | E8: 980473 | F8: 3.68 | G8: 3.68 | H8: 1 | I8: PQT | J8: 1.1 | K8: 4.05 | O8: 0 | P8: 0 | R8: TOTAL H.T TVA 5,5% | S8: =SUMIF(L6:L501,R13,O6:O501) -> 0 | U8: TOTAL H.T TVA 5,5% | V8: =SUMIF(L6:L501,R13,P6:P501) -> 0
A9: Brake | B9: Divers | D9: Jambon de Paris hyposodé 10 tranches 450g | E9: 48631 | F9: 3.18 | G9: 3.18 | H9: 1 | I9: PQT | J9: 1.1 | K9: 3.5 | O9: 0 | P9: 0 | R9: TOTAL H.T TVA 20% | S9: =SUMIF(L6:L501,R14,O6:O501) -> 0 | U9: TOTAL H.T TVA 20% | V9: =SUMIF(L6:L501,R14,P6:P501) -> 0
A10: Charles F | B10: Goûter | C10: Biscuit à partager | D10: Cake marbré 400g (moule alu) | F10: =9/6 -> 1.5 | G10: 1.5 | H10: 6 | I10: LOT | J10: 1.1 | K10: 1.65 | O10: 0 | P10: 0 | R10: TOTAL H.T TVA 20% non alimentaire | S10: =SUMIF(L6:L501,R15,O6:O501) -> 0 | U10: TOTAL H.T TVA 20% non alimentaire | V10: =SUMIF(L6:L501,R15,P6:P501) -> 0
A11: Charles F | B11: Goûter | C11: Biscuit à partager | D11: Cake parfum chocolat 400g (moule alu) | F11: 1.5 | G11: 1.5 | H11: 6 | I11: LOT | J11: 1.1 | K11: 1.65 | O11: 0 | P11: 0
A12: Charles F | B12: Goûter | C12: Biscuit à partager | D12: Cake parfum kiwi 400g (moule alu) | F12: 1.5 | G12: 1.5 | H12: 6 | I12: LOT | J12: 1.1 | K12: 1.65 | O12: 0 | P12: 0
A13: Charles F | B13: Goûter | C13: Biscuit à partager | D13: Roulade chocolat 300g | F13: 1.5 | G13: 1.5 | H13: 7 | I13: CT | J13: 1.1 | K13: 1.65 | O13: 0 | P13: 0 | R13: 0.055
A14: Charles F | B14: Goûter | C14: Biscuit à partager | D14: Roulade fraise 300g | F14: 1.5 | G14: 1.5 | H14: 7 | I14: CT | J14: 1.1 | K14: 1.65 | O14: 0 | P14: 0 | R14: 0.2
A15: Charles F | B15: Goûter | C15: Biscuit à partager | D15: Roulade myrtille 300g | F15: 1.5 | G15: 1.5 | H15: 7 | I15: CT | J15: 1.1 | K15: 1.65 | O15: 0 | P15: 0 | R15: 20% NA
A16: Charles F | B16: Goûter | C16: Biscuit individuel | D16: Financier aux amandes 20g | F16: 0.218 | G16: 0.218 | H16: 150 | I16: CT | J16: 1.1 | K16: 0.24 | O16: 0 | P16: 0
A17: Charles F | B17: Goûter | C17: Biscuit individuel | D17: Gaufrette chocolat 20g | F17: 0.1 | G17: 0.1 | H17: 320 | I17: CT | J17: 1.1 | K17: 0.11 | O17: 0 | P17: 0
A18: Charles F | B18: Goûter | C18: Biscuit individuel | D18: Gaufrette vanille 20g | F18: 0.1 | G18: 0.1 | H18: 320 | I18: CT | J18: 1.1 | K18: 0.11 | O18: 0 | P18: 0
A19: Charles F | B19: Goûter | C19: Biscuit individuel | D19: Goûter fourré choco x 2 x 37g | F19: 0.16 | G19: 0.16 | H19: 144 | I19: CT | J19: 1.1 | K19: 0.18 | O19: 0 | P19: 0
A20: Charles F | B20: Goûter | C20: Biscuit individuel | D20: Lingot fondant orange 20g | F20: 0.218 | G20: 0.22 | H20: 150 | I20: CT | J20: 1.1 | K20: 0.25 | O20: 0 | P20: 0
A21: Charles F | B21: Goûter | C21: Biscuit individuel | D21: Madeleine carrée fourrée abricot 40g | F21: 0.16 | G21: 0.16 | H21: 50 | I21: CT | J21: 1.1 | K21: 0.18 | O21: 0 | P21: 0
A22: Charles F | B22: Goûter | C22: Biscuit individuel | D22: Madeleine carrée fourrée chocolat 40g | F22: 0.16 | G22: 0.16 | H22: 50 | I22: CT | J22: 1.1 | K22: 0.18 | O22: 0 | P22: 0
A23: Charles F | B23: Goûter | C23: Biscuit individuel | D23: Madeleine carrée fourrée fraise 40g | F23: 0.16 | G23: 0.16 | H23: 50 | I23: CT | J23: 1.1 | K23: 0.18 | O23: 0 | P23: 0
A24: Charles F | B24: Goûter | C24: Biscuit individuel | D24: Madeleine carrée fourrée fruits des bois 40g | F24: 0.16 | G24: 0.16 | H24: 50 | I24: CT | J24: 1.1 | K24: 0.18 | O24: 0 | P24: 0
A25: Charles F | B25: Goûter | C25: Biscuit individuel | D25: Madeleine carrée nature 30g | F25: 0.2 | G25: 0.2 | H25: 56 | I25: CT | J25: 1.1 | K25: 0.22 | O25: 0 | P25: 0
A26: Episaveur | B26: Goûter | C26: Biscuit individuel | D26: Madeleine coquille aux œufs 25g | E26: 91566 | G26: =7/120 -> 0.05833333333 | H26: 120 | I26: CT | J26: 1.1 | K26: 0.07 | O26: 0 | P26: 0
A27: Charles F | B27: Goûter | C27: Biscuit individuel | D27: Madeleine nappée chocolat 20g | F27: 0.16 | G27: 0.16 | H27: 120 | I27: CT | J27: 1.1 | K27: 0.18 | O27: 0 | P27: 0
A28: Charles F | B28: Goûter | C28: Biscuit individuel | D28: Mini cake fourré crème de lait 30g | F28: 0.12 | G28: 0.12 | H28: 120 | I28: CT | J28: 1.1 | K28: 0.14 | O28: 0 | P28: 0
A29: Charles F | B29: Goûter | C29: Biscuit individuel | D29: Mini génoise abricot 25g | F29: 0.15 | G29: 0.15 | H29: 120 | I29: CT | J29: 1.1 | K29: 0.17 | O29: 0 | P29: 0
A30: Charles F | B30: Goûter | C30: Biscuit individuel | D30: Mini génoise chocolat 25g | F30: 0.15 | G30: 0.15 | H30: 120 | I30: CT | J30: 1.1 | K30: 0.17 | O30: 0 | P30: 0
A31: Charles F | B31: Goûter | C31: Biscuit individuel | D31: Mini génoise fraise 25g | F31: 0.15 | G31: 0.15 | H31: 120 | I31: CT | J31: 1.1 | K31: 0.17 | O31: 0 | P31: 0
A32: Charles F | B32: Goûter | C32: Biscuit individuel | D32: Mini génoise nappée chocolat / fourrée chocolat 35g | F32: 0.18 | G32: 0.18 | H32: 120 | I32: CT | J32: 1.1 | K32: 0.2 | O32: 0 | P32: 0
A33: Charles F | B33: Goûter | C33: Biscuit individuel | D33: Mini génoise tiramisu 25g | F33: 0.15 | G33: 0.15 | H33: 120 | I33: CT | J33: 1.1 | K33: 0.17 | O33: 0 | P33: 0
A34: Charles F | B34: Goûter | C34: Biscuit individuel | D34: Mini marbré chocolat 30g | F34: =0.12 -> 0.12 | G34: =0.12 -> 0.12 | H34: 120 | I34: CT | J34: 1.1 | K34: 0.14 | O34: 0 | P34: 0
A35: Episaveur | B35: Goûter | C35: Biscuit individuel | D35: Mini moelleux fourré abricot 30g | E35: 0003211 | F35: =12.76/120 -> 0.1063333333 | G35: =12.76/120 -> 0.1063333333 | H35: 120 | I35: CT | J35: 1.1 | K35: 0.12 | O35: 0 | P35: 0
A36: Episaveur | B36: Goûter | C36: Biscuit individuel | D36: Mini moelleux fourré cacao 30g | E36: 94769 | F36: =14.1/130 -> 0.1084615385 | G36: =14.1/130 -> 0.1084615385 | H36: 130 | I36: CT | J36: 1.1 | K36: 0.12 | O36: 0 | P36: 0
A37: Episaveur | B37: Goûter | C37: Biscuit individuel | D37: Mini moelleux fourré cacao-noisette 30g | E37: 0003196 | F37: =12.76/120 -> 0.1063333333 | G37: =12.76/120 -> 0.1063333333 | H37: 120 | I37: CT | J37: 1.1 | K37: 0.12 | O37: 0 | P37: 0
A38: DPB | B38: Goûter | C38: Biscuit individuel | D38: Mini moelleux fourré citron 30g | E38: 85108 | F38: =12.76/120 -> 0.1063333333 | G38: =10.87/100 -> 0.1087 | H38: 100 | I38: CT | J38: 1.1 | K38: 0.12 | O38: 0 | P38: 0
A39: Episaveur | B39: Goûter | C39: Biscuit individuel | D39: Mini moelleux fourré fraise 30g | E39: 0003205 | F39: =10.75/120 -> 0.08958333333 | G39: =10.75/120 -> 0.08958333333 | H39: 120 | I39: CT | J39: 1.1 | K39: 0.1 | O39: 0 | P39: 0
A40: DPB | B40: Goûter | C40: Biscuit individuel | D40: Mini moelleux fourré fruits rouges 30g | E40: 85109 | F40: =12.76/120 -> 0.1063333333 | G40: =10.87/100 -> 0.1087 | H40: 100 | I40: CT | J40: 1.1 | K40: 0.12 | O40: 0 | P40: 0
A41: Episaveur | B41: Goûter | C41: Biscuit individuel | D41: Moelleux amande 40g | E41: 4154 | F41: =18.35/100 -> 0.1835 | G41: =18.35/100 -> 0.1835 | H41: 100 | I41: CT | J41: 1.1 | K41: 0.21 | O41: 0 | P41: 0
A42: TransG | B42: Goûter | C42: Biscuit individuel | D42: Moelleux chocolat 40g | E42: 101632 | F42: 0.178 | G42: 0.178 | H42: 100 | I42: CT | J42: 1.1 | K42: 0.2 | O42: 0 | P42: 0
A43: Potin | B43: Goûter | C43: Biscuit individuel | D43: Moelleux citron 40g | E43: 23624 | F43: =16.46/100 -> 0.1646 | G43: =16.46/100 -> 0.1646 | H43: 100 | I43: CT | J43: 1.1 | K43: 0.19 | O43: 0 | P43: 0
A44: DPB | B44: Goûter | C44: Biscuit individuel | D44: Moelleux framboise 40g | E44: 8527 | F44: =19.51/100 -> 0.1951 | G44: =19.51/100 -> 0.1951 | H44: 100 | I44: CT | J44: 1.1 | K44: 0.22 | O44: 0 | P44: 0
A45: Episaveur | B45: Goûter | C45: Biscuit individuel | D45: Moelleux marbré 40g | E45: 16243 | F45: =18.35/100 -> 0.1835 | G45: =17.65/100 -> 0.1765 | H45: 100 | I45: CT | J45: 1.1 | K45: 0.2 | O45: 0 | P45: 0
A46: Charles F | B46: Goûter | C46: Biscuit individuel | D46: Rocher coco nappé chocolat 40g | F46: 0.26 | G46: 0.26 | H46: 100 | I46: CT | J46: 1.1 | K46: 0.29 | O46: 0 | P46: 0
A47: TransG | B47: Goûter | C47: Biscuit individuel | D47: Rocher coco nature 35g | E47: 747207 | F47: 0.13 | G47: 0.13 | H47: 100 | I47: CT | J47: 1.1 | K47: 0.15 | O47: 0 | P47: 0
A48: Charles F | B48: Goûter | C48: Biscuit individuel | D48: Tranche marbrée cacao 50g | F48: 0.23 | G48: 0.23 | H48: 48 | I48: CT | J48: 1.1 | K48: 0.26 | O48: 0 | P48: 0
A49: Charles F | B49: Goûter | C49: Biscuit individuel | D49: Tranche nature citron 50g | F49: 0.23 | G49: 0.23 | H49: 48 | I49: CT | J49: 1.1 | K49: 0.26 | O49: 0 | P49: 0
A50: Brake | B50: Goûter | C50: Divers | D50: Framboise en bille surgelée 1Kg | E50: 39116 | F50: 4.22 | G50: 4.22 | H50: 5 | I50: CT | J50: 1.1 | K50: 4.65 | O50: 0 | P50: 0
A51: TransG | B51: Goûter | C51: Divers | D51: Framboises entières surgelées Williamette 1Kg | E51: 292375 | F51: 3.235 | G51: 3.235 | H51: 1 | I51: SHT | J51: 1.1 | K51: 3.56 | O51: 0 | P51: 0
A52: TransG | B52: Goûter | C52: Divers | D52: Griottes dénoyautées surgelées 1Kg | E52: 292391 | F52: 3.365 | G52: 3.365 | H52: 1 | I52: SHT | J52: 1.1 | K52: 3.71 | O52: 0 | P52: 0
A53: TransG | B53: Goûter | C53: Divers | D53: Melon en bille surgelé 1Kg | E53: 200307 | F53: 3.85 | G53: 3.85 | H53: 1 | I53: SHT | J53: 1.1 | K53: 4.24 | O53: 0 | P53: 0
A54: TransG | B54: Goûter | C54: Divers | D54: Mûre cultivée surgelée 1Kg | E54: 200312 | F54: 4.69 | G54: 4.69 | H54: 1 | I54: SHT | J54: 1.1 | K54: 5.16 | O54: 0 | P54: 0
A55: TransG | B55: Goûter | C55: Divers | D55: Salade de fruits exotiques surgelée 1Kg | E55: 292409 | F55: 2.812 | G55: 2.812 | H55: 1 | I55: SHT | J55: 1.1 | K55: 3.1 | O55: 0 | P55: 0
A56: Brake | B56: Goûter | C56: Gâteau à partager | D56: Bavarois cappuccino 700g | E56: 71477 | F56: 4.65 | G56: 4.65 | H56: 2 | I56: PCE | J56: 1.1 | K56: 5.12 | O56: 0 | P56: 0
A57: Brake | B57: Goûter | C57: Gâteau à partager | D57: Bavarois parfum abricot 700 g | E57: 4099 | F57: =4.65 -> 4.65 | G57: =4.65 -> 4.65 | H57: 2 | I57: PCE | J57: 1.1 | K57: 5.12 | O57: 0 | P57: 0
A58: Brake | B58: Goûter | C58: Gâteau à partager | D58: Bavarois parfum chocolat 700 g | E58: 6726 | F58: 4.71 | G58: 4.71 | H58: 2 | I58: PCE | J58: 1.1 | K58: 5.19 | O58: 0 | P58: 0
A59: Brake | B59: Goûter | C59: Gâteau à partager | D59: Bavarois parfum framboise 700g | E59: 6725 | F59: =4.88 -> 4.88 | G59: =4.88 -> 4.88 | H59: 2 | I59: PCE | J59: 1.1 | K59: 5.37 | O59: 0 | P59: 0
A60: Brake | B60: Goûter | C60: Gâteau à partager | D60: Bavarois parfum fruits rouges 700 g | E60: 7976 | F60: =4.65 -> 4.65 | G60: =4.65 -> 4.65 | H60: 2 | I60: PCE | J60: 1.1 | K60: 5.12 | O60: 0 | P60: 0
A61: Brake | B61: Goûter | C61: Gâteau à partager | D61: Bavarois parfum poire 700g | E61: 9053 | F61: 4.77 | G61: 4.77 | H61: 2 | I61: PCE | J61: 1.1 | K61: 5.25 | O61: 0 | P61: 0
A62: Brake | B62: Goûter | C62: Gâteau à partager | D62: Boléro chocolat marrons en bande 550g | E62: 5410 | F62: =3.68 -> 3.68 | G62: =3.68 -> 3.68 | H62: 4 | I62: PCE | J62: 1.1 | K62: 4.05 | O62: 0 | P62: 0
A63: TransG | B63: Goûter | C63: Gâteau à partager | D63: Carré bavarois cacao 45g x 60 (demi-cadre) | E63: 300331 | F63: 16,765 | G63: 0.279 | H63: 60 | I63: CT | J63: 1.1 | K63: 0.31 | O63: 0 | P63: 0
A64: TransG | B64: Goûter | C64: Gâteau à partager | D64: Carré bavarois fruits rouges 45g x 60 (demi-cadre) | E64: 300332 | F64: 16,765 | G64: 0.279 | H64: 60 | I64: CT | J64: 1.1 | K64: 0.31 | O64: 0 | P64: 0
A65: Brake | B65: Goûter | C65: Gâteau à partager | D65: Charlotte aux fruits rouges en bande 800g | E65: 38299 | F65: 6,52 | G65: 6,52 | H65: 2 | I65: PCE | J65: 1.1 | K65: 7.18 | O65: 0 | P65: 0
A66: Brake | B66: Goûter | C66: Gâteau à partager | D66: Charlotte aux poires en bande 850g | E66: 38298 | F66: 8,25 | G66: 8.25 | H66: 2 | I66: PCE | J66: 1.1 | K66: 9.08 | O66: 0 | P66: 0
A67: Brake | B67: Goûter | C67: Gâteau à partager | D67: Clafoutis à la cerise en bande 550g | E67: 7914 | F67: 2,82 | G67: 2,82 | H67: 4 | I67: PCE | J67: 1.1 | K67: 3.11 | O67: 0 | P67: 0
A68: Transg | B68: Goûter | C68: Gâteau à partager | D68: Clafoutis aux griottes 1Kg | E68: 360941 | F68: 5,25 | G68: 5.25 | H68: 1 | I68: PCE | J68: 1.1 | K68: 5.78 | O68: 0 | P68: 0
A69: Brake | B69: Goûter | C69: Gâteau à partager | D69: Craquant crème brulée-fruits rouges en bande 750g | E69: 70661 | F69: 10,02 | G69: 10.2 | H69: 2 | I69: PCE | J69: 1.1 | K69: 11.22 | O69: 0 | P69: 0
A70: Brake | B70: Goûter | C70: Gâteau à partager | D70: Forêt noire aux griottes 1,4kg | E70: 5716 | F70: 7,38 | G70: 7.38 | H70: 2 | I70: PCE | J70: 1.1 | K70: =ROUNDUP(G70*J70,2) -> 8.12 | O70: 0 | P70: 0
A71: Brake | B71: Goûter | C71: Gâteau à partager | D71: Forêt noire sans sucre ajouté 57g | E71: 72796 | F71: 0,51 | G71: 0.51 | H71: 28 | I71: PCE | J71: 1.1 | K71: 0.57 | O71: =M71*K71*H71 -> 0 | P71: =N71*K71*H71 -> 0
A72: Brake | B72: Goûter | C72: Gâteau à partager | D72: Framboisier en bande 550g | E72: 70660 | F72: 6.87 | G72: 6.87 | H72: 2 | I72: CT | J72: 1.1 | K72: 7.56 | O72: 0 | P72: 0
A73: TransG | B73: Goûter | C73: Gâteau à partager | D73: Gâteau aux 3 chocolats 1Kg | E73: 470856 | F73: 11.822 | G73: 11.822 | H73: 1 | I73: PCE | J73: 1.1 | K73: 13.01 | O73: 0 | P73: 0
A74: Brake | B74: Goûter | C74: Gâteau à partager | D74: Gâteau Basque 1kg | E74: 6367 | F74: 3,39 | G74: 3.39 | H74: 4 | I74: PCE | J74: 1.1 | K74: 3.73 | O74: 0 | P74: 0
A75: TransG | B75: Goûter | C75: Individuel | D75: Millefeuille 65g x 36 | E75: 201993 | F75: 12.392 | G75: 12.392 | H75: 3 | I75: CT | J75: 1.1 | K75: 13.64 | O75: 0 | P75: 0
A76: TransG | B76: Goûter | C76: Gâteau à partager | D76: Omelette norvégienne 2L | E76: 874639 | F76: 7.14 | G76: 7.14 | H76: 6 | I76: CT | J76: 1.1 | K76: 7.86 | O76: 0 | P76: 0
A77: Brake | B77: Goûter | C77: Gâteau à partager | D77: Opéra en bande 750g | E77: 6904 | F77: 8,91 | G77: 8,91 | H77: 2 | I77: PCE | J77: 1.1 | K77: 9.81 | O77: 0 | P77: 0
A78: Brake | B78: Goûter | C78: Gâteau à partager | D78: Privilège poire chocolat en bande 750g | E78: 70659 | F78: 7,36 | G78: 7.36 | H78: 2 | I78: PCE | J78: 1.1 | K78: 8.1 | O78: 0 | P78: 0
A79: Brake | B79: Goûter | C79: Gâteau à partager | D79: Royal chocolat en bande 650g | E79: 70665 | F79: 7,20 | G79: 7.2 | H79: 3 | I79: PCE | J79: 1.1 | K79: 7.92 | O79: 0 | P79: 0
A80: Brake | B80: Goûter | C80: Gâteau à partager | D80: Tarte à la noix de coco 1,15Kg | E80: 6989 | F80: 5.32 | G80: 5.32 | H80: 2 | I80: CT | J80: 1.1 | K80: 5.86 | O80: 0 | P80: 0
A81: Brake | B81: Goûter | C81: Gâteau à partager | D81: Tarte au chocolat entière 900g | E81: 36400 | F81: 4.98 | G81: 4.98 | H81: 2 | I81: CT | J81: 1.1 | K81: 5.48 | O81: 0 | P81: 0
A82: Brake | B82: Goûter | C82: Gâteau à partager | D82: Tarte au chocolat prédécoupée en 10 700g | E82: 73441 | F82: 3 | G82: 3 | H82: 8 | I82: CT | J82: 1.1 | K82: 3.3 | O82: 0 | P82: 0
A83: Brake | B83: Goûter | C83: Gâteau à partager | D83: Tarte au citron 1,15kg | E83: 5888 | F83: 5,28 | G83: 5.28 | H83: 2 | I83: PCE | J83: 1.1 | K83: 5.81 | O83: 0 | P83: 0
A84: Brake | B84: Goûter | C84: Gâteau à partager | D84: Tarte au citron meringuée 1kg | E84: 5379 | F84: 4.6 | G84: 4.6 | H84: 2 | I84: PCE | J84: 1.1 | K84: 5.06 | O84: 0 | P84: 0
A85: Brake | B85: Goûter | C85: Gâteau à partager | D85: Tarte au citron prédrécoupée en 10 parts 700g | E85: 73440 | F85: =2.97 -> 2.97 | G85: =2.97 -> 2.97 | H85: 8 | I85: CT | J85: 1.1 | K85: 3.27 | O85: 0 | P85: 0
A86: Brake | B86: Goûter | C86: Gâteau à partager | D86: Tarte au flan 1Kg | E86: 6990 | F86: 3.19 | G86: 3.19 | H86: 4 | I86: CT | J86: 1.1 | K86: 3.51 | O86: 0 | P86: 0
A87: TransG | B87: Goûter | C87: Gâteau à partager | D87: Tarte au flan prédécoupée en 10 parts 750g | E87: 461202 | F87: 2,75 | G87: 2,75 | H87: 1 | I87: PCE | J87: 1.1 | K87: 3.03 | O87: 0 | P87: 0
A88: Brake | B88: Goûter | C88: Gâteau à partager | D88: Tarte aux abricots 1,3kg | E88: 71830 | F88: 11,90 | G88: 11.9 | H88: 1 | I88: PCE | J88: 1.1 | K88: 13.09 | O88: 0 | P88: 0
A89: Brake | B89: Goûter | C89: Gâteau à partager | D89: Tarte aux abricots 1,3Kg | E89: 71830 | F89: 11.46 | G89: 11.46 | H89: 1 | I89: PCE | J89: 1.1 | K89: 12.61 | O89: 0 | P89: 0
A90: Brake | B90: Goûter | C90: Gâteau à partager | D90: Tarte aux abricots croisillon prédécoupée en 12 parts 900g | E90: 73444 | F90: 2.9 | G90: 2.9 | H90: 6 | I90: CT | J90: 1.1 | K90: 3.19 | O90: 0 | P90: 0
A91: TransG | B91: Goûter | C91: Gâteau à partager | D91: Tarte aux fraises 800g | E91: 645929 | F91: 7.535 | G91: 7.535 | H91: 1 | I91: PCE | J91: 1.1 | K91: 8.29 | O91: 0 | P91: 0
A92: TransG | B92: Goûter | C92: Gâteau à partager | D92: Tarte aux fraises prédécoupée en 8 900g | E92: 950172 | F92: 6.101 | G92: 6.101 | H92: 1 | I92: PCE | J92: 1.1 | K92: 6.72 | O92: 0 | P92: 0
A93: Brake | B93: Goûter | C93: Gâteau à partager | D93: Tarte aux framboises 1,4kg | E93: 39156 | F93: 12.6 | G93: 12.6 | H93: 1 | I93: PCE | J93: 1.1 | K93: 13.86 | O93: 0 | P93: 0
A94: TransG | B94: Goûter | C94: Gâteau à partager | D94: Tarte aux framboises 880g | E94: 300437 | F94: 6.473 | G94: 6.473 | H94: 1 | I94: PCE | J94: 1.1 | K94: 7.13 | O94: 0 | P94: 0
A95: Brake | B95: Goûter | C95: Gâteau à partager | D95: Tarte aux framboises meringuée 1,15kg | E95: 7037 | F95: 6.6 | G95: 6.6 | H95: 2 | I95: CT | J95: 1.1 | K95: 7.26 | O95: 0 | P95: 0
A96: TransG | B96: Goûter | C96: Gâteau à partager | D96: Tarte aux myrtilles 900g | E96: 905505 | F96: 6.37 | G96: 6.37 | H96: 2 | I96: CT | J96: 1.1 | K96: 7.01 | O96: 0 | P96: 0
A97: TransG | B97: Goûter | C97: Gâteau à partager | D97: Tarte aux poires 900g | E97: 046287 | F97: 6.161 | G97: 6.161 | H97: 1 | I97: PCE | J97: 1.1 | K97: 6.78 | O97: 0 | P97: 0
A98: Brake | B98: Goûter | C98: Gâteau à partager | D98: Tarte aux poires Bourdaloue 1,1kg | E98: 36413 | F98: 7,55 | G98: 7,55 | H98: 2 | I98: CT | J98: 1.1 | K98: 8.31 | O98: 0 | P98: 0
A99: DPB | B99: Goûter | C99: Gâteau à partager | D99: Tarte aux poires prédécoupée en 10 parts 750g | E99: 56364 | F99: 4.36 | G99: 4.36 | H99: 1 | I99: PCE | J99: 1.1 | K99: 4.8 | O99: 0 | P99: 0
A100: TransG | B100: Goûter | C100: Gâteau à partager | D100: Tarte aux pommes croissillon prédécoupée en 12 parts 900g | E100: 300253 | F100: 2.788 | G100: 2.788 | H100: 1 | I100: PCE | J100: 1.1 | K100: 3.07 | O100: 0 | P100: 0
A101: Brake | B101: Goûter | C101: Gâteau à partager | D101: Tarte aux pommes crumble 1,15Kg | E101: 4430 | F101: 5,98 | G101: 5.98 | H101: 2 | I101: CT | J101: 1.1 | K101: 6.58 | O101: 0 | P101: 0
A102: Brake | B102: Goûter | C102: Gâteau à partager | D102: Tarte aux pommes et noix 1,1Kg | E102: 4986 | F102: 5,54 | G102: 5,54 | H102: 2 | I102: CT | J102: 1.1 | K102: 6.1 | O102: 0 | P102: 0
A103: Brake | B103: Goûter | C103: Gâteau à partager | D103: Tarte aux pommes Normande 800g | E103: 36411 | F103: 3.65 | G103: 3.65 | H103: 2 | I103: CT | J103: 1.1 | K103: 4.02 | O103: 0 | P103: 0
A104: TransG | B104: Goûter | C104: Gâteau à partager | D104: Tarte aux pommes Normande 950g | E104: 053933 | F104: 3.508 | G104: 3.508 | H104: 1 | I104: PCE | J104: 1.1 | K104: 3.86 | O104: 0 | P104: 0
A105: Brake | B105: Goûter | C105: Gâteau à partager | D105: Tarte aux pommes Normande prédécoupée en 10 parts 700g | E105: 73438 | F105: 2.77 | G105: 2.77 | H105: 6 | I105: CT | J105: 1.1 | K105: 3.05 | O105: 0 | P105: 0
A106: DPB | B106: Goûter | C106: Gâteau à partager | D106: Tarte aux pommes prédécoupée en 10 parts 750g | E106: 56360 | F106: 2,89 | G106: 2,89 | H106: 1 | I106: PCE | J106: 1.1 | K106: 3.18 | O106: 0 | P106: 0
A107: TransG | B107: Goûter | C107: Gâteau à partager | D107: Tarte rosace aux fruits entiers, questches, abricots, framboises | E107: 407408 | F107: 5,766 | G107: 5,766 | H107: 1 | I107: PCE | J107: 1.1 | K107: 6.35 | O107: 0 | P107: 0
A108: Brake | B108: Goûter | C108: Gâteau à partager | D108: Tarte tropézienne 650g | E108: 5814 | F108: 4.1 | G108: 4.1 | H108: 6 | I108: CT | J108: 1.1 | K108: 4.51 | O108: 0 | P108: 0
A109: Brake | B109: Goûter | C109: Gâteau à partager | D109: Tiramisu en bande 900g | E109: 70283 | F109: 6,90 | G109: 6.9 | H109: 2 | I109: CT | J109: 1.1 | K109: 7.59 | O109: 0 | P109: 0
A110: Brake | B110: Goûter | C110: Gâteau à partager | D110: Tiramisu en bande 900g | E110: 5831 | F110: 6.32 | G110: 6.32 | H110: 2 | I110: PCE | J110: 1.1 | K110: 6.96 | O110: 0 | P110: 0
A111: TransG | B111: Goûter | C111: Gâteau à partager | D111: Vacherin vanille/framboise glacé 2L | E111: 841171 | F111: 6.46 | G111: 6.46 | H111: 2 | I111: PCE | J111: 1.1 | K111: 7.11 | O111: 0 | P111: 0
A112: TransG | B112: Goûter | C112: Individuel | D112: Beignet abricot 75g | E112: 616821 | F112: 17.19 | G112: 0.28 | H112: 60 | I112: CT | J112: 1.1 | K112: 0.31 | O112: 0 | P112: 0
A113: Brake | B113: Goûter | C113: Individuel | D113: Beignet chocolat-noisette 75g | E113: 38160 | F113: =0.27 -> 0.27 | G113: =0.27 -> 0.27 | H113: 60 | I113: PCE | J113: 1.1 | K113: 0.3 | O113: 0 | P113: 0
A114: Brake | B114: Goûter | C114: Individuel | D114: Beignet framboise 75g | E114: 38161 | F114: =0.28 -> 0.28 | G114: =0.28 -> 0.28 | H114: 60 | I114: PCE | J114: 1.1 | K114: 0.31 | O114: 0 | P114: 0
A115: TransG | B115: Goûter | C115: Individuel | D115: Beignet nature 55g | E115: 616854 | F115: 13.53 | G115: =13.53/60 -> 0.2255 | H115: 60 | I115: CT | J115: 1.1 | K115: 0.25 | O115: 0 | P115: 0
A116: TransG | B116: Goûter | C116: Individuel | D116: Beignet pommes 75g | E116: 645986 | F116: =0.23*60 -> 13.8 | G116: =0.23 -> 0.23 | H116: 60 | I116: CT | J116: 1.1 | K116: 0.26 | O116: 0 | P116: 0
A117: Brake | B117: Goûter | C117: Individuel | D117: Brioche perdue 100g (peut être coupée en 2) | E117: 72153 | F117: =0.86 -> 0.86 | G117: =0.86 -> 0.86 | H117: 28 | I117: PCE | J117: 1.1 | K117: 0.95 | O117: 0 | P117: 0
A118: Brake | B118: Goûter | C118: Individuel | D118: Briochette à tête pur beurre cuite 45g | E118: 71213 | F118: 14.29 | G118: 0.31 | H118: 45 | I118: CT | J118: 1.1 | K118: 0.35 | O118: 0 | P118: 0
A119: Brake | B119: Goûter | C119: Individuel | D119: Crèpes au chocolat 40g | E119: 37555 | F119: 0,22 | G119: 0.22 | H119: 40 | I119: PCE | J119: 1.1 | K119: 0.25 | O119: 0 | P119: 0
A120: Brake | B120: Goûter | C120: Individuel | D120: Crèpes nature 50g | E120: 39530 | F120: 0,23 | G120: 0.23 | H120: 40 | I120: PCE | J120: 1.1 | K120: 0.26 | O120: 0 | P120: 0
A121: Brake | B121: Goûter | C121: Individuel | D121: Donuts chocolat 55g | E121: 37248 | F121: 9,45 | G121: 0.27 | H121: 36 | I121: CT | J121: 1.1 | K121: 0.3 | O121: 0 | P121: 0
A122: Brake | B122: Goûter | C122: Individuel | D122: Donuts nature sucré 49g | E122: 4569 | F122: 15.02 | G122: 0.21 | H122: 72 | I122: CT | J122: 1.1 | K122: 0.24 | O122: 0 | P122: 0
A123: Brake | B123: Goûter | C123: Individuel | D123: Gaufre de Bruxelles 70g (peut être coupée en 2) | E123: 36383 | F123: 0,29 | G123: 0.29 | H123: 27 | I123: PCE | J123: 1.1 | K123: 0.32 | O123: 0 | P123: 0
A124: Episaveur | B124: goûter | C124: Sans sucre | D124: Cake cacao sans sucre 30g | E124: 33705 | G124: =12.98/60 -> 0.2163333333 | H124: 60 | I124: CT | J124: 1.1 | K124: 0.24 | O124: 0 | P124: 0
A125: Episaveur | B125: goûter | C125: Sans sucre | D125: Cake citron sans sucre 30g | E125: 33707 | G125: =12.98/60 -> 0.2163333333 | H125: 60 | I125: CT | J125: 1.1 | K125: 0.24 | O125: 0 | P125: 0
A126: Episaveur | B126: goûter | C126: Sans sucre | D126: Cake framboise sans sucre 30g | E126: 33708 | G126: =12.98/60 -> 0.2163333333 | H126: 60 | I126: CT | J126: 1.1 | K126: 0.24 | O126: 0 | P126: 0
A127: Charles F | B127: Goûter | C127: Sans sucre | D127: Couronne sans sucre 40g | F127: 0.289 | G127: 0.289 | H127: 36 | I127: CT | J127: 1.1 | K127: 0.32 | O127: 0 | P127: 0
A128: Charles F | B128: Goûter | C128: Sans sucre | D128: Gaufrette cacao sans sucre 20g | F128: 0.116 | G128: 0.116 | H128: 320 | I128: CT | J128: 1.1 | K128: 0.13 | O128: 0 | P128: 0
A129: DPB | B129: Goûter | C129: Sans sucre | D129: Gaufrette citron sans sucre / sans sel 11g | F129: =22.96/100 -> 0.2296 | G129: =22.96/100 -> 0.2296 | H129: 100 | I129: CT | J129: 1.1 | K129: 0.26 | O129: 0 | P129: 0
A130: Charles F | B130: Goûter | C130: Sans sucre | D130: Gaufrette vanille sans sucre 20g | F130: 0.116 | G130: 0.116 | H130: 320 | I130: CT | J130: 1.1 | K130: 0.13 | O130: 0 | P130: 0
A131: Charles F | B131: Goûter | C131: Sans sucre | D131: Lingot amande sans sucre 25g | F131: =0.289 -> 0.289 | G131: =0.289 -> 0.289 | H131: 80 | I131: CT | J131: 1.1 | K131: 0.32 | O131: 0 | P131: 0
A132: Charles F | B132: Goûter | C132: Sans sucre | D132: Madeleine nature sans sucre 25g | F132: 0.17 | G132: 0.17 | H132: 100 | I132: CT | J132: 1.1 | K132: 0.19 | O132: 0 | P132: 0
A133: DPB | B133: goûter | C133: Sans sucre | D133: Moelleux cacao sans sucre 40g | E133: 72612 | F133: =25.31/100 -> 0.2531 | G133: =25.31/100 -> 0.2531 | H133: 100 | I133: CT | J133: 1.1 | K133: 0.28 | O133: 0 | P133: 0
A134: DPB | B134: goûter | C134: Sans sucre | D134: Moelleux citron sans sucre 40g | E134: 726125 | F134: =23.72/100 -> 0.2372 | G134: =23.72/100 -> 0.2372 | H134: 100 | I134: CT | J134: 1.1 | K134: =ROUNDUP(G134*J134,2) -> 0.27 | O134: 0 | P134: 0
A135: DPB | B135: goûter | C135: Sans sucre | D135: Moelleux framboise sans sucre 40g | E135: 72607 | F135: =25.51/100 -> 0.2551 | G135: =25.51/100 -> 0.2551 | H135: 100 | I135: CT | J135: 1.1 | K135: 0.29 | O135: =M135*K135*H135 -> 0 | P135: =N135*K135*H135 -> 0
A136: Charles F | B136: Goûter | C136: Sans sucre | D136: Palmiers sans sucre x2 17g | F136: 0.139 | G136: 0.139 | H136: 120 | I136: CT | J136: 1.1 | K136: 0.16 | O136: 0 | P136: 0
A137: Charles F | B137: Goûter | C137: Sans sucre | D137: Tranche nature 50g | F137: 0.289 | G137: 0.289 | H137: 36 | I137: CT | J137: 1.1 | K137: 0.32 | O137: 0 | P137: 0
A138: Brake | B138: Goûter | C138: Viennoiserie | D138: Mini croissant au beurre prêt à cuire 25g | E138: 73285 | F138: 12.59 | G138: =12.59/160 -> 0.0786875 | H138: 160 | I138: CT | J138: 1.1 | K138: 0.09 | O138: 0 | P138: 0
A139: Brake | B139: Goûter | C139: Viennoiserie | D139: Mini pain au chocolat au beurre prêt à cuire 25g | E139: 73786 | F139: 13.24 | G139: =13.24/160 -> 0.08275 | H139: 160 | I139: CT | J139: 1.1 | K139: 0.1 | O139: 0 | P139: 0
A140: TransG | B140: Goûter | C140: Viennoiserie | D140: Mini pain aux raisins prêt à cuire 35g | E140: 907477 | F140: 16,412 | G140: =16.41/150 -> 0.1094 | H140: 150 | I140: CT | J140: 1.1 | K140: 0.13 | O140: 0 | P140: 0
A141: Charles F | B141: Goûter | D141: Goûter sec brioché 25 tranches (spécial mixé) 350g | F141: 0.72 | G141: 0.72 | H141: 24 | I141: CT | J141: 1.1 | K141: 0.8 | O141: 0 | P141: 0
A142: TransG | B142: Goûter / PDJ | C142: Individuel | D142: Pain au chocolat 75g prêt à cuire | E142: 239952 | F142: =15.729/70 -> 0.2247 | G142: =15.729/70 -> 0.2247 | H142: 70 | I142: CT | J142: 1.1 | K142: 0.25 | O142: 0 | P142: 0
A143: TransG | B143: Goûter / PDJ | C143: Individuel | D143: Pain chocolat cuit 45g | E143: 372094 | F143: =27.2/50 -> 0.544 | G143: =27.2/50 -> 0.544 | H143: 50 | I143: CT | J143: 1.1 | K143: 0.6 | O143: 0 | P143: 0
A144: Brake | B144: Goûter / PDJ | C144: Viennoiserie | D144: Croissant au beurre 60g prêt à cuire | E144: 38810 | F144: =15/84 -> 0.1785714286 | G144: =15/84 -> 0.1785714286 | H144: 84 | I144: CT | J144: 1.1 | K144: 0.2 | O144: 0 | P144: 0
A145: TransG | B145: Goûter / PDJ | C145: Viennoiserie | D145: Croissant cuit surgelé 40g x 10 | E145: 372102 | F145: 2.525 | G145: 2.525 | H145: 1 | I145: SHT | J145: 1.1 | K145: 2.78 | O145: 0 | P145: 0
A146: Episaveur | B146: PDJ | C146: Confiture | D146: Confiture abricot pot 1kg | E146: 42633 | G146: =1.55 -> 1.55 | H146: 6 | I146: CT | J146: 1.1 | K146: 1.71 | O146: 0 | P146: 0
A147: Episaveur | B147: PDJ | C147: Confiture | D147: Confiture fraise pot 1Kg | E147: 42621 | G147: 1.97 | H147: 6 | I147: CT | J147: 1.1 | K147: 2.17 | O147: 0 | P147: 0
A148: Episaveur | B148: PDJ | C148: Confiture | D148: Confiture myrtille pot 1kg | E148: 45252 | G148: 5.1 | H148: 6 | I148: CT | J148: 1.1 | K148: 5.61 | O148: 0 | P148: 0
A149: Episaveur | B149: PDJ | C149: Confiture | D149: Confitures assorties en coupelle 5 parfums 30g | E149: 99385 | F149: =5.933/120 -> 0.04944166667 | G149: =5.933/120 -> 0.04944166667 | H149: 120 | I149: CT | J149: 1.1 | K149: 0.06 | O149: 0 | P149: 0
A150: DPB | B150: PDJ | C150: Confiture | D150: Gelée de groseille pot 450g | E150: 05101 | F150: 0.97 | G150: 0.97 | H150: 1 | I150: POT | J150: 1.1 | K150: 1.07 | O150: 0 | P150: 0
A151: Episaveur | B151: PDJ | C151: Confiture | D151: Marmelade orange pot 1Kg | E151: 45254 | F151: 1.98 | G151: 1.98 | H151: 6 | I151: LOT | J151: 1.1 | K151: 2.18 | O151: 0 | P151: 0
A152: Brake | B152: PDJ | C152: Divers | D152: Beurre micro pain 10g x 100 | E152: 80014 | F152: 5.1 | G152: 5.1 | H152: 1 | I152: KG | J152: 1.1 | K152: 5.61 | O152: 0 | P152: 0
A153: Brake | B153: PDJ | C153: Divers | D153: Beurre tablette 250 gr | E153: 80269 | F153: 1.16 | G153: 1.16 | H153: 1 | I153: PCE | J153: 1.1 | K153: 1.28 | O153: 0 | P153: 0
A154: Brake | B154: PDJ | C154: Divers | D154: Beurre tendre tartinable 40% MG 1Kg | E154: 80625 | F154: 4,91 | G154: 4,91 | H154: 1 | I154: KG | J154: 1.1 | K154: 5.41 | O154: 0 | P154: 0
A155: Episaveur | D155: Agitateurs 113mm | E155: 61104 | G155: 2.68 | H155: 1 | I155: SHT | J155: 1.1 | K155: 2.95 | O155: 0 | P155: 0
A156: DPB | D156: Anthésite anis Ss sucre 13Cl | E156: 11578 | G156: =5.45 -> 5.45 | H156: 1 | I156: FLC | J156: 1.1 | K156: 6 | O156: 0 | P156: 0
A157: Episaveur | D157: Arlequin de fruits 5/1 | E157: 975 | G157: 4.87 | H157: 1 | I157: BTE | J157: 1.1 | K157: 5.36 | O157: 0 | P157: 0
A158: TransG | D158: Assiette à dessertx100 | E158: 713010 | G158: 3.113 | H158: 1 | I158: st | J158: 1.1 | K158: 3.43 | O158: 0 | P158: 0
A159: TransG | D159: Barquette charcutiere 125cc x500 | E159: 562538 | G159: 3.834 | H159: 1 | I159: SHT | J159: 1.1 | K159: 4.22 | O159: 0 | P159: 0
A160: DPB | D160: Barquette choco 120g | E160: 08752 | G160: =5.6/4 -> 1.4 | H160: 4 | I160: LOT | J160: 1.1 | K160: 1.54 | O160: 0 | P160: 0
A161: DPB | D161: Barquette fraise 120g | E161: 08714 | G161: =5.6/4 -> 1.4 | H161: 4 | I161: LOT | J161: 1.1 | K161: 1.54 | O161: 0 | P161: 0
A162: Episaveur | D162: Barre pâtissiere | E162: 10820 | G162: 1.35 | H162: 1 | I162: PCE | J162: 1.1 | K162: 1.49 | O162: 0 | P162: 0
A163: Episaveur | D163: Bière Kronembourg boite 33cl | E163: 63165 | G163: =0.63 -> 0.63 | H163: 24 | I163: CT | J163: 1.1 | K163: 0.7 | O163: 0 | P163: 0
A164: Episaveur | D164: Biscotte 2 tranches | E164: 64282 | G164: =8.9/208 -> 0.04278846154 | H164: 208 | I164: CT | J164: 1.1 | K164: 0.05 | O164: 0 | P164: 0
A165: Episaveur | D165: Biscotte 2T x208 sans sel | E165: 64284 | G165: 8.6 | H165: 1 | I165: CT | J165: 1.1 | K165: 9.46 | O165: 0 | P165: 0
A166: Episaveur | D166: Biscotte paquet 72 tranches 580g | E166: 67227 | G166: =12.92/12 -> 1.076666667 | H166: 12 | I166: CT | J166: 1.1 | K166: 1.19 | O166: 0 | P166: 0
A167: Episaveur | D167: Biscuits apéritif Belin boîte 720g | E167: 26013 | G167: 5.04 | H167: 1 | I167: BTE | J167: 1.1 | K167: 5.55 | O167: 0 | P167: 0
A168: Episaveur | D168: Blédine biscuitée paquet 500g | E168: 60494 | G168: 3.02 | H168: 1 | I168: PQ | J168: 1.1 | K168: 3.33 | O168: 0 | P168: 0
A169: Episaveur | D169: Blédine céréales-vanille paquet 500g | E169: 60493 | G169: 3.02 | H169: 1 | I169: PQ | J169: 1.1 | K169: 3.33 | O169: 0 | P169: 0
A170: Episaveur | D170: Blédine chocolat paquet 500g | E170: 60495 | G170: 3.02 | H170: 1 | I170: PQ | J170: 1.1 | K170: 3.33 | O170: 0 | P170: 0
A171: DPB | D171: Boudoirs 400g | E171: 08704 | G171: 1.47 | H171: 1 | I171: PCE | J171: 1.1 | K171: 1.62 | O171: 0 | P171: 0
A172: Episaveur | D172: Boudoirs ration 190 x 2 2,2Kg | E172: 10386 | G172: 10.39 | H172: 1 | I172: CT | J172: 1.1 | K172: 11.43 | O172: 0 | P172: 0
A173: Episaveur | D173: Brioche tranchée 500g | E173: 14764 | G173: =1.62 -> 1.62 | H173: 7 | I173: CT | J173: 1.1 | K173: 1.79 | O173: 0 | P173: 0
A174: DPB | D174: Café moulu 100%A 250g x 12 | E174: 02504 | G174: =13.68/12 -> 1.14 | H174: 12 | I174: LOT | J174: 1.1 | K174: 1.26 | O174: 0 | P174: 0
A175: DPB | D175: Café sol (60kf 40chic) dse L15g x 100 | E175: 02714 | G175: 21.17 | H175: 1 | I175: CT | J175: 1.1 | K175: 23.29 | O175: 0 | P175: 0
A176: Potin | D176: Café soluble Nescafé dose 2g | E176: 033070 | G176: =28.9/300 -> 0.09633333333 | H176: 300 | I176: CT | J176: 1.1 | K176: 0.11 | O176: 0 | P176: 0
A177: Potin | D177: Café soluble Nescafé dose 2g décaféiné | E177: 033071 | G177: =34.26/300 -> 0.1142 | H177: 300 | I177: CT | J177: 1.1 | K177: 0.13 | O177: 0 | P177: 0
A178: Episaveur | D178: Café soluble Nescoré (60%café/40%chicorée) poche 500g | E178: 42626 | G178: =7.96 -> 7.96 | H178: 12 | I178: CT | J178: 1.1 | K178: 8.76 | O178: 0 | P178: 0
A179: Episaveur | D179: Café soluble Sagy (60% café/40% chicorée) poche 500g | E179: 13848 | G179: =5.35 -> 5.35 | H179: 10 | I179: CT | J179: 1.1 | K179: 5.89 | O179: 0 | P179: 0
A180: Potin | D180: Café soluble Sagy dose 2g | E180: 033267 | G180: =14.07/300 -> 0.0469 | H180: 300 | I180: CT | J180: 1.1 | K180: 0.06 | O180: 0 | P180: 0
A181: Episaveur | D181: Carré fourré amandes 40g | E181: 4154 | G181: =18.35/100 -> 0.1835 | H181: 100 | I181: CT | J181: 1.1 | K181: 0.21 | O181: 0 | P181: 0
A182: TransG | D182: Charlotte clip TU x 100 | E182: 544791 | G182: 2.5 | H182: 1 | I182: PQ | J182: 1.1 | K182: 2.75 | O182: 0 | P182: 0
A183: Episaveur | D183: Chips paquet 500g | E183: 17851 | G183: =8.82/6 -> 1.47 | H183: 1 | I183: Pce | J183: 1.1 | K183: 1.62 | O183: 0 | P183: 0
A184: TransG | D184: Chocolat au lait tablette 100g | E184: 245944 | G184: =1.841/5 -> 0.3682 | H184: 5 | I184: LOT | J184: 1.1 | K184: 0.41 | O184: 0 | P184: 0
A185: Episaveur | D185: Chocolat en poudre dose 20g | E185: 66618 | G185: =12.51/200 -> 0.06255 | H185: 200 | I185: ct | J185: 1.1 | K185: 0.07 | O185: 0 | P185: 0
A186: TransG | D186: Chocolat petit déjeuner paquet 1Kg | E186: 874195 | G186: 2.536 | H186: 1 | I186: BTE | J186: 1.1 | K186: 2.79 | O186: 0 | P186: 0
A187: TransG | D187: Cidre bouché brut 75Cl | E187: 836643 | G187: =1.15 -> 1.15 | H187: 6 | I187: CT | J187: 1.1 | K187: 1.27 | O187: 0 | P187: 0
A188: TransG | D188: Cidre bouché doux 75Cl | E188: 836650 | G188: =1.15 -> 1.15 | H188: 6 | I188: CT | J188: 1.1 | K188: 1.27 | O188: 0 | P188: 0
A189: DPB | D189: Cigarettes croustillantes 1Kg | E189: 08707 | G189: 9.31 | H189: 1 | I189: BTE | J189: 1.1 | K189: 10.25 | O189: 0 | P189: 0
A190: Canavèse | D190: Citron | G190: 1.4 | H190: 1 | I190: KG | J190: 1.1 | K190: 1.54 | O190: 0 | P190: 0
A191: DPB | D191: Coca cola 1,5L | E191: 02202 | G191: =18.12/12 -> 1.51 | H191: 12 | I191: CT | J191: 1.1 | K191: 1.67 | O191: 0 | P191: 0
A192: Episaveur | D192: Coca cola zéro ou light 1,5L | E192: 64186 | G192: =1.392 -> 1.392 | H192: 12 | I192: CT | J192: 1.1 | K192: 1.54 | O192: 0 | P192: 0
A193: Episaveur | D193: Cocktail de fruits sans sucre 90g | E193: 43558 | G193: =30.25/120 -> 0.2520833333 | H193: 120 | I193: CT | J193: 1.1 | K193: 0.28 | O193: 0 | P193: 0
A194: Episaveur | D194: Compote de pomme 100g | E194: 45856 | G194: =12.23/120 -> 0.1019166667 | H194: 120 | I194: CT | J194: 1.1 | K194: 0.12 | O194: 0 | P194: 0
A195: DPB | D195: Compote pomme/abricot 100g | E195: 03604 | G195: =22.35/120 -> 0.18625 | H195: 120 | I195: CT | J195: 1.1 | K195: 0.21 | O195: 0 | P195: 0
A196: DPB | D196: Compote pomme/banane 100g | E196: 03606 | G196: =22.35/120 -> 0.18625 | H196: 120 | I196: CT | J196: 1.1 | K196: 0.21 | O196: 0 | P196: 0
A197: DPB | D197: Compote pomme/cassis 100g | E197: 03607 | G197: =18/120 -> 0.15 | H197: 120 | I197: CT | J197: 1.1 | K197: 0.17 | O197: 0 | P197: 0
A198: DPB | D198: Cornichons pot 72cl | E198: 04007 | G198: =1.95 -> 1.95 | H198: 6 | I198: CT | J198: 1.1 | K198: =ROUNDUP(G198*J198,2) -> 2.15 | O198: 0 | P198: 0
A199: Potin | D199: Crème anglaise 1L | E199: 423250 | G199: 1.6 | H199: 1 | I199: PCE | J199: 1.1 | K199: 1.76 | O199: =M199*K199*H199 -> 0 | P199: =N199*K199*H199 -> 0
A200: Potin | D200: Crème de cassis 16° 70Cl | E200: 374428 | G200: 5.67 | H200: 1 | I200: BLLE | J200: 1.1 | K200: 6.24 | O200: 0 | P200: 0
A201: Episaveur | D201: Crème pâtissière à froid 2,5Kg | E201: 22062 | G201: =6.25 -> 6.25 | H201: 4 | I201: CT | J201: 1.1 | K201: 6.88 | O201: 0 | P201: 0
... 144 more rows

Sheet BASE
G1: Livraison du | J1: 2015-02-18 | L1: au | M1: =J1+6 -> 2015-02-24
A2: Etablissement: | D2: Date de dépôt | G2: =BASE!L2 -> 00:00:00 | R2: Produits plus spécifiques à noter vous-même selon vos besoins
A3: Bon de commande Produits annexes
A5: FR | B5: FAMILLE | C5: Sous-famille | D5: Intitulés produits | E5: Réf | F5: P/U Achat | G5: P/U | H5: CDT | I5: U/V | J5: MAJ | K5: P/U HT € | L5: TVA | M5: Qté com | N5: Qté liv | O5: M. T. HT € prévisionnel | P5: M. T. HT € facturé
A6: Brake | B6: Divers | D6: Emmental rapé 1 KG | E6: 80280 | F6: 4,9 | G6: 4.9 | H6: 1 | I6: SHT | J6: 1.1 | K6: =ROUNDUP(G6*J6,2) -> 5.39 | O6: =M6*K6*H6 -> 0 | P6: =N6*K6*H6 -> 0
A7: Brake | B7: Divers | D7: Jambon de Paris 10 tranches 400g | E7: 47642 | F7: 2.67 | G7: 2.67 | H7: 1 | I7: PQT | J7: 1.1 | K7: 2.94 | O7: =M7*K7*H7 -> 0 | P7: =N7*K7*H7 -> 0 | R7: Prévisionnel sur commande | U7: Réel sur livraison
A8: TransG | B8: Divers | D8: Jambon de Paris 20 tranches 800g | E8: 980473 | F8: 3.68 | G8: 3.68 | H8: 1 | I8: PQT | J8: 1.1 | K8: 4.05 | O8: 0 | P8: 0 | R8: TOTAL H.T TVA 5,5% | S8: =SUMIF(L6:L501,R13,O6:O501) -> 0 | U8: TOTAL H.T TVA 5,5% | V8: =SUMIF(L6:L501,R13,P6:P501) -> 0
A9: Brake | B9: Divers | D9: Jambon de Paris hyposodé 10 tranches 450g | E9: 48631 | F9: 3.18 | G9: 3.18 | H9: 1 | I9: PQT | J9: 1.1 | K9: 3.5 | O9: 0 | P9: 0 | R9: TOTAL H.T TVA 20% | S9: =SUMIF(L6:L501,R14,O6:O501) -> 0 | U9: TOTAL H.T TVA 20% | V9: =SUMIF(L6:L501,R14,P6:P501) -> 0
A10: Charles F | B10: Goûter | C10: Biscuit à partager | D10: Cake marbré 400g (moule alu) | F10: =9/6 -> 1.5 | G10: 1.5 | H10: 6 | I10: LOT | J10: 1.1 | K10: 1.65 | O10: 0 | P10: 0 | R10: TOTAL H.T TVA 20% non alimentaire | S10: =SUMIF(L6:L501,R15,O6:O501) -> 0 | U10: TOTAL H.T TVA 20% non alimentaire | V10: =SUMIF(L6:L501,R15,P6:P501) -> 0
A11: Charles F | B11: Goûter | C11: Biscuit à partager | D11: Cake parfum chocolat 400g (moule alu) | F11: 1.5 | G11: 1.5 | H11: 6 | I11: LOT | J11: 1.1 | K11: 1.65 | O11: 0 | P11: 0
A12: Charles F | B12: Goûter | C12: Biscuit à partager | D12: Cake parfum kiwi 400g (moule alu) | F12: 1.5 | G12: 1.5 | H12: 6 | I12: LOT | J12: 1.1 | K12: 1.65 | O12: 0 | P12: 0
A13: Charles F | B13: Goûter | C13: Biscuit à partager | D13: Roulade chocolat 300g | F13: 1.5 | G13: 1.5 | H13: 7 | I13: CT | J13: 1.1 | K13: 1.65 | O13: 0 | P13: 0 | R13: 0.055
A14: Charles F | B14: Goûter | C14: Biscuit à partager | D14: Roulade fraise 300g | F14: 1.5 | G14: 1.5 | H14: 7 | I14: CT | J14: 1.1 | K14: 1.65 | O14: 0 | P14: 0 | R14: 0.2
A15: Charles F | B15: Goûter | C15: Biscuit à partager | D15: Roulade myrtille 300g | F15: 1.5 | G15: 1.5 | H15: 7 | I15: CT | J15: 1.1 | K15: 1.65 | O15: 0 | P15: 0 | R15: 20% NA
A16: Charles F | B16: Goûter | C16: Biscuit individuel | D16: Financier aux amandes 20g | F16: 0.218 | G16: 0.218 | H16: 150 | I16: CT | J16: 1.1 | K16: 0.24 | O16: 0 | P16: 0
A17: Charles F | B17: Goûter | C17: Biscuit individuel | D17: Gaufrette chocolat 20g | F17: 0.1 | G17: 0.1 | H17: 320 | I17: CT | J17: 1.1 | K17: 0.11 | O17: 0 | P17: 0
A18: Charles F | B18: Goûter | C18: Biscuit individuel | D18: Gaufrette vanille 20g | F18: 0.1 | G18: 0.1 | H18: 320 | I18: CT | J18: 1.1 | K18: 0.11 | O18: 0 | P18: 0
A19: Charles F | B19: Goûter | C19: Biscuit individuel | D19: Goûter fourré choco x 2 x 37g | F19: 0.16 | G19: 0.16 | H19: 144 | I19: CT | J19: 1.1 | K19: 0.18 | O19: 0 | P19: 0
A20: Charles F | B20: Goûter | C20: Biscuit individuel | D20: Lingot fondant orange 20g | F20: 0.218 | G20: 0.22 | H20: 150 | I20: CT | J20: 1.1 | K20: 0.25 | O20: 0 | P20: 0
A21: Charles F | B21: Goûter | C21: Biscuit individuel | D21: Madeleine carrée fourrée abricot 40g | F21: 0.16 | G21: 0.16 | H21: 50 | I21: CT | J21: 1.1 | K21: 0.18 | O21: 0 | P21: 0
A22: Charles F | B22: Goûter | C22: Biscuit individuel | D22: Madeleine carrée fourrée chocolat 40g | F22: 0.16 | G22: 0.16 | H22: 50 | I22: CT | J22: 1.1 | K22: 0.18 | O22: 0 | P22: 0
A23: Charles F | B23: Goûter | C23: Biscuit individuel | D23: Madeleine carrée fourrée fraise 40g | F23: 0.16 | G23: 0.16 | H23: 50 | I23: CT | J23: 1.1 | K23: 0.18 | O23: 0 | P23: 0
A24: Charles F | B24: Goûter | C24: Biscuit individuel | D24: Madeleine carrée fourrée fruits des bois 40g | F24: 0.16 | G24: 0.16 | H24: 50 | I24: CT | J24: 1.1 | K24: 0.18 | O24: 0 | P24: 0
A25: Charles F | B25: Goûter | C25: Biscuit individuel | D25: Madeleine carrée nature 30g | F25: 0.2 | G25: 0.2 | H25: 56 | I25: CT | J25: 1.1 | K25: 0.22 | O25: 0 | P25: 0
A26: Episaveur | B26: Goûter | C26: Biscuit individuel | D26: Madeleine coquille aux œufs 25g | E26: 91566 | G26: =7/120 -> 0.05833333333 | H26: 120 | I26: CT | J26: 1.1 | K26: 0.07 | O26: 0 | P26: 0
A27: Charles F | B27: Goûter | C27: Biscuit individuel | D27: Madeleine nappée chocolat 20g | F27: 0.16 | G27: 0.16 | H27: 120 | I27: CT | J27: 1.1 | K27: 0.18 | O27: 0 | P27: 0
A28: Charles F | B28: Goûter | C28: Biscuit individuel | D28: Mini cake fourré crème de lait 30g | F28: 0.12 | G28: 0.12 | H28: 120 | I28: CT | J28: 1.1 | K28: 0.14 | O28: 0 | P28: 0
A29: Charles F | B29: Goûter | C29: Biscuit individuel | D29: Mini génoise abricot 25g | F29: 0.15 | G29: 0.15 | H29: 120 | I29: CT | J29: 1.1 | K29: 0.17 | O29: 0 | P29: 0
A30: Charles F | B30: Goûter | C30: Biscuit individuel | D30: Mini génoise chocolat 25g | F30: 0.15 | G30: 0.15 | H30: 120 | I30: CT | J30: 1.1 | K30: 0.17 | O30: 0 | P30: 0
A31: Charles F | B31: Goûter | C31: Biscuit individuel | D31: Mini génoise fraise 25g | F31: 0.15 | G31: 0.15 | H31: 120 | I31: CT | J31: 1.1 | K31: 0.17 | O31: 0 | P31: 0
A32: Charles F | B32: Goûter | C32: Biscuit individuel | D32: Mini génoise nappée chocolat / fourrée chocolat 35g | F32: 0.18 | G32: 0.18 | H32: 120 | I32: CT | J32: 1.1 | K32: 0.2 | O32: 0 | P32: 0
A33: Charles F | B33: Goûter | C33: Biscuit individuel | D33: Mini génoise tiramisu 25g | F33: 0.15 | G33: 0.15 | H33: 120 | I33: CT | J33: 1.1 | K33: 0.17 | O33: 0 | P33: 0
A34: Charles F | B34: Goûter | C34: Biscuit individuel | D34: Mini marbré chocolat 30g | F34: =0.12 -> 0.12 | G34: =0.12 -> 0.12 | H34: 120 | I34: CT | J34: 1.1 | K34: 0.14 | O34: 0 | P34: 0
A35: Episaveur | B35: Goûter | C35: Biscuit individuel | D35: Mini moelleux fourré abricot 30g | E35: 0003211 | F35: =12.76/120 -> 0.1063333333 | G35: =12.76/120 -> 0.1063333333 | H35: 120 | I35: CT | J35: 1.1 | K35: 0.12 | O35: 0 | P35: 0
A36: Episaveur | B36: Goûter | C36: Biscuit individuel | D36: Mini moelleux fourré cacao 30g | E36: 94769 | F36: =14.1/130 -> 0.1084615385 | G36: =14.1/130 -> 0.1084615385 | H36: 130 | I36: CT | J36: 1.1 | K36: 0.12 | O36: 0 | P36: 0
A37: Episaveur | B37: Goûter | C37: Biscuit individuel | D37: Mini moelleux fourré cacao-noisette 30g | E37: 0003196 | F37: =12.76/120 -> 0.1063333333 | G37: =12.76/120 -> 0.1063333333 | H37: 120 | I37: CT | J37: 1.1 | K37: 0.12 | O37: 0 | P37: 0
A38: DPB | B38: Goûter | C38: Biscuit individuel | D38: Mini moelleux fourré citron 30g | E38: 85108 | F38: =12.76/120 -> 0.1063333333 | G38: =10.87/100 -> 0.1087 | H38: 100 | I38: CT | J38: 1.1 | K38: 0.12 | O38: 0 | P38: 0
A39: Episaveur | B39: Goûter | C39: Biscuit individuel | D39: Mini moelleux fourré fraise 30g | E39: 0003205 | F39: =10.75/120 -> 0.08958333333 | G39: =10.75/120 -> 0.08958333333 | H39: 120 | I39: CT | J39: 1.1 | K39: 0.1 | O39: 0 | P39: 0
A40: DPB | B40: Goûter | C40: Biscuit individuel | D40: Mini moelleux fourré fruits rouges 30g | E40: 85109 | F40: =12.76/120 -> 0.1063333333 | G40: =10.87/100 -> 0.1087 | H40: 100 | I40: CT | J40: 1.1 | K40: 0.12 | O40: 0 | P40: 0
A41: Episaveur | B41: Goûter | C41: Biscuit individuel | D41: Moelleux amande 40g | E41: 4154 | F41: =18.35/100 -> 0.1835 | G41: =18.35/100 -> 0.1835 | H41: 100 | I41: CT | J41: 1.1 | K41: 0.21 | O41: 0 | P41: 0
A42: TransG | B42: Goûter | C42: Biscuit individuel | D42: Moelleux chocolat 40g | E42: 101632 | F42: 0.178 | G42: 0.178 | H42: 100 | I42: CT | J42: 1.1 | K42: 0.2 | O42: 0 | P42: 0
A43: Potin | B43: Goûter | C43: Biscuit individuel | D43: Moelleux citron 40g | E43: 23624 | F43: =16.46/100 -> 0.1646 | G43: =16.46/100 -> 0.1646 | H43: 100 | I43: CT | J43: 1.1 | K43: 0.19 | O43: 0 | P43: 0
A44: DPB | B44: Goûter | C44: Biscuit individuel | D44: Moelleux framboise 40g | E44: 8527 | F44: =19.51/100 -> 0.1951 | G44: =19.51/100 -> 0.1951 | H44: 100 | I44: CT | J44: 1.1 | K44: 0.22 | O44: 0 | P44: 0
A45: Episaveur | B45: Goûter | C45: Biscuit individuel | D45: Moelleux marbré 40g | E45: 16243 | F45: =18.35/100 -> 0.1835 | G45: =17.65/100 -> 0.1765 | H45: 100 | I45: CT | J45: 1.1 | K45: 0.2 | O45: 0 | P45: 0
A46: Charles F | B46: Goûter | C46: Biscuit individuel | D46: Rocher coco nappé chocolat 40g | F46: 0.26 | G46: 0.26 | H46: 100 | I46: CT | J46: 1.1 | K46: 0.29 | O46: 0 | P46: 0
A47: TransG | B47: Goûter | C47: Biscuit individuel | D47: Rocher coco nature 35g | E47: 747207 | F47: 0.13 | G47: 0.13 | H47: 100 | I47: CT | J47: 1.1 | K47: 0.15 | O47: 0 | P47: 0
A48: Charles F | B48: Goûter | C48: Biscuit individuel | D48: Tranche marbrée cacao 50g | F48: 0.23 | G48: 0.23 | H48: 48 | I48: CT | J48: 1.1 | K48: 0.26 | O48: 0 | P48: 0
A49: Charles F | B49: Goûter | C49: Biscuit individuel | D49: Tranche nature citron 50g | F49: 0.23 | G49: 0.23 | H49: 48 | I49: CT | J49: 1.1 | K49: 0.26 | O49: 0 | P49: 0
A50: Brake | B50: Goûter | C50: Divers | D50: Framboise en bille surgelée 1Kg | E50: 39116 | F50: 4.22 | G50: 4.22 | H50: 5 | I50: CT | J50: 1.1 | K50: 4.65 | O50: 0 | P50: 0
A51: TransG | B51: Goûter | C51: Divers | D51: Framboises entières surgelées Williamette 1Kg | E51: 292375 | F51: 3.235 | G51: 3.235 | H51: 1 | I51: SHT | J51: 1.1 | K51: 3.56 | O51: 0 | P51: 0
A52: TransG | B52: Goûter | C52: Divers | D52: Griottes dénoyautées surgelées 1Kg | E52: 292391 | F52: 3.365 | G52: 3.365 | H52: 1 | I52: SHT | J52: 1.1 | K52: 3.71 | O52: 0 | P52: 0
A53: TransG | B53: Goûter | C53: Divers | D53: Melon en bille surgelé 1Kg | E53: 200307 | F53: 3.85 | G53: 3.85 | H53: 1 | I53: SHT | J53: 1.1 | K53: 4.24 | O53: 0 | P53: 0
A54: TransG | B54: Goûter | C54: Divers | D54: Mûre cultivée surgelée 1Kg | E54: 200312 | F54: 4.69 | G54: 4.69 | H54: 1 | I54: SHT | J54: 1.1 | K54: 5.16 | O54: 0 | P54: 0
A55: TransG | B55: Goûter | C55: Divers | D55: Salade de fruits exotiques surgelée 1Kg | E55: 292409 | F55: 2.812 | G55: 2.812 | H55: 1 | I55: SHT | J55: 1.1 | K55: 3.1 | O55: 0 | P55: 0
A56: Brake | B56: Goûter | C56: Gâteau à partager | D56: Bavarois cappuccino 700g | E56: 71477 | F56: 4.65 | G56: 4.65 | H56: 2 | I56: PCE | J56: 1.1 | K56: 5.12 | O56: 0 | P56: 0
A57: Brake | B57: Goûter | C57: Gâteau à partager | D57: Bavarois parfum abricot 700 g | E57: 4099 | F57: =4.65 -> 4.65 | G57: =4.65 -> 4.65 | H57: 2 | I57: PCE | J57: 1.1 | K57: 5.12 | O57: 0 | P57: 0
A58: Brake | B58: Goûter | C58: Gâteau à partager | D58: Bavarois parfum chocolat 700 g | E58: 6726 | F58: 4.71 | G58: 4.71 | H58: 2 | I58: PCE | J58: 1.1 | K58: 5.19 | O58: 0 | P58: 0
A59: Brake | B59: Goûter | C59: Gâteau à partager | D59: Bavarois parfum framboise 700g | E59: 6725 | F59: =4.88 -> 4.88 | G59: =4.88 -> 4.88 | H59: 2 | I59: PCE | J59: 1.1 | K59: 5.37 | O59: 0 | P59: 0
A60: Brake | B60: Goûter | C60: Gâteau à partager | D60: Bavarois parfum fruits rouges 700 g | E60: 7976 | F60: =4.65 -> 4.65 | G60: =4.65 -> 4.65 | H60: 2 | I60: PCE | J60: 1.1 | K60: 5.12 | O60: 0 | P60: 0
A61: Brake | B61: Goûter | C61: Gâteau à partager | D61: Bavarois parfum poire 700g | E61: 9053 | F61: 4.77 | G61: 4.77 | H61: 2 | I61: PCE | J61: 1.1 | K61: 5.25 | O61: 0 | P61: 0
A62: Brake | B62: Goûter | C62: Gâteau à partager | D62: Boléro chocolat marrons en bande 550g | E62: 5410 | F62: =3.68 -> 3.68 | G62: =3.68 -> 3.68 | H62: 4 | I62: PCE | J62: 1.1 | K62: 4.05 | O62: 0 | P62: 0
A63: TransG | B63: Goûter | C63: Gâteau à partager | D63: Carré bavarois cacao 45g x 60 (demi-cadre) | E63: 300331 | F63: 16,765 | G63: 0.279 | H63: 60 | I63: CT | J63: 1.1 | K63: 0.31 | O63: 0 | P63: 0
A64: TransG | B64: Goûter | C64: Gâteau à partager | D64: Carré bavarois fruits rouges 45g x 60 (demi-cadre) | E64: 300332 | F64: 16,765 | G64: 0.279 | H64: 60 | I64: CT | J64: 1.1 | K64: 0.31 | O64: 0 | P64: 0
A65: Brake | B65: Goûter | C65: Gâteau à partager | D65: Charlotte aux fruits rouges en bande 800g | E65: 38299 | F65: 6,52 | G65: 6,52 | H65: 2 | I65: PCE | J65: 1.1 | K65: 7.18 | O65: 0 | P65: 0
A66: Brake | B66: Goûter | C66: Gâteau à partager | D66: Charlotte aux poires en bande 850g | E66: 38298 | F66: 8,25 | G66: 8.25 | H66: 2 | I66: PCE | J66: 1.1 | K66: 9.08 | O66: 0 | P66: 0
A67: Brake | B67: Goûter | C67: Gâteau à partager | D67: Clafoutis à la cerise en bande 550g | E67: 7914 | F67: 2,82 | G67: 2,82 | H67: 4 | I67: PCE | J67: 1.1 | K67: 3.11 | O67: 0 | P67: 0
A68: Transg | B68: Goûter | C68: Gâteau à partager | D68: Clafoutis aux griottes 1Kg | E68: 360941 | F68: 5,25 | G68: 5.25 | H68: 1 | I68: PCE | J68: 1.1 | K68: 5.78 | O68: 0 | P68: 0
A69: Brake | B69: Goûter | C69: Gâteau à partager | D69: Craquant crème brulée-fruits rouges en bande 750g | E69: 70661 | F69: 10,02 | G69: 10.2 | H69: 2 | I69: PCE | J69: 1.1 | K69: 11.22 | O69: 0 | P69: 0
A70: Brake | B70: Goûter | C70: Gâteau à partager | D70: Forêt noire aux griottes 1,4kg | E70: 5716 | F70: 7,38 | G70: 7.38 | H70: 2 | I70: PCE | J70: 1.1 | K70: =ROUNDUP(G70*J70,2) -> 8.12 | O70: 0 | P70: 0
A71: Brake | B71: Goûter | C71: Gâteau à partager | D71: Forêt noire sans sucre ajouté 57g | E71: 72796 | F71: 0,51 | G71: 0.51 | H71: 28 | I71: PCE | J71: 1.1 | K71: 0.57 | O71: =M71*K71*H71 -> 0 | P71: =N71*K71*H71 -> 0
A72: Brake | B72: Goûter | C72: Gâteau à partager | D72: Framboisier en bande 550g | E72: 70660 | F72: 6.87 | G72: 6.87 | H72: 2 | I72: CT | J72: 1.1 | K72: 7.56 | O72: 0 | P72: 0
A73: TransG | B73: Goûter | C73: Gâteau à partager | D73: Gâteau aux 3 chocolats 1Kg | E73: 470856 | F73: 11.822 | G73: 11.822 | H73: 1 | I73: PCE | J73: 1.1 | K73: 13.01 | O73: 0 | P73: 0
A74: Brake | B74: Goûter | C74: Gâteau à partager | D74: Gâteau Basque 1kg | E74: 6367 | F74: 3,39 | G74: 3.39 | H74: 4 | I74: PCE | J74: 1.1 | K74: 3.73 | O74: 0 | P74: 0
A75: TransG | B75: Goûter | C75: Individuel | D75: Millefeuille 65g x 36 | E75: 201993 | F75: 12.392 | G75: 12.392 | H75: 3 | I75: CT | J75: 1.1 | K75: 13.64 | O75: 0 | P75: 0
A76: TransG | B76: Goûter | C76: Gâteau à partager | D76: Omelette norvégienne 2L | E76: 874639 | F76: 7.14 | G76: 7.14 | H76: 6 | I76: CT | J76: 1.1 | K76: 7.86 | O76: 0 | P76: 0
A77: Brake | B77: Goûter | C77: Gâteau à partager | D77: Opéra en bande 750g | E77: 6904 | F77: 8,91 | G77: 8,91 | H77: 2 | I77: PCE | J77: 1.1 | K77: 9.81 | O77: 0 | P77: 0
A78: Brake | B78: Goûter | C78: Gâteau à partager | D78: Privilège poire chocolat en bande 750g | E78: 70659 | F78: 7,36 | G78: 7.36 | H78: 2 | I78: PCE | J78: 1.1 | K78: 8.1 | O78: 0 | P78: 0
A79: Brake | B79: Goûter | C79: Gâteau à partager | D79: Royal chocolat en bande 650g | E79: 70665 | F79: 7,20 | G79: 7.2 | H79: 3 | I79: PCE | J79: 1.1 | K79: 7.92 | O79: 0 | P79: 0
A80: Brake | B80: Goûter | C80: Gâteau à partager | D80: Tarte à la noix de coco 1,15Kg | E80: 6989 | F80: 5.32 | G80: 5.32 | H80: 2 | I80: CT | J80: 1.1 | K80: 5.86 | O80: 0 | P80: 0
A81: Brake | B81: Goûter | C81: Gâteau à partager | D81: Tarte au chocolat entière 900g | E81: 36400 | F81: 4.98 | G81: 4.98 | H81: 2 | I81: CT | J81: 1.1 | K81: 5.48 | O81: 0 | P81: 0
A82: Brake | B82: Goûter | C82: Gâteau à partager | D82: Tarte au chocolat prédécoupée en 10 700g | E82: 73441 | F82: 3 | G82: 3 | H82: 8 | I82: CT | J82: 1.1 | K82: 3.3 | O82: 0 | P82: 0
A83: Brake | B83: Goûter | C83: Gâteau à partager | D83: Tarte au citron 1,15kg | E83: 5888 | F83: 5,28 | G83: 5.28 | H83: 2 | I83: PCE | J83: 1.1 | K83: 5.81 | O83: 0 | P83: 0
A84: Brake | B84: Goûter | C84: Gâteau à partager | D84: Tarte au citron meringuée 1kg | E84: 5379 | F84: 4.6 | G84: 4.6 | H84: 2 | I84: PCE | J84: 1.1 | K84: 5.06 | O84: 0 | P84: 0
A85: Brake | B85: Goûter | C85: Gâteau à partager | D85: Tarte au citron prédrécoupée en 10 parts 700g | E85: 73440 | F85: =2.97 -> 2.97 | G85: =2.97 -> 2.97 | H85: 8 | I85: CT | J85: 1.1 | K85: 3.27 | O85: 0 | P85: 0
A86: Brake | B86: Goûter | C86: Gâteau à partager | D86: Tarte au flan 1Kg | E86: 6990 | F86: 3.19 | G86: 3.19 | H86: 4 | I86: CT | J86: 1.1 | K86: 3.51 | O86: 0 | P86: 0
A87: TransG | B87: Goûter | C87: Gâteau à partager | D87: Tarte au flan prédécoupée en 10 parts 750g | E87: 461202 | F87: 2,75 | G87: 2,75 | H87: 1 | I87: PCE | J87: 1.1 | K87: 3.03 | O87: 0 | P87: 0
A88: Brake | B88: Goûter | C88: Gâteau à partager | D88: Tarte aux abricots 1,3kg | E88: 71830 | F88: 11,90 | G88: 11.9 | H88: 1 | I88: PCE | J88: 1.1 | K88: 13.09 | O88: 0 | P88: 0
A89: Brake | B89: Goûter | C89: Gâteau à partager | D89: Tarte aux abricots 1,3Kg | E89: 71830 | F89: 11.46 | G89: 11.46 | H89: 1 | I89: PCE | J89: 1.1 | K89: 12.61 | O89: 0 | P89: 0
A90: Brake | B90: Goûter | C90: Gâteau à partager | D90: Tarte aux abricots croisillon prédécoupée en 12 parts 900g | E90: 73444 | F90: 2.9 | G90: 2.9 | H90: 6 | I90: CT | J90: 1.1 | K90: 3.19 | O90: 0 | P90: 0
A91: TransG | B91: Goûter | C91: Gâteau à partager | D91: Tarte aux fraises 800g | E91: 645929 | F91: 7.535 | G91: 7.535 | H91: 1 | I91: PCE | J91: 1.1 | K91: 8.29 | O91: 0 | P91: 0
A92: TransG | B92: Goûter | C92: Gâteau à partager | D92: Tarte aux fraises prédécoupée en 8 900g | E92: 950172 | F92: 6.101 | G92: 6.101 | H92: 1 | I92: PCE | J92: 1.1 | K92: 6.72 | O92: 0 | P92: 0
A93: Brake | B93: Goûter | C93: Gâteau à partager | D93: Tarte aux framboises 1,4kg | E93: 39156 | F93: 12.6 | G93: 12.6 | H93: 1 | I93: PCE | J93: 1.1 | K93: 13.86 | O93: 0 | P93: 0
A94: TransG | B94: Goûter | C94: Gâteau à partager | D94: Tarte aux framboises 880g | E94: 300437 | F94: 6.473 | G94: 6.473 | H94: 1 | I94: PCE | J94: 1.1 | K94: 7.13 | O94: 0 | P94: 0
A95: Brake | B95: Goûter | C95: Gâteau à partager | D95: Tarte aux framboises meringuée 1,15kg | E95: 7037 | F95: 6.6 | G95: 6.6 | H95: 2 | I95: CT | J95: 1.1 | K95: 7.26 | O95: 0 | P95: 0
A96: TransG | B96: Goûter | C96: Gâteau à partager | D96: Tarte aux myrtilles 900g | E96: 905505 | F96: 6.37 | G96: 6.37 | H96: 2 | I96: CT | J96: 1.1 | K96: 7.01 | O96: 0 | P96: 0
A97: TransG | B97: Goûter | C97: Gâteau à partager | D97: Tarte aux poires 900g | E97: 046287 | F97: 6.161 | G97: 6.161 | H97: 1 | I97: PCE | J97: 1.1 | K97: 6.78 | O97: 0 | P97: 0
A98: Brake | B98: Goûter | C98: Gâteau à partager | D98: Tarte aux poires Bourdaloue 1,1kg | E98: 36413 | F98: 7,55 | G98: 7,55 | H98: 2 | I98: CT | J98: 1.1 | K98: 8.31 | O98: 0 | P98: 0
A99: DPB | B99: Goûter | C99: Gâteau à partager | D99: Tarte aux poires prédécoupée en 10 parts 750g | E99: 56364 | F99: 4.36 | G99: 4.36 | H99: 1 | I99: PCE | J99: 1.1 | K99: 4.8 | O99: 0 | P99: 0
A100: TransG | B100: Goûter | C100: Gâteau à partager | D100: Tarte aux pommes croissillon prédécoupée en 12 parts 900g | E100: 300253 | F100: 2.788 | G100: 2.788 | H100: 1 | I100: PCE | J100: 1.1 | K100: 3.07 | O100: 0 | P100: 0
A101: Brake | B101: Goûter | C101: Gâteau à partager | D101: Tarte aux pommes crumble 1,15Kg | E101: 4430 | F101: 5,98 | G101: 5.98 | H101: 2 | I101: CT | J101: 1.1 | K101: 6.58 | O101: 0 | P101: 0
A102: Brake | B102: Goûter | C102: Gâteau à partager | D102: Tarte aux pommes et noix 1,1Kg | E102: 4986 | F102: 5,54 | G102: 5,54 | H102: 2 | I102: CT | J102: 1.1 | K102: 6.1 | O102: 0 | P102: 0
A103: Brake | B103: Goûter | C103: Gâteau à partager | D103: Tarte aux pommes Normande 800g | E103: 36411 | F103: 3.65 | G103: 3.65 | H103: 2 | I103: CT | J103: 1.1 | K103: 4.02 | O103: 0 | P103: 0
A104: TransG | B104: Goûter | C104: Gâteau à partager | D104: Tarte aux pommes Normande 950g | E104: 053933 | F104: 3.508 | G104: 3.508 | H104: 1 | I104: PCE | J104: 1.1 | K104: 3.86 | O104: 0 | P104: 0
A105: Brake | B105: Goûter | C105: Gâteau à partager | D105: Tarte aux pommes Normande prédécoupée en 10 parts 700g | E105: 73438 | F105: 2.77 | G105: 2.77 | H105: 6 | I105: CT | J105: 1.1 | K105: 3.05 | O105: 0 | P105: 0
A106: DPB | B106: Goûter | C106: Gâteau à partager | D106: Tarte aux pommes prédécoupée en 10 parts 750g | E106: 56360 | F106: 2,89 | G106: 2,89 | H106: 1 | I106: PCE | J106: 1.1 | K106: 3.18 | O106: 0 | P106: 0
A107: TransG | B107: Goûter | C107: Gâteau à partager | D107: Tarte rosace aux fruits entiers, questches, abricots, framboises | E107: 407408 | F107: 5,766 | G107: 5,766 | H107: 1 | I107: PCE | J107: 1.1 | K107: 6.35 | O107: 0 | P107: 0
A108: Brake | B108: Goûter | C108: Gâteau à partager | D108: Tarte tropézienne 650g | E108: 5814 | F108: 4.1 | G108: 4.1 | H108: 6 | I108: CT | J108: 1.1 | K108: 4.51 | O108: 0 | P108: 0
A109: Brake | B109: Goûter | C109: Gâteau à partager | D109: Tiramisu en bande 900g | E109: 70283 | F109: 6,90 | G109: 6.9 | H109: 2 | I109: CT | J109: 1.1 | K109: 7.59 | O109: 0 | P109: 0
A110: Brake | B110: Goûter | C110: Gâteau à partager | D110: Tiramisu en bande 900g | E110: 5831 | F110: 6.32 | G110: 6.32 | H110: 2 | I110: PCE | J110: 1.1 | K110: 6.96 | O110: 0 | P110: 0
A111: TransG | B111: Goûter | C111: Gâteau à partager | D111: Vacherin vanille/framboise glacé 2L | E111: 841171 | F111: 6.46 | G111: 6.46 | H111: 2 | I111: PCE | J111: 1.1 | K111: 7.11 | O111: 0 | P111: 0
A112: TransG | B112: Goûter | C112: Individuel | D112: Beignet abricot 75g | E112: 616821 | F112: 17.19 | G112: 0.28 | H112: 60 | I112: CT | J112: 1.1 | K112: 0.31 | O112: 0 | P112: 0
A113: Brake | B113: Goûter | C113: Individuel | D113: Beignet chocolat-noisette 75g | E113: 38160 | F113: =0.27 -> 0.27 | G113: =0.27 -> 0.27 | H113: 60 | I113: PCE | J113: 1.1 | K113: 0.3 | O113: 0 | P113: 0
A114: Brake | B114: Goûter | C114: Individuel | D114: Beignet framboise 75g | E114: 38161 | F114: =0.28 -> 0.28 | G114: =0.28 -> 0.28 | H114: 60 | I114: PCE | J114: 1.1 | K114: 0.31 | O114: 0 | P114: 0
A115: TransG | B115: Goûter | C115: Individuel | D115: Beignet nature 55g | E115: 616854 | F115: 13.53 | G115: =13.53/60 -> 0.2255 | H115: 60 | I115: CT | J115: 1.1 | K115: 0.25 | O115: 0 | P115: 0
A116: TransG | B116: Goûter | C116: Individuel | D116: Beignet pommes 75g | E116: 645986 | F116: =0.23*60 -> 13.8 | G116: =0.23 -> 0.23 | H116: 60 | I116: CT | J116: 1.1 | K116: 0.26 | O116: 0 | P116: 0
A117: Brake | B117: Goûter | C117: Individuel | D117: Brioche perdue 100g (peut être coupée en 2) | E117: 72153 | F117: =0.86 -> 0.86 | G117: =0.86 -> 0.86 | H117: 28 | I117: PCE | J117: 1.1 | K117: 0.95 | O117: 0 | P117: 0
A118: Brake | B118: Goûter | C118: Individuel | D118: Briochette à tête pur beurre cuite 45g | E118: 71213 | F118: 14.29 | G118: 0.31 | H118: 45 | I118: CT | J118: 1.1 | K118: 0.35 | O118: 0 | P118: 0
A119: Brake | B119: Goûter | C119: Individuel | D119: Crèpes au chocolat 40g | E119: 37555 | F119: 0,22 | G119: 0.22 | H119: 40 | I119: PCE | J119: 1.1 | K119: 0.25 | O119: 0 | P119: 0
A120: Brake | B120: Goûter | C120: Individuel | D120: Crèpes nature 50g | E120: 39530 | F120: 0,23 | G120: 0.23 | H120: 40 | I120: PCE | J120: 1.1 | K120: 0.26 | O120: 0 | P120: 0
A121: Brake | B121: Goûter | C121: Individuel | D121: Donuts chocolat 55g | E121: 37248 | F121: 9,45 | G121: 0.27 | H121: 36 | I121: CT | J121: 1.1 | K121: 0.3 | O121: 0 | P121: 0
A122: Brake | B122: Goûter | C122: Individuel | D122: Donuts nature sucré 49g | E122: 4569 | F122: 15.02 | G122: 0.21 | H122: 72 | I122: CT | J122: 1.1 | K122: 0.24 | O122: 0 | P122: 0
A123: Brake | B123: Goûter | C123: Individuel | D123: Gaufre de Bruxelles 70g (peut être coupée en 2) | E123: 36383 | F123: 0,29 | G123: 0.29 | H123: 27 | I123: PCE | J123: 1.1 | K123: 0.32 | O123: 0 | P123: 0
A124: Episaveur | B124: goûter | C124: Sans sucre | D124: Cake cacao sans sucre 30g | E124: 33705 | G124: =12.98/60 -> 0.2163333333 | H124: 60 | I124: CT | J124: 1.1 | K124: 0.24 | O124: 0 | P124: 0
A125: Episaveur | B125: goûter | C125: Sans sucre | D125: Cake citron sans sucre 30g | E125: 33707 | G125: =12.98/60 -> 0.2163333333 | H125: 60 | I125: CT | J125: 1.1 | K125: 0.24 | O125: 0 | P125: 0
A126: Episaveur | B126: goûter | C126: Sans sucre | D126: Cake framboise sans sucre 30g | E126: 33708 | G126: =12.98/60 -> 0.2163333333 | H126: 60 | I126: CT | J126: 1.1 | K126: 0.24 | O126: 0 | P126: 0
A127: Charles F | B127: Goûter | C127: Sans sucre | D127: Couronne sans sucre 40g | F127: 0.289 | G127: 0.289 | H127: 36 | I127: CT | J127: 1.1 | K127: 0.32 | O127: 0 | P127: 0
A128: Charles F | B128: Goûter | C128: Sans sucre | D128: Gaufrette cacao sans sucre 20g | F128: 0.116 | G128: 0.116 | H128: 320 | I128: CT | J128: 1.1 | K128: 0.13 | O128: 0 | P128: 0
A129: DPB | B129: Goûter | C129: Sans sucre | D129: Gaufrette citron sans sucre / sans sel 11g | F129: =22.96/100 -> 0.2296 | G129: =22.96/100 -> 0.2296 | H129: 100 | I129: CT | J129: 1.1 | K129: 0.26 | O129: 0 | P129: 0
A130: Charles F | B130: Goûter | C130: Sans sucre | D130: Gaufrette vanille sans sucre 20g | F130: 0.116 | G130: 0.116 | H130: 320 | I130: CT | J130: 1.1 | K130: 0.13 | O130: 0 | P130: 0
A131: Charles F | B131: Goûter | C131: Sans sucre | D131: Lingot amande sans sucre 25g | F131: =0.289 -> 0.289 | G131: =0.289 -> 0.289 | H131: 80 | I131: CT | J131: 1.1 | K131: 0.32 | O131: 0 | P131: 0
A132: Charles F | B132: Goûter | C132: Sans sucre | D132: Madeleine nature sans sucre 25g | F132: 0.17 | G132: 0.17 | H132: 100 | I132: CT | J132: 1.1 | K132: 0.19 | O132: 0 | P132: 0
A133: DPB | B133: goûter | C133: Sans sucre | D133: Moelleux cacao sans sucre 40g | E133: 72612 | F133: =25.31/100 -> 0.2531 | G133: =25.31/100 -> 0.2531 | H133: 100 | I133: CT | J133: 1.1 | K133: 0.28 | O133: 0 | P133: 0
A134: DPB | B134: goûter | C134: Sans sucre | D134: Moelleux citron sans sucre 40g | E134: 726125 | F134: =23.72/100 -> 0.2372 | G134: =23.72/100 -> 0.2372 | H134: 100 | I134: CT | J134: 1.1 | K134: =ROUNDUP(G134*J134,2) -> 0.27 | O134: 0 | P134: 0
A135: DPB | B135: goûter | C135: Sans sucre | D135: Moelleux framboise sans sucre 40g | E135: 72607 | F135: =25.51/100 -> 0.2551 | G135: =25.51/100 -> 0.2551 | H135: 100 | I135: CT | J135: 1.1 | K135: 0.29 | O135: =M135*K135*H135 -> 0 | P135: =N135*K135*H135 -> 0
A136: Charles F | B136: Goûter | C136: Sans sucre | D136: Palmiers sans sucre x2 17g | F136: 0.139 | G136: 0.139 | H136: 120 | I136: CT | J136: 1.1 | K136: 0.16 | O136: 0 | P136: 0
A137: Charles F | B137: Goûter | C137: Sans sucre | D137: Tranche nature 50g | F137: 0.289 | G137: 0.289 | H137: 36 | I137: CT | J137: 1.1 | K137: 0.32 | O137: 0 | P137: 0
A138: Brake | B138: Goûter | C138: Viennoiserie | D138: Mini croissant au beurre prêt à cuire 25g | E138: 73285 | F138: 12.59 | G138: =12.59/160 -> 0.0786875 | H138: 160 | I138: CT | J138: 1.1 | K138: 0.09 | O138: 0 | P138: 0
A139: Brake | B139: Goûter | C139: Viennoiserie | D139: Mini pain au chocolat au beurre prêt à cuire 25g | E139: 73786 | F139: 13.24 | G139: =13.24/160 -> 0.08275 | H139: 160 | I139: CT | J139: 1.1 | K139: 0.1 | O139: 0 | P139: 0
A140: TransG | B140: Goûter | C140: Viennoiserie | D140: Mini pain aux raisins prêt à cuire 35g | E140: 907477 | F140: 16,412 | G140: =16.41/150 -> 0.1094 | H140: 150 | I140: CT | J140: 1.1 | K140: 0.13 | O140: 0 | P140: 0
A141: Charles F | B141: Goûter | D141: Goûter sec brioché 25 tranches (spécial mixé) 350g | F141: 0.72 | G141: 0.72 | H141: 24 | I141: CT | J141: 1.1 | K141: 0.8 | O141: 0 | P141: 0
A142: TransG | B142: Goûter / PDJ | C142: Individuel | D142: Pain au chocolat 75g prêt à cuire | E142: 239952 | F142: =15.729/70 -> 0.2247 | G142: =15.729/70 -> 0.2247 | H142: 70 | I142: CT | J142: 1.1 | K142: 0.25 | O142: 0 | P142: 0
A143: TransG | B143: Goûter / PDJ | C143: Individuel | D143: Pain chocolat cuit 45g | E143: 372094 | F143: =27.2/50 -> 0.544 | G143: =27.2/50 -> 0.544 | H143: 50 | I143: CT | J143: 1.1 | K143: 0.6 | O143: 0 | P143: 0
A144: Brake | B144: Goûter / PDJ | C144: Viennoiserie | D144: Croissant au beurre 60g prêt à cuire | E144: 38810 | F144: =15/84 -> 0.1785714286 | G144: =15/84 -> 0.1785714286 | H144: 84 | I144: CT | J144: 1.1 | K144: 0.2 | O144: 0 | P144: 0
A145: TransG | B145: Goûter / PDJ | C145: Viennoiserie | D145: Croissant cuit surgelé 40g x 10 | E145: 372102 | F145: 2.525 | G145: 2.525 | H145: 1 | I145: SHT | J145: 1.1 | K145: 2.78 | O145: 0 | P145: 0
A146: Episaveur | B146: PDJ | C146: Confiture | D146: Confiture abricot pot 1kg | E146: 42633 | G146: =1.55 -> 1.55 | H146: 6 | I146: CT | J146: 1.1 | K146: 1.71 | O146: 0 | P146: 0
A147: Episaveur | B147: PDJ | C147: Confiture | D147: Confiture fraise pot 1Kg | E147: 42621 | G147: 1.97 | H147: 6 | I147: CT | J147: 1.1 | K147: 2.17 | O147: 0 | P147: 0
A148: Episaveur | B148: PDJ | C148: Confiture | D148: Confiture myrtille pot 1kg | E148: 45252 | G148: 5.1 | H148: 6 | I148: CT | J148: 1.1 | K148: 5.61 | O148: 0 | P148: 0
A149: Episaveur | B149: PDJ | C149: Confiture | D149: Confitures assorties en coupelle 5 parfums 30g | E149: 99385 | F149: =5.933/120 -> 0.04944166667 | G149: =5.933/120 -> 0.04944166667 | H149: 120 | I149: CT | J149: 1.1 | K149: 0.06 | O149: 0 | P149: 0
A150: DPB | B150: PDJ | C150: Confiture | D150: Gelée de groseille pot 450g | E150: 05101 | F150: 0.97 | G150: 0.97 | H150: 1 | I150: POT | J150: 1.1 | K150: 1.07 | O150: 0 | P150: 0
A151: Episaveur | B151: PDJ | C151: Confiture | D151: Marmelade orange pot 1Kg | E151: 45254 | F151: 1.98 | G151: 1.98 | H151: 6 | I151: LOT | J151: 1.1 | K151: 2.18 | O151: 0 | P151: 0
A152: Brake | B152: PDJ | C152: Divers | D152: Beurre micro pain 10g x 100 | E152: 80014 | F152: 5.1 | G152: 5.1 | H152: 1 | I152: KG | J152: 1.1 | K152: 5.61 | O152: 0 | P152: 0
A153: Brake | B153: PDJ | C153: Divers | D153: Beurre tablette 250 gr | E153: 80269 | F153: 1.16 | G153: 1.16 | H153: 1 | I153: PCE | J153: 1.1 | K153: 1.28 | O153: 0 | P153: 0
A154: Brake | B154: PDJ | C154: Divers | D154: Beurre tendre tartinable 40% MG 1Kg | E154: 80625 | F154: 4,91 | G154: 4,91 | H154: 1 | I154: KG | J154: 1.1 | K154: 5.41 | O154: 0 | P154: 0
A155: Episaveur | D155: Agitateurs 113mm | E155: 61104 | G155: 2.68 | H155: 1 | I155: SHT | J155: 1.1 | K155: 2.95 | O155: 0 | P155: 0
A156: DPB | D156: Anthésite anis Ss sucre 13Cl | E156: 11578 | G156: =5.45 -> 5.45 | H156: 1 | I156: FLC | J156: 1.1 | K156: 6 | O156: 0 | P156: 0
A157: Episaveur | D157: Arlequin de fruits 5/1 | E157: 975 | G157: 4.87 | H157: 1 | I157: BTE | J157: 1.1 | K157: 5.36 | O157: 0 | P157: 0
A158: TransG | D158: Assiette à dessertx100 | E158: 713010 | G158: 3.113 | H158: 1 | I158: st | J158: 1.1 | K158: 3.43 | O158: 0 | P158: 0
A159: TransG | D159: Barquette charcutiere 125cc x500 | E159: 562538 | G159: 3.834 | H159: 1 | I159: SHT | J159: 1.1 | K159: 4.22 | O159: 0 | P159: 0
A160: DPB | D160: Barquette choco 120g | E160: 08752 | G160: =5.6/4 -> 1.4 | H160: 4 | I160: LOT | J160: 1.1 | K160: 1.54 | O160: 0 | P160: 0
A161: DPB | D161: Barquette fraise 120g | E161: 08714 | G161: =5.6/4 -> 1.4 | H161: 4 | I161: LOT | J161: 1.1 | K161: 1.54 | O161: 0 | P161: 0
A162: Episaveur | D162: Barre pâtissiere | E162: 10820 | G162: 1.35 | H162: 1 | I162: PCE | J162: 1.1 | K162: 1.49 | O162: 0 | P162: 0
A163: Episaveur | D163: Bière Kronembourg boite 33cl | E163: 63165 | G163: =0.63 -> 0.63 | H163: 24 | I163: CT | J163: 1.1 | K163: 0.7 | O163: 0 | P163: 0
A164: Episaveur | D164: Biscotte 2 tranches | E164: 64282 | G164: =8.9/208 -> 0.04278846154 | H164: 208 | I164: CT | J164: 1.1 | K164: 0.05 | O164: 0 | P164: 0
A165: Episaveur | D165: Biscotte 2T x208 sans sel | E165: 64284 | G165: 8.6 | H165: 1 | I165: CT | J165: 1.1 | K165: 9.46 | O165: 0 | P165: 0
A166: Episaveur | D166: Biscotte paquet 72 tranches 580g | E166: 67227 | G166: =12.92/12 -> 1.076666667 | H166: 12 | I166: CT | J166: 1.1 | K166: 1.19 | O166: 0 | P166: 0
A167: Episaveur | D167: Biscuits apéritif Belin boîte 720g | E167: 26013 | G167: 5.04 | H167: 1 | I167: BTE | J167: 1.1 | K167: 5.55 | O167: 0 | P167: 0
A168: Episaveur | D168: Blédine biscuitée paquet 500g | E168: 60494 | G168: 3.02 | H168: 1 | I168: PQ | J168: 1.1 | K168: 3.33 | O168: 0 | P168: 0
A169: Episaveur | D169: Blédine céréales-vanille paquet 500g | E169: 60493 | G169: 3.02 | H169: 1 | I169: PQ | J169: 1.1 | K169: 3.33 | O169: 0 | P169: 0
A170: Episaveur | D170: Blédine chocolat paquet 500g | E170: 60495 | G170: 3.02 | H170: 1 | I170: PQ | J170: 1.1 | K170: 3.33 | O170: 0 | P170: 0
A171: DPB | D171: Boudoirs 400g | E171: 08704 | G171: 1.47 | H171: 1 | I171: PCE | J171: 1.1 | K171: 1.62 | O171: 0 | P171: 0
A172: Episaveur | D172: Boudoirs ration 190 x 2 2,2Kg | E172: 10386 | G172: 10.39 | H172: 1 | I172: CT | J172: 1.1 | K172: 11.43 | O172: 0 | P172: 0
A173: Episaveur | D173: Brioche tranchée 500g | E173: 14764 | G173: =1.62 -> 1.62 | H173: 7 | I173: CT | J173: 1.1 | K173: 1.79 | O173: 0 | P173: 0
A174: DPB | D174: Café moulu 100%A 250g x 12 | E174: 02504 | G174: =13.68/12 -> 1.14 | H174: 12 | I174: LOT | J174: 1.1 | K174: 1.26 | O174: 0 | P174: 0
A175: DPB | D175: Café sol (60kf 40chic) dse L15g x 100 | E175: 02714 | G175: 21.17 | H175: 1 | I175: CT | J175: 1.1 | K175: 23.29 | O175: 0 | P175: 0
A176: Potin | D176: Café soluble Nescafé dose 2g | E176: 033070 | G176: =28.9/300 -> 0.09633333333 | H176: 300 | I176: CT | J176: 1.1 | K176: 0.11 | O176: 0 | P176: 0
A177: Potin | D177: Café soluble Nescafé dose 2g décaféiné | E177: 033071 | G177: =34.26/300 -> 0.1142 | H177: 300 | I177: CT | J177: 1.1 | K177: 0.13 | O177: 0 | P177: 0
A178: Episaveur | D178: Café soluble Nescoré (60%café/40%chicorée) poche 500g | E178: 42626 | G178: =7.96 -> 7.96 | H178: 12 | I178: CT | J178: 1.1 | K178: 8.76 | O178: 0 | P178: 0
A179: Episaveur | D179: Café soluble Sagy (60% café/40% chicorée) poche 500g | E179: 13848 | G179: =5.35 -> 5.35 | H179: 10 | I179: CT | J179: 1.1 | K179: 5.89 | O179: 0 | P179: 0
A180: Potin | D180: Café soluble Sagy dose 2g | E180: 033267 | G180: =14.07/300 -> 0.0469 | H180: 300 | I180: CT | J180: 1.1 | K180: 0.06 | O180: 0 | P180: 0
A181: Episaveur | D181: Carré fourré amandes 40g | E181: 4154 | G181: =18.35/100 -> 0.1835 | H181: 100 | I181: CT | J181: 1.1 | K181: 0.21 | O181: 0 | P181: 0
A182: TransG | D182: Charlotte clip TU x 100 | E182: 544791 | G182: 2.5 | H182: 1 | I182: PQ | J182: 1.1 | K182: 2.75 | O182: 0 | P182: 0
A183: Episaveur | D183: Chips paquet 500g | E183: 17851 | G183: =8.82/6 -> 1.47 | H183: 1 | I183: Pce | J183: 1.1 | K183: 1.62 | O183: 0 | P183: 0
A184: TransG | D184: Chocolat au lait tablette 100g | E184: 245944 | G184: =1.841/5 -> 0.3682 | H184: 5 | I184: LOT | J184: 1.1 | K184: 0.41 | O184: 0 | P184: 0
A185: Episaveur | D185: Chocolat en poudre dose 20g | E185: 66618 | G185: =12.51/200 -> 0.06255 | H185: 200 | I185: ct | J185: 1.1 | K185: 0.07 | O185: 0 | P185: 0
A186: TransG | D186: Chocolat petit déjeuner paquet 1Kg | E186: 874195 | G186: 2.536 | H186: 1 | I186: BTE | J186: 1.1 | K186: 2.79 | O186: 0 | P186: 0
A187: TransG | D187: Cidre bouché brut 75Cl | E187: 836643 | G187: =1.15 -> 1.15 | H187: 6 | I187: CT | J187: 1.1 | K187: 1.27 | O187: 0 | P187: 0
A188: TransG | D188: Cidre bouché doux 75Cl | E188: 836650 | G188: =1.15 -> 1.15 | H188: 6 | I188: CT | J188: 1.1 | K188: 1.27 | O188: 0 | P188: 0
A189: DPB | D189: Cigarettes croustillantes 1Kg | E189: 08707 | G189: 9.31 | H189: 1 | I189: BTE | J189: 1.1 | K189: 10.25 | O189: 0 | P189: 0
A190: Canavèse | D190: Citron | G190: 1.4 | H190: 1 | I190: KG | J190: 1.1 | K190: 1.54 | O190: 0 | P190: 0
A191: DPB | D191: Coca cola 1,5L | E191: 02202 | G191: =18.12/12 -> 1.51 | H191: 12 | I191: CT | J191: 1.1 | K191: 1.67 | O191: 0 | P191: 0
A192: Episaveur | D192: Coca cola zéro ou light 1,5L | E192: 64186 | G192: =1.392 -> 1.392 | H192: 12 | I192: CT | J192: 1.1 | K192: 1.54 | O192: 0 | P192: 0
A193: Episaveur | D193: Cocktail de fruits sans sucre 90g | E193: 43558 | G193: =30.25/120 -> 0.2520833333 | H193: 120 | I193: CT | J193: 1.1 | K193: 0.28 | O193: 0 | P193: 0
A194: Episaveur | D194: Compote de pomme 100g | E194: 45856 | G194: =12.23/120 -> 0.1019166667 | H194: 120 | I194: CT | J194: 1.1 | K194: 0.12 | O194: 0 | P194: 0
A195: DPB | D195: Compote pomme/abricot 100g | E195: 03604 | G195: =22.35/120 -> 0.18625 | H195: 120 | I195: CT | J195: 1.1 | K195: 0.21 | O195: 0 | P195: 0
A196: DPB | D196: Compote pomme/banane 100g | E196: 03606 | G196: =22.35/120 -> 0.18625 | H196: 120 | I196: CT | J196: 1.1 | K196: 0.21 | O196: 0 | P196: 0
A197: DPB | D197: Compote pomme/cassis 100g | E197: 03607 | G197: =18/120 -> 0.15 | H197: 120 | I197: CT | J197: 1.1 | K197: 0.17 | O197: 0 | P197: 0
A198: DPB | D198: Cornichons pot 72cl | E198: 04007 | G198: =1.95 -> 1.95 | H198: 6 | I198: CT | J198: 1.1 | K198: =ROUNDUP(G198*J198,2) -> 2.15 | O198: 0 | P198: 0
A199: Potin | D199: Crème anglaise 1L | E199: 423250 | G199: 1.6 | H199: 1 | I199: PCE | J199: 1.1 | K199: 1.76 | O199: =M199*K199*H199 -> 0 | P199: =N199*K199*H199 -> 0
A200: Potin | D200: Crème de cassis 16° 70Cl | E200: 374428 | G200: 5.67 | H200: 1 | I200: BLLE | J200: 1.1 | K200: 6.24 | O200: 0 | P200: 0
A201: Episaveur | D201: Crème pâtissière à froid 2,5Kg | E201: 22062 | G201: =6.25 -> 6.25 | H201: 4 | I201: CT | J201: 1.1 | K201: 6.88 | O201: 0 | P201: 0
... 144 more rows

Sheet MDR
C1: Livraison du | D1: =BASEOld!J1 -> 2015-02-18 | F1: au | G1: =D1+6 -> 2015-02-24
A2: Etablissement: | D2: Date de dépôt | G2: =TODAY() -> 2015-02-24 | L2: Produits plus spécifiques à noter vous-même selon vos besoins
A3: Bon de commande Produits annexes
A5: =BASEOld!B5 -> FAMILLE | B5: =BASEOld!C5 -> Sous-famille | C5: =BASEOld!D5 -> Intitulés produits | D5: CDT | E5: U/F | F5: Prix HT € | G5: TVA | H5: Qté com | I5: M. T. HT € prévisionnel
A6: =BASEOld!$A$6 -> Brake | B6: =BASEOld!C6 -> 0 | C6: =BASEOld!D6 -> Emmental rapé 1 KG | D6: =BASEOld!H6 -> 1 | E6: =BASEOld!I6 -> SHT | F6: =BASEOld!K6 -> 5.39 | G6: =BASEOld!L6 -> 0 | I6: =D6*F6*H6 -> 0
A7: =BASEOld!B7 -> Divers | B7: =BASEOld!C7 -> 0 | C7: =BASEOld!D7 -> Jambon de Paris 10 tranches 400g | D7: =BASEOld!H7 -> 1 | E7: =BASEOld!I7 -> PQT | F7: =BASEOld!K7 -> 2.94 | G7: =BASEOld!L7 -> 0 | I7: =D7*F7*H7 -> 0 | L7: Prévisionnel sur commande
A8: =BASEOld!B8 -> Divers | B8: =BASEOld!C8 -> 0 | C8: =BASEOld!D8 -> Jambon de Paris 20 tranches 800g | D8: =BASEOld!H8 -> 1 | E8: =BASEOld!I8 -> PQT | F8: =BASEOld!K8 -> 4.05 | G8: =BASEOld!L8 -> 0 | I8: 0 | L8: TOTAL H.T TVA 5,5% | M8: =SUMIF(G6:G501,L13,I6:I501) -> 0
A9: =BASEOld!B9 -> Divers | B9: =BASEOld!C9 -> 0 | C9: =BASEOld!D9 -> Jambon de Paris hyposodé 10 tranches 450g | D9: =BASEOld!H9 -> 1 | E9: =BASEOld!I9 -> PQT | F9: =BASEOld!K9 -> 3.5 | G9: =BASEOld!L9 -> 0 | I9: 0 | L9: TOTAL H.T TVA 20% | M9: =SUMIF(G6:G501,L14,I6:I501) -> 0
A10: =BASEOld!B10 -> Goûter | B10: =BASEOld!C10 -> Biscuit à partager | C10: =BASEOld!D10 -> Cake marbré 400g (moule alu) | D10: =BASEOld!H10 -> 6 | E10: =BASEOld!I10 -> LOT | F10: =BASEOld!K10 -> 1.65 | G10: =BASEOld!L10 -> 0 | I10: 0 | L10: TOTAL H.T TVA 20% non alimentaire | M10: =SUMIF(G6:G501,L15,I6:I501) -> 0
A11: =BASEOld!B11 -> Goûter | B11: =BASEOld!C11 -> Biscuit à partager | C11: =BASEOld!D11 -> Cake parfum chocolat 400g (moule alu) | D11: =BASEOld!H11 -> 6 | E11: =BASEOld!I11 -> LOT | F11: =BASEOld!K11 -> 1.65 | G11: =BASEOld!L11 -> 0 | I11: 0
A12: =BASEOld!B12 -> Goûter | B12: =BASEOld!C12 -> Biscuit à partager | C12: =BASEOld!D12 -> Cake parfum kiwi 400g (moule alu) | D12: =BASEOld!H12 -> 6 | E12: =BASEOld!I12 -> LOT | F12: =BASEOld!K12 -> 1.65 | G12: =BASEOld!L12 -> 0 | I12: 0
A13: =BASEOld!B13 -> Goûter | B13: =BASEOld!C13 -> Biscuit à partager | C13: =BASEOld!D13 -> Roulade chocolat 300g | D13: =BASEOld!H13 -> 7 | E13: =BASEOld!I13 -> CT | F13: =BASEOld!K13 -> 1.65 | G13: =BASEOld!L13 -> 0 | I13: 0 | L13: 0.055
A14: =BASEOld!B14 -> Goûter | B14: =BASEOld!C14 -> Biscuit à partager | C14: =BASEOld!D14 -> Roulade fraise 300g | D14: =BASEOld!H14 -> 7 | E14: =BASEOld!I14 -> CT | F14: =BASEOld!K14 -> 1.65 | G14: =BASEOld!L14 -> 0 | I14: 0 | L14: 0.2
A15: =BASEOld!B15 -> Goûter | B15: =BASEOld!C15 -> Biscuit à partager | C15: =BASEOld!D15 -> Roulade myrtille 300g | D15: =BASEOld!H15 -> 7 | E15: =BASEOld!I15 -> CT | F15: =BASEOld!K15 -> 1.65 | G15: =BASEOld!L15 -> 0 | I15: 0 | L15: 20% NA
A16: =BASEOld!B16 -> Goûter | B16: =BASEOld!C16 -> Biscuit individuel | C16: =BASEOld!D16 -> Financier aux amandes 20g | D16: =BASEOld!H16 -> 150 | E16: =BASEOld!I16 -> CT | F16: =BASEOld!K16 -> 0.24 | G16: =BASEOld!L16 -> 0 | I16: 0
A17: =BASEOld!B17 -> Goûter | B17: =BASEOld!C17 -> Biscuit individuel | C17: =BASEOld!D17 -> Gaufrette chocolat 20g | D17: =BASEOld!H17 -> 320 | E17: =BASEOld!I17 -> CT | F17: =BASEOld!K17 -> 0.11 | G17: =BASEOld!L17 -> 0 | I17: 0
A18: =BASEOld!B18 -> Goûter | B18: =BASEOld!C18 -> Biscuit individuel | C18: =BASEOld!D18 -> Gaufrette vanille 20g | D18: =BASEOld!H18 -> 320 | E18: =BASEOld!I18 -> CT | F18: =BASEOld!K18 -> 0.11 | G18: =BASEOld!L18 -> 0 | I18: 0
A19: =BASEOld!B19 -> Goûter | B19: =BASEOld!C19 -> Biscuit individuel | C19: =BASEOld!D19 -> Goûter fourré choco x 2 x 37g | D19: =BASEOld!H19 -> 144 | E19: =BASEOld!I19 -> CT | F19: =BASEOld!K19 -> 0.18 | G19: =BASEOld!L19 -> 0 | I19: 0
A20: =BASEOld!B20 -> Goûter | B20: =BASEOld!C20 -> Biscuit individuel | C20: =BASEOld!D20 -> Lingot fondant orange 20g | D20: =BASEOld!H20 -> 150 | E20: =BASEOld!I20 -> CT | F20: =BASEOld!K20 -> 0.25 | G20: =BASEOld!L20 -> 0 | I20: 0
A21: =BASEOld!B21 -> Goûter | B21: =BASEOld!C21 -> Biscuit individuel | C21: =BASEOld!D21 -> Madeleine carrée fourrée abricot 40g | D21: =BASEOld!H21 -> 50 | E21: =BASEOld!I21 -> CT | F21: =BASEOld!K21 -> 0.18 | G21: =BASEOld!L21 -> 0 | I21: 0
A22: =BASEOld!B22 -> Goûter | B22: =BASEOld!C22 -> Biscuit individuel | C22: =BASEOld!D22 -> Madeleine carrée fourrée chocolat 40g | D22: =BASEOld!H22 -> 50 | E22: =BASEOld!I22 -> CT | F22: =BASEOld!K22 -> 0.18 | G22: =BASEOld!L22 -> 0 | I22: 0
A23: =BASEOld!B23 -> Goûter | B23: =BASEOld!C23 -> Biscuit individuel | C23: =BASEOld!D23 -> Madeleine carrée fourrée fraise 40g | D23: =BASEOld!H23 -> 50 | E23: =BASEOld!I23 -> CT | F23: =BASEOld!K23 -> 0.18 | G23: =BASEOld!L23 -> 0 | I23: 0
A24: =BASEOld!B24 -> Goûter | B24: =BASEOld!C24 -> Biscuit individuel | C24: =BASEOld!D24 -> Madeleine carrée fourrée fruits des bois 40g | D24: =BASEOld!H24 -> 50 | E24: =BASEOld!I24 -> CT | F24: =BASEOld!K24 -> 0.18 | G24: =BASEOld!L24 -> 0 | I24: 0
A25: =BASEOld!B25 -> Goûter | B25: =BASEOld!C25 -> Biscuit individuel | C25: =BASEOld!D25 -> Madeleine carrée nature 30g | D25: =BASEOld!H25 -> 56 | E25: =BASEOld!I25 -> CT | F25: =BASEOld!K25 -> 0.22 | G25: =BASEOld!L25 -> 0 | I25: 0
A26: =BASEOld!B26 -> Goûter | B26: =BASEOld!C26 -> Biscuit individuel | C26: =BASEOld!D26 -> Madeleine coquille aux œufs 25g | D26: =BASEOld!H26 -> 120 | E26: =BASEOld!I26 -> CT | F26: =BASEOld!K26 -> 0.07 | G26: =BASEOld!L26 -> 0 | I26: 0
A27: =BASEOld!B27 -> Goûter | B27: =BASEOld!C27 -> Biscuit individuel | C27: =BASEOld!D27 -> Madeleine nappée chocolat 20g | D27: =BASEOld!H27 -> 120 | E27: =BASEOld!I27 -> CT | F27: =BASEOld!K27 -> 0.18 | G27: =BASEOld!L27 -> 0 | I27: 0
A28: =BASEOld!B28 -> Goûter | B28: =BASEOld!C28 -> Biscuit individuel | C28: =BASEOld!D28 -> Mini cake fourré crème de lait 30g | D28: =BASEOld!H28 -> 120 | E28: =BASEOld!I28 -> CT | F28: =BASEOld!K28 -> 0.14 | G28: =BASEOld!L28 -> 0 | I28: 0
A29: =BASEOld!B29 -> Goûter | B29: =BASEOld!C29 -> Biscuit individuel | C29: =BASEOld!D29 -> Mini génoise abricot 25g | D29: =BASEOld!H29 -> 120 | E29: =BASEOld!I29 -> CT | F29: =BASEOld!K29 -> 0.17 | G29: =BASEOld!L29 -> 0 | I29: 0
A30: =BASEOld!B30 -> Goûter | B30: =BASEOld!C30 -> Biscuit individuel | C30: =BASEOld!D30 -> Mini génoise chocolat 25g | D30: =BASEOld!H30 -> 120 | E30: =BASEOld!I30 -> CT | F30: =BASEOld!K30 -> 0.17 | G30: =BASEOld!L30 -> 0 | I30: 0
A31: =BASEOld!B31 -> Goûter | B31: =BASEOld!C31 -> Biscuit individuel | C31: =BASEOld!D31 -> Mini génoise fraise 25g | D31: =BASEOld!H31 -> 120 | E31: =BASEOld!I31 -> CT | F31: =BASEOld!K31 -> 0.17 | G31: =BASEOld!L31 -> 0 | I31: 0
A32: =BASEOld!B32 -> Goûter | B32: =BASEOld!C32 -> Biscuit individuel | C32: =BASEOld!D32 -> Mini génoise nappée chocolat / fourrée chocolat 35g | D32: =BASEOld!H32 -> 120 | E32: =BASEOld!I32 -> CT | F32: =BASEOld!K32 -> 0.2 | G32: =BASEOld!L32 -> 0 | I32: 0
A33: =BASEOld!B33 -> Goûter | B33: =BASEOld!C33 -> Biscuit individuel | C33: =BASEOld!D33 -> Mini génoise tiramisu 25g | D33: =BASEOld!H33 -> 120 | E33: =BASEOld!I33 -> CT | F33: =BASEOld!K33 -> 0.17 | G33: =BASEOld!L33 -> 0 | I33: 0
A34: =BASEOld!B34 -> Goûter | B34: =BASEOld!C34 -> Biscuit individuel | C34: =BASEOld!D34 -> Mini marbré chocolat 30g | D34: =BASEOld!H34 -> 120 | E34: =BASEOld!I34 -> CT | F34: =BASEOld!K34 -> 0.14 | G34: =BASEOld!L34 -> 0 | I34: 0
A35: =BASEOld!B35 -> Goûter | B35: =BASEOld!C35 -> Biscuit individuel | C35: =BASEOld!D35 -> Mini moelleux fourré abricot 30g | D35: =BASEOld!H35 -> 120 | E35: =BASEOld!I35 -> CT | F35: =BASEOld!K35 -> 0.12 | G35: =BASEOld!L35 -> 0 | I35: 0
A36: =BASEOld!B36 -> Goûter | B36: =BASEOld!C36 -> Biscuit individuel | C36: =BASEOld!D36 -> Mini moelleux fourré cacao 30g | D36: =BASEOld!H36 -> 130 | E36: =BASEOld!I36 -> CT | F36: =BASEOld!K36 -> 0.12 | G36: =BASEOld!L36 -> 0 | I36: 0
A37: =BASEOld!B37 -> Goûter | B37: =BASEOld!C37 -> Biscuit individuel | C37: =BASEOld!D37 -> Mini moelleux fourré cacao-noisette 30g | D37: =BASEOld!H37 -> 120 | E37: =BASEOld!I37 -> CT | F37: =BASEOld!K37 -> 0.12 | G37: =BASEOld!L37 -> 0 | I37: 0
A38: =BASEOld!B38 -> Goûter | B38: =BASEOld!C38 -> Biscuit individuel | C38: =BASEOld!D38 -> Mini moelleux fourré citron 30g | D38: =BASEOld!H38 -> 100 | E38: =BASEOld!I38 -> CT | F38: =BASEOld!K38 -> 0.12 | G38: =BASEOld!L38 -> 0 | I38: 0
A39: =BASEOld!B39 -> Goûter | B39: =BASEOld!C39 -> Biscuit individuel | C39: =BASEOld!D39 -> Mini moelleux fourré fraise 30g | D39: =BASEOld!H39 -> 120 | E39: =BASEOld!I39 -> CT | F39: =BASEOld!K39 -> 0.1 | G39: =BASEOld!L39 -> 0 | I39: 0
A40: =BASEOld!B40 -> Goûter | B40: =BASEOld!C40 -> Biscuit individuel | C40: =BASEOld!D40 -> Mini moelleux fourré fruits rouges 30g | D40: =BASEOld!H40 -> 100 | E40: =BASEOld!I40 -> CT | F40: =BASEOld!K40 -> 0.12 | G40: =BASEOld!L40 -> 0 | I40: 0
A41: =BASEOld!B41 -> Goûter | B41: =BASEOld!C41 -> Biscuit individuel | C41: =BASEOld!D41 -> Moelleux amande 40g | D41: =BASEOld!H41 -> 100 | E41: =BASEOld!I41 -> CT | F41: =BASEOld!K41 -> 0.21 | G41: =BASEOld!L41 -> 0 | I41: 0
A42: =BASEOld!B42 -> Goûter | B42: =BASEOld!C42 -> Biscuit individuel | C42: =BASEOld!D42 -> Moelleux chocolat 40g | D42: =BASEOld!H42 -> 100 | E42: =BASEOld!I42 -> CT | F42: =BASEOld!K42 -> 0.2 | G42: =BASEOld!L42 -> 0 | I42: 0
A43: =BASEOld!B43 -> Goûter | B43: =BASEOld!C43 -> Biscuit individuel | C43: =BASEOld!D43 -> Moelleux citron 40g | D43: =BASEOld!H43 -> 100 | E43: =BASEOld!I43 -> CT | F43: =BASEOld!K43 -> 0.19 | G43: =BASEOld!L43 -> 0 | I43: 0
A44: =BASEOld!B44 -> Goûter | B44: =BASEOld!C44 -> Biscuit individuel | C44: =BASEOld!D44 -> Moelleux framboise 40g | D44: =BASEOld!H44 -> 100 | E44: =BASEOld!I44 -> CT | F44: =BASEOld!K44 -> 0.22 | G44: =BASEOld!L44 -> 0 | I44: 0
A45: =BASEOld!B45 -> Goûter | B45: =BASEOld!C45 -> Biscuit individuel | C45: =BASEOld!D45 -> Moelleux marbré 40g | D45: =BASEOld!H45 -> 100 | E45: =BASEOld!I45 -> CT | F45: =BASEOld!K45 -> 0.2 | G45: =BASEOld!L45 -> 0 | I45: 0
A46: =BASEOld!B46 -> Goûter | B46: =BASEOld!C46 -> Biscuit individuel | C46: =BASEOld!D46 -> Rocher coco nappé chocolat 40g | D46: =BASEOld!H46 -> 100 | E46: =BASEOld!I46 -> CT | F46: =BASEOld!K46 -> 0.29 | G46: =BASEOld!L46 -> 0 | I46: 0
A47: =BASEOld!B47 -> Goûter | B47: =BASEOld!C47 -> Biscuit individuel | C47: =BASEOld!D47 -> Rocher coco nature 35g | D47: =BASEOld!H47 -> 100 | E47: =BASEOld!I47 -> CT | F47: =BASEOld!K47 -> 0.15 | G47: =BASEOld!L47 -> 0 | I47: 0
A48: =BASEOld!B48 -> Goûter | B48: =BASEOld!C48 -> Biscuit individuel | C48: =BASEOld!D48 -> Tranche marbrée cacao 50g | D48: =BASEOld!H48 -> 48 | E48: =BASEOld!I48 -> CT | F48: =BASEOld!K48 -> 0.26 | G48: =BASEOld!L48 -> 0 | I48: 0
A49: =BASEOld!B49 -> Goûter | B49: =BASEOld!C49 -> Biscuit individuel | C49: =BASEOld!D49 -> Tranche nature citron 50g | D49: =BASEOld!H49 -> 48 | E49: =BASEOld!I49 -> CT | F49: =BASEOld!K49 -> 0.26 | G49: =BASEOld!L49 -> 0 | I49: 0
A50: =BASEOld!B50 -> Goûter | B50: =BASEOld!C50 -> Divers | C50: =BASEOld!D50 -> Framboise en bille surgelée 1Kg | D50: =BASEOld!H50 -> 5 | E50: =BASEOld!I50 -> CT | F50: =BASEOld!K50 -> 4.65 | G50: =BASEOld!L50 -> 0 | I50: 0
A51: =BASEOld!B51 -> Goûter | B51: =BASEOld!C51 -> Divers | C51: =BASEOld!D51 -> Framboises entières surgelées Williamette 1Kg | D51: =BASEOld!H51 -> 1 | E51: =BASEOld!I51 -> SHT | F51: =BASEOld!K51 -> 3.56 | G51: =BASEOld!L51 -> 0 | I51: 0
A52: =BASEOld!B52 -> Goûter | B52: =BASEOld!C52 -> Divers | C52: =BASEOld!D52 -> Griottes dénoyautées surgelées 1Kg | D52: =BASEOld!H52 -> 1 | E52: =BASEOld!I52 -> SHT | F52: =BASEOld!K52 -> 3.71 | G52: =BASEOld!L52 -> 0 | I52: 0
A53: =BASEOld!B53 -> Goûter | B53: =BASEOld!C53 -> Divers | C53: =BASEOld!D53 -> Melon en bille surgelé 1Kg | D53: =BASEOld!H53 -> 1 | E53: =BASEOld!I53 -> SHT | F53: =BASEOld!K53 -> 4.24 | G53: =BASEOld!L53 -> 0 | I53: 0
A54: =BASEOld!B54 -> Goûter | B54: =BASEOld!C54 -> Divers | C54: =BASEOld!D54 -> Mûre cultivée surgelée 1Kg | D54: =BASEOld!H54 -> 1 | E54: =BASEOld!I54 -> SHT | F54: =BASEOld!K54 -> 5.16 | G54: =BASEOld!L54 -> 0 | I54: 0
A55: =BASEOld!B55 -> Goûter | B55: =BASEOld!C55 -> Divers | C55: =BASEOld!D55 -> Salade de fruits exotiques surgelée 1Kg | D55: =BASEOld!H55 -> 1 | E55: =BASEOld!I55 -> SHT | F55: =BASEOld!K55 -> 3.1 | G55: =BASEOld!L55 -> 0 | I55: 0
A56: =BASEOld!B56 -> Goûter | B56: =BASEOld!C56 -> Gâteau à partager | C56: =BASEOld!D56 -> Bavarois cappuccino 700g | D56: =BASEOld!H56 -> 2 | E56: =BASEOld!I56 -> PCE | F56: =BASEOld!K56 -> 5.12 | G56: =BASEOld!L56 -> 0 | I56: 0
A57: =BASEOld!B57 -> Goûter | B57: =BASEOld!C57 -> Gâteau à partager | C57: =BASEOld!D57 -> Bavarois parfum abricot 700 g | D57: =BASEOld!H57 -> 2 | E57: =BASEOld!I57 -> PCE | F57: =BASEOld!K57 -> 5.12 | G57: =BASEOld!L57 -> 0 | I57: 0
A58: =BASEOld!B58 -> Goûter | B58: =BASEOld!C58 -> Gâteau à partager | C58: =BASEOld!D58 -> Bavarois parfum chocolat 700 g | D58: =BASEOld!H58 -> 2 | E58: =BASEOld!I58 -> PCE | F58: =BASEOld!K58 -> 5.19 | G58: =BASEOld!L58 -> 0 | I58: 0
A59: =BASEOld!B59 -> Goûter | B59: =BASEOld!C59 -> Gâteau à partager | C59: =BASE!D59 -> Bavarois parfum framboise 700g | D59: =BASEOld!H59 -> 2 | E59: =BASEOld!I59 -> PCE | F59: =BASEOld!K59 -> 5.37 | G59: =BASEOld!L59 -> 0 | I59: 0
A60: =BASEOld!B60 -> Goûter | B60: =BASEOld!C60 -> Gâteau à partager | C60: =BASEOld!D60 -> Bavarois parfum fruits rouges 700 g | D60: =BASEOld!H60 -> 2 | E60: =BASEOld!I60 -> PCE | F60: =BASEOld!K60 -> 5.12 | G60: =BASEOld!L60 -> 0 | I60: 0
A61: =BASEOld!B61 -> Goûter | B61: =BASEOld!C61 -> Gâteau à partager | C61: =BASEOld!D61 -> Bavarois parfum poire 700g | D61: =BASEOld!H61 -> 2 | E61: =BASEOld!I61 -> PCE | F61: =BASEOld!K61 -> 5.25 | G61: =BASEOld!L61 -> 0 | I61: 0
A62: =BASEOld!B62 -> Goûter | B62: =BASEOld!C62 -> Gâteau à partager | C62: =BASEOld!D62 -> Boléro chocolat marrons en bande 550g | D62: =BASEOld!H62 -> 4 | E62: =BASEOld!I62 -> PCE | F62: =BASEOld!K62 -> 4.05 | G62: =BASEOld!L62 -> 0 | I62: 0
A63: =BASEOld!B63 -> Goûter | B63: =BASEOld!C63 -> Gâteau à partager | C63: =BASEOld!D63 -> Carré bavarois cacao 45g x 60 (demi-cadre) | D63: =BASEOld!H63 -> 60 | E63: =BASEOld!I63 -> CT | F63: =BASEOld!K63 -> 0.31 | G63: =BASEOld!L63 -> 0 | I63: 0
A64: =BASEOld!B64 -> Goûter | B64: =BASEOld!C64 -> Gâteau à partager | C64: =BASEOld!D64 -> Carré bavarois fruits rouges 45g x 60 (demi-cadre) | D64: =BASEOld!H64 -> 60 | E64: =BASEOld!I64 -> CT | F64: =BASEOld!K64 -> 0.31 | G64: =BASEOld!L64 -> 0 | I64: 0
A65: =BASEOld!B65 -> Goûter | B65: =BASEOld!C65 -> Gâteau à partager | C65: =BASEOld!D65 -> Charlotte aux fruits rouges en bande 800g | D65: =BASEOld!H65 -> 2 | E65: =BASEOld!I65 -> PCE | F65: =BASEOld!K65 -> 7.18 | G65: =BASEOld!L65 -> 0 | I65: 0
A66: =BASEOld!B66 -> Goûter | B66: =BASEOld!C66 -> Gâteau à partager | C66: =BASEOld!D66 -> Charlotte aux poires en bande 850g | D66: =BASEOld!H66 -> 2 | E66: =BASEOld!I66 -> PCE | F66: =BASEOld!K66 -> 9.08 | G66: =BASEOld!L66 -> 0 | I66: 0
A67: =BASEOld!B67 -> Goûter | B67: =BASEOld!C67 -> Gâteau à partager | C67: =BASEOld!D67 -> Clafoutis à la cerise en bande 550g | D67: =BASEOld!H67 -> 4 | E67: =BASEOld!I67 -> PCE | F67: =BASEOld!K67 -> 3.11 | G67: =BASEOld!L67 -> 0 | I67: 0
A68: =BASEOld!B68 -> Goûter | B68: =BASEOld!C68 -> Gâteau à partager | C68: =BASEOld!D68 -> Clafoutis aux griottes 1Kg | D68: =BASEOld!H68 -> 1 | E68: =BASEOld!I68 -> PCE | F68: =BASEOld!K68 -> 5.78 | G68: =BASEOld!L68 -> 0 | I68: 0
A69: =BASEOld!B69 -> Goûter | B69: =BASEOld!C69 -> Gâteau à partager | C69: =BASEOld!D69 -> Craquant crème brulée-fruits rouges en bande 750g | D69: =BASEOld!H69 -> 2 | E69: =BASEOld!I69 -> PCE | F69: =BASEOld!K69 -> 11.22 | G69: =BASEOld!L69 -> 0 | I69: 0
A70: =BASEOld!B70 -> Goûter | B70: =BASEOld!C70 -> Gâteau à partager | C70: =BASEOld!D70 -> Forêt noire aux griottes 1,4kg | D70: =BASEOld!H70 -> 2 | E70: =BASEOld!I70 -> PCE | F70: =BASEOld!K70 -> 8.12 | G70: =BASEOld!L70 -> 0 | I70: 0
A71: =BASEOld!B71 -> Goûter | B71: =BASEOld!C71 -> Gâteau à partager | C71: =BASEOld!D71 -> Forêt noire sans sucre ajouté 57g | D71: =BASEOld!H71 -> 28 | E71: =BASEOld!I71 -> PCE | F71: =BASEOld!K71 -> 0.57 | G71: =BASEOld!L71 -> 0 | I71: =D71*F71*H71 -> 0
A72: =BASEOld!B72 -> Goûter | B72: =BASEOld!C72 -> Gâteau à partager | C72: =BASEOld!D72 -> Framboisier en bande 550g | D72: =BASEOld!H72 -> 2 | E72: =BASEOld!I72 -> CT | F72: =BASEOld!K72 -> 7.56 | G72: =BASEOld!L72 -> 0 | I72: 0
A73: =BASEOld!B73 -> Goûter | B73: =BASEOld!C73 -> Gâteau à partager | C73: =BASEOld!D73 -> Gâteau aux 3 chocolats 1Kg | D73: =BASEOld!H73 -> 1 | E73: =BASEOld!I73 -> PCE | F73: =BASEOld!K73 -> 13.01 | G73: =BASEOld!L73 -> 0 | I73: 0
A74: =BASEOld!B74 -> Goûter | B74: =BASEOld!C74 -> Gâteau à partager | C74: =BASEOld!D74 -> Gâteau Basque 1kg | D74: =BASEOld!H74 -> 4 | E74: =BASEOld!I74 -> PCE | F74: =BASEOld!K74 -> 3.73 | G74: =BASEOld!L74 -> 0 | I74: 0
A75: =BASEOld!B75 -> Goûter | B75: =BASEOld!C75 -> Individuel | C75: =BASEOld!D75 -> Millefeuille 65g x 36 | D75: =BASEOld!H75 -> 3 | E75: =BASEOld!I75 -> CT | F75: =BASEOld!K75 -> 13.64 | G75: =BASEOld!L75 -> 0 | I75: 0
A76: =BASEOld!B76 -> Goûter | B76: =BASEOld!C76 -> Gâteau à partager | C76: =BASEOld!D76 -> Omelette norvégienne 2L | D76: =BASEOld!H76 -> 6 | E76: =BASEOld!I76 -> CT | F76: =BASEOld!K76 -> 7.86 | G76: =BASEOld!L76 -> 0 | I76: 0
A77: =BASEOld!B77 -> Goûter | B77: =BASEOld!C77 -> Gâteau à partager | C77: =BASEOld!D77 -> Opéra en bande 750g | D77: =BASEOld!H77 -> 2 | E77: =BASEOld!I77 -> PCE | F77: =BASEOld!K77 -> 9.81 | G77: =BASEOld!L77 -> 0 | I77: 0
A78: =BASEOld!B78 -> Goûter | B78: =BASEOld!C78 -> Gâteau à partager | C78: =BASEOld!D78 -> Privilège poire chocolat en bande 750g | D78: =BASEOld!H78 -> 2 | E78: =BASEOld!I78 -> PCE | F78: =BASEOld!K78 -> 8.1 | G78: =BASEOld!L78 -> 0 | I78: 0
A79: =BASEOld!B79 -> Goûter | B79: =BASEOld!C79 -> Gâteau à partager | C79: =BASEOld!D79 -> Royal chocolat en bande 650g | D79: =BASEOld!H79 -> 3 | E79: =BASEOld!I79 -> PCE | F79: =BASEOld!K79 -> 7.92 | G79: =BASEOld!L79 -> 0 | I79: 0
A80: =BASEOld!B80 -> Goûter | B80: =BASEOld!C80 -> Gâteau à partager | C80: =BASEOld!D80 -> Tarte à la noix de coco 1,15Kg | D80: =BASEOld!H80 -> 2 | E80: =BASEOld!I80 -> CT | F80: =BASEOld!K80 -> 5.86 | G80: =BASEOld!L80 -> 0 | I80: 0
A81: =BASEOld!B81 -> Goûter | B81: =BASEOld!C81 -> Gâteau à partager | C81: =BASEOld!D81 -> Tarte au chocolat entière 900g | D81: =BASEOld!H81 -> 2 | E81: =BASEOld!I81 -> CT | F81: =BASEOld!K81 -> 5.48 | G81: =BASEOld!L81 -> 0 | I81: 0
A82: =BASEOld!B82 -> Goûter | B82: =BASEOld!C82 -> Gâteau à partager | C82: =BASEOld!D82 -> Tarte au chocolat prédécoupée en 10 700g | D82: =BASEOld!H82 -> 8 | E82: =BASEOld!I82 -> CT | F82: =BASEOld!K82 -> 3.3 | G82: =BASEOld!L82 -> 0 | I82: 0
A83: =BASEOld!B83 -> Goûter | B83: =BASEOld!C83 -> Gâteau à partager | C83: =BASEOld!D83 -> Tarte au citron 1,15kg | D83: =BASEOld!H83 -> 2 | E83: =BASEOld!I83 -> PCE | F83: =BASEOld!K83 -> 5.81 | G83: =BASEOld!L83 -> 0 | I83: 0
A84: =BASEOld!B84 -> Goûter | B84: =BASEOld!C84 -> Gâteau à partager | C84: =BASEOld!D84 -> Tarte au citron meringuée 1kg | D84: =BASEOld!H84 -> 2 | E84: =BASEOld!I84 -> PCE | F84: =BASEOld!K84 -> 5.06 | G84: =BASEOld!L84 -> 0 | I84: 0
A85: =BASEOld!B85 -> Goûter | B85: =BASEOld!C85 -> Gâteau à partager | C85: =BASEOld!D85 -> Tarte au citron prédrécoupée en 10 parts 700g | D85: =BASEOld!H85 -> 8 | E85: =BASEOld!I85 -> CT | F85: =BASEOld!K85 -> 3.27 | G85: =BASEOld!L85 -> 0 | I85: 0
A86: =BASEOld!B86 -> Goûter | B86: =BASEOld!C86 -> Gâteau à partager | C86: =BASEOld!D86 -> Tarte au flan 1Kg | D86: =BASEOld!H86 -> 4 | E86: =BASEOld!I86 -> CT | F86: =BASEOld!K86 -> 3.51 | G86: =BASEOld!L86 -> 0 | I86: 0
A87: =BASEOld!B87 -> Goûter | B87: =BASEOld!C87 -> Gâteau à partager | C87: =BASEOld!D87 -> Tarte au flan prédécoupée en 10 parts 750g | D87: =BASEOld!H87 -> 1 | E87: =BASEOld!I87 -> PCE | F87: =BASEOld!K87 -> 3.03 | G87: =BASEOld!L87 -> 0 | I87: 0
A88: =BASEOld!B88 -> Goûter | B88: =BASEOld!C88 -> Gâteau à partager | C88: =BASEOld!D88 -> Tarte aux abricots 1,3kg | D88: =BASEOld!H88 -> 1 | E88: =BASEOld!I88 -> PCE | F88: =BASEOld!K88 -> 13.09 | G88: =BASEOld!L88 -> 0 | I88: 0
A89: =BASEOld!B89 -> Goûter | B89: =BASEOld!C89 -> Gâteau à partager | C89: =BASEOld!D89 -> Tarte aux abricots 1,3Kg | D89: =BASEOld!H89 -> 1 | E89: =BASEOld!I89 -> PCE | F89: =BASEOld!K89 -> 12.61 | G89: =BASEOld!L89 -> 0 | I89: 0
A90: =BASEOld!B90 -> Goûter | B90: =BASEOld!C90 -> Gâteau à partager | C90: =BASEOld!D90 -> Tarte aux abricots croisillon prédécoupée en 12 parts 900g | D90: =BASEOld!H90 -> 6 | E90: =BASEOld!I90 -> CT | F90: =BASEOld!K90 -> 3.19 | G90: =BASEOld!L90 -> 0 | I90: 0
A91: =BASEOld!B91 -> Goûter | B91: =BASEOld!C91 -> Gâteau à partager | C91: =BASEOld!D91 -> Tarte aux fraises 800g | D91: =BASEOld!H91 -> 1 | E91: =BASEOld!I91 -> PCE | F91: =BASEOld!K91 -> 8.29 | G91: =BASEOld!L91 -> 0 | I91: 0
A92: =BASEOld!B92 -> Goûter | B92: =BASEOld!C92 -> Gâteau à partager | C92: =BASEOld!D92 -> Tarte aux fraises prédécoupée en 8 900g | D92: =BASEOld!H92 -> 1 | E92: =BASEOld!I92 -> PCE | F92: =BASEOld!K92 -> 6.72 | G92: =BASEOld!L92 -> 0 | I92: 0
A93: =BASEOld!B93 -> Goûter | B93: =BASEOld!C93 -> Gâteau à partager | C93: =BASEOld!D93 -> Tarte aux framboises 1,4kg | D93: =BASEOld!H93 -> 1 | E93: =BASEOld!I93 -> PCE | F93: =BASEOld!K93 -> 13.86 | G93: =BASEOld!L93 -> 0 | I93: 0
A94: =BASEOld!B94 -> Goûter | B94: =BASEOld!C94 -> Gâteau à partager | C94: =BASEOld!D94 -> Tarte aux framboises 880g | D94: =BASEOld!H94 -> 1 | E94: =BASEOld!I94 -> PCE | F94: =BASEOld!K94 -> 7.13 | G94: =BASEOld!L94 -> 0 | I94: 0
A95: =BASEOld!B95 -> Goûter | B95: =BASEOld!C95 -> Gâteau à partager | C95: =BASEOld!D95 -> Tarte aux framboises meringuée 1,15kg | D95: =BASEOld!H95 -> 2 | E95: =BASEOld!I95 -> CT | F95: =BASEOld!K95 -> 7.26 | G95: =BASEOld!L95 -> 0 | I95: 0
A96: =BASEOld!B96 -> Goûter | B96: =BASEOld!C96 -> Gâteau à partager | C96: =BASEOld!D96 -> Tarte aux myrtilles 900g | D96: =BASEOld!H96 -> 2 | E96: =BASEOld!I96 -> CT | F96: =BASEOld!K96 -> 7.01 | G96: =BASEOld!L96 -> 0 | I96: 0
A97: =BASEOld!B97 -> Goûter | B97: =BASEOld!C97 -> Gâteau à partager | C97: =BASEOld!D97 -> Tarte aux poires 900g | D97: =BASEOld!H97 -> 1 | E97: =BASEOld!I97 -> PCE | F97: =BASEOld!K97 -> 6.78 | G97: =BASEOld!L97 -> 0 | I97: 0
A98: =BASEOld!B98 -> Goûter | B98: =BASEOld!C98 -> Gâteau à partager | C98: =BASEOld!D98 -> Tarte aux poires Bourdaloue 1,1kg | D98: =BASEOld!H98 -> 2 | E98: =BASEOld!I98 -> CT | F98: =BASEOld!K98 -> 8.31 | G98: =BASEOld!L98 -> 0 | I98: 0
A99: =BASEOld!B99 -> Goûter | B99: =BASEOld!C99 -> Gâteau à partager | C99: =BASEOld!D99 -> Tarte aux poires prédécoupée en 10 parts 750g | D99: =BASEOld!H99 -> 1 | E99: =BASEOld!I99 -> PCE | F99: =BASEOld!K99 -> 4.8 | G99: =BASEOld!L99 -> 0 | I99: 0
A100: =BASEOld!B100 -> Goûter | B100: =BASEOld!C100 -> Gâteau à partager | C100: =BASEOld!D100 -> Tarte aux pommes croissillon prédécoupée en 12 parts 900g | D100: =BASEOld!H100 -> 1 | E100: =BASEOld!I100 -> PCE | F100: =BASEOld!K100 -> 3.07 | G100: =BASEOld!L100 -> 0 | I100: 0
A101: =BASEOld!B101 -> Goûter | B101: =BASEOld!C101 -> Gâteau à partager | C101: =BASEOld!D101 -> Tarte aux pommes crumble 1,15Kg | D101: =BASEOld!H101 -> 2 | E101: =BASEOld!I101 -> CT | F101: =BASEOld!K101 -> 6.58 | G101: =BASEOld!L101 -> 0 | I101: 0
A102: =BASEOld!B102 -> Goûter | B102: =BASEOld!C102 -> Gâteau à partager | C102: =BASEOld!D102 -> Tarte aux pommes et noix 1,1Kg | D102: =BASEOld!H102 -> 2 | E102: =BASEOld!I102 -> CT | F102: =BASEOld!K102 -> 6.1 | G102: =BASEOld!L102 -> 0 | I102: 0
A103: =BASEOld!B103 -> Goûter | B103: =BASEOld!C103 -> Gâteau à partager | C103: =BASEOld!D103 -> Tarte aux pommes Normande 800g | D103: =BASEOld!H103 -> 2 | E103: =BASEOld!I103 -> CT | F103: =BASEOld!K103 -> 4.02 | G103: =BASEOld!L103 -> 0 | I103: 0
A104: =BASEOld!B104 -> Goûter | B104: =BASEOld!C104 -> Gâteau à partager | C104: =BASEOld!D104 -> Tarte aux pommes Normande 950g | D104: =BASEOld!H104 -> 1 | E104: =BASEOld!I104 -> PCE | F104: =BASEOld!K104 -> 3.86 | G104: =BASEOld!L104 -> 0 | I104: 0
A105: =BASEOld!B105 -> Goûter | B105: =BASEOld!C105 -> Gâteau à partager | C105: =BASEOld!D105 -> Tarte aux pommes Normande prédécoupée en 10 parts 700g | D105: =BASEOld!H105 -> 6 | E105: =BASEOld!I105 -> CT | F105: =BASEOld!K105 -> 3.05 | G105: =BASEOld!L105 -> 0 | I105: 0
A106: =BASEOld!B106 -> Goûter | B106: =BASEOld!C106 -> Gâteau à partager | C106: =BASEOld!D106 -> Tarte aux pommes prédécoupée en 10 parts 750g | D106: =BASEOld!H106 -> 1 | E106: =BASEOld!I106 -> PCE | F106: =BASEOld!K106 -> 3.18 | G106: =BASEOld!L106 -> 0 | I106: 0
A107: =BASEOld!B107 -> Goûter | B107: =BASEOld!C107 -> Gâteau à partager | C107: =BASEOld!D107 -> Tarte rosace aux fruits entiers, questches, abricots, framboises | D107: =BASEOld!H107 -> 1 | E107: =BASEOld!I107 -> PCE | F107: =BASEOld!K107 -> 6.35 | G107: =BASEOld!L107 -> 0 | I107: 0
A108: =BASEOld!B108 -> Goûter | B108: =BASEOld!C108 -> Gâteau à partager | C108: =BASEOld!D108 -> Tarte tropézienne 650g | D108: =BASEOld!H108 -> 6 | E108: =BASEOld!I108 -> CT | F108: =BASEOld!K108 -> 4.51 | G108: =BASEOld!L108 -> 0 | I108: 0
A109: =BASEOld!B109 -> Goûter | B109: =BASEOld!C109 -> Gâteau à partager | C109: =BASEOld!D109 -> Tiramisu en bande 900g | D109: =BASEOld!H109 -> 2 | E109: =BASEOld!I109 -> CT | F109: =BASEOld!K109 -> 7.59 | G109: =BASEOld!L109 -> 0 | I109: 0
A110: =BASEOld!B110 -> Goûter | B110: =BASEOld!C110 -> Gâteau à partager | C110: =BASEOld!D110 -> Tiramisu en bande 900g | D110: =BASEOld!H110 -> 2 | E110: =BASEOld!I110 -> PCE | F110: =BASEOld!K110 -> 6.96 | G110: =BASEOld!L110 -> 0 | I110: 0
A111: =BASEOld!B111 -> Goûter | B111: =BASEOld!C111 -> Gâteau à partager | C111: =BASEOld!D111 -> Vacherin vanille/framboise glacé 2L | D111: =BASEOld!H111 -> 2 | E111: =BASEOld!I111 -> PCE | F111: =BASEOld!K111 -> 7.11 | G111: =BASEOld!L111 -> 0 | I111: 0
A112: =BASEOld!B112 -> Goûter | B112: =BASEOld!C112 -> Individuel | C112: =BASEOld!D112 -> Beignet abricot 75g | D112: =BASEOld!H112 -> 60 | E112: =BASEOld!I112 -> CT | F112: =BASEOld!K112 -> 0.31 | G112: =BASEOld!L112 -> 0 | I112: 0
A113: =BASEOld!B113 -> Goûter | B113: =BASEOld!C113 -> Individuel | C113: =BASEOld!D113 -> Beignet chocolat-noisette 75g | D113: =BASEOld!H113 -> 60 | E113: =BASEOld!I113 -> PCE | F113: =BASEOld!K113 -> 0.3 | G113: =BASEOld!L113 -> 0 | I113: 0
A114: =BASEOld!B114 -> Goûter | B114: =BASEOld!C114 -> Individuel | C114: =BASEOld!D114 -> Beignet framboise 75g | D114: =BASEOld!H114 -> 60 | E114: =BASEOld!I114 -> PCE | F114: =BASEOld!K114 -> 0.31 | G114: =BASEOld!L114 -> 0 | I114: 0
A115: =BASEOld!B115 -> Goûter | B115: =BASEOld!C115 -> Individuel | C115: =BASEOld!D115 -> Beignet nature 55g | D115: =BASEOld!H115 -> 60 | E115: =BASEOld!I115 -> CT | F115: =BASEOld!K115 -> 0.25 | G115: =BASEOld!L115 -> 0 | I115: 0
A116: =BASEOld!B116 -> Goûter | B116: =BASEOld!C116 -> Individuel | C116: =BASEOld!D116 -> Beignet pommes 75g | D116: =BASEOld!H116 -> 60 | E116: =BASEOld!I116 -> CT | F116: =BASEOld!K116 -> 0.26 | G116: =BASEOld!L116 -> 0 | I116: 0
A117: =BASEOld!B117 -> Goûter | B117: =BASEOld!C117 -> Individuel | C117: =BASEOld!D117 -> Brioche perdue 100g (peut être coupée en 2) | D117: =BASEOld!H117 -> 28 | E117: =BASEOld!I117 -> PCE | F117: =BASEOld!K117 -> 0.95 | G117: =BASEOld!L117 -> 0 | I117: 0
A118: =BASEOld!B118 -> Goûter | B118: =BASEOld!C118 -> Individuel | C118: =BASEOld!D118 -> Briochette à tête pur beurre cuite 45g | D118: =BASEOld!H118 -> 45 | E118: =BASEOld!I118 -> CT | F118: =BASEOld!K118 -> 0.35 | G118: =BASEOld!L118 -> 0 | I118: 0
A119: =BASEOld!B119 -> Goûter | B119: =BASEOld!C119 -> Individuel | C119: =BASEOld!D119 -> Crèpes au chocolat 40g | D119: =BASEOld!H119 -> 40 | E119: =BASEOld!I119 -> PCE | F119: =BASEOld!K119 -> 0.25 | G119: =BASEOld!L119 -> 0 | I119: 0
A120: =BASEOld!B120 -> Goûter | B120: =BASEOld!C120 -> Individuel | C120: =BASEOld!D120 -> Crèpes nature 50g | D120: =BASEOld!H120 -> 40 | E120: =BASEOld!I120 -> PCE | F120: =BASEOld!K120 -> 0.26 | G120: =BASEOld!L120 -> 0 | I120: 0
A121: =BASEOld!B121 -> Goûter | B121: =BASEOld!C121 -> Individuel | C121: =BASEOld!D121 -> Donuts chocolat 55g | D121: =BASEOld!H121 -> 36 | E121: =BASEOld!I121 -> CT | F121: =BASEOld!K121 -> 0.3 | G121: =BASEOld!L121 -> 0 | I121: 0
A122: =BASEOld!B122 -> Goûter | B122: =BASEOld!C122 -> Individuel | C122: =BASEOld!D122 -> Donuts nature sucré 49g | D122: =BASEOld!H122 -> 72 | E122: =BASEOld!I122 -> CT | F122: =BASEOld!K122 -> 0.24 | G122: =BASEOld!L122 -> 0 | I122: 0
A123: =BASEOld!B123 -> Goûter | B123: =BASEOld!C123 -> Individuel | C123: =BASEOld!D123 -> Gaufre de Bruxelles 70g (peut être coupée en 2) | D123: =BASEOld!H123 -> 27 | E123: =BASEOld!I123 -> PCE | F123: =BASEOld!K123 -> 0.32 | G123: =BASEOld!L123 -> 0 | I123: 0
A124: =BASEOld!B124 -> goûter | B124: =BASEOld!C124 -> Sans sucre | C124: =BASEOld!D124 -> Cake cacao sans sucre 30g | D124: =BASEOld!H124 -> 60 | E124: =BASEOld!I124 -> CT | F124: =BASEOld!K124 -> 0.24 | G124: =BASEOld!L124 -> 0 | I124: 0
A125: =BASEOld!B125 -> goûter | B125: =BASEOld!C125 -> Sans sucre | C125: =BASEOld!D125 -> Cake citron sans sucre 30g | D125: =BASEOld!H125 -> 60 | E125: =BASEOld!I125 -> CT | F125: =BASEOld!K125 -> 0.24 | G125: =BASEOld!L125 -> 0 | I125: 0
A126: =BASEOld!B126 -> goûter | B126: =BASEOld!C126 -> Sans sucre | C126: =BASEOld!D126 -> Cake framboise sans sucre 30g | D126: =BASEOld!H126 -> 60 | E126: =BASEOld!I126 -> CT | F126: =BASEOld!K126 -> 0.24 | G126: =BASEOld!L126 -> 0 | I126: 0
A127: =BASEOld!B127 -> Goûter | B127: =BASEOld!C127 -> Sans sucre | C127: =BASEOld!D127 -> Couronne sans sucre 40g | D127: =BASEOld!H127 -> 36 | E127: =BASEOld!I127 -> CT | F127: =BASEOld!K127 -> 0.32 | G127: =BASEOld!L127 -> 0 | I127: 0
A128: =BASEOld!B128 -> Goûter | B128: =BASEOld!C128 -> Sans sucre | C128: =BASEOld!D128 -> Gaufrette cacao sans sucre 20g | D128: =BASEOld!H128 -> 320 | E128: =BASEOld!I128 -> CT | F128: =BASEOld!K128 -> 0.13 | G128: =BASEOld!L128 -> 0 | I128: 0
A129: =BASEOld!B129 -> Goûter | B129: =BASEOld!C129 -> Sans sucre | C129: =BASEOld!D129 -> Gaufrette citron sans sucre / sans sel 11g | D129: =BASEOld!H129 -> 100 | E129: =BASEOld!I129 -> CT | F129: =BASEOld!K129 -> 0.26 | G129: =BASEOld!L129 -> 0 | I129: 0
A130: =BASEOld!B130 -> Goûter | B130: =BASEOld!C130 -> Sans sucre | C130: =BASEOld!D130 -> Gaufrette vanille sans sucre 20g | D130: =BASEOld!H130 -> 320 | E130: =BASEOld!I130 -> CT | F130: =BASEOld!K130 -> 0.13 | G130: =BASEOld!L130 -> 0 | I130: 0
A131: =BASEOld!B131 -> Goûter | B131: =BASEOld!C131 -> Sans sucre | C131: =BASEOld!D131 -> Lingot amande sans sucre 25g | D131: =BASEOld!H131 -> 80 | E131: =BASEOld!I131 -> CT | F131: =BASEOld!K131 -> 0.32 | G131: =BASEOld!L131 -> 0 | I131: 0
A132: =BASEOld!B132 -> Goûter | B132: =BASEOld!C132 -> Sans sucre | C132: =BASEOld!D132 -> Madeleine nature sans sucre 25g | D132: =BASEOld!H132 -> 100 | E132: =BASEOld!I132 -> CT | F132: =BASEOld!K132 -> 0.19 | G132: =BASEOld!L132 -> 0 | I132: 0
A133: =BASEOld!B133 -> goûter | B133: =BASEOld!C133 -> Sans sucre | C133: =BASEOld!D133 -> Moelleux cacao sans sucre 40g | D133: =BASEOld!H133 -> 100 | E133: =BASEOld!I133 -> CT | F133: =BASEOld!K133 -> 0.28 | G133: =BASEOld!L133 -> 0 | I133: 0
A134: =BASEOld!B134 -> goûter | B134: =BASEOld!C134 -> Sans sucre | C134: =BASEOld!D134 -> Moelleux citron sans sucre 40g | D134: =BASEOld!H134 -> 100 | E134: =BASEOld!I134 -> CT | F134: =BASEOld!K134 -> 0.27 | G134: =BASEOld!L134 -> 0 | I134: 0
A135: =BASEOld!B135 -> goûter | B135: =BASEOld!C135 -> Sans sucre | C135: =BASEOld!D135 -> Moelleux framboise sans sucre 40g | D135: =BASEOld!H135 -> 100 | E135: =BASEOld!I135 -> CT | F135: =BASEOld!K135 -> 0.29 | G135: =BASEOld!L135 -> 0 | I135: =D135*F135*H135 -> 0
A136: =BASEOld!B136 -> Goûter | B136: =BASEOld!C136 -> Sans sucre | C136: =BASEOld!D136 -> Palmiers sans sucre x2 17g | D136: =BASEOld!H136 -> 120 | E136: =BASEOld!I136 -> CT | F136: =BASEOld!K136 -> 0.16 | G136: =BASEOld!L136 -> 0 | I136: 0
A137: =BASEOld!B137 -> Goûter | B137: =BASEOld!C137 -> Sans sucre | C137: =BASEOld!D137 -> Tranche nature 50g | D137: =BASEOld!H137 -> 36 | E137: =BASEOld!I137 -> CT | F137: =BASEOld!K137 -> 0.32 | G137: =BASEOld!L137 -> 0 | I137: 0
A138: =BASEOld!B138 -> Goûter | B138: =BASEOld!C138 -> Viennoiserie | C138: =BASEOld!D138 -> Mini croissant au beurre prêt à cuire 25g | D138: =BASEOld!H138 -> 160 | E138: =BASEOld!I138 -> CT | F138: =BASEOld!K138 -> 0.09 | G138: =BASEOld!L138 -> 0 | I138: 0
A139: =BASEOld!B139 -> Goûter | B139: =BASEOld!C139 -> Viennoiserie | C139: =BASEOld!D139 -> Mini pain au chocolat au beurre prêt à cuire 25g | D139: =BASEOld!H139 -> 160 | E139: =BASEOld!I139 -> CT | F139: =BASEOld!K139 -> 0.1 | G139: =BASEOld!L139 -> 0 | I139: 0
A140: =BASEOld!B140 -> Goûter | B140: =BASEOld!C140 -> Viennoiserie | C140: =BASEOld!D140 -> Mini pain aux raisins prêt à cuire 35g | D140: =BASEOld!H140 -> 150 | E140: =BASEOld!I140 -> CT | F140: =BASEOld!K140 -> 0.13 | G140: =BASEOld!L140 -> 0 | I140: 0
A141: =BASEOld!B141 -> Goûter | B141: =BASEOld!C141 -> 0 | C141: =BASEOld!D141 -> Goûter sec brioché 25 tranches (spécial mixé) 350g | D141: =BASEOld!H141 -> 24 | E141: =BASEOld!I141 -> CT | F141: =BASEOld!K141 -> 0.8 | G141: =BASEOld!L141 -> 0 | I141: 0
A142: =BASEOld!B142 -> Goûter / PDJ | B142: =BASEOld!C142 -> Individuel | C142: =BASEOld!D142 -> Pain au chocolat 75g prêt à cuire | D142: =BASEOld!H142 -> 70 | E142: =BASEOld!I142 -> CT | F142: =BASEOld!K142 -> 0.25 | G142: =BASEOld!L142 -> 0 | I142: 0
A143: =BASEOld!B143 -> Goûter / PDJ | B143: =BASEOld!C143 -> Individuel | C143: =BASEOld!D143 -> Pain chocolat cuit 45g | D143: =BASEOld!H143 -> 50 | E143: =BASEOld!I143 -> CT | F143: =BASEOld!K143 -> 0.6 | G143: =BASEOld!L143 -> 0 | I143: 0
A144: =BASEOld!B144 -> Goûter / PDJ | B144: =BASEOld!C144 -> Viennoiserie | C144: =BASEOld!D144 -> Croissant au beurre 60g prêt à cuire | D144: =BASEOld!H144 -> 84 | E144: =BASEOld!I144 -> CT | F144: =BASEOld!K144 -> 0.2 | G144: =BASEOld!L144 -> 0 | I144: 0
A145: =BASEOld!B145 -> Goûter / PDJ | B145: =BASEOld!C145 -> Viennoiserie | C145: =BASEOld!D145 -> Croissant cuit surgelé 40g x 10 | D145: =BASEOld!H145 -> 1 | E145: =BASEOld!I145 -> SHT | F145: =BASEOld!K145 -> 2.78 | G145: =BASEOld!L145 -> 0 | I145: 0
A146: =BASEOld!B146 -> PDJ | B146: =BASEOld!C146 -> Confiture | C146: =BASEOld!D146 -> Confiture abricot pot 1kg | D146: =BASEOld!H146 -> 6 | E146: =BASEOld!I146 -> CT | F146: =BASEOld!K146 -> 1.71 | G146: =BASEOld!L146 -> 0 | I146: 0
A147: =BASEOld!B147 -> PDJ | B147: =BASEOld!C147 -> Confiture | C147: =BASEOld!D147 -> Confiture fraise pot 1Kg | D147: =BASEOld!H147 -> 6 | E147: =BASEOld!I147 -> CT | F147: =BASEOld!K147 -> 2.17 | G147: =BASEOld!L147 -> 0 | I147: 0
A148: =BASEOld!B148 -> PDJ | B148: =BASEOld!C148 -> Confiture | C148: =BASEOld!D148 -> Confiture myrtille pot 1kg | D148: =BASEOld!H148 -> 6 | E148: =BASEOld!I148 -> CT | F148: =BASEOld!K148 -> 5.61 | G148: =BASEOld!L148 -> 0 | I148: 0
A149: =BASEOld!B149 -> PDJ | B149: =BASEOld!C149 -> Confiture | C149: =BASEOld!D149 -> Confitures assorties en coupelle 5 parfums 30g | D149: =BASEOld!H149 -> 120 | E149: =BASEOld!I149 -> CT | F149: =BASEOld!K149 -> 0.06 | G149: =BASEOld!L149 -> 0 | I149: 0
A150: =BASEOld!B150 -> PDJ | B150: =BASEOld!C150 -> Confiture | C150: =BASEOld!D150 -> Gelée de groseille pot 450g | D150: =BASEOld!H150 -> 1 | E150: =BASEOld!I150 -> POT | F150: =BASEOld!K150 -> 1.07 | G150: =BASEOld!L150 -> 0 | I150: 0
A151: =BASEOld!B151 -> PDJ | B151: =BASEOld!C151 -> Confiture | C151: =BASEOld!D151 -> Marmelade orange pot 1Kg | D151: =BASEOld!H151 -> 6 | E151: =BASEOld!I151 -> LOT | F151: =BASEOld!K151 -> 2.18 | G151: =BASEOld!L151 -> 0 | I151: 0
A152: =BASEOld!B152 -> PDJ | B152: =BASEOld!C152 -> Divers | C152: =BASEOld!D152 -> Beurre micro pain 10g x 100 | D152: =BASEOld!H152 -> 1 | E152: =BASEOld!I152 -> KG | F152: =BASEOld!K152 -> 5.61 | G152: =BASEOld!L152 -> 0 | I152: 0
A153: =BASEOld!B153 -> PDJ | B153: =BASEOld!C153 -> Divers | C153: =BASEOld!D153 -> Beurre tablette 250 gr | D153: =BASEOld!H153 -> 1 | E153: =BASEOld!I153 -> PCE | F153: =BASEOld!K153 -> 1.28 | G153: =BASEOld!L153 -> 0 | I153: 0
A154: =BASEOld!B154 -> PDJ | B154: =BASEOld!C154 -> Divers | C154: =BASEOld!D154 -> Beurre tendre tartinable 40% MG 1Kg | D154: =BASEOld!H154 -> 1 | E154: =BASEOld!I154 -> KG | F154: =BASEOld!K154 -> 5.41 | G154: =BASEOld!L154 -> 0 | I154: 0
A155: =BASEOld!B155 -> 0 | B155: =BASEOld!C155 -> 0 | C155: =BASEOld!D155 -> Agitateurs 113mm | D155: =BASEOld!H155 -> 1 | E155: =BASEOld!I155 -> SHT | F155: =BASEOld!K155 -> 2.95 | G155: =BASEOld!L155 -> 0 | I155: 0
A156: =BASEOld!B156 -> 0 | B156: =BASEOld!C156 -> 0 | C156: =BASEOld!D156 -> Anthésite anis Ss sucre 13Cl | D156: =BASEOld!H156 -> 1 | E156: =BASEOld!I156 -> FLC | F156: =BASEOld!K156 -> 6 | G156: =BASEOld!L156 -> 0 | I156: 0
A157: =BASEOld!B157 -> 0 | B157: =BASEOld!C157 -> 0 | C157: =BASEOld!D157 -> Arlequin de fruits 5/1 | D157: =BASEOld!H157 -> 1 | E157: =BASEOld!I157 -> BTE | F157: =BASEOld!K157 -> 5.36 | G157: =BASEOld!L157 -> 0 | I157: 0
A158: =BASEOld!B158 -> 0 | B158: =BASEOld!C158 -> 0 | C158: =BASEOld!D158 -> Assiette à dessertx100 | D158: =BASEOld!H158 -> 1 | E158: =BASEOld!I158 -> st | F158: =BASEOld!K158 -> 3.43 | G158: =BASEOld!L158 -> 0 | I158: 0
A159: =BASEOld!B159 -> 0 | B159: =BASEOld!C159 -> 0 | C159: =BASEOld!D159 -> Barquette charcutiere 125cc x500 | D159: =BASEOld!H159 -> 1 | E159: =BASEOld!I159 -> SHT | F159: =BASEOld!K159 -> 4.22 | G159: =BASEOld!L159 -> 0 | I159: 0
A160: =BASEOld!B160 -> 0 | B160: =BASEOld!C160 -> 0 | C160: =BASEOld!D160 -> Barquette choco 120g | D160: =BASEOld!H160 -> 4 | E160: =BASEOld!I160 -> LOT | F160: =BASEOld!K160 -> 1.54 | G160: =BASEOld!L160 -> 0 | I160: 0
A161: =BASEOld!B161 -> 0 | B161: =BASEOld!C161 -> 0 | C161: =BASEOld!D161 -> Barquette fraise 120g | D161: =BASEOld!H161 -> 4 | E161: =BASEOld!I161 -> LOT | F161: =BASEOld!K161 -> 1.54 | G161: =BASEOld!L161 -> 0 | I161: 0
A162: =BASEOld!B162 -> 0 | B162: =BASEOld!C162 -> 0 | C162: =BASEOld!D162 -> Barre pâtissiere | D162: =BASEOld!H162 -> 1 | E162: =BASEOld!I162 -> PCE | F162: =BASEOld!K162 -> 1.49 | G162: =BASEOld!L162 -> 0 | I162: 0
A163: =BASEOld!B163 -> 0 | B163: =BASEOld!C163 -> 0 | C163: =BASEOld!D163 -> Bière Kronembourg boite 33cl | D163: =BASEOld!H163 -> 24 | E163: =BASEOld!I163 -> CT | F163: =BASEOld!K163 -> 0.7 | G163: =BASEOld!L163 -> 0 | I163: 0
A164: =BASEOld!B164 -> 0 | B164: =BASEOld!C164 -> 0 | C164: =BASEOld!D164 -> Biscotte 2 tranches | D164: =BASEOld!H164 -> 208 | E164: =BASEOld!I164 -> CT | F164: =BASEOld!K164 -> 0.05 | G164: =BASEOld!L164 -> 0 | I164: 0
A165: =BASEOld!B165 -> 0 | B165: =BASEOld!C165 -> 0 | C165: =BASEOld!D165 -> Biscotte 2T x208 sans sel | D165: =BASEOld!H165 -> 1 | E165: =BASEOld!I165 -> CT | F165: =BASEOld!K165 -> 9.46 | G165: =BASEOld!L165 -> 0 | I165: 0
A166: =BASEOld!B166 -> 0 | B166: =BASEOld!C166 -> 0 | C166: =BASEOld!D166 -> Biscotte paquet 72 tranches 580g | D166: =BASEOld!H166 -> 12 | E166: =BASEOld!I166 -> CT | F166: =BASEOld!K166 -> 1.19 | G166: =BASEOld!L166 -> 0 | I166: 0
A167: =BASEOld!B167 -> 0 | B167: =BASEOld!C167 -> 0 | C167: =BASEOld!D167 -> Biscuits apéritif Belin boîte 720g | D167: =BASEOld!H167 -> 1 | E167: =BASEOld!I167 -> BTE | F167: =BASEOld!K167 -> 5.55 | G167: =BASEOld!L167 -> 0 | I167: 0
A168: =BASEOld!B168 -> 0 | B168: =BASEOld!C168 -> 0 | C168: =BASEOld!D168 -> Blédine biscuitée paquet 500g | D168: =BASEOld!H168 -> 1 | E168: =BASEOld!I168 -> PQ | F168: =BASEOld!K168 -> 3.33 | G168: =BASEOld!L168 -> 0 | I168: 0
A169: =BASEOld!B169 -> 0 | B169: =BASEOld!C169 -> 0 | C169: =BASEOld!D169 -> Blédine céréales-vanille paquet 500g | D169: =BASEOld!H169 -> 1 | E169: =BASEOld!I169 -> PQ | F169: =BASEOld!K169 -> 3.33 | G169: =BASEOld!L169 -> 0 | I169: 0
A170: =BASEOld!B170 -> 0 | B170: =BASEOld!C170 -> 0 | C170: =BASEOld!D170 -> Blédine chocolat paquet 500g | D170: =BASEOld!H170 -> 1 | E170: =BASEOld!I170 -> PQ | F170: =BASEOld!K170 -> 3.33 | G170: =BASEOld!L170 -> 0 | I170: 0
A171: =BASEOld!B171 -> 0 | B171: =BASEOld!C171 -> 0 | C171: =BASEOld!D171 -> Boudoirs 400g | D171: =BASEOld!H171 -> 1 | E171: =BASEOld!I171 -> PCE | F171: =BASEOld!K171 -> 1.62 | G171: =BASEOld!L171 -> 0 | I171: 0
A172: =BASEOld!B172 -> 0 | B172: =BASEOld!C172 -> 0 | C172: =BASEOld!D172 -> Boudoirs ration 190 x 2 2,2Kg | D172: =BASEOld!H172 -> 1 | E172: =BASEOld!I172 -> CT | F172: =BASEOld!K172 -> 11.43 | G172: =BASEOld!L172 -> 0 | I172: 0
A173: =BASEOld!B173 -> 0 | B173: =BASEOld!C173 -> 0 | C173: =BASEOld!D173 -> Brioche tranchée 500g | D173: =BASEOld!H173 -> 7 | E173: =BASEOld!I173 -> CT | F173: =BASEOld!K173 -> 1.79 | G173: =BASEOld!L173 -> 0 | I173: 0
A174: =BASEOld!B174 -> 0 | B174: =BASEOld!C174 -> 0 | C174: =BASEOld!D174 -> Café moulu 100%A 250g x 12 | D174: =BASEOld!H174 -> 12 | E174: =BASEOld!I174 -> LOT | F174: =BASEOld!K174 -> 1.26 | G174: =BASEOld!L174 -> 0 | I174: 0
A175: =BASEOld!B175 -> 0 | B175: =BASEOld!C175 -> 0 | C175: =BASEOld!D175 -> Café sol (60kf 40chic) dse L15g x 100 | D175: =BASEOld!H175 -> 1 | E175: =BASEOld!I175 -> CT | F175: =BASEOld!K175 -> 23.29 | G175: =BASEOld!L175 -> 0 | I175: 0
A176: =BASEOld!B176 -> 0 | B176: =BASEOld!C176 -> 0 | C176: =BASEOld!D176 -> Café soluble Nescafé dose 2g | D176: =BASEOld!H176 -> 300 | E176: =BASEOld!I176 -> CT | F176: =BASEOld!K176 -> 0.11 | G176: =BASEOld!L176 -> 0 | I176: 0
A177: =BASEOld!B177 -> 0 | B177: =BASEOld!C177 -> 0 | C177: =BASEOld!D177 -> Café soluble Nescafé dose 2g décaféiné | D177: =BASEOld!H177 -> 300 | E177: =BASEOld!I177 -> CT | F177: =BASEOld!K177 -> 0.13 | G177: =BASEOld!L177 -> 0 | I177: 0
A178: =BASEOld!B178 -> 0 | B178: =BASEOld!C178 -> 0 | C178: =BASEOld!D178 -> Café soluble Nescoré (60%café/40%chicorée) poche 500g | D178: =BASEOld!H178 -> 12 | E178: =BASEOld!I178 -> CT | F178: =BASEOld!K178 -> 8.76 | G178: =BASEOld!L178 -> 0 | I178: 0
A179: =BASEOld!B179 -> 0 | B179: =BASEOld!C179 -> 0 | C179: =BASEOld!D179 -> Café soluble Sagy (60% café/40% chicorée) poche 500g | D179: =BASEOld!H179 -> 10 | E179: =BASEOld!I179 -> CT | F179: =BASEOld!K179 -> 5.89 | G179: =BASEOld!L179 -> 0 | I179: 0
A180: =BASEOld!B180 -> 0 | B180: =BASEOld!C180 -> 0 | C180: =BASEOld!D180 -> Café soluble Sagy dose 2g | D180: =BASEOld!H180 -> 300 | E180: =BASEOld!I180 -> CT | F180: =BASEOld!K180 -> 0.06 | G180: =BASEOld!L180 -> 0 | I180: 0
A181: =BASEOld!B181 -> 0 | B181: =BASEOld!C181 -> 0 | C181: =BASEOld!D181 -> Carré fourré amandes 40g | D181: =BASEOld!H181 -> 100 | E181: =BASEOld!I181 -> CT | F181: =BASEOld!K181 -> 0.21 | G181: =BASEOld!L181 -> 0 | I181: 0
A182: =BASEOld!B182 -> 0 | B182: =BASEOld!C182 -> 0 | C182: =BASEOld!D182 -> Charlotte clip TU x 100 | D182: =BASEOld!H182 -> 1 | E182: =BASEOld!I182 -> PQ | F182: =BASEOld!K182 -> 2.75 | G182: =BASEOld!L182 -> 0 | I182: 0
A183: =BASEOld!B183 -> 0 | B183: =BASEOld!C183 -> 0 | C183: =BASEOld!D183 -> Chips paquet 500g | D183: =BASEOld!H183 -> 1 | E183: =BASEOld!I183 -> Pce | F183: =BASEOld!K183 -> 1.62 | G183: =BASEOld!L183 -> 0 | I183: 0
A184: =BASEOld!B184 -> 0 | B184: =BASEOld!C184 -> 0 | C184: =BASEOld!D184 -> Chocolat au lait tablette 100g | D184: =BASEOld!H184 -> 5 | E184: =BASEOld!I184 -> LOT | F184: =BASEOld!K184 -> 0.41 | G184: =BASEOld!L184 -> 0 | I184: 0
A185: =BASEOld!B185 -> 0 | B185: =BASEOld!C185 -> 0 | C185: =BASEOld!D185 -> Chocolat en poudre dose 20g | D185: =BASEOld!H185 -> 200 | E185: =BASEOld!I185 -> ct | F185: =BASEOld!K185 -> 0.07 | G185: =BASEOld!L185 -> 0 | I185: 0
A186: =BASEOld!B186 -> 0 | B186: =BASEOld!C186 -> 0 | C186: =BASEOld!D186 -> Chocolat petit déjeuner paquet 1Kg | D186: =BASEOld!H186 -> 1 | E186: =BASEOld!I186 -> BTE | F186: =BASEOld!K186 -> 2.79 | G186: =BASEOld!L186 -> 0 | I186: 0
A187: =BASEOld!B187 -> 0 | B187: =BASEOld!C187 -> 0 | C187: =BASEOld!D187 -> Cidre bouché brut 75Cl | D187: =BASEOld!H187 -> 6 | E187: =BASEOld!I187 -> CT | F187: =BASEOld!K187 -> 1.27 | G187: =BASEOld!L187 -> 0 | I187: 0
A188: =BASEOld!B188 -> 0 | B188: =BASEOld!C188 -> 0 | C188: =BASEOld!D188 -> Cidre bouché doux 75Cl | D188: =BASEOld!H188 -> 6 | E188: =BASEOld!I188 -> CT | F188: =BASEOld!K188 -> 1.27 | G188: =BASEOld!L188 -> 0 | I188: 0
A189: =BASEOld!B189 -> 0 | B189: =BASEOld!C189 -> 0 | C189: =BASEOld!D189 -> Cigarettes croustillantes 1Kg | D189: =BASEOld!H189 -> 1 | E189: =BASEOld!I189 -> BTE | F189: =BASEOld!K189 -> 10.25 | G189: =BASEOld!L189 -> 0 | I189: 0
A190: =BASEOld!B190 -> 0 | B190: =BASEOld!C190 -> 0 | C190: =BASEOld!D190 -> Citron | D190: =BASEOld!H190 -> 1 | E190: =BASEOld!I190 -> KG | F190: =BASEOld!K190 -> 1.54 | G190: =BASEOld!L190 -> 0 | I190: 0
A191: =BASEOld!B191 -> 0 | B191: =BASEOld!C191 -> 0 | C191: =BASEOld!D191 -> Coca cola 1,5L | D191: =BASEOld!H191 -> 12 | E191: =BASEOld!I191 -> CT | F191: =BASEOld!K191 -> 1.67 | G191: =BASEOld!L191 -> 0 | I191: 0
A192: =BASEOld!B192 -> 0 | B192: =BASEOld!C192 -> 0 | C192: =BASEOld!D192 -> Coca cola zéro ou light 1,5L | D192: =BASEOld!H192 -> 12 | E192: =BASEOld!I192 -> CT | F192: =BASEOld!K192 -> 1.54 | G192: =BASEOld!L192 -> 0 | I192: 0
A193: =BASEOld!B193 -> 0 | B193: =BASEOld!C193 -> 0 | C193: =BASEOld!D193 -> Cocktail de fruits sans sucre 90g | D193: =BASEOld!H193 -> 120 | E193: =BASEOld!I193 -> CT | F193: =BASEOld!K193 -> 0.28 | G193: =BASEOld!L193 -> 0 | I193: 0
A194: =BASEOld!B194 -> 0 | B194: =BASEOld!C194 -> 0 | C194: =BASEOld!D194 -> Compote de pomme 100g | D194: =BASEOld!H194 -> 120 | E194: =BASEOld!I194 -> CT | F194: =BASEOld!K194 -> 0.12 | G194: =BASEOld!L194 -> 0 | I194: 0
A195: =BASEOld!B195 -> 0 | B195: =BASEOld!C195 -> 0 | C195: =BASEOld!D195 -> Compote pomme/abricot 100g | D195: =BASEOld!H195 -> 120 | E195: =BASEOld!I195 -> CT | F195: =BASEOld!K195 -> 0.21 | G195: =BASEOld!L195 -> 0 | I195: 0
A196: =BASEOld!B196 -> 0 | B196: =BASEOld!C196 -> 0 | C196: =BASEOld!D196 -> Compote pomme/banane 100g | D196: =BASEOld!H196 -> 120 | E196: =BASEOld!I196 -> CT | F196: =BASEOld!K196 -> 0.21 | G196: =BASEOld!L196 -> 0 | I196: 0
A197: =BASEOld!B197 -> 0 | B197: =BASEOld!C197 -> 0 | C197: =BASEOld!D197 -> Compote pomme/cassis 100g | D197: =BASEOld!H197 -> 120 | E197: =BASEOld!I197 -> CT | F197: =BASEOld!K197 -> 0.17 | G197: =BASEOld!L197 -> 0 | I197: 0
A198: =BASEOld!B198 -> 0 | B198: =BASEOld!C198 -> 0 | C198: =BASEOld!D198 -> Cornichons pot 72cl | D198: =BASEOld!H198 -> 6 | E198: =BASEOld!I198 -> CT | F198: =BASEOld!K198 -> 2.15 | G198: =BASEOld!L198 -> 0 | I198: 0
A199: =BASEOld!B199 -> 0 | B199: =BASEOld!C199 -> 0 | C199: =BASEOld!D199 -> Crème anglaise 1L | D199: =BASEOld!H199 -> 1 | E199: =BASEOld!I199 -> PCE | F199: =BASEOld!K199 -> 1.76 | G199: =BASEOld!L199 -> 0 | I199: =D199*F199*H199 -> 0
A200: =BASEOld!B200 -> 0 | B200: =BASEOld!C200 -> 0 | C200: =BASEOld!D200 -> Crème de cassis 16° 70Cl | D200: =BASEOld!H200 -> 1 | E200: =BASEOld!I200 -> BLLE | F200: =BASEOld!K200 -> 6.24 | G200: =BASEOld!L200 -> 0 | I200: 0
A201: =BASEOld!B201 -> 0 | B201: =BASEOld!C201 -> 0 | C201: =BASEOld!D201 -> Crème pâtissière à froid 2,5Kg | D201: =BASEOld!H201 -> 4 | E201: =BASEOld!I201 -> CT | F201: =BASEOld!K201 -> 6.88 | G201: =BASEOld!L201 -> 0 | I201: 0
... 300 more rows

Sheet Les Peupliers
A1: =MID(CELL("filename",A1),FIND("]",CELL("filename",A1))+1,32) -> Les Peupliers | C1: Livraison du | D1: =BASEOld!J1 -> 2015-02-18 | F1: au | G1: =D1+6 -> 2015-02-24
D2: Date de dépôt | G2: =TODAY() -> 2015-02-24 | N2: Produits plus spécifiques à noter vous-même selon vos besoins
A3: Bon de commande Produits annexes
A5: FR | B5: FAMILLE | C5: Intitulés produits | D5: CDT | E5: U/F | F5: Prix HT € | G5: TVA | H5: Qté com | I5: Qté liv | J5: M. T. HT € prévisionnel | K5: M. T. HT € facturé
A6: =BASEOld!B6 -> Divers | B6: =BASEOld!C6 -> 0 | C6: =BASEOld!D6 -> Emmental rapé 1 KG | D6: =BASEOld!H6 -> 1 | E6: =BASEOld!I6 -> SHT | F6: =BASEOld!K6 -> 5.39 | G6: =BASEOld!L6 -> 0 | J6: =H6*D6*F6 -> 0 | K6: =I6*F6*D6 -> 0
A7: =BASEOld!B7 -> Divers | B7: =BASEOld!C7 -> 0 | C7: =BASEOld!D7 -> Jambon de Paris 10 tranches 400g | D7: =BASEOld!H7 -> 1 | E7: =BASEOld!I7 -> PQT | F7: =BASEOld!K7 -> 2.94 | G7: =BASEOld!L7 -> 0 | J7: =H7*D7*F7 -> 0 | K7: =I7*F7*D7 -> 0 | N7: Prévisionnel sur commande | Q7: Réel sur livraison
A8: =BASEOld!B8 -> Divers | B8: =BASEOld!C8 -> 0 | C8: =BASEOld!D8 -> Jambon de Paris 20 tranches 800g | D8: =BASEOld!H8 -> 1 | E8: =BASEOld!I8 -> PQT | F8: =BASEOld!K8 -> 4.05 | G8: =BASEOld!L8 -> 0 | J8: 0 | K8: 0 | N8: TOTAL H.T TVA 5,5% | O8: =SUMIF(G6:G501,N12,J6:J501) -> 0 | Q8: TOTAL H.T TVA 5,5% | R8: =SUMIF(I6:I501,N12,K6:K501) -> 0
A9: =BASEOld!B9 -> Divers | B9: =BASEOld!C9 -> 0 | C9: =BASEOld!D9 -> Jambon de Paris hyposodé 10 tranches 450g | D9: =BASEOld!H9 -> 1 | E9: =BASEOld!I9 -> PQT | F9: =BASEOld!K9 -> 3.5 | G9: =BASEOld!L9 -> 0 | J9: 0 | K9: 0 | N9: TOTAL H.T TVA 20% | O9: =SUMIF(G6:G501,N13,J6:J501) -> 0 | Q9: TOTAL H.T TVA 20% | R9: =SUMIF(I6:I501,N13,K6:K501) -> 0
A10: =BASEOld!B10 -> Goûter | B10: =BASEOld!C10 -> Biscuit à partager | C10: =BASEOld!D10 -> Cake marbré 400g (moule alu) | D10: =BASEOld!H10 -> 6 | E10: =BASEOld!I10 -> LOT | F10: =BASEOld!K10 -> 1.65 | G10: =BASEOld!L10 -> 0 | J10: 0 | K10: 0 | N10: TOTAL H.T TVA 20% non alimentaire | O10: =SUMIF(G6:G501,N14,J6:J501) -> 0 | Q10: TOTAL H.T TVA 20% non alimentaire | R10: =SUMIF(I6:I501,N14,K6:K501) -> 0
A11: =BASEOld!B11 -> Goûter | B11: =BASEOld!C11 -> Biscuit à partager | C11: =BASEOld!D11 -> Cake parfum chocolat 400g (moule alu) | D11: =BASEOld!H11 -> 6 | E11: =BASEOld!I11 -> LOT | F11: =BASEOld!K11 -> 1.65 | G11: =BASEOld!L11 -> 0 | J11: 0 | K11: 0
A12: =BASEOld!B12 -> Goûter | B12: =BASEOld!C12 -> Biscuit à partager | C12: =BASEOld!D12 -> Cake parfum kiwi 400g (moule alu) | D12: =BASEOld!H12 -> 6 | E12: =BASEOld!I12 -> LOT | F12: =BASEOld!K12 -> 1.65 | G12: =BASEOld!L12 -> 0 | J12: 0 | K12: 0 | N12: 0.055
A13: =BASEOld!B13 -> Goûter | B13: =BASEOld!C13 -> Biscuit à partager | C13: =BASEOld!D13 -> Roulade chocolat 300g | D13: =BASEOld!H13 -> 7 | E13: =BASEOld!I13 -> CT | F13: =BASEOld!K13 -> 1.65 | G13: =BASEOld!L13 -> 0 | J13: 0 | K13: 0 | N13: 0.2
A14: =BASEOld!B14 -> Goûter | B14: =BASEOld!C14 -> Biscuit à partager | C14: =BASEOld!D14 -> Roulade fraise 300g | D14: =BASEOld!H14 -> 7 | E14: =BASEOld!I14 -> CT | F14: =BASEOld!K14 -> 1.65 | G14: =BASEOld!L14 -> 0 | J14: 0 | K14: 0 | N14: 20% NA
A15: =BASEOld!B15 -> Goûter | B15: =BASEOld!C15 -> Biscuit à partager | C15: =BASEOld!D15 -> Roulade myrtille 300g | D15: =BASEOld!H15 -> 7 | E15: =BASEOld!I15 -> CT | F15: =BASEOld!K15 -> 1.65 | G15: =BASEOld!L15 -> 0 | J15: 0 | K15: 0
A16: =BASEOld!B16 -> Goûter | B16: =BASEOld!C16 -> Biscuit individuel | C16: =BASEOld!D16 -> Financier aux amandes 20g | D16: =BASEOld!H16 -> 150 | E16: =BASEOld!I16 -> CT | F16: =BASEOld!K16 -> 0.24 | G16: =BASEOld!L16 -> 0 | J16: 0 | K16: 0
A17: =BASEOld!B17 -> Goûter | B17: =BASEOld!C17 -> Biscuit individuel | C17: =BASEOld!D17 -> Gaufrette chocolat 20g | D17: =BASEOld!H17 -> 320 | E17: =BASEOld!I17 -> CT | F17: =BASEOld!K17 -> 0.11 | G17: =BASEOld!L17 -> 0 | J17: 0 | K17: 0
A18: =BASEOld!B18 -> Goûter | B18: =BASEOld!C18 -> Biscuit individuel | C18: =BASEOld!D18 -> Gaufrette vanille 20g | D18: =BASEOld!H18 -> 320 | E18: =BASEOld!I18 -> CT | F18: =BASEOld!K18 -> 0.11 | G18: =BASEOld!L18 -> 0 | J18: 0 | K18: 0
A19: =BASEOld!B19 -> Goûter | B19: =BASEOld!C19 -> Biscuit individuel | C19: =BASEOld!D19 -> Goûter fourré choco x 2 x 37g | D19: =BASEOld!H19 -> 144 | E19: =BASEOld!I19 -> CT | F19: =BASEOld!K19 -> 0.18 | G19: =BASEOld!L19 -> 0 | J19: 0 | K19: 0
A20: =BASEOld!B20 -> Goûter | B20: =BASEOld!C20 -> Biscuit individuel | C20: =BASEOld!D20 -> Lingot fondant orange 20g | D20: =BASEOld!H20 -> 150 | E20: =BASEOld!I20 -> CT | F20: =BASEOld!K20 -> 0.25 | G20: =BASEOld!L20 -> 0 | J20: 0 | K20: 0
A21: =BASEOld!B21 -> Goûter | B21: =BASEOld!C21 -> Biscuit individuel | C21: =BASEOld!D21 -> Madeleine carrée fourrée abricot 40g | D21: =BASEOld!H21 -> 50 | E21: =BASEOld!I21 -> CT | F21: =BASEOld!K21 -> 0.18 | G21: =BASEOld!L21 -> 0 | J21: 0 | K21: 0
A22: =BASEOld!B22 -> Goûter | B22: =BASEOld!C22 -> Biscuit individuel | C22: =BASEOld!D22 -> Madeleine carrée fourrée chocolat 40g | D22: =BASEOld!H22 -> 50 | E22: =BASEOld!I22 -> CT | F22: =BASEOld!K22 -> 0.18 | G22: =BASEOld!L22 -> 0 | J22: 0 | K22: 0
A23: =BASEOld!B23 -> Goûter | B23: =BASEOld!C23 -> Biscuit individuel | C23: =BASEOld!D23 -> Madeleine carrée fourrée fraise 40g | D23: =BASEOld!H23 -> 50 | E23: =BASEOld!I23 -> CT | F23: =BASEOld!K23 -> 0.18 | G23: =BASEOld!L23 -> 0 | J23: 0 | K23: 0
A24: =BASEOld!B24 -> Goûter | B24: =BASEOld!C24 -> Biscuit individuel | C24: =BASEOld!D24 -> Madeleine carrée fourrée fruits des bois 40g | D24: =BASEOld!H24 -> 50 | E24: =BASEOld!I24 -> CT | F24: =BASEOld!K24 -> 0.18 | G24: =BASEOld!L24 -> 0 | J24: 0 | K24: 0
A25: =BASEOld!B25 -> Goûter | B25: =BASEOld!C25 -> Biscuit individuel | C25: =BASEOld!D25 -> Madeleine carrée nature 30g | D25: =BASEOld!H25 -> 56 | E25: =BASEOld!I25 -> CT | F25: =BASEOld!K25 -> 0.22 | G25: =BASEOld!L25 -> 0 | J25: 0 | K25: 0
A26: =BASEOld!B26 -> Goûter | B26: =BASEOld!C26 -> Biscuit individuel | C26: =BASEOld!D26 -> Madeleine coquille aux œufs 25g | D26: =BASEOld!H26 -> 120 | E26: =BASEOld!I26 -> CT | F26: =BASEOld!K26 -> 0.07 | G26: =BASEOld!L26 -> 0 | J26: 0 | K26: 0
A27: =BASEOld!B27 -> Goûter | B27: =BASEOld!C27 -> Biscuit individuel | C27: =BASEOld!D27 -> Madeleine nappée chocolat 20g | D27: =BASEOld!H27 -> 120 | E27: =BASEOld!I27 -> CT | F27: =BASEOld!K27 -> 0.18 | G27: =BASEOld!L27 -> 0 | J27: 0 | K27: 0
A28: =BASEOld!B28 -> Goûter | B28: =BASEOld!C28 -> Biscuit individuel | C28: =BASEOld!D28 -> Mini cake fourré crème de lait 30g | D28: =BASEOld!H28 -> 120 | E28: =BASEOld!I28 -> CT | F28: =BASEOld!K28 -> 0.14 | G28: =BASEOld!L28 -> 0 | J28: 0 | K28: 0
A29: =BASEOld!B29 -> Goûter | B29: =BASEOld!C29 -> Biscuit individuel | C29: =BASEOld!D29 -> Mini génoise abricot 25g | D29: =BASEOld!H29 -> 120 | E29: =BASEOld!I29 -> CT | F29: =BASEOld!K29 -> 0.17 | G29: =BASEOld!L29 -> 0 | J29: 0 | K29: 0
A30: =BASEOld!B30 -> Goûter | B30: =BASEOld!C30 -> Biscuit individuel | C30: =BASEOld!D30 -> Mini génoise chocolat 25g | D30: =BASEOld!H30 -> 120 | E30: =BASEOld!I30 -> CT | F30: =BASEOld!K30 -> 0.17 | G30: =BASEOld!L30 -> 0 | J30: 0 | K30: 0
A31: =BASEOld!B31 -> Goûter | B31: =BASEOld!C31 -> Biscuit individuel | C31: =BASEOld!D31 -> Mini génoise fraise 25g | D31: =BASEOld!H31 -> 120 | E31: =BASEOld!I31 -> CT | F31: =BASEOld!K31 -> 0.17 | G31: =BASEOld!L31 -> 0 | J31: 0 | K31: 0
A32: =BASEOld!B32 -> Goûter | B32: =BASEOld!C32 -> Biscuit individuel | C32: =BASEOld!D32 -> Mini génoise nappée chocolat / fourrée chocolat 35g | D32: =BASEOld!H32 -> 120 | E32: =BASEOld!I32 -> CT | F32: =BASEOld!K32 -> 0.2 | G32: =BASEOld!L32 -> 0 | J32: 0 | K32: 0
A33: =BASEOld!B33 -> Goûter | B33: =BASEOld!C33 -> Biscuit individuel | C33: =BASEOld!D33 -> Mini génoise tiramisu 25g | D33: =BASEOld!H33 -> 120 | E33: =BASEOld!I33 -> CT | F33: =BASEOld!K33 -> 0.17 | G33: =BASEOld!L33 -> 0 | J33: 0 | K33: 0
A34: =BASEOld!B34 -> Goûter | B34: =BASEOld!C34 -> Biscuit individuel | C34: =BASEOld!D34 -> Mini marbré chocolat 30g | D34: =BASEOld!H34 -> 120 | E34: =BASEOld!I34 -> CT | F34: =BASEOld!K34 -> 0.14 | G34: =BASEOld!L34 -> 0 | J34: 0 | K34: 0
A35: =BASEOld!B35 -> Goûter | B35: =BASEOld!C35 -> Biscuit individuel | C35: =BASEOld!D35 -> Mini moelleux fourré abricot 30g | D35: =BASEOld!H35 -> 120 | E35: =BASEOld!I35 -> CT | F35: =BASEOld!K35 -> 0.12 | G35: =BASEOld!L35 -> 0 | J35: 0 | K35: 0
A36: =BASEOld!B36 -> Goûter | B36: =BASEOld!C36 -> Biscuit individuel | C36: =BASEOld!D36 -> Mini moelleux fourré cacao 30g | D36: =BASEOld!H36 -> 130 | E36: =BASEOld!I36 -> CT | F36: =BASEOld!K36 -> 0.12 | G36: =BASEOld!L36 -> 0 | J36: 0 | K36: 0
A37: =BASEOld!B37 -> Goûter | B37: =BASEOld!C37 -> Biscuit individuel | C37: =BASEOld!D37 -> Mini moelleux fourré cacao-noisette 30g | D37: =BASEOld!H37 -> 120 | E37: =BASEOld!I37 -> CT | F37: =BASEOld!K37 -> 0.12 | G37: =BASEOld!L37 -> 0 | J37: 0 | K37: 0
A38: =BASEOld!B38 -> Goûter | B38: =BASEOld!C38 -> Biscuit individuel | C38: =BASEOld!D38 -> Mini moelleux fourré citron 30g | D38: =BASEOld!H38 -> 100 | E38: =BASEOld!I38 -> CT | F38: =BASEOld!K38 -> 0.12 | G38: =BASEOld!L38 -> 0 | J38: 0 | K38: 0
A39: =BASEOld!B39 -> Goûter | B39: =BASEOld!C39 -> Biscuit individuel | C39: =BASEOld!D39 -> Mini moelleux fourré fraise 30g | D39: =BASEOld!H39 -> 120 | E39: =BASEOld!I39 -> CT | F39: =BASEOld!K39 -> 0.1 | G39: =BASEOld!L39 -> 0 | J39: 0 | K39: 0
A40: =BASEOld!B40 -> Goûter | B40: =BASEOld!C40 -> Biscuit individuel | C40: =BASEOld!D40 -> Mini moelleux fourré fruits rouges 30g | D40: =BASEOld!H40 -> 100 | E40: =BASEOld!I40 -> CT | F40: =BASEOld!K40 -> 0.12 | G40: =BASEOld!L40 -> 0 | J40: 0 | K40: 0
A41: =BASEOld!B41 -> Goûter | B41: =BASEOld!C41 -> Biscuit individuel | C41: =BASEOld!D41 -> Moelleux amande 40g | D41: =BASEOld!H41 -> 100 | E41: =BASEOld!I41 -> CT | F41: =BASEOld!K41 -> 0.21 | G41: =BASEOld!L41 -> 0 | J41: 0 | K41: 0
A42: =BASEOld!B42 -> Goûter | B42: =BASEOld!C42 -> Biscuit individuel | C42: =BASEOld!D42 -> Moelleux chocolat 40g | D42: =BASEOld!H42 -> 100 | E42: =BASEOld!I42 -> CT | F42: =BASEOld!K42 -> 0.2 | G42: =BASEOld!L42 -> 0 | J42: 0 | K42: 0
A43: =BASEOld!B43 -> Goûter | B43: =BASEOld!C43 -> Biscuit individuel | C43: =BASEOld!D43 -> Moelleux citron 40g | D43: =BASEOld!H43 -> 100 | E43: =BASEOld!I43 -> CT | F43: =BASEOld!K43 -> 0.19 | G43: =BASEOld!L43 -> 0 | J43: 0 | K43: 0
A44: =BASEOld!B44 -> Goûter | B44: =BASEOld!C44 -> Biscuit individuel | C44: =BASEOld!D44 -> Moelleux framboise 40g | D44: =BASEOld!H44 -> 100 | E44: =BASEOld!I44 -> CT | F44: =BASEOld!K44 -> 0.22 | G44: =BASEOld!L44 -> 0 | J44: 0 | K44: 0
A45: =BASEOld!B45 -> Goûter | B45: =BASEOld!C45 -> Biscuit individuel | C45: =BASEOld!D45 -> Moelleux marbré 40g | D45: =BASEOld!H45 -> 100 | E45: =BASEOld!I45 -> CT | F45: =BASEOld!K45 -> 0.2 | G45: =BASEOld!L45 -> 0 | H45: 1 | J45: 20 | K45: 0
A46: =BASEOld!B46 -> Goûter | B46: =BASEOld!C46 -> Biscuit individuel | C46: =BASEOld!D46 -> Rocher coco nappé chocolat 40g | D46: =BASEOld!H46 -> 100 | E46: =BASEOld!I46 -> CT | F46: =BASEOld!K46 -> 0.29 | G46: =BASEOld!L46 -> 0 | J46: 0 | K46: 0
A47: =BASEOld!B47 -> Goûter | B47: =BASEOld!C47 -> Biscuit individuel | C47: =BASEOld!D47 -> Rocher coco nature 35g | D47: =BASEOld!H47 -> 100 | E47: =BASEOld!I47 -> CT | F47: =BASEOld!K47 -> 0.15 | G47: =BASEOld!L47 -> 0 | J47: 0 | K47: 0
A48: =BASEOld!B48 -> Goûter | B48: =BASEOld!C48 -> Biscuit individuel | C48: =BASEOld!D48 -> Tranche marbrée cacao 50g | D48: =BASEOld!H48 -> 48 | E48: =BASEOld!I48 -> CT | F48: =BASEOld!K48 -> 0.26 | G48: =BASEOld!L48 -> 0 | J48: 0 | K48: 0
A49: =BASEOld!B49 -> Goûter | B49: =BASEOld!C49 -> Biscuit individuel | C49: =BASEOld!D49 -> Tranche nature citron 50g | D49: =BASEOld!H49 -> 48 | E49: =BASEOld!I49 -> CT | F49: =BASEOld!K49 -> 0.26 | G49: =BASEOld!L49 -> 0 | J49: 0 | K49: 0
A50: =BASEOld!B50 -> Goûter | B50: =BASEOld!C50 -> Divers | C50: =BASEOld!D50 -> Framboise en bille surgelée 1Kg | D50: =BASEOld!H50 -> 5 | E50: =BASEOld!I50 -> CT | F50: =BASEOld!K50 -> 4.65 | G50: =BASEOld!L50 -> 0 | J50: 0 | K50: 0
A51: =BASEOld!B51 -> Goûter | B51: =BASEOld!C51 -> Divers | C51: =BASEOld!D51 -> Framboises entières surgelées Williamette 1Kg | D51: =BASEOld!H51 -> 1 | E51: =BASEOld!I51 -> SHT | F51: =BASEOld!K51 -> 3.56 | G51: =BASEOld!L51 -> 0 | J51: 0 | K51: 0
A52: =BASEOld!B52 -> Goûter | B52: =BASEOld!C52 -> Divers | C52: =BASEOld!D52 -> Griottes dénoyautées surgelées 1Kg | D52: =BASEOld!H52 -> 1 | E52: =BASEOld!I52 -> SHT | F52: =BASEOld!K52 -> 3.71 | G52: =BASEOld!L52 -> 0 | J52: 0 | K52: 0
A53: =BASEOld!B53 -> Goûter | B53: =BASEOld!C53 -> Divers | C53: =BASEOld!D53 -> Melon en bille surgelé 1Kg | D53: =BASEOld!H53 -> 1 | E53: =BASEOld!I53 -> SHT | F53: =BASEOld!K53 -> 4.24 | G53: =BASEOld!L53 -> 0 | J53: 0 | K53: 0
A54: =BASEOld!B54 -> Goûter | B54: =BASEOld!C54 -> Divers | C54: =BASEOld!D54 -> Mûre cultivée surgelée 1Kg | D54: =BASEOld!H54 -> 1 | E54: =BASEOld!I54 -> SHT | F54: =BASEOld!K54 -> 5.16 | G54: =BASEOld!L54 -> 0 | J54: 0 | K54: 0
A55: =BASEOld!B55 -> Goûter | B55: =BASEOld!C55 -> Divers | C55: =BASEOld!D55 -> Salade de fruits exotiques surgelée 1Kg | D55: =BASEOld!H55 -> 1 | E55: =BASEOld!I55 -> SHT | F55: =BASEOld!K55 -> 3.1 | G55: =BASEOld!L55 -> 0 | J55: 0 | K55: 0
A56: =BASEOld!B56 -> Goûter | B56: =BASEOld!C56 -> Gâteau à partager | C56: =BASEOld!D56 -> Bavarois cappuccino 700g | D56: =BASEOld!H56 -> 2 | E56: =BASEOld!I56 -> PCE | F56: =BASEOld!K56 -> 5.12 | G56: =BASEOld!L56 -> 0 | J56: 0 | K56: 0
A57: =BASEOld!B57 -> Goûter | B57: =BASEOld!C57 -> Gâteau à partager | C57: =BASEOld!D57 -> Bavarois parfum abricot 700 g | D57: =BASEOld!H57 -> 2 | E57: =BASEOld!I57 -> PCE | F57: =BASEOld!K57 -> 5.12 | G57: =BASEOld!L57 -> 0 | J57: 0 | K57: 0
A58: =BASEOld!B58 -> Goûter | B58: =BASEOld!C58 -> Gâteau à partager | C58: =BASEOld!D58 -> Bavarois parfum chocolat 700 g | D58: =BASEOld!H58 -> 2 | E58: =BASEOld!I58 -> PCE | F58: =BASEOld!K58 -> 5.19 | G58: =BASEOld!L58 -> 0 | J58: 0 | K58: 0
A59: =BASEOld!B59 -> Goûter | B59: =BASEOld!C59 -> Gâteau à partager | C59: =BASEOld!D59 -> Bavarois parfum framboise 700g | D59: =BASEOld!H59 -> 2 | E59: =BASEOld!I59 -> PCE | F59: =BASEOld!K59 -> 5.37 | G59: =BASEOld!L59 -> 0 | J59: 0 | K59: 0
A60: =BASEOld!B60 -> Goûter | B60: =BASEOld!C60 -> Gâteau à partager | C60: =BASEOld!D60 -> Bavarois parfum fruits rouges 700 g | D60: =BASEOld!H60 -> 2 | E60: =BASEOld!I60 -> PCE | F60: =BASEOld!K60 -> 5.12 | G60: =BASEOld!L60 -> 0 | J60: 0 | K60: 0
A61: =BASEOld!B61 -> Goûter | B61: =BASEOld!C61 -> Gâteau à partager | C61: =BASEOld!D61 -> Bavarois parfum poire 700g | D61: =BASEOld!H61 -> 2 | E61: =BASEOld!I61 -> PCE | F61: =BASEOld!K61 -> 5.25 | G61: =BASEOld!L61 -> 0 | J61: 0 | K61: 0
A62: =BASEOld!B62 -> Goûter | B62: =BASEOld!C62 -> Gâteau à partager | C62: =BASEOld!D62 -> Boléro chocolat marrons en bande 550g | D62: =BASEOld!H62 -> 4 | E62: =BASEOld!I62 -> PCE | F62: =BASEOld!K62 -> 4.05 | G62: =BASEOld!L62 -> 0 | J62: 0 | K62: 0
A63: =BASEOld!B63 -> Goûter | B63: =BASEOld!C63 -> Gâteau à partager | C63: =BASEOld!D63 -> Carré bavarois cacao 45g x 60 (demi-cadre) | D63: =BASEOld!H63 -> 60 | E63: =BASEOld!I63 -> CT | F63: =BASEOld!K63 -> 0.31 | G63: =BASEOld!L63 -> 0 | J63: 0 | K63: 0
A64: =BASEOld!B64 -> Goûter | B64: =BASEOld!C64 -> Gâteau à partager | C64: =BASEOld!D64 -> Carré bavarois fruits rouges 45g x 60 (demi-cadre) | D64: =BASEOld!H64 -> 60 | E64: =BASEOld!I64 -> CT | F64: =BASEOld!K64 -> 0.31 | G64: =BASEOld!L64 -> 0 | J64: 0 | K64: 0
A65: =BASEOld!B65 -> Goûter | B65: =BASEOld!C65 -> Gâteau à partager | C65: =BASEOld!D65 -> Charlotte aux fruits rouges en bande 800g | D65: =BASEOld!H65 -> 2 | E65: =BASEOld!I65 -> PCE | F65: =BASEOld!K65 -> 7.18 | G65: =BASEOld!L65 -> 0 | J65: 0 | K65: 0
A66: =BASEOld!B66 -> Goûter | B66: =BASEOld!C66 -> Gâteau à partager | C66: =BASEOld!D66 -> Charlotte aux poires en bande 850g | D66: =BASEOld!H66 -> 2 | E66: =BASEOld!I66 -> PCE | F66: =BASEOld!K66 -> 9.08 | G66: =BASEOld!L66 -> 0 | J66: 0 | K66: 0
A67: =BASEOld!B67 -> Goûter | B67: =BASEOld!C67 -> Gâteau à partager | C67: =BASEOld!D67 -> Clafoutis à la cerise en bande 550g | D67: =BASEOld!H67 -> 4 | E67: =BASEOld!I67 -> PCE | F67: =BASEOld!K67 -> 3.11 | G67: =BASEOld!L67 -> 0 | J67: 0 | K67: 0
A68: =BASEOld!B68 -> Goûter | B68: =BASEOld!C68 -> Gâteau à partager | C68: =BASEOld!D68 -> Clafoutis aux griottes 1Kg | D68: =BASEOld!H68 -> 1 | E68: =BASEOld!I68 -> PCE | F68: =BASEOld!K68 -> 5.78 | G68: =BASEOld!L68 -> 0 | J68: 0 | K68: 0
A69: =BASEOld!B69 -> Goûter | B69: =BASEOld!C69 -> Gâteau à partager | C69: =BASEOld!D69 -> Craquant crème brulée-fruits rouges en bande 750g | D69: =BASEOld!H69 -> 2 | E69: =BASEOld!I69 -> PCE | F69: =BASEOld!K69 -> 11.22 | G69: =BASEOld!L69 -> 0 | J69: 0 | K69: 0
A70: =BASEOld!B70 -> Goûter | B70: =BASEOld!C70 -> Gâteau à partager | C70: =BASEOld!D70 -> Forêt noire aux griottes 1,4kg | D70: =BASEOld!H70 -> 2 | E70: =BASEOld!I70 -> PCE | F70: =BASEOld!K70 -> 8.12 | G70: =BASEOld!L70 -> 0 | J70: 0 | K70: 0
A71: =BASEOld!B71 -> Goûter | B71: =BASEOld!C71 -> Gâteau à partager | C71: =BASEOld!D71 -> Forêt noire sans sucre ajouté 57g | D71: =BASEOld!H71 -> 28 | E71: =BASEOld!I71 -> PCE | F71: =BASEOld!K71 -> 0.57 | G71: =BASEOld!L71 -> 0 | J71: =H71*D71*F71 -> 0 | K71: =I71*F71*D71 -> 0
A72: =BASEOld!B72 -> Goûter | B72: =BASEOld!C72 -> Gâteau à partager | C72: =BASEOld!D72 -> Framboisier en bande 550g | D72: =BASEOld!H72 -> 2 | E72: =BASEOld!I72 -> CT | F72: =BASEOld!K72 -> 7.56 | G72: =BASEOld!L72 -> 0 | J72: 0 | K72: 0
A73: =BASEOld!B73 -> Goûter | B73: =BASEOld!C73 -> Gâteau à partager | C73: =BASEOld!D73 -> Gâteau aux 3 chocolats 1Kg | D73: =BASEOld!H73 -> 1 | E73: =BASEOld!I73 -> PCE | F73: =BASEOld!K73 -> 13.01 | G73: =BASEOld!L73 -> 0 | J73: 0 | K73: 0
A74: =BASEOld!B74 -> Goûter | B74: =BASEOld!C74 -> Gâteau à partager | C74: =BASEOld!D74 -> Gâteau Basque 1kg | D74: =BASEOld!H74 -> 4 | E74: =BASEOld!I74 -> PCE | F74: =BASEOld!K74 -> 3.73 | G74: =BASEOld!L74 -> 0 | J74: 0 | K74: 0
A75: =BASEOld!B75 -> Goûter | B75: =BASEOld!C75 -> Individuel | C75: =BASEOld!D75 -> Millefeuille 65g x 36 | D75: =BASEOld!H75 -> 3 | E75: =BASEOld!I75 -> CT | F75: =BASEOld!K75 -> 13.64 | G75: =BASEOld!L75 -> 0 | J75: 0 | K75: 0
A76: =BASEOld!B76 -> Goûter | B76: =BASEOld!C76 -> Gâteau à partager | C76: =BASEOld!D76 -> Omelette norvégienne 2L | D76: =BASEOld!H76 -> 6 | E76: =BASEOld!I76 -> CT | F76: =BASEOld!K76 -> 7.86 | G76: =BASEOld!L76 -> 0 | J76: 0 | K76: 0
A77: =BASEOld!B77 -> Goûter | B77: =BASEOld!C77 -> Gâteau à partager | C77: =BASEOld!D77 -> Opéra en bande 750g | D77: =BASEOld!H77 -> 2 | E77: =BASEOld!I77 -> PCE | F77: =BASEOld!K77 -> 9.81 | G77: =BASEOld!L77 -> 0 | J77: 0 | K77: 0
A78: =BASEOld!B78 -> Goûter | B78: =BASEOld!C78 -> Gâteau à partager | C78: =BASEOld!D78 -> Privilège poire chocolat en bande 750g | D78: =BASEOld!H78 -> 2 | E78: =BASEOld!I78 -> PCE | F78: =BASEOld!K78 -> 8.1 | G78: =BASEOld!L78 -> 0 | J78: 0 | K78: 0
A79: =BASEOld!B79 -> Goûter | B79: =BASEOld!C79 -> Gâteau à partager | C79: =BASEOld!D79 -> Royal chocolat en bande 650g | D79: =BASEOld!H79 -> 3 | E79: =BASEOld!I79 -> PCE | F79: =BASEOld!K79 -> 7.92 | G79: =BASEOld!L79 -> 0 | J79: 0 | K79: 0
A80: =BASEOld!B80 -> Goûter | B80: =BASEOld!C80 -> Gâteau à partager | C80: =BASEOld!D80 -> Tarte à la noix de coco 1,15Kg | D80: =BASEOld!H80 -> 2 | E80: =BASEOld!I80 -> CT | F80: =BASEOld!K80 -> 5.86 | G80: =BASEOld!L80 -> 0 | J80: 0 | K80: 0
A81: =BASEOld!B81 -> Goûter | B81: =BASEOld!C81 -> Gâteau à partager | C81: =BASEOld!D81 -> Tarte au chocolat entière 900g | D81: =BASEOld!H81 -> 2 | E81: =BASEOld!I81 -> CT | F81: =BASEOld!K81 -> 5.48 | G81: =BASEOld!L81 -> 0 | J81: 0 | K81: 0
A82: =BASEOld!B82 -> Goûter | B82: =BASEOld!C82 -> Gâteau à partager | C82: =BASEOld!D82 -> Tarte au chocolat prédécoupée en 10 700g | D82: =BASEOld!H82 -> 8 | E82: =BASEOld!I82 -> CT | F82: =BASEOld!K82 -> 3.3 | G82: =BASEOld!L82 -> 0 | J82: 0 | K82: 0
A83: =BASEOld!B83 -> Goûter | B83: =BASEOld!C83 -> Gâteau à partager | C83: =BASEOld!D83 -> Tarte au citron 1,15kg | D83: =BASEOld!H83 -> 2 | E83: =BASEOld!I83 -> PCE | F83: =BASEOld!K83 -> 5.81 | G83: =BASEOld!L83 -> 0 | J83: 0 | K83: 0
A84: =BASEOld!B84 -> Goûter | B84: =BASEOld!C84 -> Gâteau à partager | C84: =BASEOld!D84 -> Tarte au citron meringuée 1kg | D84: =BASEOld!H84 -> 2 | E84: =BASEOld!I84 -> PCE | F84: =BASEOld!K84 -> 5.06 | G84: =BASEOld!L84 -> 0 | J84: 0 | K84: 0
A85: =BASEOld!B85 -> Goûter | B85: =BASEOld!C85 -> Gâteau à partager | C85: =BASEOld!D85 -> Tarte au citron prédrécoupée en 10 parts 700g | D85: =BASEOld!H85 -> 8 | E85: =BASEOld!I85 -> CT | F85: =BASEOld!K85 -> 3.27 | G85: =BASEOld!L85 -> 0 | J85: 0 | K85: 0
A86: =BASEOld!B86 -> Goûter | B86: =BASEOld!C86 -> Gâteau à partager | C86: =BASEOld!D86 -> Tarte au flan 1Kg | D86: =BASEOld!H86 -> 4 | E86: =BASEOld!I86 -> CT | F86: =BASEOld!K86 -> 3.51 | G86: =BASEOld!L86 -> 0 | J86: 0 | K86: 0
A87: =BASEOld!B87 -> Goûter | B87: =BASEOld!C87 -> Gâteau à partager | C87: =BASEOld!D87 -> Tarte au flan prédécoupée en 10 parts 750g | D87: =BASEOld!H87 -> 1 | E87: =BASEOld!I87 -> PCE | F87: =BASEOld!K87 -> 3.03 | G87: =BASEOld!L87 -> 0 | J87: 0 | K87: 0
A88: =BASEOld!B88 -> Goûter | B88: =BASEOld!C88 -> Gâteau à partager | C88: =BASEOld!D88 -> Tarte aux abricots 1,3kg | D88: =BASEOld!H88 -> 1 | E88: =BASEOld!I88 -> PCE | F88: =BASEOld!K88 -> 13.09 | G88: =BASEOld!L88 -> 0 | J88: 0 | K88: 0
A89: =BASEOld!B89 -> Goûter | B89: =BASEOld!C89 -> Gâteau à partager | C89: =BASEOld!D89 -> Tarte aux abricots 1,3Kg | D89: =BASEOld!H89 -> 1 | E89: =BASEOld!I89 -> PCE | F89: =BASEOld!K89 -> 12.61 | G89: =BASEOld!L89 -> 0 | J89: 0 | K89: 0
A90: =BASEOld!B90 -> Goûter | B90: =BASEOld!C90 -> Gâteau à partager | C90: =BASEOld!D90 -> Tarte aux abricots croisillon prédécoupée en 12 parts 900g | D90: =BASEOld!H90 -> 6 | E90: =BASEOld!I90 -> CT | F90: =BASEOld!K90 -> 3.19 | G90: =BASEOld!L90 -> 0 | J90: 0 | K90: 0
A91: =BASEOld!B91 -> Goûter | B91: =BASEOld!C91 -> Gâteau à partager | C91: =BASEOld!D91 -> Tarte aux fraises 800g | D91: =BASEOld!H91 -> 1 | E91: =BASEOld!I91 -> PCE | F91: =BASEOld!K91 -> 8.29 | G91: =BASEOld!L91 -> 0 | J91: 0 | K91: 0
A92: =BASEOld!B92 -> Goûter | B92: =BASEOld!C92 -> Gâteau à partager | C92: =BASEOld!D92 -> Tarte aux fraises prédécoupée en 8 900g | D92: =BASEOld!H92 -> 1 | E92: =BASEOld!I92 -> PCE | F92: =BASEOld!K92 -> 6.72 | G92: =BASEOld!L92 -> 0 | J92: 0 | K92: 0
A93: =BASEOld!B93 -> Goûter | B93: =BASEOld!C93 -> Gâteau à partager | C93: =BASEOld!D93 -> Tarte aux framboises 1,4kg | D93: =BASEOld!H93 -> 1 | E93: =BASEOld!I93 -> PCE | F93: =BASEOld!K93 -> 13.86 | G93: =BASEOld!L93 -> 0 | J93: 0 | K93: 0
A94: =BASEOld!B94 -> Goûter | B94: =BASEOld!C94 -> Gâteau à partager | C94: =BASEOld!D94 -> Tarte aux framboises 880g | D94: =BASEOld!H94 -> 1 | E94: =BASEOld!I94 -> PCE | F94: =BASEOld!K94 -> 7.13 | G94: =BASEOld!L94 -> 0 | J94: 0 | K94: 0
A95: =BASEOld!B95 -> Goûter | B95: =BASEOld!C95 -> Gâteau à partager | C95: =BASEOld!D95 -> Tarte aux framboises meringuée 1,15kg | D95: =BASEOld!H95 -> 2 | E95: =BASEOld!I95 -> CT | F95: =BASEOld!K95 -> 7.26 | G95: =BASEOld!L95 -> 0 | J95: 0 | K95: 0
A96: =BASEOld!B96 -> Goûter | B96: =BASEOld!C96 -> Gâteau à partager | C96: =BASEOld!D96 -> Tarte aux myrtilles 900g | D96: =BASEOld!H96 -> 2 | E96: =BASEOld!I96 -> CT | F96: =BASEOld!K96 -> 7.01 | G96: =BASEOld!L96 -> 0 | J96: 0 | K96: 0
A97: =BASEOld!B97 -> Goûter | B97: =BASEOld!C97 -> Gâteau à partager | C97: =BASEOld!D97 -> Tarte aux poires 900g | D97: =BASEOld!H97 -> 1 | E97: =BASEOld!I97 -> PCE | F97: =BASEOld!K97 -> 6.78 | G97: =BASEOld!L97 -> 0 | J97: 0 | K97: 0
A98: =BASEOld!B98 -> Goûter | B98: =BASEOld!C98 -> Gâteau à partager | C98: =BASEOld!D98 -> Tarte aux poires Bourdaloue 1,1kg | D98: =BASEOld!H98 -> 2 | E98: =BASEOld!I98 -> CT | F98: =BASEOld!K98 -> 8.31 | G98: =BASEOld!L98 -> 0 | J98: 0 | K98: 0
A99: =BASEOld!B99 -> Goûter | B99: =BASEOld!C99 -> Gâteau à partager | C99: =BASEOld!D99 -> Tarte aux poires prédécoupée en 10 parts 750g | D99: =BASEOld!H99 -> 1 | E99: =BASEOld!I99 -> PCE | F99: =BASEOld!K99 -> 4.8 | G99: =BASEOld!L99 -> 0 | J99: 0 | K99: 0
A100: =BASEOld!B100 -> Goûter | B100: =BASEOld!C100 -> Gâteau à partager | C100: =BASEOld!D100 -> Tarte aux pommes croissillon prédécoupée en 12 parts 900g | D100: =BASEOld!H100 -> 1 | E100: =BASEOld!I100 -> PCE | F100: =BASEOld!K100 -> 3.07 | G100: =BASEOld!L100 -> 0 | J100: 0 | K100: 0
A101: =BASEOld!B101 -> Goûter | B101: =BASEOld!C101 -> Gâteau à partager | C101: =BASEOld!D101 -> Tarte aux pommes crumble 1,15Kg | D101: =BASEOld!H101 -> 2 | E101: =BASEOld!I101 -> CT | F101: =BASEOld!K101 -> 6.58 | G101: =BASEOld!L101 -> 0 | J101: 0 | K101: 0
A102: =BASEOld!B102 -> Goûter | B102: =BASEOld!C102 -> Gâteau à partager | C102: =BASEOld!D102 -> Tarte aux pommes et noix 1,1Kg | D102: =BASEOld!H102 -> 2 | E102: =BASEOld!I102 -> CT | F102: =BASEOld!K102 -> 6.1 | G102: =BASEOld!L102 -> 0 | J102: 0 | K102: 0
A103: =BASEOld!B103 -> Goûter | B103: =BASEOld!C103 -> Gâteau à partager | C103: =BASEOld!D103 -> Tarte aux pommes Normande 800g | D103: =BASEOld!H103 -> 2 | E103: =BASEOld!I103 -> CT | F103: =BASEOld!K103 -> 4.02 | G103: =BASEOld!L103 -> 0 | J103: 0 | K103: 0
A104: =BASEOld!B104 -> Goûter | B104: =BASEOld!C104 -> Gâteau à partager | C104: =BASEOld!D104 -> Tarte aux pommes Normande 950g | D104: =BASEOld!H104 -> 1 | E104: =BASEOld!I104 -> PCE | F104: =BASEOld!K104 -> 3.86 | G104: =BASEOld!L104 -> 0 | J104: 0 | K104: 0
A105: =BASEOld!B105 -> Goûter | B105: =BASEOld!C105 -> Gâteau à partager | C105: =BASEOld!D105 -> Tarte aux pommes Normande prédécoupée en 10 parts 700g | D105: =BASEOld!H105 -> 6 | E105: =BASEOld!I105 -> CT | F105: =BASEOld!K105 -> 3.05 | G105: =BASEOld!L105 -> 0 | J105: 0 | K105: 0
A106: =BASEOld!B106 -> Goûter | B106: =BASEOld!C106 -> Gâteau à partager | C106: =BASEOld!D106 -> Tarte aux pommes prédécoupée en 10 parts 750g | D106: =BASEOld!H106 -> 1 | E106: =BASEOld!I106 -> PCE | F106: =BASEOld!K106 -> 3.18 | G106: =BASEOld!L106 -> 0 | J106: 0 | K106: 0
A107: =BASEOld!B107 -> Goûter | B107: =BASEOld!C107 -> Gâteau à partager | C107: =BASEOld!D107 -> Tarte rosace aux fruits entiers, questches, abricots, framboises | D107: =BASEOld!H107 -> 1 | E107: =BASEOld!I107 -> PCE | F107: =BASEOld!K107 -> 6.35 | G107: =BASEOld!L107 -> 0 | J107: 0 | K107: 0
A108: =BASEOld!B108 -> Goûter | B108: =BASEOld!C108 -> Gâteau à partager | C108: =BASEOld!D108 -> Tarte tropézienne 650g | D108: =BASEOld!H108 -> 6 | E108: =BASEOld!I108 -> CT | F108: =BASEOld!K108 -> 4.51 | G108: =BASEOld!L108 -> 0 | J108: 0 | K108: 0
A109: =BASEOld!B109 -> Goûter | B109: =BASEOld!C109 -> Gâteau à partager | C109: =BASEOld!D109 -> Tiramisu en bande 900g | D109: =BASEOld!H109 -> 2 | E109: =BASEOld!I109 -> CT | F109: =BASEOld!K109 -> 7.59 | G109: =BASEOld!L109 -> 0 | J109: 0 | K109: 0
A110: =BASEOld!B110 -> Goûter | B110: =BASEOld!C110 -> Gâteau à partager | C110: =BASEOld!D110 -> Tiramisu en bande 900g | D110: =BASEOld!H110 -> 2 | E110: =BASEOld!I110 -> PCE | F110: =BASEOld!K110 -> 6.96 | G110: =BASEOld!L110 -> 0 | J110: 0 | K110: 0
A111: =BASEOld!B111 -> Goûter | B111: =BASEOld!C111 -> Gâteau à partager | C111: =BASEOld!D111 -> Vacherin vanille/framboise glacé 2L | D111: =BASEOld!H111 -> 2 | E111: =BASEOld!I111 -> PCE | F111: =BASEOld!K111 -> 7.11 | G111: =BASEOld!L111 -> 0 | J111: 0 | K111: 0
A112: =BASEOld!B112 -> Goûter | B112: =BASEOld!C112 -> Individuel | C112: =BASEOld!D112 -> Beignet abricot 75g | D112: =BASEOld!H112 -> 60 | E112: =BASEOld!I112 -> CT | F112: =BASEOld!K112 -> 0.31 | G112: =BASEOld!L112 -> 0 | J112: 0 | K112: 0
A113: =BASEOld!B113 -> Goûter | B113: =BASEOld!C113 -> Individuel | C113: =BASEOld!D113 -> Beignet chocolat-noisette 75g | D113: =BASEOld!H113 -> 60 | E113: =BASEOld!I113 -> PCE | F113: =BASEOld!K113 -> 0.3 | G113: =BASEOld!L113 -> 0 | J113: 0 | K113: 0
A114: =BASEOld!B114 -> Goûter | B114: =BASEOld!C114 -> Individuel | C114: =BASEOld!D114 -> Beignet framboise 75g | D114: =BASEOld!H114 -> 60 | E114: =BASEOld!I114 -> PCE | F114: =BASEOld!K114 -> 0.31 | G114: =BASEOld!L114 -> 0 | J114: 0 | K114: 0
A115: =BASEOld!B115 -> Goûter | B115: =BASEOld!C115 -> Individuel | C115: =BASEOld!D115 -> Beignet nature 55g | D115: =BASEOld!H115 -> 60 | E115: =BASEOld!I115 -> CT | F115: =BASEOld!K115 -> 0.25 | G115: =BASEOld!L115 -> 0 | J115: 0 | K115: 0
A116: =BASEOld!B116 -> Goûter | B116: =BASEOld!C116 -> Individuel | C116: =BASEOld!D116 -> Beignet pommes 75g | D116: =BASEOld!H116 -> 60 | E116: =BASEOld!I116 -> CT | F116: =BASEOld!K116 -> 0.26 | G116: =BASEOld!L116 -> 0 | J116: 0 | K116: 0
A117: =BASEOld!B117 -> Goûter | B117: =BASEOld!C117 -> Individuel | C117: =BASEOld!D117 -> Brioche perdue 100g (peut être coupée en 2) | D117: =BASEOld!H117 -> 28 | E117: =BASEOld!I117 -> PCE | F117: =BASEOld!K117 -> 0.95 | G117: =BASEOld!L117 -> 0 | J117: 0 | K117: 0
A118: =BASEOld!B118 -> Goûter | B118: =BASEOld!C118 -> Individuel | C118: =BASEOld!D118 -> Briochette à tête pur beurre cuite 45g | D118: =BASEOld!H118 -> 45 | E118: =BASEOld!I118 -> CT | F118: =BASEOld!K118 -> 0.35 | G118: =BASEOld!L118 -> 0 | J118: 0 | K118: 0
A119: =BASEOld!B119 -> Goûter | B119: =BASEOld!C119 -> Individuel | C119: =BASEOld!D119 -> Crèpes au chocolat 40g | D119: =BASEOld!H119 -> 40 | E119: =BASEOld!I119 -> PCE | F119: =BASEOld!K119 -> 0.25 | G119: =BASEOld!L119 -> 0 | J119: 0 | K119: 0
A120: =BASEOld!B120 -> Goûter | B120: =BASEOld!C120 -> Individuel | C120: =BASEOld!D120 -> Crèpes nature 50g | D120: =BASEOld!H120 -> 40 | E120: =BASEOld!I120 -> PCE | F120: =BASEOld!K120 -> 0.26 | G120: =BASEOld!L120 -> 0 | J120: 0 | K120: 0
A121: =BASEOld!B121 -> Goûter | B121: =BASEOld!C121 -> Individuel | C121: =BASEOld!D121 -> Donuts chocolat 55g | D121: =BASEOld!H121 -> 36 | E121: =BASEOld!I121 -> CT | F121: =BASEOld!K121 -> 0.3 | G121: =BASEOld!L121 -> 0 | J121: 0 | K121: 0
A122: =BASEOld!B122 -> Goûter | B122: =BASEOld!C122 -> Individuel | C122: =BASEOld!D122 -> Donuts nature sucré 49g | D122: =BASEOld!H122 -> 72 | E122: =BASEOld!I122 -> CT | F122: =BASEOld!K122 -> 0.24 | G122: =BASEOld!L122 -> 0 | J122: 0 | K122: 0
A123: =BASEOld!B123 -> Goûter | B123: =BASEOld!C123 -> Individuel | C123: =BASEOld!D123 -> Gaufre de Bruxelles 70g (peut être coupée en 2) | D123: =BASEOld!H123 -> 27 | E123: =BASEOld!I123 -> PCE | F123: =BASEOld!K123 -> 0.32 | G123: =BASEOld!L123 -> 0 | J123: 0 | K123: 0
A124: =BASEOld!B124 -> goûter | B124: =BASEOld!C124 -> Sans sucre | C124: =BASEOld!D124 -> Cake cacao sans sucre 30g | D124: =BASEOld!H124 -> 60 | E124: =BASEOld!I124 -> CT | F124: =BASEOld!K124 -> 0.24 | G124: =BASEOld!L124 -> 0 | J124: 0 | K124: 0
A125: =BASEOld!B125 -> goûter | B125: =BASEOld!C125 -> Sans sucre | C125: =BASEOld!D125 -> Cake citron sans sucre 30g | D125: =BASEOld!H125 -> 60 | E125: =BASEOld!I125 -> CT | F125: =BASEOld!K125 -> 0.24 | G125: =BASEOld!L125 -> 0 | J125: 0 | K125: 0
A126: =BASEOld!B126 -> goûter | B126: =BASEOld!C126 -> Sans sucre | C126: =BASEOld!D126 -> Cake framboise sans sucre 30g | D126: =BASEOld!H126 -> 60 | E126: =BASEOld!I126 -> CT | F126: =BASEOld!K126 -> 0.24 | G126: =BASEOld!L126 -> 0 | J126: 0 | K126: 0
A127: =BASEOld!B127 -> Goûter | B127: =BASEOld!C127 -> Sans sucre | C127: =BASEOld!D127 -> Couronne sans sucre 40g | D127: =BASEOld!H127 -> 36 | E127: =BASEOld!I127 -> CT | F127: =BASEOld!K127 -> 0.32 | G127: =BASEOld!L127 -> 0 | J127: 0 | K127: 0
A128: =BASEOld!B128 -> Goûter | B128: =BASEOld!C128 -> Sans sucre | C128: =BASEOld!D128 -> Gaufrette cacao sans sucre 20g | D128: =BASEOld!H128 -> 320 | E128: =BASEOld!I128 -> CT | F128: =BASEOld!K128 -> 0.13 | G128: =BASEOld!L128 -> 0 | J128: 0 | K128: 0
A129: =BASEOld!B129 -> Goûter | B129: =BASEOld!C129 -> Sans sucre | C129: =BASEOld!D129 -> Gaufrette citron sans sucre / sans sel 11g | D129: =BASEOld!H129 -> 100 | E129: =BASEOld!I129 -> CT | F129: =BASEOld!K129 -> 0.26 | G129: =BASEOld!L129 -> 0 | J129: 0 | K129: 0
A130: =BASEOld!B130 -> Goûter | B130: =BASEOld!C130 -> Sans sucre | C130: =BASEOld!D130 -> Gaufrette vanille sans sucre 20g | D130: =BASEOld!H130 -> 320 | E130: =BASEOld!I130 -> CT | F130: =BASEOld!K130 -> 0.13 | G130: =BASEOld!L130 -> 0 | J130: 0 | K130: 0
A131: =BASEOld!B131 -> Goûter | B131: =BASEOld!C131 -> Sans sucre | C131: =BASEOld!D131 -> Lingot amande sans sucre 25g | D131: =BASEOld!H131 -> 80 | E131: =BASEOld!I131 -> CT | F131: =BASEOld!K131 -> 0.32 | G131: =BASEOld!L131 -> 0 | J131: 0 | K131: 0
A132: =BASEOld!B132 -> Goûter | B132: =BASEOld!C132 -> Sans sucre | C132: =BASEOld!D132 -> Madeleine nature sans sucre 25g | D132: =BASEOld!H132 -> 100 | E132: =BASEOld!I132 -> CT | F132: =BASEOld!K132 -> 0.19 | G132: =BASEOld!L132 -> 0 | J132: 0 | K132: 0
A133: =BASEOld!B133 -> goûter | B133: =BASEOld!C133 -> Sans sucre | C133: =BASEOld!D133 -> Moelleux cacao sans sucre 40g | D133: =BASEOld!H133 -> 100 | E133: =BASEOld!I133 -> CT | F133: =BASEOld!K133 -> 0.28 | G133: =BASEOld!L133 -> 0 | J133: 0 | K133: 0
A134: =BASEOld!B134 -> goûter | B134: =BASEOld!C134 -> Sans sucre | C134: =BASEOld!D134 -> Moelleux citron sans sucre 40g | D134: =BASEOld!H134 -> 100 | E134: =BASEOld!I134 -> CT | F134: =BASEOld!K134 -> 0.27 | G134: =BASEOld!L134 -> 0 | J134: 0 | K134: 0
A135: =BASEOld!B135 -> goûter | B135: =BASEOld!C135 -> Sans sucre | C135: =BASEOld!D135 -> Moelleux framboise sans sucre 40g | D135: =BASEOld!H135 -> 100 | E135: =BASEOld!I135 -> CT | F135: =BASEOld!K135 -> 0.29 | G135: =BASEOld!L135 -> 0 | J135: =H135*D135*F135 -> 0 | K135: =I135*F135*D135 -> 0
A136: =BASEOld!B136 -> Goûter | B136: =BASEOld!C136 -> Sans sucre | C136: =BASEOld!D136 -> Palmiers sans sucre x2 17g | D136: =BASEOld!H136 -> 120 | E136: =BASEOld!I136 -> CT | F136: =BASEOld!K136 -> 0.16 | G136: =BASEOld!L136 -> 0 | J136: 0 | K136: 0
A137: =BASEOld!B137 -> Goûter | B137: =BASEOld!C137 -> Sans sucre | C137: =BASEOld!D137 -> Tranche nature 50g | D137: =BASEOld!H137 -> 36 | E137: =BASEOld!I137 -> CT | F137: =BASEOld!K137 -> 0.32 | G137: =BASEOld!L137 -> 0 | J137: 0 | K137: 0
A138: =BASEOld!B138 -> Goûter | B138: =BASEOld!C138 -> Viennoiserie | C138: =BASEOld!D138 -> Mini croissant au beurre prêt à cuire 25g | D138: =BASEOld!H138 -> 160 | E138: =BASEOld!I138 -> CT | F138: =BASEOld!K138 -> 0.09 | G138: =BASEOld!L138 -> 0 | J138: 0 | K138: 0
A139: =BASEOld!B139 -> Goûter | B139: =BASEOld!C139 -> Viennoiserie | C139: =BASEOld!D139 -> Mini pain au chocolat au beurre prêt à cuire 25g | D139: =BASEOld!H139 -> 160 | E139: =BASEOld!I139 -> CT | F139: =BASEOld!K139 -> 0.1 | G139: =BASEOld!L139 -> 0 | J139: 0 | K139: 0
A140: =BASEOld!B140 -> Goûter | B140: =BASEOld!C140 -> Viennoiserie | C140: =BASEOld!D140 -> Mini pain aux raisins prêt à cuire 35g | D140: =BASEOld!H140 -> 150 | E140: =BASEOld!I140 -> CT | F140: =BASEOld!K140 -> 0.13 | G140: =BASEOld!L140 -> 0 | J140: 0 | K140: 0
A141: =BASEOld!B141 -> Goûter | B141: =BASEOld!C141 -> 0 | C141: =BASEOld!D141 -> Goûter sec brioché 25 tranches (spécial mixé) 350g | D141: =BASEOld!H141 -> 24 | E141: =BASEOld!I141 -> CT | F141: =BASEOld!K141 -> 0.8 | G141: =BASEOld!L141 -> 0 | J141: 0 | K141: 0
A142: =BASEOld!B142 -> Goûter / PDJ | B142: =BASEOld!C142 -> Individuel | C142: =BASEOld!D142 -> Pain au chocolat 75g prêt à cuire | D142: =BASEOld!H142 -> 70 | E142: =BASEOld!I142 -> CT | F142: =BASEOld!K142 -> 0.25 | G142: =BASEOld!L142 -> 0 | J142: 0 | K142: 0
A143: =BASEOld!B143 -> Goûter / PDJ | B143: =BASEOld!C143 -> Individuel | C143: =BASEOld!D143 -> Pain chocolat cuit 45g | D143: =BASEOld!H143 -> 50 | E143: =BASEOld!I143 -> CT | F143: =BASEOld!K143 -> 0.6 | G143: =BASEOld!L143 -> 0 | J143: 0 | K143: 0
A144: =BASEOld!B144 -> Goûter / PDJ | B144: =BASEOld!C144 -> Viennoiserie | C144: =BASEOld!D144 -> Croissant au beurre 60g prêt à cuire | D144: =BASEOld!H144 -> 84 | E144: =BASEOld!I144 -> CT | F144: =BASEOld!K144 -> 0.2 | G144: =BASEOld!L144 -> 0 | J144: 0 | K144: 0
A145: =BASEOld!B145 -> Goûter / PDJ | B145: =BASEOld!C145 -> Viennoiserie | C145: =BASEOld!D145 -> Croissant cuit surgelé 40g x 10 | D145: =BASEOld!H145 -> 1 | E145: =BASEOld!I145 -> SHT | F145: =BASEOld!K145 -> 2.78 | G145: =BASEOld!L145 -> 0 | J145: 0 | K145: 0
A146: =BASEOld!B146 -> PDJ | B146: =BASEOld!C146 -> Confiture | C146: =BASEOld!D146 -> Confiture abricot pot 1kg | D146: =BASEOld!H146 -> 6 | E146: =BASEOld!I146 -> CT | F146: =BASEOld!K146 -> 1.71 | G146: =BASEOld!L146 -> 0 | J146: 0 | K146: 0
A147: =BASEOld!B147 -> PDJ | B147: =BASEOld!C147 -> Confiture | C147: =BASEOld!D147 -> Confiture fraise pot 1Kg | D147: =BASEOld!H147 -> 6 | E147: =BASEOld!I147 -> CT | F147: =BASEOld!K147 -> 2.17 | G147: =BASEOld!L147 -> 0 | J147: 0 | K147: 0
A148: =BASEOld!B148 -> PDJ | B148: =BASEOld!C148 -> Confiture | C148: =BASEOld!D148 -> Confiture myrtille pot 1kg | D148: =BASEOld!H148 -> 6 | E148: =BASEOld!I148 -> CT | F148: =BASEOld!K148 -> 5.61 | G148: =BASEOld!L148 -> 0 | J148: 0 | K148: 0
A149: =BASEOld!B149 -> PDJ | B149: =BASEOld!C149 -> Confiture | C149: =BASEOld!D149 -> Confitures assorties en coupelle 5 parfums 30g | D149: =BASEOld!H149 -> 120 | E149: =BASEOld!I149 -> CT | F149: =BASEOld!K149 -> 0.06 | G149: =BASEOld!L149 -> 0 | J149: 0 | K149: 0
A150: =BASEOld!B150 -> PDJ | B150: =BASEOld!C150 -> Confiture | C150: =BASEOld!D150 -> Gelée de groseille pot 450g | D150: =BASEOld!H150 -> 1 | E150: =BASEOld!I150 -> POT | F150: =BASEOld!K150 -> 1.07 | G150: =BASEOld!L150 -> 0 | J150: 0 | K150: 0
A151: =BASEOld!B151 -> PDJ | B151: =BASEOld!C151 -> Confiture | C151: =BASEOld!D151 -> Marmelade orange pot 1Kg | D151: =BASEOld!H151 -> 6 | E151: =BASEOld!I151 -> LOT | F151: =BASEOld!K151 -> 2.18 | G151: =BASEOld!L151 -> 0 | J151: 0 | K151: 0
A152: =BASEOld!B152 -> PDJ | B152: =BASEOld!C152 -> Divers | C152: =BASEOld!D152 -> Beurre micro pain 10g x 100 | D152: =BASEOld!H152 -> 1 | E152: =BASEOld!I152 -> KG | F152: =BASEOld!K152 -> 5.61 | G152: =BASEOld!L152 -> 0 | J152: 0 | K152: 0
A153: =BASEOld!B153 -> PDJ | B153: =BASEOld!C153 -> Divers | C153: =BASEOld!D153 -> Beurre tablette 250 gr | D153: =BASEOld!H153 -> 1 | E153: =BASEOld!I153 -> PCE | F153: =BASEOld!K153 -> 1.28 | G153: =BASEOld!L153 -> 0 | J153: 0 | K153: 0
A154: =BASEOld!B154 -> PDJ | B154: =BASEOld!C154 -> Divers | C154: =BASEOld!D154 -> Beurre tendre tartinable 40% MG 1Kg | D154: =BASEOld!H154 -> 1 | E154: =BASEOld!I154 -> KG | F154: =BASEOld!K154 -> 5.41 | G154: =BASEOld!L154 -> 0 | J154: 0 | K154: 0
A155: =BASEOld!B155 -> 0 | B155: =BASEOld!C155 -> 0 | C155: =BASEOld!D155 -> Agitateurs 113mm | D155: =BASEOld!H155 -> 1 | E155: =BASEOld!I155 -> SHT | F155: =BASEOld!K155 -> 2.95 | G155: =BASEOld!L155 -> 0 | J155: 0 | K155: 0
A156: =BASEOld!B156 -> 0 | B156: =BASEOld!C156 -> 0 | C156: =BASEOld!D156 -> Anthésite anis Ss sucre 13Cl | D156: =BASEOld!H156 -> 1 | E156: =BASEOld!I156 -> FLC | F156: =BASEOld!K156 -> 6 | G156: =BASEOld!L156 -> 0 | J156: 0 | K156: 0
A157: =BASEOld!B157 -> 0 | B157: =BASEOld!C157 -> 0 | C157: =BASEOld!D157 -> Arlequin de fruits 5/1 | D157: =BASEOld!H157 -> 1 | E157: =BASEOld!I157 -> BTE | F157: =BASEOld!K157 -> 5.36 | G157: =BASEOld!L157 -> 0 | J157: 0 | K157: 0
A158: =BASEOld!B158 -> 0 | B158: =BASEOld!C158 -> 0 | C158: =BASEOld!D158 -> Assiette à dessertx100 | D158: =BASEOld!H158 -> 1 | E158: =BASEOld!I158 -> st | F158: =BASEOld!K158 -> 3.43 | G158: =BASEOld!L158 -> 0 | J158: 0 | K158: 0
A159: =BASEOld!B159 -> 0 | B159: =BASEOld!C159 -> 0 | C159: =BASEOld!D159 -> Barquette charcutiere 125cc x500 | D159: =BASEOld!H159 -> 1 | E159: =BASEOld!I159 -> SHT | F159: =BASEOld!K159 -> 4.22 | G159: =BASEOld!L159 -> 0 | J159: 0 | K159: 0
A160: =BASEOld!B160 -> 0 | B160: =BASEOld!C160 -> 0 | C160: =BASEOld!D160 -> Barquette choco 120g | D160: =BASEOld!H160 -> 4 | E160: =BASEOld!I160 -> LOT | F160: =BASEOld!K160 -> 1.54 | G160: =BASEOld!L160 -> 0 | J160: 0 | K160: 0
A161: =BASEOld!B161 -> 0 | B161: =BASEOld!C161 -> 0 | C161: =BASEOld!D161 -> Barquette fraise 120g | D161: =BASEOld!H161 -> 4 | E161: =BASEOld!I161 -> LOT | F161: =BASEOld!K161 -> 1.54 | G161: =BASEOld!L161 -> 0 | J161: 0 | K161: 0
A162: =BASEOld!B162 -> 0 | B162: =BASEOld!C162 -> 0 | C162: =BASEOld!D162 -> Barre pâtissiere | D162: =BASEOld!H162 -> 1 | E162: =BASEOld!I162 -> PCE | F162: =BASEOld!K162 -> 1.49 | G162: =BASEOld!L162 -> 0 | J162: 0 | K162: 0
A163: =BASEOld!B163 -> 0 | B163: =BASEOld!C163 -> 0 | C163: =BASEOld!D163 -> Bière Kronembourg boite 33cl | D163: =BASEOld!H163 -> 24 | E163: =BASEOld!I163 -> CT | F163: =BASEOld!K163 -> 0.7 | G163: =BASEOld!L163 -> 0 | J163: 0 | K163: 0
A164: =BASEOld!B164 -> 0 | B164: =BASEOld!C164 -> 0 | C164: =BASEOld!D164 -> Biscotte 2 tranches | D164: =BASEOld!H164 -> 208 | E164: =BASEOld!I164 -> CT | F164: =BASEOld!K164 -> 0.05 | G164: =BASEOld!L164 -> 0 | J164: 0 | K164: 0
A165: =BASEOld!B165 -> 0 | B165: =BASEOld!C165 -> 0 | C165: =BASEOld!D165 -> Biscotte 2T x208 sans sel | D165: =BASEOld!H165 -> 1 | E165: =BASEOld!I165 -> CT | F165: =BASEOld!K165 -> 9.46 | G165: =BASEOld!L165 -> 0 | J165: 0 | K165: 0
A166: =BASEOld!B166 -> 0 | B166: =BASEOld!C166 -> 0 | C166: =BASEOld!D166 -> Biscotte paquet 72 tranches 580g | D166: =BASEOld!H166 -> 12 | E166: =BASEOld!I166 -> CT | F166: =BASEOld!K166 -> 1.19 | G166: =BASEOld!L166 -> 0 | J166: 0 | K166: 0
A167: =BASEOld!B167 -> 0 | B167: =BASEOld!C167 -> 0 | C167: =BASEOld!D167 -> Biscuits apéritif Belin boîte 720g | D167: =BASEOld!H167 -> 1 | E167: =BASEOld!I167 -> BTE | F167: =BASEOld!K167 -> 5.55 | G167: =BASEOld!L167 -> 0 | J167: 0 | K167: 0
A168: =BASEOld!B168 -> 0 | B168: =BASEOld!C168 -> 0 | C168: =BASEOld!D168 -> Blédine biscuitée paquet 500g | D168: =BASEOld!H168 -> 1 | E168: =BASEOld!I168 -> PQ | F168: =BASEOld!K168 -> 3.33 | G168: =BASEOld!L168 -> 0 | J168: 0 | K168: 0
A169: =BASEOld!B169 -> 0 | B169: =BASEOld!C169 -> 0 | C169: =BASEOld!D169 -> Blédine céréales-vanille paquet 500g | D169: =BASEOld!H169 -> 1 | E169: =BASEOld!I169 -> PQ | F169: =BASEOld!K169 -> 3.33 | G169: =BASEOld!L169 -> 0 | J169: 0 | K169: 0
A170: =BASEOld!B170 -> 0 | B170: =BASEOld!C170 -> 0 | C170: =BASEOld!D170 -> Blédine chocolat paquet 500g | D170: =BASEOld!H170 -> 1 | E170: =BASEOld!I170 -> PQ | F170: =BASEOld!K170 -> 3.33 | G170: =BASEOld!L170 -> 0 | J170: 0 | K170: 0
A171: =BASEOld!B171 -> 0 | B171: =BASEOld!C171 -> 0 | C171: =BASEOld!D171 -> Boudoirs 400g | D171: =BASEOld!H171 -> 1 | E171: =BASEOld!I171 -> PCE | F171: =BASEOld!K171 -> 1.62 | G171: =BASEOld!L171 -> 0 | J171: 0 | K171: 0
A172: =BASEOld!B172 -> 0 | B172: =BASEOld!C172 -> 0 | C172: =BASEOld!D172 -> Boudoirs ration 190 x 2 2,2Kg | D172: =BASEOld!H172 -> 1 | E172: =BASEOld!I172 -> CT | F172: =BASEOld!K172 -> 11.43 | G172: =BASEOld!L172 -> 0 | J172: 0 | K172: 0
A173: =BASEOld!B173 -> 0 | B173: =BASEOld!C173 -> 0 | C173: =BASEOld!D173 -> Brioche tranchée 500g | D173: =BASEOld!H173 -> 7 | E173: =BASEOld!I173 -> CT | F173: =BASEOld!K173 -> 1.79 | G173: =BASEOld!L173 -> 0 | J173: 0 | K173: 0
A174: =BASEOld!B174 -> 0 | B174: =BASEOld!C174 -> 0 | C174: =BASEOld!D174 -> Café moulu 100%A 250g x 12 | D174: =BASEOld!H174 -> 12 | E174: =BASEOld!I174 -> LOT | F174: =BASEOld!K174 -> 1.26 | G174: =BASEOld!L174 -> 0 | J174: 0 | K174: 0
A175: =BASEOld!B175 -> 0 | B175: =BASEOld!C175 -> 0 | C175: =BASEOld!D175 -> Café sol (60kf 40chic) dse L15g x 100 | D175: =BASEOld!H175 -> 1 | E175: =BASEOld!I175 -> CT | F175: =BASEOld!K175 -> 23.29 | G175: =BASEOld!L175 -> 0 | J175: 0 | K175: 0
A176: =BASEOld!B176 -> 0 | B176: =BASEOld!C176 -> 0 | C176: =BASEOld!D176 -> Café soluble Nescafé dose 2g | D176: =BASEOld!H176 -> 300 | E176: =BASEOld!I176 -> CT | F176: =BASEOld!K176 -> 0.11 | G176: =BASEOld!L176 -> 0 | J176: 0 | K176: 0
A177: =BASEOld!B177 -> 0 | B177: =BASEOld!C177 -> 0 | C177: =BASEOld!D177 -> Café soluble Nescafé dose 2g décaféiné | D177: =BASEOld!H177 -> 300 | E177: =BASEOld!I177 -> CT | F177: =BASEOld!K177 -> 0.13 | G177: =BASEOld!L177 -> 0 | J177: 0 | K177: 0
A178: =BASEOld!B178 -> 0 | B178: =BASEOld!C178 -> 0 | C178: =BASEOld!D178 -> Café soluble Nescoré (60%café/40%chicorée) poche 500g | D178: =BASEOld!H178 -> 12 | E178: =BASEOld!I178 -> CT | F178: =BASEOld!K178 -> 8.76 | G178: =BASEOld!L178 -> 0 | J178: 0 | K178: 0
A179: =BASEOld!B179 -> 0 | B179: =BASEOld!C179 -> 0 | C179: =BASEOld!D179 -> Café soluble Sagy (60% café/40% chicorée) poche 500g | D179: =BASEOld!H179 -> 10 | E179: =BASEOld!I179 -> CT | F179: =BASEOld!K179 -> 5.89 | G179: =BASEOld!L179 -> 0 | J179: 0 | K179: 0
A180: =BASEOld!B180 -> 0 | B180: =BASEOld!C180 -> 0 | C180: =BASEOld!D180 -> Café soluble Sagy dose 2g | D180: =BASEOld!H180 -> 300 | E180: =BASEOld!I180 -> CT | F180: =BASEOld!K180 -> 0.06 | G180: =BASEOld!L180 -> 0 | J180: 0 | K180: 0
A181: =BASEOld!B181 -> 0 | B181: =BASEOld!C181 -> 0 | C181: =BASEOld!D181 -> Carré fourré amandes 40g | D181: =BASEOld!H181 -> 100 | E181: =BASEOld!I181 -> CT | F181: =BASEOld!K181 -> 0.21 | G181: =BASEOld!L181 -> 0 | J181: 0 | K181: 0
A182: =BASEOld!B182 -> 0 | B182: =BASEOld!C182 -> 0 | C182: =BASEOld!D182 -> Charlotte clip TU x 100 | D182: =BASEOld!H182 -> 1 | E182: =BASEOld!I182 -> PQ | F182: =BASEOld!K182 -> 2.75 | G182: =BASEOld!L182 -> 0 | J182: 0 | K182: 0
A183: =BASEOld!B183 -> 0 | B183: =BASEOld!C183 -> 0 | C183: =BASEOld!D183 -> Chips paquet 500g | D183: =BASEOld!H183 -> 1 | E183: =BASEOld!I183 -> Pce | F183: =BASEOld!K183 -> 1.62 | G183: =BASEOld!L183 -> 0 | J183: 0 | K183: 0
A184: =BASEOld!B184 -> 0 | B184: =BASEOld!C184 -> 0 | C184: =BASEOld!D184 -> Chocolat au lait tablette 100g | D184: =BASEOld!H184 -> 5 | E184: =BASEOld!I184 -> LOT | F184: =BASEOld!K184 -> 0.41 | G184: =BASEOld!L184 -> 0 | J184: 0 | K184: 0
A185: =BASEOld!B185 -> 0 | B185: =BASEOld!C185 -> 0 | C185: =BASEOld!D185 -> Chocolat en poudre dose 20g | D185: =BASEOld!H185 -> 200 | E185: =BASEOld!I185 -> ct | F185: =BASEOld!K185 -> 0.07 | G185: =BASEOld!L185 -> 0 | J185: 0 | K185: 0
A186: =BASEOld!B186 -> 0 | B186: =BASEOld!C186 -> 0 | C186: =BASEOld!D186 -> Chocolat petit déjeuner paquet 1Kg | D186: =BASEOld!H186 -> 1 | E186: =BASEOld!I186 -> BTE | F186: =BASEOld!K186 -> 2.79 | G186: =BASEOld!L186 -> 0 | J186: 0 | K186: 0
A187: =BASEOld!B187 -> 0 | B187: =BASEOld!C187 -> 0 | C187: =BASEOld!D187 -> Cidre bouché brut 75Cl | D187: =BASEOld!H187 -> 6 | E187: =BASEOld!I187 -> CT | F187: =BASEOld!K187 -> 1.27 | G187: =BASEOld!L187 -> 0 | J187: 0 | K187: 0
A188: =BASEOld!B188 -> 0 | B188: =BASEOld!C188 -> 0 | C188: =BASEOld!D188 -> Cidre bouché doux 75Cl | D188: =BASEOld!H188 -> 6 | E188: =BASEOld!I188 -> CT | F188: =BASEOld!K188 -> 1.27 | G188: =BASEOld!L188 -> 0 | J188: 0 | K188: 0
A189: =BASEOld!B189 -> 0 | B189: =BASEOld!C189 -> 0 | C189: =BASEOld!D189 -> Cigarettes croustillantes 1Kg | D189: =BASEOld!H189 -> 1 | E189: =BASEOld!I189 -> BTE | F189: =BASEOld!K189 -> 10.25 | G189: =BASEOld!L189 -> 0 | J189: 0 | K189: 0
A190: =BASEOld!B190 -> 0 | B190: =BASEOld!C190 -> 0 | C190: =BASEOld!D190 -> Citron | D190: =BASEOld!H190 -> 1 | E190: =BASEOld!I190 -> KG | F190: =BASEOld!K190 -> 1.54 | G190: =BASEOld!L190 -> 0 | J190: 0 | K190: 0
A191: =BASEOld!B191 -> 0 | B191: =BASEOld!C191 -> 0 | C191: =BASEOld!D191 -> Coca cola 1,5L | D191: =BASEOld!H191 -> 12 | E191: =BASEOld!I191 -> CT | F191: =BASEOld!K191 -> 1.67 | G191: =BASEOld!L191 -> 0 | J191: 0 | K191: 0
A192: =BASEOld!B192 -> 0 | B192: =BASEOld!C192 -> 0 | C192: =BASEOld!D192 -> Coca cola zéro ou light 1,5L | D192: =BASEOld!H192 -> 12 | E192: =BASEOld!I192 -> CT | F192: =BASEOld!K192 -> 1.54 | G192: =BASEOld!L192 -> 0 | J192: 0 | K192: 0
A193: =BASEOld!B193 -> 0 | B193: =BASEOld!C193 -> 0 | C193: =BASEOld!D193 -> Cocktail de fruits sans sucre 90g | D193: =BASEOld!H193 -> 120 | E193: =BASEOld!I193 -> CT | F193: =BASEOld!K193 -> 0.28 | G193: =BASEOld!L193 -> 0 | J193: 0 | K193: 0
A194: =BASEOld!B194 -> 0 | B194: =BASEOld!C194 -> 0 | C194: =BASEOld!D194 -> Compote de pomme 100g | D194: =BASEOld!H194 -> 120 | E194: =BASEOld!I194 -> CT | F194: =BASEOld!K194 -> 0.12 | G194: =BASEOld!L194 -> 0 | J194: 0 | K194: 0
A195: =BASEOld!B195 -> 0 | B195: =BASEOld!C195 -> 0 | C195: =BASEOld!D195 -> Compote pomme/abricot 100g | D195: =BASEOld!H195 -> 120 | E195: =BASEOld!I195 -> CT | F195: =BASEOld!K195 -> 0.21 | G195: =BASEOld!L195 -> 0 | J195: 0 | K195: 0
A196: =BASEOld!B196 -> 0 | B196: =BASEOld!C196 -> 0 | C196: =BASEOld!D196 -> Compote pomme/banane 100g | D196: =BASEOld!H196 -> 120 | E196: =BASEOld!I196 -> CT | F196: =BASEOld!K196 -> 0.21 | G196: =BASEOld!L196 -> 0 | J196: 0 | K196: 0
A197: =BASEOld!B197 -> 0 | B197: =BASEOld!C197 -> 0 | C197: =BASEOld!D197 -> Compote pomme/cassis 100g | D197: =BASEOld!H197 -> 120 | E197: =BASEOld!I197 -> CT | F197: =BASEOld!K197 -> 0.17 | G197: =BASEOld!L197 -> 0 | J197: 0 | K197: 0
A198: =BASEOld!B198 -> 0 | B198: =BASEOld!C198 -> 0 | C198: =BASEOld!D198 -> Cornichons pot 72cl | D198: =BASEOld!H198 -> 6 | E198: =BASEOld!I198 -> CT | F198: =BASEOld!K198 -> 2.15 | G198: =BASEOld!L198 -> 0 | J198: 0 | K198: 0
A199: =BASEOld!B199 -> 0 | B199: =BASEOld!C199 -> 0 | C199: =BASEOld!D199 -> Crème anglaise 1L | D199: =BASEOld!H199 -> 1 | E199: =BASEOld!I199 -> PCE | F199: =BASEOld!K199 -> 1.76 | G199: =BASEOld!L199 -> 0 | J199: =H199*D199*F199 -> 0 | K199: =I199*F199*D199 -> 0
A200: =BASEOld!B200 -> 0 | B200: =BASEOld!C200 -> 0 | C200: =BASEOld!D200 -> Crème de cassis 16° 70Cl | D200: =BASEOld!H200 -> 1 | E200: =BASEOld!I200 -> BLLE | F200: =BASEOld!K200 -> 6.24 | G200: =BASEOld!L200 -> 0 | J200: 0 | K200: 0
A201: =BASEOld!B201 -> 0 | B201: =BASEOld!C201 -> 0 | C201: =BASEOld!D201 -> Crème pâtissière à froid 2,5Kg | D201: =BASEOld!H201 -> 4 | E201: =BASEOld!I201 -> CT | F201: =BASEOld!K201 -> 6.88 | G201: =BASEOld!L201 -> 0 | J201: 0 | K201: 0
... 300 more rows

Sheet La Marguerite
A1: =MID(CELL("filename",A1),FIND("]",CELL("filename",A1))+1,32) -> La Marguerite | C1: Livraison du | D1: =BASEOld!J1 -> 2015-02-18 | F1: au | G1: =D1+6 -> 2015-02-24
D2: Date de dépôt | G2: =TODAY() -> 2015-02-24 | N2: Produits plus spécifiques à noter vous-même selon vos besoins
A3: Bon de commande Produits annexes
A5: FR | B5: FAMILLE | C5: Intitulés produits | D5: CDT | E5: U/F | F5: Prix HT € | G5: TVA | H5: Qté com | I5: Qté liv | J5: M. T. HT € prévisionnel | K5: M. T. HT € facturé
A6: =BASEOld!B6 -> Divers | B6: =BASEOld!C6 -> 0 | C6: =BASEOld!D6 -> Emmental rapé 1 KG | D6: =BASEOld!H6 -> 1 | E6: =BASEOld!I6 -> SHT | F6: =BASEOld!K6 -> 5.39 | G6: =BASEOld!L6 -> 0 | J6: =H6*D6*F6 -> 0 | K6: =I6*F6*D6 -> 0
A7: =BASEOld!B7 -> Divers | B7: =BASEOld!C7 -> 0 | C7: =BASEOld!D7 -> Jambon de Paris 10 tranches 400g | D7: =BASEOld!H7 -> 1 | E7: =BASEOld!I7 -> PQT | F7: =BASEOld!K7 -> 2.94 | G7: =BASEOld!L7 -> 0 | J7: =H7*D7*F7 -> 0 | K7: =I7*F7*D7 -> 0 | N7: Prévisionnel sur commande | Q7: Réel sur livraison
A8: =BASEOld!B8 -> Divers | B8: =BASEOld!C8 -> 0 | C8: =BASEOld!D8 -> Jambon de Paris 20 tranches 800g | D8: =BASEOld!H8 -> 1 | E8: =BASEOld!I8 -> PQT | F8: =BASEOld!K8 -> 4.05 | G8: =BASEOld!L8 -> 0 | J8: 0 | K8: 0 | N8: TOTAL H.T TVA 5,5% | O8: =SUMIF(G6:G501,N12,J6:J501) -> 0 | Q8: TOTAL H.T TVA 5,5% | R8: =SUMIF(I6:I501,N12,K6:K501) -> 0
A9: =BASEOld!B9 -> Divers | B9: =BASEOld!C9 -> 0 | C9: =BASEOld!D9 -> Jambon de Paris hyposodé 10 tranches 450g | D9: =BASEOld!H9 -> 1 | E9: =BASEOld!I9 -> PQT | F9: =BASEOld!K9 -> 3.5 | G9: =BASEOld!L9 -> 0 | J9: 0 | K9: 0 | N9: TOTAL H.T TVA 20% | O9: =SUMIF(G6:G501,N13,J6:J501) -> 0 | Q9: TOTAL H.T TVA 20% | R9: =SUMIF(I6:I501,N13,K6:K501) -> 0
A10: =BASEOld!B10 -> Goûter | B10: =BASEOld!C10 -> Biscuit à partager | C10: =BASEOld!D10 -> Cake marbré 400g (moule alu) | D10: =BASEOld!H10 -> 6 | E10: =BASEOld!I10 -> LOT | F10: =BASEOld!K10 -> 1.65 | G10: =BASEOld!L10 -> 0 | J10: 0 | K10: 0 | N10: TOTAL H.T TVA 20% non alimentaire | O10: =SUMIF(G6:G501,N14,J6:J501) -> 0 | Q10: TOTAL H.T TVA 20% non alimentaire | R10: =SUMIF(I6:I501,N14,K6:K501) -> 0
A11: =BASEOld!B11 -> Goûter | B11: =BASEOld!C11 -> Biscuit à partager | C11: =BASEOld!D11 -> Cake parfum chocolat 400g (moule alu) | D11: =BASEOld!H11 -> 6 | E11: =BASEOld!I11 -> LOT | F11: =BASEOld!K11 -> 1.65 | G11: =BASEOld!L11 -> 0 | J11: 0 | K11: 0
A12: =BASEOld!B12 -> Goûter | B12: =BASEOld!C12 -> Biscuit à partager | C12: =BASEOld!D12 -> Cake parfum kiwi 400g (moule alu) | D12: =BASEOld!H12 -> 6 | E12: =BASEOld!I12 -> LOT | F12: =BASEOld!K12 -> 1.65 | G12: =BASEOld!L12 -> 0 | J12: 0 | K12: 0 | N12: 0.055
A13: =BASEOld!B13 -> Goûter | B13: =BASEOld!C13 -> Biscuit à partager | C13: =BASEOld!D13 -> Roulade chocolat 300g | D13: =BASEOld!H13 -> 7 | E13: =BASEOld!I13 -> CT | F13: =BASEOld!K13 -> 1.65 | G13: =BASEOld!L13 -> 0 | J13: 0 | K13: 0 | N13: 0.2
A14: =BASEOld!B14 -> Goûter | B14: =BASEOld!C14 -> Biscuit à partager | C14: =BASEOld!D14 -> Roulade fraise 300g | D14: =BASEOld!H14 -> 7 | E14: =BASEOld!I14 -> CT | F14: =BASEOld!K14 -> 1.65 | G14: =BASEOld!L14 -> 0 | J14: 0 | K14: 0 | N14: 20% NA
A15: =BASEOld!B15 -> Goûter | B15: =BASEOld!C15 -> Biscuit à partager | C15: =BASEOld!D15 -> Roulade myrtille 300g | D15: =BASEOld!H15 -> 7 | E15: =BASEOld!I15 -> CT | F15: =BASEOld!K15 -> 1.65 | G15: =BASEOld!L15 -> 0 | J15: 0 | K15: 0
A16: =BASEOld!B16 -> Goûter | B16: =BASEOld!C16 -> Biscuit individuel | C16: =BASEOld!D16 -> Financier aux amandes 20g | D16: =BASEOld!H16 -> 150 | E16: =BASEOld!I16 -> CT | F16: =BASEOld!K16 -> 0.24 | G16: =BASEOld!L16 -> 0 | J16: 0 | K16: 0
A17: =BASEOld!B17 -> Goûter | B17: =BASEOld!C17 -> Biscuit individuel | C17: =BASEOld!D17 -> Gaufrette chocolat 20g | D17: =BASEOld!H17 -> 320 | E17: =BASEOld!I17 -> CT | F17: =BASEOld!K17 -> 0.11 | G17: =BASEOld!L17 -> 0 | J17: 0 | K17: 0
A18: =BASEOld!B18 -> Goûter | B18: =BASEOld!C18 -> Biscuit individuel | C18: =BASEOld!D18 -> Gaufrette vanille 20g | D18: =BASEOld!H18 -> 320 | E18: =BASEOld!I18 -> CT | F18: =BASEOld!K18 -> 0.11 | G18: =BASEOld!L18 -> 0 | J18: 0 | K18: 0
A19: =BASEOld!B19 -> Goûter | B19: =BASEOld!C19 -> Biscuit individuel | C19: =BASEOld!D19 -> Goûter fourré choco x 2 x 37g | D19: =BASEOld!H19 -> 144 | E19: =BASEOld!I19 -> CT | F19: =BASEOld!K19 -> 0.18 | G19: =BASEOld!L19 -> 0 | J19: 0 | K19: 0
A20: =BASEOld!B20 -> Goûter | B20: =BASEOld!C20 -> Biscuit individuel | C20: =BASEOld!D20 -> Lingot fondant orange 20g | D20: =BASEOld!H20 -> 150 | E20: =BASEOld!I20 -> CT | F20: =BASEOld!K20 -> 0.25 | G20: =BASEOld!L20 -> 0 | J20: 0 | K20: 0
A21: =BASEOld!B21 -> Goûter | B21: =BASEOld!C21 -> Biscuit individuel | C21: =BASEOld!D21 -> Madeleine carrée fourrée abricot 40g | D21: =BASEOld!H21 -> 50 | E21: =BASEOld!I21 -> CT | F21: =BASEOld!K21 -> 0.18 | G21: =BASEOld!L21 -> 0 | J21: 0 | K21: 0
A22: =BASEOld!B22 -> Goûter | B22: =BASEOld!C22 -> Biscuit individuel | C22: =BASEOld!D22 -> Madeleine carrée fourrée chocolat 40g | D22: =BASEOld!H22 -> 50 | E22: =BASEOld!I22 -> CT | F22: =BASEOld!K22 -> 0.18 | G22: =BASEOld!L22 -> 0 | J22: 0 | K22: 0
A23: =BASEOld!B23 -> Goûter | B23: =BASEOld!C23 -> Biscuit individuel | C23: =BASEOld!D23 -> Madeleine carrée fourrée fraise 40g | D23: =BASEOld!H23 -> 50 | E23: =BASEOld!I23 -> CT | F23: =BASEOld!K23 -> 0.18 | G23: =BASEOld!L23 -> 0 | J23: 0 | K23: 0
A24: =BASEOld!B24 -> Goûter | B24: =BASEOld!C24 -> Biscuit individuel | C24: =BASEOld!D24 -> Madeleine carrée fourrée fruits des bois 40g | D24: =BASEOld!H24 -> 50 | E24: =BASEOld!I24 -> CT | F24: =BASEOld!K24 -> 0.18 | G24: =BASEOld!L24 -> 0 | J24: 0 | K24: 0
A25: =BASEOld!B25 -> Goûter | B25: =BASEOld!C25 -> Biscuit individuel | C25: =BASEOld!D25 -> Madeleine carrée nature 30g | D25: =BASEOld!H25 -> 56 | E25: =BASEOld!I25 -> CT | F25: =BASEOld!K25 -> 0.22 | G25: =BASEOld!L25 -> 0 | J25: 0 | K25: 0
A26: =BASEOld!B26 -> Goûter | B26: =BASEOld!C26 -> Biscuit individuel | C26: =BASEOld!D26 -> Madeleine coquille aux œufs 25g | D26: =BASEOld!H26 -> 120 | E26: =BASEOld!I26 -> CT | F26: =BASEOld!K26 -> 0.07 | G26: =BASEOld!L26 -> 0 | J26: 0 | K26: 0
A27: =BASEOld!B27 -> Goûter | B27: =BASEOld!C27 -> Biscuit individuel | C27: =BASEOld!D27 -> Madeleine nappée chocolat 20g | D27: =BASEOld!H27 -> 120 | E27: =BASEOld!I27 -> CT | F27: =BASEOld!K27 -> 0.18 | G27: =BASEOld!L27 -> 0 | J27: 0 | K27: 0
A28: =BASEOld!B28 -> Goûter | B28: =BASEOld!C28 -> Biscuit individuel | C28: =BASEOld!D28 -> Mini cake fourré crème de lait 30g | D28: =BASEOld!H28 -> 120 | E28: =BASEOld!I28 -> CT | F28: =BASEOld!K28 -> 0.14 | G28: =BASEOld!L28 -> 0 | J28: 0 | K28: 0
A29: =BASEOld!B29 -> Goûter | B29: =BASEOld!C29 -> Biscuit individuel | C29: =BASEOld!D29 -> Mini génoise abricot 25g | D29: =BASEOld!H29 -> 120 | E29: =BASEOld!I29 -> CT | F29: =BASEOld!K29 -> 0.17 | G29: =BASEOld!L29 -> 0 | J29: 0 | K29: 0
A30: =BASEOld!B30 -> Goûter | B30: =BASEOld!C30 -> Biscuit individuel | C30: =BASEOld!D30 -> Mini génoise chocolat 25g | D30: =BASEOld!H30 -> 120 | E30: =BASEOld!I30 -> CT | F30: =BASEOld!K30 -> 0.17 | G30: =BASEOld!L30 -> 0 | J30: 0 | K30: 0
A31: =BASEOld!B31 -> Goûter | B31: =BASEOld!C31 -> Biscuit individuel | C31: =BASEOld!D31 -> Mini génoise fraise 25g | D31: =BASEOld!H31 -> 120 | E31: =BASEOld!I31 -> CT | F31: =BASEOld!K31 -> 0.17 | G31: =BASEOld!L31 -> 0 | J31: 0 | K31: 0
A32: =BASEOld!B32 -> Goûter | B32: =BASEOld!C32 -> Biscuit individuel | C32: =BASEOld!D32 -> Mini génoise nappée chocolat / fourrée chocolat 35g | D32: =BASEOld!H32 -> 120 | E32: =BASEOld!I32 -> CT | F32: =BASEOld!K32 -> 0.2 | G32: =BASEOld!L32 -> 0 | J32: 0 | K32: 0
A33: =BASEOld!B33 -> Goûter | B33: =BASEOld!C33 -> Biscuit individuel | C33: =BASEOld!D33 -> Mini génoise tiramisu 25g | D33: =BASEOld!H33 -> 120 | E33: =BASEOld!I33 -> CT | F33: =BASEOld!K33 -> 0.17 | G33: =BASEOld!L33 -> 0 | J33: 0 | K33: 0
A34: =BASEOld!B34 -> Goûter | B34: =BASEOld!C34 -> Biscuit individuel | C34: =BASEOld!D34 -> Mini marbré chocolat 30g | D34: =BASEOld!H34 -> 120 | E34: =BASEOld!I34 -> CT | F34: =BASEOld!K34 -> 0.14 | G34: =BASEOld!L34 -> 0 | J34: 0 | K34: 0
A35: =BASEOld!B35 -> Goûter | B35: =BASEOld!C35 -> Biscuit individuel | C35: =BASEOld!D35 -> Mini moelleux fourré abricot 30g | D35: =BASEOld!H35 -> 120 | E35: =BASEOld!I35 -> CT | F35: =BASEOld!K35 -> 0.12 | G35: =BASEOld!L35 -> 0 | J35: 0 | K35: 0
A36: =BASEOld!B36 -> Goûter | B36: =BASEOld!C36 -> Biscuit individuel | C36: =BASEOld!D36 -> Mini moelleux fourré cacao 30g | D36: =BASEOld!H36 -> 130 | E36: =BASEOld!I36 -> CT | F36: =BASEOld!K36 -> 0.12 | G36: =BASEOld!L36 -> 0 | J36: 0 | K36: 0
A37: =BASEOld!B37 -> Goûter | B37: =BASEOld!C37 -> Biscuit individuel | C37: =BASEOld!D37 -> Mini moelleux fourré cacao-noisette 30g | D37: =BASEOld!H37 -> 120 | E37: =BASEOld!I37 -> CT | F37: =BASEOld!K37 -> 0.12 | G37: =BASEOld!L37 -> 0 | J37: 0 | K37: 0
A38: =BASEOld!B38 -> Goûter | B38: =BASEOld!C38 -> Biscuit individuel | C38: =BASEOld!D38 -> Mini moelleux fourré citron 30g | D38: =BASEOld!H38 -> 100 | E38: =BASEOld!I38 -> CT | F38: =BASEOld!K38 -> 0.12 | G38: =BASEOld!L38 -> 0 | J38: 0 | K38: 0
A39: =BASEOld!B39 -> Goûter | B39: =BASEOld!C39 -> Biscuit individuel | C39: =BASEOld!D39 -> Mini moelleux fourré fraise 30g | D39: =BASEOld!H39 -> 120 | E39: =BASEOld!I39 -> CT | F39: =BASEOld!K39 -> 0.1 | G39: =BASEOld!L39 -> 0 | J39: 0 | K39: 0
A40: =BASEOld!B40 -> Goûter | B40: =BASEOld!C40 -> Biscuit individuel | C40: =BASEOld!D40 -> Mini moelleux fourré fruits rouges 30g | D40: =BASEOld!H40 -> 100 | E40: =BASEOld!I40 -> CT | F40: =BASEOld!K40 -> 0.12 | G40: =BASEOld!L40 -> 0 | J40: 0 | K40: 0
A41: =BASEOld!B41 -> Goûter | B41: =BASEOld!C41 -> Biscuit individuel | C41: =BASEOld!D41 -> Moelleux amande 40g | D41: =BASEOld!H41 -> 100 | E41: =BASEOld!I41 -> CT | F41: =BASEOld!K41 -> 0.21 | G41: =BASEOld!L41 -> 0 | J41: 0 | K41: 0
A42: =BASEOld!B42 -> Goûter | B42: =BASEOld!C42 -> Biscuit individuel | C42: =BASEOld!D42 -> Moelleux chocolat 40g | D42: =BASEOld!H42 -> 100 | E42: =BASEOld!I42 -> CT | F42: =BASEOld!K42 -> 0.2 | G42: =BASEOld!L42 -> 0 | J42: 0 | K42: 0
A43: =BASEOld!B43 -> Goûter | B43: =BASEOld!C43 -> Biscuit individuel | C43: =BASEOld!D43 -> Moelleux citron 40g | D43: =BASEOld!H43 -> 100 | E43: =BASEOld!I43 -> CT | F43: =BASEOld!K43 -> 0.19 | G43: =BASEOld!L43 -> 0 | J43: 0 | K43: 0
A44: =BASEOld!B44 -> Goûter | B44: =BASEOld!C44 -> Biscuit individuel | C44: =BASEOld!D44 -> Moelleux framboise 40g | D44: =BASEOld!H44 -> 100 | E44: =BASEOld!I44 -> CT | F44: =BASEOld!K44 -> 0.22 | G44: =BASEOld!L44 -> 0 | J44: 0 | K44: 0
A45: =BASEOld!B45 -> Goûter | B45: =BASEOld!C45 -> Biscuit individuel | C45: =BASEOld!D45 -> Moelleux marbré 40g | D45: =BASEOld!H45 -> 100 | E45: =BASEOld!I45 -> CT | F45: =BASEOld!K45 -> 0.2 | G45: =BASEOld!L45 -> 0 | J45: 0 | K45: 0
A46: =BASEOld!B46 -> Goûter | B46: =BASEOld!C46 -> Biscuit individuel | C46: =BASEOld!D46 -> Rocher coco nappé chocolat 40g | D46: =BASEOld!H46 -> 100 | E46: =BASEOld!I46 -> CT | F46: =BASEOld!K46 -> 0.29 | G46: =BASEOld!L46 -> 0 | J46: 0 | K46: 0
A47: =BASEOld!B47 -> Goûter | B47: =BASEOld!C47 -> Biscuit individuel | C47: =BASEOld!D47 -> Rocher coco nature 35g | D47: =BASEOld!H47 -> 100 | E47: =BASEOld!I47 -> CT | F47: =BASEOld!K47 -> 0.15 | G47: =BASEOld!L47 -> 0 | J47: 0 | K47: 0
A48: =BASEOld!B48 -> Goûter | B48: =BASEOld!C48 -> Biscuit individuel | C48: =BASEOld!D48 -> Tranche marbrée cacao 50g | D48: =BASEOld!H48 -> 48 | E48: =BASEOld!I48 -> CT | F48: =BASEOld!K48 -> 0.26 | G48: =BASEOld!L48 -> 0 | J48: 0 | K48: 0
A49: =BASEOld!B49 -> Goûter | B49: =BASEOld!C49 -> Biscuit individuel | C49: =BASEOld!D49 -> Tranche nature citron 50g | D49: =BASEOld!H49 -> 48 | E49: =BASEOld!I49 -> CT | F49: =BASEOld!K49 -> 0.26 | G49: =BASEOld!L49 -> 0 | J49: 0 | K49: 0
A50: =BASEOld!B50 -> Goûter | B50: =BASEOld!C50 -> Divers | C50: =BASEOld!D50 -> Framboise en bille surgelée 1Kg | D50: =BASEOld!H50 -> 5 | E50: =BASEOld!I50 -> CT | F50: =BASEOld!K50 -> 4.65 | G50: =BASEOld!L50 -> 0 | J50: 0 | K50: 0
A51: =BASEOld!B51 -> Goûter | B51: =BASEOld!C51 -> Divers | C51: =BASEOld!D51 -> Framboises entières surgelées Williamette 1Kg | D51: =BASEOld!H51 -> 1 | E51: =BASEOld!I51 -> SHT | F51: =BASEOld!K51 -> 3.56 | G51: =BASEOld!L51 -> 0 | J51: 0 | K51: 0
A52: =BASEOld!B52 -> Goûter | B52: =BASEOld!C52 -> Divers | C52: =BASEOld!D52 -> Griottes dénoyautées surgelées 1Kg | D52: =BASEOld!H52 -> 1 | E52: =BASEOld!I52 -> SHT | F52: =BASEOld!K52 -> 3.71 | G52: =BASEOld!L52 -> 0 | J52: 0 | K52: 0
A53: =BASEOld!B53 -> Goûter | B53: =BASEOld!C53 -> Divers | C53: =BASEOld!D53 -> Melon en bille surgelé 1Kg | D53: =BASEOld!H53 -> 1 | E53: =BASEOld!I53 -> SHT | F53: =BASEOld!K53 -> 4.24 | G53: =BASEOld!L53 -> 0 | J53: 0 | K53: 0
A54: =BASEOld!B54 -> Goûter | B54: =BASEOld!C54 -> Divers | C54: =BASEOld!D54 -> Mûre cultivée surgelée 1Kg | D54: =BASEOld!H54 -> 1 | E54: =BASEOld!I54 -> SHT | F54: =BASEOld!K54 -> 5.16 | G54: =BASEOld!L54 -> 0 | J54: 0 | K54: 0
A55: =BASEOld!B55 -> Goûter | B55: =BASEOld!C55 -> Divers | C55: =BASEOld!D55 -> Salade de fruits exotiques surgelée 1Kg | D55: =BASEOld!H55 -> 1 | E55: =BASEOld!I55 -> SHT | F55: =BASEOld!K55 -> 3.1 | G55: =BASEOld!L55 -> 0 | J55: 0 | K55: 0
A56: =BASEOld!B56 -> Goûter | B56: =BASEOld!C56 -> Gâteau à partager | C56: =BASEOld!D56 -> Bavarois cappuccino 700g | D56: =BASEOld!H56 -> 2 | E56: =BASEOld!I56 -> PCE | F56: =BASEOld!K56 -> 5.12 | G56: =BASEOld!L56 -> 0 | J56: 0 | K56: 0
A57: =BASEOld!B57 -> Goûter | B57: =BASEOld!C57 -> Gâteau à partager | C57: =BASEOld!D57 -> Bavarois parfum abricot 700 g | D57: =BASEOld!H57 -> 2 | E57: =BASEOld!I57 -> PCE | F57: =BASEOld!K57 -> 5.12 | G57: =BASEOld!L57 -> 0 | J57: 0 | K57: 0
A58: =BASEOld!B58 -> Goûter | B58: =BASEOld!C58 -> Gâteau à partager | C58: =BASEOld!D58 -> Bavarois parfum chocolat 700 g | D58: =BASEOld!H58 -> 2 | E58: =BASEOld!I58 -> PCE | F58: =BASEOld!K58 -> 5.19 | G58: =BASEOld!L58 -> 0 | J58: 0 | K58: 0
A59: =BASEOld!B59 -> Goûter | B59: =BASEOld!C59 -> Gâteau à partager | C59: =BASEOld!D59 -> Bavarois parfum framboise 700g | D59: =BASEOld!H59 -> 2 | E59: =BASEOld!I59 -> PCE | F59: =BASEOld!K59 -> 5.37 | G59: =BASEOld!L59 -> 0 | J59: 0 | K59: 0
A60: =BASEOld!B60 -> Goûter | B60: =BASEOld!C60 -> Gâteau à partager | C60: =BASEOld!D60 -> Bavarois parfum fruits rouges 700 g | D60: =BASEOld!H60 -> 2 | E60: =BASEOld!I60 -> PCE | F60: =BASEOld!K60 -> 5.12 | G60: =BASEOld!L60 -> 0 | J60: 0 | K60: 0
A61: =BASEOld!B61 -> Goûter | B61: =BASEOld!C61 -> Gâteau à partager | C61: =BASEOld!D61 -> Bavarois parfum poire 700g | D61: =BASEOld!H61 -> 2 | E61: =BASEOld!I61 -> PCE | F61: =BASEOld!K61 -> 5.25 | G61: =BASEOld!L61 -> 0 | J61: 0 | K61: 0
A62: =BASEOld!B62 -> Goûter | B62: =BASEOld!C62 -> Gâteau à partager | C62: =BASEOld!D62 -> Boléro chocolat marrons en bande 550g | D62: =BASEOld!H62 -> 4 | E62: =BASEOld!I62 -> PCE | F62: =BASEOld!K62 -> 4.05 | G62: =BASEOld!L62 -> 0 | J62: 0 | K62: 0
A63: =BASEOld!B63 -> Goûter | B63: =BASEOld!C63 -> Gâteau à partager | C63: =BASEOld!D63 -> Carré bavarois cacao 45g x 60 (demi-cadre) | D63: =BASEOld!H63 -> 60 | E63: =BASEOld!I63 -> CT | F63: =BASEOld!K63 -> 0.31 | G63: =BASEOld!L63 -> 0 | J63: 0 | K63: 0
A64: =BASEOld!B64 -> Goûter | B64: =BASEOld!C64 -> Gâteau à partager | C64: =BASEOld!D64 -> Carré bavarois fruits rouges 45g x 60 (demi-cadre) | D64: =BASEOld!H64 -> 60 | E64: =BASEOld!I64 -> CT | F64: =BASEOld!K64 -> 0.31 | G64: =BASEOld!L64 -> 0 | J64: 0 | K64: 0
A65: =BASEOld!B65 -> Goûter | B65: =BASEOld!C65 -> Gâteau à partager | C65: =BASEOld!D65 -> Charlotte aux fruits rouges en bande 800g | D65: =BASEOld!H65 -> 2 | E65: =BASEOld!I65 -> PCE | F65: =BASEOld!K65 -> 7.18 | G65: =BASEOld!L65 -> 0 | J65: 0 | K65: 0
A66: =BASEOld!B66 -> Goûter | B66: =BASEOld!C66 -> Gâteau à partager | C66: =BASEOld!D66 -> Charlotte aux poires en bande 850g | D66: =BASEOld!H66 -> 2 | E66: =BASEOld!I66 -> PCE | F66: =BASEOld!K66 -> 9.08 | G66: =BASEOld!L66 -> 0 | J66: 0 | K66: 0
A67: =BASEOld!B67 -> Goûter | B67: =BASEOld!C67 -> Gâteau à partager | C67: =BASEOld!D67 -> Clafoutis à la cerise en bande 550g | D67: =BASEOld!H67 -> 4 | E67: =BASEOld!I67 -> PCE | F67: =BASEOld!K67 -> 3.11 | G67: =BASEOld!L67 -> 0 | J67: 0 | K67: 0
A68: =BASEOld!B68 -> Goûter | B68: =BASEOld!C68 -> Gâteau à partager | C68: =BASEOld!D68 -> Clafoutis aux griottes 1Kg | D68: =BASEOld!H68 -> 1 | E68: =BASEOld!I68 -> PCE | F68: =BASEOld!K68 -> 5.78 | G68: =BASEOld!L68 -> 0 | J68: 0 | K68: 0
A69: =BASEOld!B69 -> Goûter | B69: =BASEOld!C69 -> Gâteau à partager | C69: =BASEOld!D69 -> Craquant crème brulée-fruits rouges en bande 750g | D69: =BASEOld!H69 -> 2 | E69: =BASEOld!I69 -> PCE | F69: =BASEOld!K69 -> 11.22 | G69: =BASEOld!L69 -> 0 | J69: 0 | K69: 0
A70: =BASEOld!B70 -> Goûter | B70: =BASEOld!C70 -> Gâteau à partager | C70: =BASEOld!D70 -> Forêt noire aux griottes 1,4kg | D70: =BASEOld!H70 -> 2 | E70: =BASEOld!I70 -> PCE | F70: =BASEOld!K70 -> 8.12 | G70: =BASEOld!L70 -> 0 | J70: 0 | K70: 0
A71: =BASEOld!B71 -> Goûter | B71: =BASEOld!C71 -> Gâteau à partager | C71: =BASEOld!D71 -> Forêt noire sans sucre ajouté 57g | D71: =BASEOld!H71 -> 28 | E71: =BASEOld!I71 -> PCE | F71: =BASEOld!K71 -> 0.57 | G71: =BASEOld!L71 -> 0 | J71: =H71*D71*F71 -> 0 | K71: =I71*F71*D71 -> 0
A72: =BASEOld!B72 -> Goûter | B72: =BASEOld!C72 -> Gâteau à partager | C72: =BASEOld!D72 -> Framboisier en bande 550g | D72: =BASEOld!H72 -> 2 | E72: =BASEOld!I72 -> CT | F72: =BASEOld!K72 -> 7.56 | G72: =BASEOld!L72 -> 0 | J72: 0 | K72: 0
A73: =BASEOld!B73 -> Goûter | B73: =BASEOld!C73 -> Gâteau à partager | C73: =BASEOld!D73 -> Gâteau aux 3 chocolats 1Kg | D73: =BASEOld!H73 -> 1 | E73: =BASEOld!I73 -> PCE | F73: =BASEOld!K73 -> 13.01 | G73: =BASEOld!L73 -> 0 | J73: 0 | K73: 0
A74: =BASEOld!B74 -> Goûter | B74: =BASEOld!C74 -> Gâteau à partager | C74: =BASEOld!D74 -> Gâteau Basque 1kg | D74: =BASEOld!H74 -> 4 | E74: =BASEOld!I74 -> PCE | F74: =BASEOld!K74 -> 3.73 | G74: =BASEOld!L74 -> 0 | J74: 0 | K74: 0
A75: =BASEOld!B75 -> Goûter | B75: =BASEOld!C75 -> Individuel | C75: =BASEOld!D75 -> Millefeuille 65g x 36 | D75: =BASEOld!H75 -> 3 | E75: =BASEOld!I75 -> CT | F75: =BASEOld!K75 -> 13.64 | G75: =BASEOld!L75 -> 0 | J75: 0 | K75: 0
A76: =BASEOld!B76 -> Goûter | B76: =BASEOld!C76 -> Gâteau à partager | C76: =BASEOld!D76 -> Omelette norvégienne 2L | D76: =BASEOld!H76 -> 6 | E76: =BASEOld!I76 -> CT | F76: =BASEOld!K76 -> 7.86 | G76: =BASEOld!L76 -> 0 | J76: 0 | K76: 0
A77: =BASEOld!B77 -> Goûter | B77: =BASEOld!C77 -> Gâteau à partager | C77: =BASEOld!D77 -> Opéra en bande 750g | D77: =BASEOld!H77 -> 2 | E77: =BASEOld!I77 -> PCE | F77: =BASEOld!K77 -> 9.81 | G77: =BASEOld!L77 -> 0 | J77: 0 | K77: 0
A78: =BASEOld!B78 -> Goûter | B78: =BASEOld!C78 -> Gâteau à partager | C78: =BASEOld!D78 -> Privilège poire chocolat en bande 750g | D78: =BASEOld!H78 -> 2 | E78: =BASEOld!I78 -> PCE | F78: =BASEOld!K78 -> 8.1 | G78: =BASEOld!L78 -> 0 | J78: 0 | K78: 0
A79: =BASEOld!B79 -> Goûter | B79: =BASEOld!C79 -> Gâteau à partager | C79: =BASEOld!D79 -> Royal chocolat en bande 650g | D79: =BASEOld!H79 -> 3 | E79: =BASEOld!I79 -> PCE | F79: =BASEOld!K79 -> 7.92 | G79: =BASEOld!L79 -> 0 | J79: 0 | K79: 0
A80: =BASEOld!B80 -> Goûter | B80: =BASEOld!C80 -> Gâteau à partager | C80: =BASEOld!D80 -> Tarte à la noix de coco 1,15Kg | D80: =BASEOld!H80 -> 2 | E80: =BASEOld!I80 -> CT | F80: =BASEOld!K80 -> 5.86 | G80: =BASEOld!L80 -> 0 | J80: 0 | K80: 0
A81: =BASEOld!B81 -> Goûter | B81: =BASEOld!C81 -> Gâteau à partager | C81: =BASEOld!D81 -> Tarte au chocolat entière 900g | D81: =BASEOld!H81 -> 2 | E81: =BASEOld!I81 -> CT | F81: =BASEOld!K81 -> 5.48 | G81: =BASEOld!L81 -> 0 | J81: 0 | K81: 0
A82: =BASEOld!B82 -> Goûter | B82: =BASEOld!C82 -> Gâteau à partager | C82: =BASEOld!D82 -> Tarte au chocolat prédécoupée en 10 700g | D82: =BASEOld!H82 -> 8 | E82: =BASEOld!I82 -> CT | F82: =BASEOld!K82 -> 3.3 | G82: =BASEOld!L82 -> 0 | J82: 0 | K82: 0
A83: =BASEOld!B83 -> Goûter | B83: =BASEOld!C83 -> Gâteau à partager | C83: =BASEOld!D83 -> Tarte au citron 1,15kg | D83: =BASEOld!H83 -> 2 | E83: =BASEOld!I83 -> PCE | F83: =BASEOld!K83 -> 5.81 | G83: =BASEOld!L83 -> 0 | J83: 0 | K83: 0
A84: =BASEOld!B84 -> Goûter | B84: =BASEOld!C84 -> Gâteau à partager | C84: =BASEOld!D84 -> Tarte au citron meringuée 1kg | D84: =BASEOld!H84 -> 2 | E84: =BASEOld!I84 -> PCE | F84: =BASEOld!K84 -> 5.06 | G84: =BASEOld!L84 -> 0 | J84: 0 | K84: 0
A85: =BASEOld!B85 -> Goûter | B85: =BASEOld!C85 -> Gâteau à partager | C85: =BASEOld!D85 -> Tarte au citron prédrécoupée en 10 parts 700g | D85: =BASEOld!H85 -> 8 | E85: =BASEOld!I85 -> CT | F85: =BASEOld!K85 -> 3.27 | G85: =BASEOld!L85 -> 0 | J85: 0 | K85: 0
A86: =BASEOld!B86 -> Goûter | B86: =BASEOld!C86 -> Gâteau à partager | C86: =BASEOld!D86 -> Tarte au flan 1Kg | D86: =BASEOld!H86 -> 4 | E86: =BASEOld!I86 -> CT | F86: =BASEOld!K86 -> 3.51 | G86: =BASEOld!L86 -> 0 | J86: 0 | K86: 0
A87: =BASEOld!B87 -> Goûter | B87: =BASEOld!C87 -> Gâteau à partager | C87: =BASEOld!D87 -> Tarte au flan prédécoupée en 10 parts 750g | D87: =BASEOld!H87 -> 1 | E87: =BASEOld!I87 -> PCE | F87: =BASEOld!K87 -> 3.03 | G87: =BASEOld!L87 -> 0 | J87: 0 | K87: 0
A88: =BASEOld!B88 -> Goûter | B88: =BASEOld!C88 -> Gâteau à partager | C88: =BASEOld!D88 -> Tarte aux abricots 1,3kg | D88: =BASEOld!H88 -> 1 | E88: =BASEOld!I88 -> PCE | F88: =BASEOld!K88 -> 13.09 | G88: =BASEOld!L88 -> 0 | J88: 0 | K88: 0
A89: =BASEOld!B89 -> Goûter | B89: =BASEOld!C89 -> Gâteau à partager | C89: =BASEOld!D89 -> Tarte aux abricots 1,3Kg | D89: =BASEOld!H89 -> 1 | E89: =BASEOld!I89 -> PCE | F89: =BASEOld!K89 -> 12.61 | G89: =BASEOld!L89 -> 0 | J89: 0 | K89: 0
A90: =BASEOld!B90 -> Goûter | B90: =BASEOld!C90 -> Gâteau à partager | C90: =BASEOld!D90 -> Tarte aux abricots croisillon prédécoupée en 12 parts 900g | D90: =BASEOld!H90 -> 6 | E90: =BASEOld!I90 -> CT | F90: =BASEOld!K90 -> 3.19 | G90: =BASEOld!L90 -> 0 | J90: 0 | K90: 0
A91: =BASEOld!B91 -> Goûter | B91: =BASEOld!C91 -> Gâteau à partager | C91: =BASEOld!D91 -> Tarte aux fraises 800g | D91: =BASEOld!H91 -> 1 | E91: =BASEOld!I91 -> PCE | F91: =BASEOld!K91 -> 8.29 | G91: =BASEOld!L91 -> 0 | J91: 0 | K91: 0
A92: =BASEOld!B92 -> Goûter | B92: =BASEOld!C92 -> Gâteau à partager | C92: =BASEOld!D92 -> Tarte aux fraises prédécoupée en 8 900g | D92: =BASEOld!H92 -> 1 | E92: =BASEOld!I92 -> PCE | F92: =BASEOld!K92 -> 6.72 | G92: =BASEOld!L92 -> 0 | J92: 0 | K92: 0
A93: =BASEOld!B93 -> Goûter | B93: =BASEOld!C93 -> Gâteau à partager | C93: =BASEOld!D93 -> Tarte aux framboises 1,4kg | D93: =BASEOld!H93 -> 1 | E93: =BASEOld!I93 -> PCE | F93: =BASEOld!K93 -> 13.86 | G93: =BASEOld!L93 -> 0 | J93: 0 | K93: 0
A94: =BASEOld!B94 -> Goûter | B94: =BASEOld!C94 -> Gâteau à partager | C94: =BASEOld!D94 -> Tarte aux framboises 880g | D94: =BASEOld!H94 -> 1 | E94: =BASEOld!I94 -> PCE | F94: =BASEOld!K94 -> 7.13 | G94: =BASEOld!L94 -> 0 | J94: 0 | K94: 0
A95: =BASEOld!B95 -> Goûter | B95: =BASEOld!C95 -> Gâteau à partager | C95: =BASEOld!D95 -> Tarte aux framboises meringuée 1,15kg | D95: =BASEOld!H95 -> 2 | E95: =BASEOld!I95 -> CT | F95: =BASEOld!K95 -> 7.26 | G95: =BASEOld!L95 -> 0 | J95: 0 | K95: 0
A96: =BASEOld!B96 -> Goûter | B96: =BASEOld!C96 -> Gâteau à partager | C96: =BASEOld!D96 -> Tarte aux myrtilles 900g | D96: =BASEOld!H96 -> 2 | E96: =BASEOld!I96 -> CT | F96: =BASEOld!K96 -> 7.01 | G96: =BASEOld!L96 -> 0 | J96: 0 | K96: 0
A97: =BASEOld!B97 -> Goûter | B97: =BASEOld!C97 -> Gâteau à partager | C97: =BASEOld!D97 -> Tarte aux poires 900g | D97: =BASEOld!H97 -> 1 | E97: =BASEOld!I97 -> PCE | F97: =BASEOld!K97 -> 6.78 | G97: =BASEOld!L97 -> 0 | J97: 0 | K97: 0
A98: =BASEOld!B98 -> Goûter | B98: =BASEOld!C98 -> Gâteau à partager | C98: =BASEOld!D98 -> Tarte aux poires Bourdaloue 1,1kg | D98: =BASEOld!H98 -> 2 | E98: =BASEOld!I98 -> CT | F98: =BASEOld!K98 -> 8.31 | G98: =BASEOld!L98 -> 0 | J98: 0 | K98: 0
A99: =BASEOld!B99 -> Goûter | B99: =BASEOld!C99 -> Gâteau à partager | C99: =BASEOld!D99 -> Tarte aux poires prédécoupée en 10 parts 750g | D99: =BASEOld!H99 -> 1 | E99: =BASEOld!I99 -> PCE | F99: =BASEOld!K99 -> 4.8 | G99: =BASEOld!L99 -> 0 | J99: 0 | K99: 0
A100: =BASEOld!B100 -> Goûter | B100: =BASEOld!C100 -> Gâteau à partager | C100: =BASEOld!D100 -> Tarte aux pommes croissillon prédécoupée en 12 parts 900g | D100: =BASEOld!H100 -> 1 | E100: =BASEOld!I100 -> PCE | F100: =BASEOld!K100 -> 3.07 | G100: =BASEOld!L100 -> 0 | J100: 0 | K100: 0
A101: =BASEOld!B101 -> Goûter | B101: =BASEOld!C101 -> Gâteau à partager | C101: =BASEOld!D101 -> Tarte aux pommes crumble 1,15Kg | D101: =BASEOld!H101 -> 2 | E101: =BASEOld!I101 -> CT | F101: =BASEOld!K101 -> 6.58 | G101: =BASEOld!L101 -> 0 | J101: 0 | K101: 0
A102: =BASEOld!B102 -> Goûter | B102: =BASEOld!C102 -> Gâteau à partager | C102: =BASEOld!D102 -> Tarte aux pommes et noix 1,1Kg | D102: =BASEOld!H102 -> 2 | E102: =BASEOld!I102 -> CT | F102: =BASEOld!K102 -> 6.1 | G102: =BASEOld!L102 -> 0 | J102: 0 | K102: 0
A103: =BASEOld!B103 -> Goûter | B103: =BASEOld!C103 -> Gâteau à partager | C103: =BASEOld!D103 -> Tarte aux pommes Normande 800g | D103: =BASEOld!H103 -> 2 | E103: =BASEOld!I103 -> CT | F103: =BASEOld!K103 -> 4.02 | G103: =BASEOld!L103 -> 0 | J103: 0 | K103: 0
A104: =BASEOld!B104 -> Goûter | B104: =BASEOld!C104 -> Gâteau à partager | C104: =BASEOld!D104 -> Tarte aux pommes Normande 950g | D104: =BASEOld!H104 -> 1 | E104: =BASEOld!I104 -> PCE | F104: =BASEOld!K104 -> 3.86 | G104: =BASEOld!L104 -> 0 | J104: 0 | K104: 0
A105: =BASEOld!B105 -> Goûter | B105: =BASEOld!C105 -> Gâteau à partager | C105: =BASEOld!D105 -> Tarte aux pommes Normande prédécoupée en 10 parts 700g | D105: =BASEOld!H105 -> 6 | E105: =BASEOld!I105 -> CT | F105: =BASEOld!K105 -> 3.05 | G105: =BASEOld!L105 -> 0 | J105: 0 | K105: 0
A106: =BASEOld!B106 -> Goûter | B106: =BASEOld!C106 -> Gâteau à partager | C106: =BASEOld!D106 -> Tarte aux pommes prédécoupée en 10 parts 750g | D106: =BASEOld!H106 -> 1 | E106: =BASEOld!I106 -> PCE | F106: =BASEOld!K106 -> 3.18 | G106: =BASEOld!L106 -> 0 | J106: 0 | K106: 0
A107: =BASEOld!B107 -> Goûter | B107: =BASEOld!C107 -> Gâteau à partager | C107: =BASEOld!D107 -> Tarte rosace aux fruits entiers, questches, abricots, framboises | D107: =BASEOld!H107 -> 1 | E107: =BASEOld!I107 -> PCE | F107: =BASEOld!K107 -> 6.35 | G107: =BASEOld!L107 -> 0 | J107: 0 | K107: 0
A108: =BASEOld!B108 -> Goûter | B108: =BASEOld!C108 -> Gâteau à partager | C108: =BASEOld!D108 -> Tarte tropézienne 650g | D108: =BASEOld!H108 -> 6 | E108: =BASEOld!I108 -> CT | F108: =BASEOld!K108 -> 4.51 | G108: =BASEOld!L108 -> 0 | J108: 0 | K108: 0
A109: =BASEOld!B109 -> Goûter | B109: =BASEOld!C109 -> Gâteau à partager | C109: =BASEOld!D109 -> Tiramisu en bande 900g | D109: =BASEOld!H109 -> 2 | E109: =BASEOld!I109 -> CT | F109: =BASEOld!K109 -> 7.59 | G109: =BASEOld!L109 -> 0 | J109: 0 | K109: 0
A110: =BASEOld!B110 -> Goûter | B110: =BASEOld!C110 -> Gâteau à partager | C110: =BASEOld!D110 -> Tiramisu en bande 900g | D110: =BASEOld!H110 -> 2 | E110: =BASEOld!I110 -> PCE | F110: =BASEOld!K110 -> 6.96 | G110: =BASEOld!L110 -> 0 | J110: 0 | K110: 0
A111: =BASEOld!B111 -> Goûter | B111: =BASEOld!C111 -> Gâteau à partager | C111: =BASEOld!D111 -> Vacherin vanille/framboise glacé 2L | D111: =BASEOld!H111 -> 2 | E111: =BASEOld!I111 -> PCE | F111: =BASEOld!K111 -> 7.11 | G111: =BASEOld!L111 -> 0 | J111: 0 | K111: 0
A112: =BASEOld!B112 -> Goûter | B112: =BASEOld!C112 -> Individuel | C112: =BASEOld!D112 -> Beignet abricot 75g | D112: =BASEOld!H112 -> 60 | E112: =BASEOld!I112 -> CT | F112: =BASEOld!K112 -> 0.31 | G112: =BASEOld!L112 -> 0 | J112: 0 | K112: 0
A113: =BASEOld!B113 -> Goûter | B113: =BASEOld!C113 -> Individuel | C113: =BASEOld!D113 -> Beignet chocolat-noisette 75g | D113: =BASEOld!H113 -> 60 | E113: =BASEOld!I113 -> PCE | F113: =BASEOld!K113 -> 0.3 | G113: =BASEOld!L113 -> 0 | J113: 0 | K113: 0
A114: =BASEOld!B114 -> Goûter | B114: =BASEOld!C114 -> Individuel | C114: =BASEOld!D114 -> Beignet framboise 75g | D114: =BASEOld!H114 -> 60 | E114: =BASEOld!I114 -> PCE | F114: =BASEOld!K114 -> 0.31 | G114: =BASEOld!L114 -> 0 | J114: 0 | K114: 0
A115: =BASEOld!B115 -> Goûter | B115: =BASEOld!C115 -> Individuel | C115: =BASEOld!D115 -> Beignet nature 55g | D115: =BASEOld!H115 -> 60 | E115: =BASEOld!I115 -> CT | F115: =BASEOld!K115 -> 0.25 | G115: =BASEOld!L115 -> 0 | J115: 0 | K115: 0
A116: =BASEOld!B116 -> Goûter | B116: =BASEOld!C116 -> Individuel | C116: =BASEOld!D116 -> Beignet pommes 75g | D116: =BASEOld!H116 -> 60 | E116: =BASEOld!I116 -> CT | F116: =BASEOld!K116 -> 0.26 | G116: =BASEOld!L116 -> 0 | J116: 0 | K116: 0
A117: =BASEOld!B117 -> Goûter | B117: =BASEOld!C117 -> Individuel | C117: =BASEOld!D117 -> Brioche perdue 100g (peut être coupée en 2) | D117: =BASEOld!H117 -> 28 | E117: =BASEOld!I117 -> PCE | F117: =BASEOld!K117 -> 0.95 | G117: =BASEOld!L117 -> 0 | J117: 0 | K117: 0
A118: =BASEOld!B118 -> Goûter | B118: =BASEOld!C118 -> Individuel | C118: =BASEOld!D118 -> Briochette à tête pur beurre cuite 45g | D118: =BASEOld!H118 -> 45 | E118: =BASEOld!I118 -> CT | F118: =BASEOld!K118 -> 0.35 | G118: =BASEOld!L118 -> 0 | J118: 0 | K118: 0
A119: =BASEOld!B119 -> Goûter | B119: =BASEOld!C119 -> Individuel | C119: =BASEOld!D119 -> Crèpes au chocolat 40g | D119: =BASEOld!H119 -> 40 | E119: =BASEOld!I119 -> PCE | F119: =BASEOld!K119 -> 0.25 | G119: =BASEOld!L119 -> 0 | J119: 0 | K119: 0
A120: =BASEOld!B120 -> Goûter | B120: =BASEOld!C120 -> Individuel | C120: =BASEOld!D120 -> Crèpes nature 50g | D120: =BASEOld!H120 -> 40 | E120: =BASEOld!I120 -> PCE | F120: =BASEOld!K120 -> 0.26 | G120: =BASEOld!L120 -> 0 | J120: 0 | K120: 0
A121: =BASEOld!B121 -> Goûter | B121: =BASEOld!C121 -> Individuel | C121: =BASEOld!D121 -> Donuts chocolat 55g | D121: =BASEOld!H121 -> 36 | E121: =BASEOld!I121 -> CT | F121: =BASEOld!K121 -> 0.3 | G121: =BASEOld!L121 -> 0 | J121: 0 | K121: 0
A122: =BASEOld!B122 -> Goûter | B122: =BASEOld!C122 -> Individuel | C122: =BASEOld!D122 -> Donuts nature sucré 49g | D122: =BASEOld!H122 -> 72 | E122: =BASEOld!I122 -> CT | F122: =BASEOld!K122 -> 0.24 | G122: =BASEOld!L122 -> 0 | J122: 0 | K122: 0
A123: =BASEOld!B123 -> Goûter | B123: =BASEOld!C123 -> Individuel | C123: =BASEOld!D123 -> Gaufre de Bruxelles 70g (peut être coupée en 2) | D123: =BASEOld!H123 -> 27 | E123: =BASEOld!I123 -> PCE | F123: =BASEOld!K123 -> 0.32 | G123: =BASEOld!L123 -> 0 | J123: 0 | K123: 0
A124: =BASEOld!B124 -> goûter | B124: =BASEOld!C124 -> Sans sucre | C124: =BASEOld!D124 -> Cake cacao sans sucre 30g | D124: =BASEOld!H124 -> 60 | E124: =BASEOld!I124 -> CT | F124: =BASEOld!K124 -> 0.24 | G124: =BASEOld!L124 -> 0 | J124: 0 | K124: 0
A125: =BASEOld!B125 -> goûter | B125: =BASEOld!C125 -> Sans sucre | C125: =BASEOld!D125 -> Cake citron sans sucre 30g | D125: =BASEOld!H125 -> 60 | E125: =BASEOld!I125 -> CT | F125: =BASEOld!K125 -> 0.24 | G125: =BASEOld!L125 -> 0 | J125: 0 | K125: 0
A126: =BASEOld!B126 -> goûter | B126: =BASEOld!C126 -> Sans sucre | C126: =BASEOld!D126 -> Cake framboise sans sucre 30g | D126: =BASEOld!H126 -> 60 | E126: =BASEOld!I126 -> CT | F126: =BASEOld!K126 -> 0.24 | G126: =BASEOld!L126 -> 0 | J126: 0 | K126: 0
A127: =BASEOld!B127 -> Goûter | B127: =BASEOld!C127 -> Sans sucre | C127: =BASEOld!D127 -> Couronne sans sucre 40g | D127: =BASEOld!H127 -> 36 | E127: =BASEOld!I127 -> CT | F127: =BASEOld!K127 -> 0.32 | G127: =BASEOld!L127 -> 0 | J127: 0 | K127: 0
A128: =BASEOld!B128 -> Goûter | B128: =BASEOld!C128 -> Sans sucre | C128: =BASEOld!D128 -> Gaufrette cacao sans sucre 20g | D128: =BASEOld!H128 -> 320 | E128: =BASEOld!I128 -> CT | F128: =BASEOld!K128 -> 0.13 | G128: =BASEOld!L128 -> 0 | J128: 0 | K128: 0
A129: =BASEOld!B129 -> Goûter | B129: =BASEOld!C129 -> Sans sucre | C129: =BASEOld!D129 -> Gaufrette citron sans sucre / sans sel 11g | D129: =BASEOld!H129 -> 100 | E129: =BASEOld!I129 -> CT | F129: =BASEOld!K129 -> 0.26 | G129: =BASEOld!L129 -> 0 | J129: 0 | K129: 0
A130: =BASEOld!B130 -> Goûter | B130: =BASEOld!C130 -> Sans sucre | C130: =BASEOld!D130 -> Gaufrette vanille sans sucre 20g | D130: =BASEOld!H130 -> 320 | E130: =BASEOld!I130 -> CT | F130: =BASEOld!K130 -> 0.13 | G130: =BASEOld!L130 -> 0 | J130: 0 | K130: 0
A131: =BASEOld!B131 -> Goûter | B131: =BASEOld!C131 -> Sans sucre | C131: =BASEOld!D131 -> Lingot amande sans sucre 25g | D131: =BASEOld!H131 -> 80 | E131: =BASEOld!I131 -> CT | F131: =BASEOld!K131 -> 0.32 | G131: =BASEOld!L131 -> 0 | J131: 0 | K131: 0
A132: =BASEOld!B132 -> Goûter | B132: =BASEOld!C132 -> Sans sucre | C132: =BASEOld!D132 -> Madeleine nature sans sucre 25g | D132: =BASEOld!H132 -> 100 | E132: =BASEOld!I132 -> CT | F132: =BASEOld!K132 -> 0.19 | G132: =BASEOld!L132 -> 0 | J132: 0 | K132: 0
A133: =BASEOld!B133 -> goûter | B133: =BASEOld!C133 -> Sans sucre | C133: =BASEOld!D133 -> Moelleux cacao sans sucre 40g | D133: =BASEOld!H133 -> 100 | E133: =BASEOld!I133 -> CT | F133: =BASEOld!K133 -> 0.28 | G133: =BASEOld!L133 -> 0 | J133: 0 | K133: 0
A134: =BASEOld!B134 -> goûter | B134: =BASEOld!C134 -> Sans sucre | C134: =BASEOld!D134 -> Moelleux citron sans sucre 40g | D134: =BASEOld!H134 -> 100 | E134: =BASEOld!I134 -> CT | F134: =BASEOld!K134 -> 0.27 | G134: =BASEOld!L134 -> 0 | J134: 0 | K134: 0
A135: =BASEOld!B135 -> goûter | B135: =BASEOld!C135 -> Sans sucre | C135: =BASEOld!D135 -> Moelleux framboise sans sucre 40g | D135: =BASEOld!H135 -> 100 | E135: =BASEOld!I135 -> CT | F135: =BASEOld!K135 -> 0.29 | G135: =BASEOld!L135 -> 0 | J135: =H135*D135*F135 -> 0 | K135: =I135*F135*D135 -> 0
A136: =BASEOld!B136 -> Goûter | B136: =BASEOld!C136 -> Sans sucre | C136: =BASEOld!D136 -> Palmiers sans sucre x2 17g | D136: =BASEOld!H136 -> 120 | E136: =BASEOld!I136 -> CT | F136: =BASEOld!K136 -> 0.16 | G136: =BASEOld!L136 -> 0 | J136: 0 | K136: 0
A137: =BASEOld!B137 -> Goûter | B137: =BASEOld!C137 -> Sans sucre | C137: =BASEOld!D137 -> Tranche nature 50g | D137: =BASEOld!H137 -> 36 | E137: =BASEOld!I137 -> CT | F137: =BASEOld!K137 -> 0.32 | G137: =BASEOld!L137 -> 0 | J137: 0 | K137: 0
A138: =BASEOld!B138 -> Goûter | B138: =BASEOld!C138 -> Viennoiserie | C138: =BASEOld!D138 -> Mini croissant au beurre prêt à cuire 25g | D138: =BASEOld!H138 -> 160 | E138: =BASEOld!I138 -> CT | F138: =BASEOld!K138 -> 0.09 | G138: =BASEOld!L138 -> 0 | J138: 0 | K138: 0
A139: =BASEOld!B139 -> Goûter | B139: =BASEOld!C139 -> Viennoiserie | C139: =BASEOld!D139 -> Mini pain au chocolat au beurre prêt à cuire 25g | D139: =BASEOld!H139 -> 160 | E139: =BASEOld!I139 -> CT | F139: =BASEOld!K139 -> 0.1 | G139: =BASEOld!L139 -> 0 | J139: 0 | K139: 0
A140: =BASEOld!B140 -> Goûter | B140: =BASEOld!C140 -> Viennoiserie | C140: =BASEOld!D140 -> Mini pain aux raisins prêt à cuire 35g | D140: =BASEOld!H140 -> 150 | E140: =BASEOld!I140 -> CT | F140: =BASEOld!K140 -> 0.13 | G140: =BASEOld!L140 -> 0 | J140: 0 | K140: 0
A141: =BASEOld!B141 -> Goûter | B141: =BASEOld!C141 -> 0 | C141: =BASEOld!D141 -> Goûter sec brioché 25 tranches (spécial mixé) 350g | D141: =BASEOld!H141 -> 24 | E141: =BASEOld!I141 -> CT | F141: =BASEOld!K141 -> 0.8 | G141: =BASEOld!L141 -> 0 | J141: 0 | K141: 0
A142: =BASEOld!B142 -> Goûter / PDJ | B142: =BASEOld!C142 -> Individuel | C142: =BASEOld!D142 -> Pain au chocolat 75g prêt à cuire | D142: =BASEOld!H142 -> 70 | E142: =BASEOld!I142 -> CT | F142: =BASEOld!K142 -> 0.25 | G142: =BASEOld!L142 -> 0 | J142: 0 | K142: 0
A143: =BASEOld!B143 -> Goûter / PDJ | B143: =BASEOld!C143 -> Individuel | C143: =BASEOld!D143 -> Pain chocolat cuit 45g | D143: =BASEOld!H143 -> 50 | E143: =BASEOld!I143 -> CT | F143: =BASEOld!K143 -> 0.6 | G143: =BASEOld!L143 -> 0 | J143: 0 | K143: 0
A144: =BASEOld!B144 -> Goûter / PDJ | B144: =BASEOld!C144 -> Viennoiserie | C144: =BASEOld!D144 -> Croissant au beurre 60g prêt à cuire | D144: =BASEOld!H144 -> 84 | E144: =BASEOld!I144 -> CT | F144: =BASEOld!K144 -> 0.2 | G144: =BASEOld!L144 -> 0 | J144: 0 | K144: 0
A145: =BASEOld!B145 -> Goûter / PDJ | B145: =BASEOld!C145 -> Viennoiserie | C145: =BASEOld!D145 -> Croissant cuit surgelé 40g x 10 | D145: =BASEOld!H145 -> 1 | E145: =BASEOld!I145 -> SHT | F145: =BASEOld!K145 -> 2.78 | G145: =BASEOld!L145 -> 0 | J145: 0 | K145: 0
A146: =BASEOld!B146 -> PDJ | B146: =BASEOld!C146 -> Confiture | C146: =BASEOld!D146 -> Confiture abricot pot 1kg | D146: =BASEOld!H146 -> 6 | E146: =BASEOld!I146 -> CT | F146: =BASEOld!K146 -> 1.71 | G146: =BASEOld!L146 -> 0 | J146: 0 | K146: 0
A147: =BASEOld!B147 -> PDJ | B147: =BASEOld!C147 -> Confiture | C147: =BASEOld!D147 -> Confiture fraise pot 1Kg | D147: =BASEOld!H147 -> 6 | E147: =BASEOld!I147 -> CT | F147: =BASEOld!K147 -> 2.17 | G147: =BASEOld!L147 -> 0 | J147: 0 | K147: 0
A148: =BASEOld!B148 -> PDJ | B148: =BASEOld!C148 -> Confiture | C148: =BASEOld!D148 -> Confiture myrtille pot 1kg | D148: =BASEOld!H148 -> 6 | E148: =BASEOld!I148 -> CT | F148: =BASEOld!K148 -> 5.61 | G148: =BASEOld!L148 -> 0 | J148: 0 | K148: 0
A149: =BASEOld!B149 -> PDJ | B149: =BASEOld!C149 -> Confiture | C149: =BASEOld!D149 -> Confitures assorties en coupelle 5 parfums 30g | D149: =BASEOld!H149 -> 120 | E149: =BASEOld!I149 -> CT | F149: =BASEOld!K149 -> 0.06 | G149: =BASEOld!L149 -> 0 | J149: 0 | K149: 0
A150: =BASEOld!B150 -> PDJ | B150: =BASEOld!C150 -> Confiture | C150: =BASEOld!D150 -> Gelée de groseille pot 450g | D150: =BASEOld!H150 -> 1 | E150: =BASEOld!I150 -> POT | F150: =BASEOld!K150 -> 1.07 | G150: =BASEOld!L150 -> 0 | J150: 0 | K150: 0
A151: =BASEOld!B151 -> PDJ | B151: =BASEOld!C151 -> Confiture | C151: =BASEOld!D151 -> Marmelade orange pot 1Kg | D151: =BASEOld!H151 -> 6 | E151: =BASEOld!I151 -> LOT | F151: =BASEOld!K151 -> 2.18 | G151: =BASEOld!L151 -> 0 | J151: 0 | K151: 0
A152: =BASEOld!B152 -> PDJ | B152: =BASEOld!C152 -> Divers | C152: =BASEOld!D152 -> Beurre micro pain 10g x 100 | D152: =BASEOld!H152 -> 1 | E152: =BASEOld!I152 -> KG | F152: =BASEOld!K152 -> 5.61 | G152: =BASEOld!L152 -> 0 | J152: 0 | K152: 0
A153: =BASEOld!B153 -> PDJ | B153: =BASEOld!C153 -> Divers | C153: =BASEOld!D153 -> Beurre tablette 250 gr | D153: =BASEOld!H153 -> 1 | E153: =BASEOld!I153 -> PCE | F153: =BASEOld!K153 -> 1.28 | G153: =BASEOld!L153 -> 0 | J153: 0 | K153: 0
A154: =BASEOld!B154 -> PDJ | B154: =BASEOld!C154 -> Divers | C154: =BASEOld!D154 -> Beurre tendre tartinable 40% MG 1Kg | D154: =BASEOld!H154 -> 1 | E154: =BASEOld!I154 -> KG | F154: =BASEOld!K154 -> 5.41 | G154: =BASEOld!L154 -> 0 | J154: 0 | K154: 0
A155: =BASEOld!B155 -> 0 | B155: =BASEOld!C155 -> 0 | C155: =BASEOld!D155 -> Agitateurs 113mm | D155: =BASEOld!H155 -> 1 | E155: =BASEOld!I155 -> SHT | F155: =BASEOld!K155 -> 2.95 | G155: =BASEOld!L155 -> 0 | J155: 0 | K155: 0
A156: =BASEOld!B156 -> 0 | B156: =BASEOld!C156 -> 0 | C156: =BASEOld!D156 -> Anthésite anis Ss sucre 13Cl | D156: =BASEOld!H156 -> 1 | E156: =BASEOld!I156 -> FLC | F156: =BASEOld!K156 -> 6 | G156: =BASEOld!L156 -> 0 | J156: 0 | K156: 0
A157: =BASEOld!B157 -> 0 | B157: =BASEOld!C157 -> 0 | C157: =BASEOld!D157 -> Arlequin de fruits 5/1 | D157: =BASEOld!H157 -> 1 | E157: =BASEOld!I157 -> BTE | F157: =BASEOld!K157 -> 5.36 | G157: =BASEOld!L157 -> 0 | J157: 0 | K157: 0
A158: =BASEOld!B158 -> 0 | B158: =BASEOld!C158 -> 0 | C158: =BASEOld!D158 -> Assiette à dessertx100 | D158: =BASEOld!H158 -> 1 | E158: =BASEOld!I158 -> st | F158: =BASEOld!K158 -> 3.43 | G158: =BASEOld!L158 -> 0 | J158: 0 | K158: 0
A159: =BASEOld!B159 -> 0 | B159: =BASEOld!C159 -> 0 | C159: =BASEOld!D159 -> Barquette charcutiere 125cc x500 | D159: =BASEOld!H159 -> 1 | E159: =BASEOld!I159 -> SHT | F159: =BASEOld!K159 -> 4.22 | G159: =BASEOld!L159 -> 0 | J159: 0 | K159: 0
A160: =BASEOld!B160 -> 0 | B160: =BASEOld!C160 -> 0 | C160: =BASEOld!D160 -> Barquette choco 120g | D160: =BASEOld!H160 -> 4 | E160: =BASEOld!I160 -> LOT | F160: =BASEOld!K160 -> 1.54 | G160: =BASEOld!L160 -> 0 | J160: 0 | K160: 0
A161: =BASEOld!B161 -> 0 | B161: =BASEOld!C161 -> 0 | C161: =BASEOld!D161 -> Barquette fraise 120g | D161: =BASEOld!H161 -> 4 | E161: =BASEOld!I161 -> LOT | F161: =BASEOld!K161 -> 1.54 | G161: =BASEOld!L161 -> 0 | J161: 0 | K161: 0
A162: =BASEOld!B162 -> 0 | B162: =BASEOld!C162 -> 0 | C162: =BASEOld!D162 -> Barre pâtissiere | D162: =BASEOld!H162 -> 1 | E162: =BASEOld!I162 -> PCE | F162: =BASEOld!K162 -> 1.49 | G162: =BASEOld!L162 -> 0 | J162: 0 | K162: 0
A163: =BASEOld!B163 -> 0 | B163: =BASEOld!C163 -> 0 | C163: =BASEOld!D163 -> Bière Kronembourg boite 33cl | D163: =BASEOld!H163 -> 24 | E163: =BASEOld!I163 -> CT | F163: =BASEOld!K163 -> 0.7 | G163: =BASEOld!L163 -> 0 | J163: 0 | K163: 0
A164: =BASEOld!B164 -> 0 | B164: =BASEOld!C164 -> 0 | C164: =BASEOld!D164 -> Biscotte 2 tranches | D164: =BASEOld!H164 -> 208 | E164: =BASEOld!I164 -> CT | F164: =BASEOld!K164 -> 0.05 | G164: =BASEOld!L164 -> 0 | J164: 0 | K164: 0
A165: =BASEOld!B165 -> 0 | B165: =BASEOld!C165 -> 0 | C165: =BASEOld!D165 -> Biscotte 2T x208 sans sel | D165: =BASEOld!H165 -> 1 | E165: =BASEOld!I165 -> CT | F165: =BASEOld!K165 -> 9.46 | G165: =BASEOld!L165 -> 0 | J165: 0 | K165: 0
A166: =BASEOld!B166 -> 0 | B166: =BASEOld!C166 -> 0 | C166: =BASEOld!D166 -> Biscotte paquet 72 tranches 580g | D166: =BASEOld!H166 -> 12 | E166: =BASEOld!I166 -> CT | F166: =BASEOld!K166 -> 1.19 | G166: =BASEOld!L166 -> 0 | J166: 0 | K166: 0
A167: =BASEOld!B167 -> 0 | B167: =BASEOld!C167 -> 0 | C167: =BASEOld!D167 -> Biscuits apéritif Belin boîte 720g | D167: =BASEOld!H167 -> 1 | E167: =BASEOld!I167 -> BTE | F167: =BASEOld!K167 -> 5.55 | G167: =BASEOld!L167 -> 0 | J167: 0 | K167: 0
A168: =BASEOld!B168 -> 0 | B168: =BASEOld!C168 -> 0 | C168: =BASEOld!D168 -> Blédine biscuitée paquet 500g | D168: =BASEOld!H168 -> 1 | E168: =BASEOld!I168 -> PQ | F168: =BASEOld!K168 -> 3.33 | G168: =BASEOld!L168 -> 0 | J168: 0 | K168: 0
A169: =BASEOld!B169 -> 0 | B169: =BASEOld!C169 -> 0 | C169: =BASEOld!D169 -> Blédine céréales-vanille paquet 500g | D169: =BASEOld!H169 -> 1 | E169: =BASEOld!I169 -> PQ | F169: =BASEOld!K169 -> 3.33 | G169: =BASEOld!L169 -> 0 | J169: 0 | K169: 0
A170: =BASEOld!B170 -> 0 | B170: =BASEOld!C170 -> 0 | C170: =BASEOld!D170 -> Blédine chocolat paquet 500g | D170: =BASEOld!H170 -> 1 | E170: =BASEOld!I170 -> PQ | F170: =BASEOld!K170 -> 3.33 | G170: =BASEOld!L170 -> 0 | J170: 0 | K170: 0
A171: =BASEOld!B171 -> 0 | B171: =BASEOld!C171 -> 0 | C171: =BASEOld!D171 -> Boudoirs 400g | D171: =BASEOld!H171 -> 1 | E171: =BASEOld!I171 -> PCE | F171: =BASEOld!K171 -> 1.62 | G171: =BASEOld!L171 -> 0 | J171: 0 | K171: 0
A172: =BASEOld!B172 -> 0 | B172: =BASEOld!C172 -> 0 | C172: =BASEOld!D172 -> Boudoirs ration 190 x 2 2,2Kg | D172: =BASEOld!H172 -> 1 | E172: =BASEOld!I172 -> CT | F172: =BASEOld!K172 -> 11.43 | G172: =BASEOld!L172 -> 0 | J172: 0 | K172: 0
A173: =BASEOld!B173 -> 0 | B173: =BASEOld!C173 -> 0 | C173: =BASEOld!D173 -> Brioche tranchée 500g | D173: =BASEOld!H173 -> 7 | E173: =BASEOld!I173 -> CT | F173: =BASEOld!K173 -> 1.79 | G173: =BASEOld!L173 -> 0 | J173: 0 | K173: 0
A174: =BASEOld!B174 -> 0 | B174: =BASEOld!C174 -> 0 | C174: =BASEOld!D174 -> Café moulu 100%A 250g x 12 | D174: =BASEOld!H174 -> 12 | E174: =BASEOld!I174 -> LOT | F174: =BASEOld!K174 -> 1.26 | G174: =BASEOld!L174 -> 0 | J174: 0 | K174: 0
A175: =BASEOld!B175 -> 0 | B175: =BASEOld!C175 -> 0 | C175: =BASEOld!D175 -> Café sol (60kf 40chic) dse L15g x 100 | D175: =BASEOld!H175 -> 1 | E175: =BASEOld!I175 -> CT | F175: =BASEOld!K175 -> 23.29 | G175: =BASEOld!L175 -> 0 | J175: 0 | K175: 0
A176: =BASEOld!B176 -> 0 | B176: =BASEOld!C176 -> 0 | C176: =BASEOld!D176 -> Café soluble Nescafé dose 2g | D176: =BASEOld!H176 -> 300 | E176: =BASEOld!I176 -> CT | F176: =BASEOld!K176 -> 0.11 | G176: =BASEOld!L176 -> 0 | J176: 0 | K176: 0
A177: =BASEOld!B177 -> 0 | B177: =BASEOld!C177 -> 0 | C177: =BASEOld!D177 -> Café soluble Nescafé dose 2g décaféiné | D177: =BASEOld!H177 -> 300 | E177: =BASEOld!I177 -> CT | F177: =BASEOld!K177 -> 0.13 | G177: =BASEOld!L177 -> 0 | J177: 0 | K177: 0
A178: =BASEOld!B178 -> 0 | B178: =BASEOld!C178 -> 0 | C178: =BASEOld!D178 -> Café soluble Nescoré (60%café/40%chicorée) poche 500g | D178: =BASEOld!H178 -> 12 | E178: =BASEOld!I178 -> CT | F178: =BASEOld!K178 -> 8.76 | G178: =BASEOld!L178 -> 0 | J178: 0 | K178: 0
A179: =BASEOld!B179 -> 0 | B179: =BASEOld!C179 -> 0 | C179: =BASEOld!D179 -> Café soluble Sagy (60% café/40% chicorée) poche 500g | D179: =BASEOld!H179 -> 10 | E179: =BASEOld!I179 -> CT | F179: =BASEOld!K179 -> 5.89 | G179: =BASEOld!L179 -> 0 | J179: 0 | K179: 0
A180: =BASEOld!B180 -> 0 | B180: =BASEOld!C180 -> 0 | C180: =BASEOld!D180 -> Café soluble Sagy dose 2g | D180: =BASEOld!H180 -> 300 | E180: =BASEOld!I180 -> CT | F180: =BASEOld!K180 -> 0.06 | G180: =BASEOld!L180 -> 0 | J180: 0 | K180: 0
A181: =BASEOld!B181 -> 0 | B181: =BASEOld!C181 -> 0 | C181: =BASEOld!D181 -> Carré fourré amandes 40g | D181: =BASEOld!H181 -> 100 | E181: =BASEOld!I181 -> CT | F181: =BASEOld!K181 -> 0.21 | G181: =BASEOld!L181 -> 0 | J181: 0 | K181: 0
A182: =BASEOld!B182 -> 0 | B182: =BASEOld!C182 -> 0 | C182: =BASEOld!D182 -> Charlotte clip TU x 100 | D182: =BASEOld!H182 -> 1 | E182: =BASEOld!I182 -> PQ | F182: =BASEOld!K182 -> 2.75 | G182: =BASEOld!L182 -> 0 | J182: 0 | K182: 0
A183: =BASEOld!B183 -> 0 | B183: =BASEOld!C183 -> 0 | C183: =BASEOld!D183 -> Chips paquet 500g | D183: =BASEOld!H183 -> 1 | E183: =BASEOld!I183 -> Pce | F183: =BASEOld!K183 -> 1.62 | G183: =BASEOld!L183 -> 0 | J183: 0 | K183: 0
A184: =BASEOld!B184 -> 0 | B184: =BASEOld!C184 -> 0 | C184: =BASEOld!D184 -> Chocolat au lait tablette 100g | D184: =BASEOld!H184 -> 5 | E184: =BASEOld!I184 -> LOT | F184: =BASEOld!K184 -> 0.41 | G184: =BASEOld!L184 -> 0 | J184: 0 | K184: 0
A185: =BASEOld!B185 -> 0 | B185: =BASEOld!C185 -> 0 | C185: =BASEOld!D185 -> Chocolat en poudre dose 20g | D185: =BASEOld!H185 -> 200 | E185: =BASEOld!I185 -> ct | F185: =BASEOld!K185 -> 0.07 | G185: =BASEOld!L185 -> 0 | J185: 0 | K185: 0
A186: =BASEOld!B186 -> 0 | B186: =BASEOld!C186 -> 0 | C186: =BASEOld!D186 -> Chocolat petit déjeuner paquet 1Kg | D186: =BASEOld!H186 -> 1 | E186: =BASEOld!I186 -> BTE | F186: =BASEOld!K186 -> 2.79 | G186: =BASEOld!L186 -> 0 | J186: 0 | K186: 0
A187: =BASEOld!B187 -> 0 | B187: =BASEOld!C187 -> 0 | C187: =BASEOld!D187 -> Cidre bouché brut 75Cl | D187: =BASEOld!H187 -> 6 | E187: =BASEOld!I187 -> CT | F187: =BASEOld!K187 -> 1.27 | G187: =BASEOld!L187 -> 0 | J187: 0 | K187: 0
A188: =BASEOld!B188 -> 0 | B188: =BASEOld!C188 -> 0 | C188: =BASEOld!D188 -> Cidre bouché doux 75Cl | D188: =BASEOld!H188 -> 6 | E188: =BASEOld!I188 -> CT | F188: =BASEOld!K188 -> 1.27 | G188: =BASEOld!L188 -> 0 | J188: 0 | K188: 0
A189: =BASEOld!B189 -> 0 | B189: =BASEOld!C189 -> 0 | C189: =BASEOld!D189 -> Cigarettes croustillantes 1Kg | D189: =BASEOld!H189 -> 1 | E189: =BASEOld!I189 -> BTE | F189: =BASEOld!K189 -> 10.25 | G189: =BASEOld!L189 -> 0 | J189: 0 | K189: 0
A190: =BASEOld!B190 -> 0 | B190: =BASEOld!C190 -> 0 | C190: =BASEOld!D190 -> Citron | D190: =BASEOld!H190 -> 1 | E190: =BASEOld!I190 -> KG | F190: =BASEOld!K190 -> 1.54 | G190: =BASEOld!L190 -> 0 | J190: 0 | K190: 0
A191: =BASEOld!B191 -> 0 | B191: =BASEOld!C191 -> 0 | C191: =BASEOld!D191 -> Coca cola 1,5L | D191: =BASEOld!H191 -> 12 | E191: =BASEOld!I191 -> CT | F191: =BASEOld!K191 -> 1.67 | G191: =BASEOld!L191 -> 0 | J191: 0 | K191: 0
A192: =BASEOld!B192 -> 0 | B192: =BASEOld!C192 -> 0 | C192: =BASEOld!D192 -> Coca cola zéro ou light 1,5L | D192: =BASEOld!H192 -> 12 | E192: =BASEOld!I192 -> CT | F192: =BASEOld!K192 -> 1.54 | G192: =BASEOld!L192 -> 0 | J192: 0 | K192: 0
A193: =BASEOld!B193 -> 0 | B193: =BASEOld!C193 -> 0 | C193: =BASEOld!D193 -> Cocktail de fruits sans sucre 90g | D193: =BASEOld!H193 -> 120 | E193: =BASEOld!I193 -> CT | F193: =BASEOld!K193 -> 0.28 | G193: =BASEOld!L193 -> 0 | J193: 0 | K193: 0
A194: =BASEOld!B194 -> 0 | B194: =BASEOld!C194 -> 0 | C194: =BASEOld!D194 -> Compote de pomme 100g | D194: =BASEOld!H194 -> 120 | E194: =BASEOld!I194 -> CT | F194: =BASEOld!K194 -> 0.12 | G194: =BASEOld!L194 -> 0 | J194: 0 | K194: 0
A195: =BASEOld!B195 -> 0 | B195: =BASEOld!C195 -> 0 | C195: =BASEOld!D195 -> Compote pomme/abricot 100g | D195: =BASEOld!H195 -> 120 | E195: =BASEOld!I195 -> CT | F195: =BASEOld!K195 -> 0.21 | G195: =BASEOld!L195 -> 0 | J195: 0 | K195: 0
A196: =BASEOld!B196 -> 0 | B196: =BASEOld!C196 -> 0 | C196: =BASEOld!D196 -> Compote pomme/banane 100g | D196: =BASEOld!H196 -> 120 | E196: =BASEOld!I196 -> CT | F196: =BASEOld!K196 -> 0.21 | G196: =BASEOld!L196 -> 0 | J196: 0 | K196: 0
A197: =BASEOld!B197 -> 0 | B197: =BASEOld!C197 -> 0 | C197: =BASEOld!D197 -> Compote pomme/cassis 100g | D197: =BASEOld!H197 -> 120 | E197: =BASEOld!I197 -> CT | F197: =BASEOld!K197 -> 0.17 | G197: =BASEOld!L197 -> 0 | J197: 0 | K197: 0
A198: =BASEOld!B198 -> 0 | B198: =BASEOld!C198 -> 0 | C198: =BASEOld!D198 -> Cornichons pot 72cl | D198: =BASEOld!H198 -> 6 | E198: =BASEOld!I198 -> CT | F198: =BASEOld!K198 -> 2.15 | G198: =BASEOld!L198 -> 0 | J198: 0 | K198: 0
A199: =BASEOld!B199 -> 0 | B199: =BASEOld!C199 -> 0 | C199: =BASEOld!D199 -> Crème anglaise 1L | D199: =BASEOld!H199 -> 1 | E199: =BASEOld!I199 -> PCE | F199: =BASEOld!K199 -> 1.76 | G199: =BASEOld!L199 -> 0 | J199: =H199*D199*F199 -> 0 | K199: =I199*F199*D199 -> 0
A200: =BASEOld!B200 -> 0 | B200: =BASEOld!C200 -> 0 | C200: =BASEOld!D200 -> Crème de cassis 16° 70Cl | D200: =BASEOld!H200 -> 1 | E200: =BASEOld!I200 -> BLLE | F200: =BASEOld!K200 -> 6.24 | G200: =BASEOld!L200 -> 0 | J200: 0 | K200: 0
A201: =BASEOld!B201 -> 0 | B201: =BASEOld!C201 -> 0 | C201: =BASEOld!D201 -> Crème pâtissière à froid 2,5Kg | D201: =BASEOld!H201 -> 4 | E201: =BASEOld!I201 -> CT | F201: =BASEOld!K201 -> 6.88 | G201: =BASEOld!L201 -> 0 | J201: 0 | K201: 0
... 300 more rows

Sheet Les Romarins
A1: =MID(CELL("filename",A1),FIND("]",CELL("filename",A1))+1,32) -> Les Romarins | C1: Livraison du | D1: =BASEOld!J1 -> 2015-02-18 | F1: au | G1: =D1+6 -> 2015-02-24
D2: Date de dépôt | G2: =TODAY() -> 2015-02-24 | N2: Produits plus spécifiques à noter vous-même selon vos besoins
A3: Bon de commande Produits annexes
A5: FR | B5: FAMILLE | C5: Intitulés produits | D5: CDT | E5: U/F | F5: Prix HT € | G5: TVA | H5: Qté com | I5: Qté liv | J5: M. T. HT € prévisionnel | K5: M. T. HT € facturé
A6: =BASEOld!B6 -> Divers | B6: =BASEOld!C6 -> 0 | C6: =BASEOld!D6 -> Emmental rapé 1 KG | D6: =BASEOld!H6 -> 1 | E6: =BASEOld!I6 -> SHT | F6: =BASEOld!K6 -> 5.39 | G6: =BASEOld!L6 -> 0 | J6: =H6*D6*F6 -> 0 | K6: =I6*F6*D6 -> 0
A7: =BASEOld!B7 -> Divers | B7: =BASEOld!C7 -> 0 | C7: =BASEOld!D7 -> Jambon de Paris 10 tranches 400g | D7: =BASEOld!H7 -> 1 | E7: =BASEOld!I7 -> PQT | F7: =BASEOld!K7 -> 2.94 | G7: =BASEOld!L7 -> 0 | J7: =H7*D7*F7 -> 0 | K7: =I7*F7*D7 -> 0 | N7: Prévisionnel sur commande | Q7: Réel sur livraison
A8: =BASEOld!B8 -> Divers | B8: =BASEOld!C8 -> 0 | C8: =BASEOld!D8 -> Jambon de Paris 20 tranches 800g | D8: =BASEOld!H8 -> 1 | E8: =BASEOld!I8 -> PQT | F8: =BASEOld!K8 -> 4.05 | G8: =BASEOld!L8 -> 0 | J8: 0 | K8: 0 | N8: TOTAL H.T TVA 5,5% | O8: =SUMIF(G6:G501,N12,J6:J501) -> 0 | Q8: TOTAL H.T TVA 5,5% | R8: =SUMIF(I6:I501,N12,K6:K501) -> 0
A9: =BASEOld!B9 -> Divers | B9: =BASEOld!C9 -> 0 | C9: =BASEOld!D9 -> Jambon de Paris hyposodé 10 tranches 450g | D9: =BASEOld!H9 -> 1 | E9: =BASEOld!I9 -> PQT | F9: =BASEOld!K9 -> 3.5 | G9: =BASEOld!L9 -> 0 | J9: 0 | K9: 0 | N9: TOTAL H.T TVA 20% | O9: =SUMIF(G6:G501,N13,J6:J501) -> 0 | Q9: TOTAL H.T TVA 20% | R9: =SUMIF(I6:I501,N13,K6:K501) -> 0
A10: =BASEOld!B10 -> Goûter | B10: =BASEOld!C10 -> Biscuit à partager | C10: =BASEOld!D10 -> Cake marbré 400g (moule alu) | D10: =BASEOld!H10 -> 6 | E10: =BASEOld!I10 -> LOT | F10: =BASEOld!K10 -> 1.65 | G10: =BASEOld!L10 -> 0 | J10: 0 | K10: 0 | N10: TOTAL H.T TVA 20% non alimentaire | O10: =SUMIF(G6:G501,N14,J6:J501) -> 0 | Q10: TOTAL H.T TVA 20% non alimentaire | R10: =SUMIF(I6:I501,N14,K6:K501) -> 0
A11: =BASEOld!B11 -> Goûter | B11: =BASEOld!C11 -> Biscuit à partager | C11: =BASEOld!D11 -> Cake parfum chocolat 400g (moule alu) | D11: =BASEOld!H11 -> 6 | E11: =BASEOld!I11 -> LOT | F11: =BASEOld!K11 -> 1.65 | G11: =BASEOld!L11 -> 0 | J11: 0 | K11: 0
A12: =BASEOld!B12 -> Goûter | B12: =BASEOld!C12 -> Biscuit à partager | C12: =BASEOld!D12 -> Cake parfum kiwi 400g (moule alu) | D12: =BASEOld!H12 -> 6 | E12: =BASEOld!I12 -> LOT | F12: =BASEOld!K12 -> 1.65 | G12: =BASEOld!L12 -> 0 | J12: 0 | K12: 0 | N12: 0.055
A13: =BASEOld!B13 -> Goûter | B13: =BASEOld!C13 -> Biscuit à partager | C13: =BASEOld!D13 -> Roulade chocolat 300g | D13: =BASEOld!H13 -> 7 | E13: =BASEOld!I13 -> CT | F13: =BASEOld!K13 -> 1.65 | G13: =BASEOld!L13 -> 0 | J13: 0 | K13: 0 | N13: 0.2
A14: =BASEOld!B14 -> Goûter | B14: =BASEOld!C14 -> Biscuit à partager | C14: =BASEOld!D14 -> Roulade fraise 300g | D14: =BASEOld!H14 -> 7 | E14: =BASEOld!I14 -> CT | F14: =BASEOld!K14 -> 1.65 | G14: =BASEOld!L14 -> 0 | J14: 0 | K14: 0 | N14: 20% NA
A15: =BASEOld!B15 -> Goûter | B15: =BASEOld!C15 -> Biscuit à partager | C15: =BASEOld!D15 -> Roulade myrtille 300g | D15: =BASEOld!H15 -> 7 | E15: =BASEOld!I15 -> CT | F15: =BASEOld!K15 -> 1.65 | G15: =BASEOld!L15 -> 0 | J15: 0 | K15: 0
A16: =BASEOld!B16 -> Goûter | B16: =BASEOld!C16 -> Biscuit individuel | C16: =BASEOld!D16 -> Financier aux amandes 20g | D16: =BASEOld!H16 -> 150 | E16: =BASEOld!I16 -> CT | F16: =BASEOld!K16 -> 0.24 | G16: =BASEOld!L16 -> 0 | J16: 0 | K16: 0
A17: =BASEOld!B17 -> Goûter | B17: =BASEOld!C17 -> Biscuit individuel | C17: =BASEOld!D17 -> Gaufrette chocolat 20g | D17: =BASEOld!H17 -> 320 | E17: =BASEOld!I17 -> CT | F17: =BASEOld!K17 -> 0.11 | G17: =BASEOld!L17 -> 0 | J17: 0 | K17: 0
A18: =BASEOld!B18 -> Goûter | B18: =BASEOld!C18 -> Biscuit individuel | C18: =BASEOld!D18 -> Gaufrette vanille 20g | D18: =BASEOld!H18 -> 320 | E18: =BASEOld!I18 -> CT | F18: =BASEOld!K18 -> 0.11 | G18: =BASEOld!L18 -> 0 | J18: 0 | K18: 0
A19: =BASEOld!B19 -> Goûter | B19: =BASEOld!C19 -> Biscuit individuel | C19: =BASEOld!D19 -> Goûter fourré choco x 2 x 37g | D19: =BASEOld!H19 -> 144 | E19: =BASEOld!I19 -> CT | F19: =BASEOld!K19 -> 0.18 | G19: =BASEOld!L19 -> 0 | J19: 0 | K19: 0
A20: =BASEOld!B20 -> Goûter | B20: =BASEOld!C20 -> Biscuit individuel | C20: =BASEOld!D20 -> Lingot fondant orange 20g | D20: =BASEOld!H20 -> 150 | E20: =BASEOld!I20 -> CT | F20: =BASEOld!K20 -> 0.25 | G20: =BASEOld!L20 -> 0 | J20: 0 | K20: 0
A21: =BASEOld!B21 -> Goûter | B21: =BASEOld!C21 -> Biscuit individuel | C21: =BASEOld!D21 -> Madeleine carrée fourrée abricot 40g | D21: =BASEOld!H21 -> 50 | E21: =BASEOld!I21 -> CT | F21: =BASEOld!K21 -> 0.18 | G21: =BASEOld!L21 -> 0 | J21: 0 | K21: 0
A22: =BASEOld!B22 -> Goûter | B22: =BASEOld!C22 -> Biscuit individuel | C22: =BASEOld!D22 -> Madeleine carrée fourrée chocolat 40g | D22: =BASEOld!H22 -> 50 | E22: =BASEOld!I22 -> CT | F22: =BASEOld!K22 -> 0.18 | G22: =BASEOld!L22 -> 0 | J22: 0 | K22: 0
A23: =BASEOld!B23 -> Goûter | B23: =BASEOld!C23 -> Biscuit individuel | C23: =BASEOld!D23 -> Madeleine carrée fourrée fraise 40g | D23: =BASEOld!H23 -> 50 | E23: =BASEOld!I23 -> CT | F23: =BASEOld!K23 -> 0.18 | G23: =BASEOld!L23 -> 0 | J23: 0 | K23: 0
A24: =BASEOld!B24 -> Goûter | B24: =BASEOld!C24 -> Biscuit individuel | C24: =BASEOld!D24 -> Madeleine carrée fourrée fruits des bois 40g | D24: =BASEOld!H24 -> 50 | E24: =BASEOld!I24 -> CT | F24: =BASEOld!K24 -> 0.18 | G24: =BASEOld!L24 -> 0 | J24: 0 | K24: 0
A25: =BASEOld!B25 -> Goûter | B25: =BASEOld!C25 -> Biscuit individuel | C25: =BASEOld!D25 -> Madeleine carrée nature 30g | D25: =BASEOld!H25 -> 56 | E25: =BASEOld!I25 -> CT | F25: =BASEOld!K25 -> 0.22 | G25: =BASEOld!L25 -> 0 | J25: 0 | K25: 0
A26: =BASEOld!B26 -> Goûter | B26: =BASEOld!C26 -> Biscuit individuel | C26: =BASEOld!D26 -> Madeleine coquille aux œufs 25g | D26: =BASEOld!H26 -> 120 | E26: =BASEOld!I26 -> CT | F26: =BASEOld!K26 -> 0.07 | G26: =BASEOld!L26 -> 0 | J26: 0 | K26: 0
A27: =BASEOld!B27 -> Goûter | B27: =BASEOld!C27 -> Biscuit individuel | C27: =BASEOld!D27 -> Madeleine nappée chocolat 20g | D27: =BASEOld!H27 -> 120 | E27: =BASEOld!I27 -> CT | F27: =BASEOld!K27 -> 0.18 | G27: =BASEOld!L27 -> 0 | J27: 0 | K27: 0
A28: =BASEOld!B28 -> Goûter | B28: =BASEOld!C28 -> Biscuit individuel | C28: =BASEOld!D28 -> Mini cake fourré crème de lait 30g | D28: =BASEOld!H28 -> 120 | E28: =BASEOld!I28 -> CT | F28: =BASEOld!K28 -> 0.14 | G28: =BASEOld!L28 -> 0 | J28: 0 | K28: 0
A29: =BASEOld!B29 -> Goûter | B29: =BASEOld!C29 -> Biscuit individuel | C29: =BASEOld!D29 -> Mini génoise abricot 25g | D29: =BASEOld!H29 -> 120 | E29: =BASEOld!I29 -> CT | F29: =BASEOld!K29 -> 0.17 | G29: =BASEOld!L29 -> 0 | J29: 0 | K29: 0
A30: =BASEOld!B30 -> Goûter | B30: =BASEOld!C30 -> Biscuit individuel | C30: =BASEOld!D30 -> Mini génoise chocolat 25g | D30: =BASEOld!H30 -> 120 | E30: =BASEOld!I30 -> CT | F30: =BASEOld!K30 -> 0.17 | G30: =BASEOld!L30 -> 0 | J30: 0 | K30: 0
A31: =BASEOld!B31 -> Goûter | B31: =BASEOld!C31 -> Biscuit individuel | C31: =BASEOld!D31 -> Mini génoise fraise 25g | D31: =BASEOld!H31 -> 120 | E31: =BASEOld!I31 -> CT | F31: =BASEOld!K31 -> 0.17 | G31: =BASEOld!L31 -> 0 | J31: 0 | K31: 0
A32: =BASEOld!B32 -> Goûter | B32: =BASEOld!C32 -> Biscuit individuel | C32: =BASEOld!D32 -> Mini génoise nappée chocolat / fourrée chocolat 35g | D32: =BASEOld!H32 -> 120 | E32: =BASEOld!I32 -> CT | F32: =BASEOld!K32 -> 0.2 | G32: =BASEOld!L32 -> 0 | J32: 0 | K32: 0
A33: =BASEOld!B33 -> Goûter | B33: =BASEOld!C33 -> Biscuit individuel | C33: =BASEOld!D33 -> Mini génoise tiramisu 25g | D33: =BASEOld!H33 -> 120 | E33: =BASEOld!I33 -> CT | F33: =BASEOld!K33 -> 0.17 | G33: =BASEOld!L33 -> 0 | J33: 0 | K33: 0
A34: =BASEOld!B34 -> Goûter | B34: =BASEOld!C34 -> Biscuit individuel | C34: =BASEOld!D34 -> Mini marbré chocolat 30g | D34: =BASEOld!H34 -> 120 | E34: =BASEOld!I34 -> CT | F34: =BASEOld!K34 -> 0.14 | G34: =BASEOld!L34 -> 0 | J34: 0 | K34: 0
A35: =BASEOld!B35 -> Goûter | B35: =BASEOld!C35 -> Biscuit individuel | C35: =BASEOld!D35 -> Mini moelleux fourré abricot 30g | D35: =BASEOld!H35 -> 120 | E35: =BASEOld!I35 -> CT | F35: =BASEOld!K35 -> 0.12 | G35: =BASEOld!L35 -> 0 | J35: 0 | K35: 0
A36: =BASEOld!B36 -> Goûter | B36: =BASEOld!C36 -> Biscuit individuel | C36: =BASEOld!D36 -> Mini moelleux fourré cacao 30g | D36: =BASEOld!H36 -> 130 | E36: =BASEOld!I36 -> CT | F36: =BASEOld!K36 -> 0.12 | G36: =BASEOld!L36 -> 0 | J36: 0 | K36: 0
A37: =BASEOld!B37 -> Goûter | B37: =BASEOld!C37 -> Biscuit individuel | C37: =BASEOld!D37 -> Mini moelleux fourré cacao-noisette 30g | D37: =BASEOld!H37 -> 120 | E37: =BASEOld!I37 -> CT | F37: =BASEOld!K37 -> 0.12 | G37: =BASEOld!L37 -> 0 | J37: 0 | K37: 0
A38: =BASEOld!B38 -> Goûter | B38: =BASEOld!C38 -> Biscuit individuel | C38: =BASEOld!D38 -> Mini moelleux fourré citron 30g | D38: =BASEOld!H38 -> 100 | E38: =BASEOld!I38 -> CT | F38: =BASEOld!K38 -> 0.12 | G38: =BASEOld!L38 -> 0 | J38: 0 | K38: 0
A39: =BASEOld!B39 -> Goûter | B39: =BASEOld!C39 -> Biscuit individuel | C39: =BASEOld!D39 -> Mini moelleux fourré fraise 30g | D39: =BASEOld!H39 -> 120 | E39: =BASEOld!I39 -> CT | F39: =BASEOld!K39 -> 0.1 | G39: =BASEOld!L39 -> 0 | J39: 0 | K39: 0
A40: =BASEOld!B40 -> Goûter | B40: =BASEOld!C40 -> Biscuit individuel | C40: =BASEOld!D40 -> Mini moelleux fourré fruits rouges 30g | D40: =BASEOld!H40 -> 100 | E40: =BASEOld!I40 -> CT | F40: =BASEOld!K40 -> 0.12 | G40: =BASEOld!L40 -> 0 | J40: 0 | K40: 0
A41: =BASEOld!B41 -> Goûter | B41: =BASEOld!C41 -> Biscuit individuel | C41: =BASEOld!D41 -> Moelleux amande 40g | D41: =BASEOld!H41 -> 100 | E41: =BASEOld!I41 -> CT | F41: =BASEOld!K41 -> 0.21 | G41: =BASEOld!L41 -> 0 | J41: 0 | K41: 0
A42: =BASEOld!B42 -> Goûter | B42: =BASEOld!C42 -> Biscuit individuel | C42: =BASEOld!D42 -> Moelleux chocolat 40g | D42: =BASEOld!H42 -> 100 | E42: =BASEOld!I42 -> CT | F42: =BASEOld!K42 -> 0.2 | G42: =BASEOld!L42 -> 0 | J42: 0 | K42: 0
A43: =BASEOld!B43 -> Goûter | B43: =BASEOld!C43 -> Biscuit individuel | C43: =BASEOld!D43 -> Moelleux citron 40g | D43: =BASEOld!H43 -> 100 | E43: =BASEOld!I43 -> CT | F43: =BASEOld!K43 -> 0.19 | G43: =BASEOld!L43 -> 0 | J43: 0 | K43: 0
A44: =BASEOld!B44 -> Goûter | B44: =BASEOld!C44 -> Biscuit individuel | C44: =BASEOld!D44 -> Moelleux framboise 40g | D44: =BASEOld!H44 -> 100 | E44: =BASEOld!I44 -> CT | F44: =BASEOld!K44 -> 0.22 | G44: =BASEOld!L44 -> 0 | J44: 0 | K44: 0
A45: =BASEOld!B45 -> Goûter | B45: =BASEOld!C45 -> Biscuit individuel | C45: =BASEOld!D45 -> Moelleux marbré 40g | D45: =BASEOld!H45 -> 100 | E45: =BASEOld!I45 -> CT | F45: =BASEOld!K45 -> 0.2 | G45: =BASEOld!L45 -> 0 | J45: 0 | K45: 0
A46: =BASEOld!B46 -> Goûter | B46: =BASEOld!C46 -> Biscuit individuel | C46: =BASEOld!D46 -> Rocher coco nappé chocolat 40g | D46: =BASEOld!H46 -> 100 | E46: =BASEOld!I46 -> CT | F46: =BASEOld!K46 -> 0.29 | G46: =BASEOld!L46 -> 0 | J46: 0 | K46: 0
A47: =BASEOld!B47 -> Goûter | B47: =BASEOld!C47 -> Biscuit individuel | C47: =BASEOld!D47 -> Rocher coco nature 35g | D47: =BASEOld!H47 -> 100 | E47: =BASEOld!I47 -> CT | F47: =BASEOld!K47 -> 0.15 | G47: =BASEOld!L47 -> 0 | J47: 0 | K47: 0
A48: =BASEOld!B48 -> Goûter | B48: =BASEOld!C48 -> Biscuit individuel | C48: =BASEOld!D48 -> Tranche marbrée cacao 50g | D48: =BASEOld!H48 -> 48 | E48: =BASEOld!I48 -> CT | F48: =BASEOld!K48 -> 0.26 | G48: =BASEOld!L48 -> 0 | J48: 0 | K48: 0
A49: =BASEOld!B49 -> Goûter | B49: =BASEOld!C49 -> Biscuit individuel | C49: =BASEOld!D49 -> Tranche nature citron 50g | D49: =BASEOld!H49 -> 48 | E49: =BASEOld!I49 -> CT | F49: =BASEOld!K49 -> 0.26 | G49: =BASEOld!L49 -> 0 | J49: 0 | K49: 0
A50: =BASEOld!B50 -> Goûter | B50: =BASEOld!C50 -> Divers | C50: =BASEOld!D50 -> Framboise en bille surgelée 1Kg | D50: =BASEOld!H50 -> 5 | E50: =BASEOld!I50 -> CT | F50: =BASEOld!K50 -> 4.65 | G50: =BASEOld!L50 -> 0 | J50: 0 | K50: 0
A51: =BASEOld!B51 -> Goûter | B51: =BASEOld!C51 -> Divers | C51: =BASEOld!D51 -> Framboises entières surgelées Williamette 1Kg | D51: =BASEOld!H51 -> 1 | E51: =BASEOld!I51 -> SHT | F51: =BASEOld!K51 -> 3.56 | G51: =BASEOld!L51 -> 0 | J51: 0 | K51: 0
A52: =BASEOld!B52 -> Goûter | B52: =BASEOld!C52 -> Divers | C52: =BASEOld!D52 -> Griottes dénoyautées surgelées 1Kg | D52: =BASEOld!H52 -> 1 | E52: =BASEOld!I52 -> SHT | F52: =BASEOld!K52 -> 3.71 | G52: =BASEOld!L52 -> 0 | J52: 0 | K52: 0
A53: =BASEOld!B53 -> Goûter | B53: =BASEOld!C53 -> Divers | C53: =BASEOld!D53 -> Melon en bille surgelé 1Kg | D53: =BASEOld!H53 -> 1 | E53: =BASEOld!I53 -> SHT | F53: =BASEOld!K53 -> 4.24 | G53: =BASEOld!L53 -> 0 | J53: 0 | K53: 0
A54: =BASEOld!B54 -> Goûter | B54: =BASEOld!C54 -> Divers | C54: =BASEOld!D54 -> Mûre cultivée surgelée 1Kg | D54: =BASEOld!H54 -> 1 | E54: =BASEOld!I54 -> SHT | F54: =BASEOld!K54 -> 5.16 | G54: =BASEOld!L54 -> 0 | J54: 0 | K54: 0
A55: =BASEOld!B55 -> Goûter | B55: =BASEOld!C55 -> Divers | C55: =BASEOld!D55 -> Salade de fruits exotiques surgelée 1Kg | D55: =BASEOld!H55 -> 1 | E55: =BASEOld!I55 -> SHT | F55: =BASEOld!K55 -> 3.1 | G55: =BASEOld!L55 -> 0 | J55: 0 | K55: 0
A56: =BASEOld!B56 -> Goûter | B56: =BASEOld!C56 -> Gâteau à partager | C56: =BASEOld!D56 -> Bavarois cappuccino 700g | D56: =BASEOld!H56 -> 2 | E56: =BASEOld!I56 -> PCE | F56: =BASEOld!K56 -> 5.12 | G56: =BASEOld!L56 -> 0 | J56: 0 | K56: 0
A57: =BASEOld!B57 -> Goûter | B57: =BASEOld!C57 -> Gâteau à partager | C57: =BASEOld!D57 -> Bavarois parfum abricot 700 g | D57: =BASEOld!H57 -> 2 | E57: =BASEOld!I57 -> PCE | F57: =BASEOld!K57 -> 5.12 | G57: =BASEOld!L57 -> 0 | J57: 0 | K57: 0
A58: =BASEOld!B58 -> Goûter | B58: =BASEOld!C58 -> Gâteau à partager | C58: =BASEOld!D58 -> Bavarois parfum chocolat 700 g | D58: =BASEOld!H58 -> 2 | E58: =BASEOld!I58 -> PCE | F58: =BASEOld!K58 -> 5.19 | G58: =BASEOld!L58 -> 0 | J58: 0 | K58: 0
A59: =BASEOld!B59 -> Goûter | B59: =BASEOld!C59 -> Gâteau à partager | C59: =BASEOld!D59 -> Bavarois parfum framboise 700g | D59: =BASEOld!H59 -> 2 | E59: =BASEOld!I59 -> PCE | F59: =BASEOld!K59 -> 5.37 | G59: =BASEOld!L59 -> 0 | J59: 0 | K59: 0
A60: =BASEOld!B60 -> Goûter | B60: =BASEOld!C60 -> Gâteau à partager | C60: =BASEOld!D60 -> Bavarois parfum fruits rouges 700 g | D60: =BASEOld!H60 -> 2 | E60: =BASEOld!I60 -> PCE | F60: =BASEOld!K60 -> 5.12 | G60: =BASEOld!L60 -> 0 | J60: 0 | K60: 0
A61: =BASEOld!B61 -> Goûter | B61: =BASEOld!C61 -> Gâteau à partager | C61: =BASEOld!D61 -> Bavarois parfum poire 700g | D61: =BASEOld!H61 -> 2 | E61: =BASEOld!I61 -> PCE | F61: =BASEOld!K61 -> 5.25 | G61: =BASEOld!L61 -> 0 | J61: 0 | K61: 0
A62: =BASEOld!B62 -> Goûter | B62: =BASEOld!C62 -> Gâteau à partager | C62: =BASEOld!D62 -> Boléro chocolat marrons en bande 550g | D62: =BASEOld!H62 -> 4 | E62: =BASEOld!I62 -> PCE | F62: =BASEOld!K62 -> 4.05 | G62: =BASEOld!L62 -> 0 | J62: 0 | K62: 0
A63: =BASEOld!B63 -> Goûter | B63: =BASEOld!C63 -> Gâteau à partager | C63: =BASEOld!D63 -> Carré bavarois cacao 45g x 60 (demi-cadre) | D63: =BASEOld!H63 -> 60 | E63: =BASEOld!I63 -> CT | F63: =BASEOld!K63 -> 0.31 | G63: =BASEOld!L63 -> 0 | J63: 0 | K63: 0
A64: =BASEOld!B64 -> Goûter | B64: =BASEOld!C64 -> Gâteau à partager | C64: =BASEOld!D64 -> Carré bavarois fruits rouges 45g x 60 (demi-cadre) | D64: =BASEOld!H64 -> 60 | E64: =BASEOld!I64 -> CT | F64: =BASEOld!K64 -> 0.31 | G64: =BASEOld!L64 -> 0 | J64: 0 | K64: 0
A65: =BASEOld!B65 -> Goûter | B65: =BASEOld!C65 -> Gâteau à partager | C65: =BASEOld!D65 -> Charlotte aux fruits rouges en bande 800g | D65: =BASEOld!H65 -> 2 | E65: =BASEOld!I65 -> PCE | F65: =BASEOld!K65 -> 7.18 | G65: =BASEOld!L65 -> 0 | J65: 0 | K65: 0
A66: =BASEOld!B66 -> Goûter | B66: =BASEOld!C66 -> Gâteau à partager | C66: =BASEOld!D66 -> Charlotte aux poires en bande 850g | D66: =BASEOld!H66 -> 2 | E66: =BASEOld!I66 -> PCE | F66: =BASEOld!K66 -> 9.08 | G66: =BASEOld!L66 -> 0 | J66: 0 | K66: 0
A67: =BASEOld!B67 -> Goûter | B67: =BASEOld!C67 -> Gâteau à partager | C67: =BASEOld!D67 -> Clafoutis à la cerise en bande 550g | D67: =BASEOld!H67 -> 4 | E67: =BASEOld!I67 -> PCE | F67: =BASEOld!K67 -> 3.11 | G67: =BASEOld!L67 -> 0 | J67: 0 | K67: 0
A68: =BASEOld!B68 -> Goûter | B68: =BASEOld!C68 -> Gâteau à partager | C68: =BASEOld!D68 -> Clafoutis aux griottes 1Kg | D68: =BASEOld!H68 -> 1 | E68: =BASEOld!I68 -> PCE | F68: =BASEOld!K68 -> 5.78 | G68: =BASEOld!L68 -> 0 | J68: 0 | K68: 0
A69: =BASEOld!B69 -> Goûter | B69: =BASEOld!C69 -> Gâteau à partager | C69: =BASEOld!D69 -> Craquant crème brulée-fruits rouges en bande 750g | D69: =BASEOld!H69 -> 2 | E69: =BASEOld!I69 -> PCE | F69: =BASEOld!K69 -> 11.22 | G69: =BASEOld!L69 -> 0 | J69: 0 | K69: 0
A70: =BASEOld!B70 -> Goûter | B70: =BASEOld!C70 -> Gâteau à partager | C70: =BASEOld!D70 -> Forêt noire aux griottes 1,4kg | D70: =BASEOld!H70 -> 2 | E70: =BASEOld!I70 -> PCE | F70: =BASEOld!K70 -> 8.12 | G70: =BASEOld!L70 -> 0 | J70: 0 | K70: 0
A71: =BASEOld!B71 -> Goûter | B71: =BASEOld!C71 -> Gâteau à partager | C71: =BASEOld!D71 -> Forêt noire sans sucre ajouté 57g | D71: =BASEOld!H71 -> 28 | E71: =BASEOld!I71 -> PCE | F71: =BASEOld!K71 -> 0.57 | G71: =BASEOld!L71 -> 0 | J71: =H71*D71*F71 -> 0 | K71: =I71*F71*D71 -> 0
A72: =BASEOld!B72 -> Goûter | B72: =BASEOld!C72 -> Gâteau à partager | C72: =BASEOld!D72 -> Framboisier en bande 550g | D72: =BASEOld!H72 -> 2 | E72: =BASEOld!I72 -> CT | F72: =BASEOld!K72 -> 7.56 | G72: =BASEOld!L72 -> 0 | J72: 0 | K72: 0
A73: =BASEOld!B73 -> Goûter | B73: =BASEOld!C73 -> Gâteau à partager | C73: =BASEOld!D73 -> Gâteau aux 3 chocolats 1Kg | D73: =BASEOld!H73 -> 1 | E73: =BASEOld!I73 -> PCE | F73: =BASEOld!K73 -> 13.01 | G73: =BASEOld!L73 -> 0 | J73: 0 | K73: 0
A74: =BASEOld!B74 -> Goûter | B74: =BASEOld!C74 -> Gâteau à partager | C74: =BASEOld!D74 -> Gâteau Basque 1kg | D74: =BASEOld!H74 -> 4 | E74: =BASEOld!I74 -> PCE | F74: =BASEOld!K74 -> 3.73 | G74: =BASEOld!L74 -> 0 | J74: 0 | K74: 0
A75: =BASEOld!B75 -> Goûter | B75: =BASEOld!C75 -> Individuel | C75: =BASEOld!D75 -> Millefeuille 65g x 36 | D75: =BASEOld!H75 -> 3 | E75: =BASEOld!I75 -> CT | F75: =BASEOld!K75 -> 13.64 | G75: =BASEOld!L75 -> 0 | J75: 0 | K75: 0
A76: =BASEOld!B76 -> Goûter | B76: =BASEOld!C76 -> Gâteau à partager | C76: =BASEOld!D76 -> Omelette norvégienne 2L | D76: =BASEOld!H76 -> 6 | E76: =BASEOld!I76 -> CT | F76: =BASEOld!K76 -> 7.86 | G76: =BASEOld!L76 -> 0 | J76: 0 | K76: 0
A77: =BASEOld!B77 -> Goûter | B77: =BASEOld!C77 -> Gâteau à partager | C77: =BASEOld!D77 -> Opéra en bande 750g | D77: =BASEOld!H77 -> 2 | E77: =BASEOld!I77 -> PCE | F77: =BASEOld!K77 -> 9.81 | G77: =BASEOld!L77 -> 0 | J77: 0 | K77: 0
A78: =BASEOld!B78 -> Goûter | B78: =BASEOld!C78 -> Gâteau à partager | C78: =BASEOld!D78 -> Privilège poire chocolat en bande 750g | D78: =BASEOld!H78 -> 2 | E78: =BASEOld!I78 -> PCE | F78: =BASEOld!K78 -> 8.1 | G78: =BASEOld!L78 -> 0 | J78: 0 | K78: 0
A79: =BASEOld!B79 -> Goûter | B79: =BASEOld!C79 -> Gâteau à partager | C79: =BASEOld!D79 -> Royal chocolat en bande 650g | D79: =BASEOld!H79 -> 3 | E79: =BASEOld!I79 -> PCE | F79: =BASEOld!K79 -> 7.92 | G79: =BASEOld!L79 -> 0 | J79: 0 | K79: 0
A80: =BASEOld!B80 -> Goûter | B80: =BASEOld!C80 -> Gâteau à partager | C80: =BASEOld!D80 -> Tarte à la noix de coco 1,15Kg | D80: =BASEOld!H80 -> 2 | E80: =BASEOld!I80 -> CT | F80: =BASEOld!K80 -> 5.86 | G80: =BASEOld!L80 -> 0 | J80: 0 | K80: 0
A81: =BASEOld!B81 -> Goûter | B81: =BASEOld!C81 -> Gâteau à partager | C81: =BASEOld!D81 -> Tarte au chocolat entière 900g | D81: =BASEOld!H81 -> 2 | E81: =BASEOld!I81 -> CT | F81: =BASEOld!K81 -> 5.48 | G81: =BASEOld!L81 -> 0 | J81: 0 | K81: 0
A82: =BASEOld!B82 -> Goûter | B82: =BASEOld!C82 -> Gâteau à partager | C82: =BASEOld!D82 -> Tarte au chocolat prédécoupée en 10 700g | D82: =BASEOld!H82 -> 8 | E82: =BASEOld!I82 -> CT | F82: =BASEOld!K82 -> 3.3 | G82: =BASEOld!L82 -> 0 | J82: 0 | K82: 0
A83: =BASEOld!B83 -> Goûter | B83: =BASEOld!C83 -> Gâteau à partager | C83: =BASEOld!D83 -> Tarte au citron 1,15kg | D83: =BASEOld!H83 -> 2 | E83: =BASEOld!I83 -> PCE | F83: =BASEOld!K83 -> 5.81 | G83: =BASEOld!L83 -> 0 | J83: 0 | K83: 0
A84: =BASEOld!B84 -> Goûter | B84: =BASEOld!C84 -> Gâteau à partager | C84: =BASEOld!D84 -> Tarte au citron meringuée 1kg | D84: =BASEOld!H84 -> 2 | E84: =BASEOld!I84 -> PCE | F84: =BASEOld!K84 -> 5.06 | G84: =BASEOld!L84 -> 0 | J84: 0 | K84: 0
A85: =BASEOld!B85 -> Goûter | B85: =BASEOld!C85 -> Gâteau à partager | C85: =BASEOld!D85 -> Tarte au citron prédrécoupée en 10 parts 700g | D85: =BASEOld!H85 -> 8 | E85: =BASEOld!I85 -> CT | F85: =BASEOld!K85 -> 3.27 | G85: =BASEOld!L85 -> 0 | J85: 0 | K85: 0
A86: =BASEOld!B86 -> Goûter | B86: =BASEOld!C86 -> Gâteau à partager | C86: =BASEOld!D86 -> Tarte au flan 1Kg | D86: =BASEOld!H86 -> 4 | E86: =BASEOld!I86 -> CT | F86: =BASEOld!K86 -> 3.51 | G86: =BASEOld!L86 -> 0 | J86: 0 | K86: 0
A87: =BASEOld!B87 -> Goûter | B87: =BASEOld!C87 -> Gâteau à partager | C87: =BASEOld!D87 -> Tarte au flan prédécoupée en 10 parts 750g | D87: =BASEOld!H87 -> 1 | E87: =BASEOld!I87 -> PCE | F87: =BASEOld!K87 -> 3.03 | G87: =BASEOld!L87 -> 0 | J87: 0 | K87: 0
A88: =BASEOld!B88 -> Goûter | B88: =BASEOld!C88 -> Gâteau à partager | C88: =BASEOld!D88 -> Tarte aux abricots 1,3kg | D88: =BASEOld!H88 -> 1 | E88: =BASEOld!I88 -> PCE | F88: =BASEOld!K88 -> 13.09 | G88: =BASEOld!L88 -> 0 | J88: 0 | K88: 0
A89: =BASEOld!B89 -> Goûter | B89: =BASEOld!C89 -> Gâteau à partager | C89: =BASEOld!D89 -> Tarte aux abricots 1,3Kg | D89: =BASEOld!H89 -> 1 | E89: =BASEOld!I89 -> PCE | F89: =BASEOld!K89 -> 12.61 | G89: =BASEOld!L89 -> 0 | J89: 0 | K89: 0
A90: =BASEOld!B90 -> Goûter | B90: =BASEOld!C90 -> Gâteau à partager | C90: =BASEOld!D90 -> Tarte aux abricots croisillon prédécoupée en 12 parts 900g | D90: =BASEOld!H90 -> 6 | E90: =BASEOld!I90 -> CT | F90: =BASEOld!K90 -> 3.19 | G90: =BASEOld!L90 -> 0 | J90: 0 | K90: 0
A91: =BASEOld!B91 -> Goûter | B91: =BASEOld!C91 -> Gâteau à partager | C91: =BASEOld!D91 -> Tarte aux fraises 800g | D91: =BASEOld!H91 -> 1 | E91: =BASEOld!I91 -> PCE | F91: =BASEOld!K91 -> 8.29 | G91: =BASEOld!L91 -> 0 | J91: 0 | K91: 0
A92: =BASEOld!B92 -> Goûter | B92: =BASEOld!C92 -> Gâteau à partager | C92: =BASEOld!D92 -> Tarte aux fraises prédécoupée en 8 900g | D92: =BASEOld!H92 -> 1 | E92: =BASEOld!I92 -> PCE | F92: =BASEOld!K92 -> 6.72 | G92: =BASEOld!L92 -> 0 | J92: 0 | K92: 0
A93: =BASEOld!B93 -> Goûter | B93: =BASEOld!C93 -> Gâteau à partager | C93: =BASEOld!D93 -> Tarte aux framboises 1,4kg | D93: =BASEOld!H93 -> 1 | E93: =BASEOld!I93 -> PCE | F93: =BASEOld!K93 -> 13.86 | G93: =BASEOld!L93 -> 0 | J93: 0 | K93: 0
A94: =BASEOld!B94 -> Goûter | B94: =BASEOld!C94 -> Gâteau à partager | C94: =BASEOld!D94 -> Tarte aux framboises 880g | D94: =BASEOld!H94 -> 1 | E94: =BASEOld!I94 -> PCE | F94: =BASEOld!K94 -> 7.13 | G94: =BASEOld!L94 -> 0 | J94: 0 | K94: 0
A95: =BASEOld!B95 -> Goûter | B95: =BASEOld!C95 -> Gâteau à partager | C95: =BASEOld!D95 -> Tarte aux framboises meringuée 1,15kg | D95: =BASEOld!H95 -> 2 | E95: =BASEOld!I95 -> CT | F95: =BASEOld!K95 -> 7.26 | G95: =BASEOld!L95 -> 0 | J95: 0 | K95: 0
A96: =BASEOld!B96 -> Goûter | B96: =BASEOld!C96 -> Gâteau à partager | C96: =BASEOld!D96 -> Tarte aux myrtilles 900g | D96: =BASEOld!H96 -> 2 | E96: =BASEOld!I96 -> CT | F96: =BASEOld!K96 -> 7.01 | G96: =BASEOld!L96 -> 0 | J96: 0 | K96: 0
A97: =BASEOld!B97 -> Goûter | B97: =BASEOld!C97 -> Gâteau à partager | C97: =BASEOld!D97 -> Tarte aux poires 900g | D97: =BASEOld!H97 -> 1 | E97: =BASEOld!I97 -> PCE | F97: =BASEOld!K97 -> 6.78 | G97: =BASEOld!L97 -> 0 | J97: 0 | K97: 0
A98: =BASEOld!B98 -> Goûter | B98: =BASEOld!C98 -> Gâteau à partager | C98: =BASEOld!D98 -> Tarte aux poires Bourdaloue 1,1kg | D98: =BASEOld!H98 -> 2 | E98: =BASEOld!I98 -> CT | F98: =BASEOld!K98 -> 8.31 | G98: =BASEOld!L98 -> 0 | J98: 0 | K98: 0
A99: =BASEOld!B99 -> Goûter | B99: =BASEOld!C99 -> Gâteau à partager | C99: =BASEOld!D99 -> Tarte aux poires prédécoupée en 10 parts 750g | D99: =BASEOld!H99 -> 1 | E99: =BASEOld!I99 -> PCE | F99: =BASEOld!K99 -> 4.8 | G99: =BASEOld!L99 -> 0 | J99: 0 | K99: 0
A100: =BASEOld!B100 -> Goûter | B100: =BASEOld!C100 -> Gâteau à partager | C100: =BASEOld!D100 -> Tarte aux pommes croissillon prédécoupée en 12 parts 900g | D100: =BASEOld!H100 -> 1 | E100: =BASEOld!I100 -> PCE | F100: =BASEOld!K100 -> 3.07 | G100: =BASEOld!L100 -> 0 | J100: 0 | K100: 0
A101: =BASEOld!B101 -> Goûter | B101: =BASEOld!C101 -> Gâteau à partager | C101: =BASEOld!D101 -> Tarte aux pommes crumble 1,15Kg | D101: =BASEOld!H101 -> 2 | E101: =BASEOld!I101 -> CT | F101: =BASEOld!K101 -> 6.58 | G101: =BASEOld!L101 -> 0 | J101: 0 | K101: 0
A102: =BASEOld!B102 -> Goûter | B102: =BASEOld!C102 -> Gâteau à partager | C102: =BASEOld!D102 -> Tarte aux pommes et noix 1,1Kg | D102: =BASEOld!H102 -> 2 | E102: =BASEOld!I102 -> CT | F102: =BASEOld!K102 -> 6.1 | G102: =BASEOld!L102 -> 0 | J102: 0 | K102: 0
A103: =BASEOld!B103 -> Goûter | B103: =BASEOld!C103 -> Gâteau à partager | C103: =BASEOld!D103 -> Tarte aux pommes Normande 800g | D103: =BASEOld!H103 -> 2 | E103: =BASEOld!I103 -> CT | F103: =BASEOld!K103 -> 4.02 | G103: =BASEOld!L103 -> 0 | J103: 0 | K103: 0
A104: =BASEOld!B104 -> Goûter | B104: =BASEOld!C104 -> Gâteau à partager | C104: =BASEOld!D104 -> Tarte aux pommes Normande 950g | D104: =BASEOld!H104 -> 1 | E104: =BASEOld!I104 -> PCE | F104: =BASEOld!K104 -> 3.86 | G104: =BASEOld!L104 -> 0 | J104: 0 | K104: 0
A105: =BASEOld!B105 -> Goûter | B105: =BASEOld!C105 -> Gâteau à partager | C105: =BASEOld!D105 -> Tarte aux pommes Normande prédécoupée en 10 parts 700g | D105: =BASEOld!H105 -> 6 | E105: =BASEOld!I105 -> CT | F105: =BASEOld!K105 -> 3.05 | G105: =BASEOld!L105 -> 0 | J105: 0 | K105: 0
A106: =BASEOld!B106 -> Goûter | B106: =BASEOld!C106 -> Gâteau à partager | C106: =BASEOld!D106 -> Tarte aux pommes prédécoupée en 10 parts 750g | D106: =BASEOld!H106 -> 1 | E106: =BASEOld!I106 -> PCE | F106: =BASEOld!K106 -> 3.18 | G106: =BASEOld!L106 -> 0 | J106: 0 | K106: 0
A107: =BASEOld!B107 -> Goûter | B107: =BASEOld!C107 -> Gâteau à partager | C107: =BASEOld!D107 -> Tarte rosace aux fruits entiers, questches, abricots, framboises | D107: =BASEOld!H107 -> 1 | E107: =BASEOld!I107 -> PCE | F107: =BASEOld!K107 -> 6.35 | G107: =BASEOld!L107 -> 0 | J107: 0 | K107: 0
A108: =BASEOld!B108 -> Goûter | B108: =BASEOld!C108 -> Gâteau à partager | C108: =BASEOld!D108 -> Tarte tropézienne 650g | D108: =BASEOld!H108 -> 6 | E108: =BASEOld!I108 -> CT | F108: =BASEOld!K108 -> 4.51 | G108: =BASEOld!L108 -> 0 | J108: 0 | K108: 0
A109: =BASEOld!B109 -> Goûter | B109: =BASEOld!C109 -> Gâteau à partager | C109: =BASEOld!D109 -> Tiramisu en bande 900g | D109: =BASEOld!H109 -> 2 | E109: =BASEOld!I109 -> CT | F109: =BASEOld!K109 -> 7.59 | G109: =BASEOld!L109 -> 0 | J109: 0 | K109: 0
A110: =BASEOld!B110 -> Goûter | B110: =BASEOld!C110 -> Gâteau à partager | C110: =BASEOld!D110 -> Tiramisu en bande 900g | D110: =BASEOld!H110 -> 2 | E110: =BASEOld!I110 -> PCE | F110: =BASEOld!K110 -> 6.96 | G110: =BASEOld!L110 -> 0 | J110: 0 | K110: 0
A111: =BASEOld!B111 -> Goûter | B111: =BASEOld!C111 -> Gâteau à partager | C111: =BASEOld!D111 -> Vacherin vanille/framboise glacé 2L | D111: =BASEOld!H111 -> 2 | E111: =BASEOld!I111 -> PCE | F111: =BASEOld!K111 -> 7.11 | G111: =BASEOld!L111 -> 0 | J111: 0 | K111: 0
A112: =BASEOld!B112 -> Goûter | B112: =BASEOld!C112 -> Individuel | C112: =BASEOld!D112 -> Beignet abricot 75g | D112: =BASEOld!H112 -> 60 | E112: =BASEOld!I112 -> CT | F112: =BASEOld!K112 -> 0.31 | G112: =BASEOld!L112 -> 0 | J112: 0 | K112: 0
A113: =BASEOld!B113 -> Goûter | B113: =BASEOld!C113 -> Individuel | C113: =BASEOld!D113 -> Beignet chocolat-noisette 75g | D113: =BASEOld!H113 -> 60 | E113: =BASEOld!I113 -> PCE | F113: =BASEOld!K113 -> 0.3 | G113: =BASEOld!L113 -> 0 | J113: 0 | K113: 0
A114: =BASEOld!B114 -> Goûter | B114: =BASEOld!C114 -> Individuel | C114: =BASEOld!D114 -> Beignet framboise 75g | D114: =BASEOld!H114 -> 60 | E114: =BASEOld!I114 -> PCE | F114: =BASEOld!K114 -> 0.31 | G114: =BASEOld!L114 -> 0 | J114: 0 | K114: 0
A115: =BASEOld!B115 -> Goûter | B115: =BASEOld!C115 -> Individuel | C115: =BASEOld!D115 -> Beignet nature 55g | D115: =BASEOld!H115 -> 60 | E115: =BASEOld!I115 -> CT | F115: =BASEOld!K115 -> 0.25 | G115: =BASEOld!L115 -> 0 | J115: 0 | K115: 0
A116: =BASEOld!B116 -> Goûter | B116: =BASEOld!C116 -> Individuel | C116: =BASEOld!D116 -> Beignet pommes 75g | D116: =BASEOld!H116 -> 60 | E116: =BASEOld!I116 -> CT | F116: =BASEOld!K116 -> 0.26 | G116: =BASEOld!L116 -> 0 | J116: 0 | K116: 0
A117: =BASEOld!B117 -> Goûter | B117: =BASEOld!C117 -> Individuel | C117: =BASEOld!D117 -> Brioche perdue 100g (peut être coupée en 2) | D117: =BASEOld!H117 -> 28 | E117: =BASEOld!I117 -> PCE | F117: =BASEOld!K117 -> 0.95 | G117: =BASEOld!L117 -> 0 | J117: 0 | K117: 0
A118: =BASEOld!B118 -> Goûter | B118: =BASEOld!C118 -> Individuel | C118: =BASEOld!D118 -> Briochette à tête pur beurre cuite 45g | D118: =BASEOld!H118 -> 45 | E118: =BASEOld!I118 -> CT | F118: =BASEOld!K118 -> 0.35 | G118: =BASEOld!L118 -> 0 | J118: 0 | K118: 0
A119: =BASEOld!B119 -> Goûter | B119: =BASEOld!C119 -> Individuel | C119: =BASEOld!D119 -> Crèpes au chocolat 40g | D119: =BASEOld!H119 -> 40 | E119: =BASEOld!I119 -> PCE | F119: =BASEOld!K119 -> 0.25 | G119: =BASEOld!L119 -> 0 | J119: 0 | K119: 0
A120: =BASEOld!B120 -> Goûter | B120: =BASEOld!C120 -> Individuel | C120: =BASEOld!D120 -> Crèpes nature 50g | D120: =BASEOld!H120 -> 40 | E120: =BASEOld!I120 -> PCE | F120: =BASEOld!K120 -> 0.26 | G120: =BASEOld!L120 -> 0 | J120: 0 | K120: 0
A121: =BASEOld!B121 -> Goûter | B121: =BASEOld!C121 -> Individuel | C121: =BASEOld!D121 -> Donuts chocolat 55g | D121: =BASEOld!H121 -> 36 | E121: =BASEOld!I121 -> CT | F121: =BASEOld!K121 -> 0.3 | G121: =BASEOld!L121 -> 0 | J121: 0 | K121: 0
A122: =BASEOld!B122 -> Goûter | B122: =BASEOld!C122 -> Individuel | C122: =BASEOld!D122 -> Donuts nature sucré 49g | D122: =BASEOld!H122 -> 72 | E122: =BASEOld!I122 -> CT | F122: =BASEOld!K122 -> 0.24 | G122: =BASEOld!L122 -> 0 | J122: 0 | K122: 0
A123: =BASEOld!B123 -> Goûter | B123: =BASEOld!C123 -> Individuel | C123: =BASEOld!D123 -> Gaufre de Bruxelles 70g (peut être coupée en 2) | D123: =BASEOld!H123 -> 27 | E123: =BASEOld!I123 -> PCE | F123: =BASEOld!K123 -> 0.32 | G123: =BASEOld!L123 -> 0 | J123: 0 | K123: 0
A124: =BASEOld!B124 -> goûter | B124: =BASEOld!C124 -> Sans sucre | C124: =BASEOld!D124 -> Cake cacao sans sucre 30g | D124: =BASEOld!H124 -> 60 | E124: =BASEOld!I124 -> CT | F124: =BASEOld!K124 -> 0.24 | G124: =BASEOld!L124 -> 0 | J124: 0 | K124: 0
A125: =BASEOld!B125 -> goûter | B125: =BASEOld!C125 -> Sans sucre | C125: =BASEOld!D125 -> Cake citron sans sucre 30g | D125: =BASEOld!H125 -> 60 | E125: =BASEOld!I125 -> CT | F125: =BASEOld!K125 -> 0.24 | G125: =BASEOld!L125 -> 0 | J125: 0 | K125: 0
A126: =BASEOld!B126 -> goûter | B126: =BASEOld!C126 -> Sans sucre | C126: =BASEOld!D126 -> Cake framboise sans sucre 30g | D126: =BASEOld!H126 -> 60 | E126: =BASEOld!I126 -> CT | F126: =BASEOld!K126 -> 0.24 | G126: =BASEOld!L126 -> 0 | J126: 0 | K126: 0
A127: =BASEOld!B127 -> Goûter | B127: =BASEOld!C127 -> Sans sucre | C127: =BASEOld!D127 -> Couronne sans sucre 40g | D127: =BASEOld!H127 -> 36 | E127: =BASEOld!I127 -> CT | F127: =BASEOld!K127 -> 0.32 | G127: =BASEOld!L127 -> 0 | J127: 0 | K127: 0
A128: =BASEOld!B128 -> Goûter | B128: =BASEOld!C128 -> Sans sucre | C128: =BASEOld!D128 -> Gaufrette cacao sans sucre 20g | D128: =BASEOld!H128 -> 320 | E128: =BASEOld!I128 -> CT | F128: =BASEOld!K128 -> 0.13 | G128: =BASEOld!L128 -> 0 | J128: 0 | K128: 0
A129: =BASEOld!B129 -> Goûter | B129: =BASEOld!C129 -> Sans sucre | C129: =BASEOld!D129 -> Gaufrette citron sans sucre / sans sel 11g | D129: =BASEOld!H129 -> 100 | E129: =BASEOld!I129 -> CT | F129: =BASEOld!K129 -> 0.26 | G129: =BASEOld!L129 -> 0 | J129: 0 | K129: 0
A130: =BASEOld!B130 -> Goûter | B130: =BASEOld!C130 -> Sans sucre | C130: =BASEOld!D130 -> Gaufrette vanille sans sucre 20g | D130: =BASEOld!H130 -> 320 | E130: =BASEOld!I130 -> CT | F130: =BASEOld!K130 -> 0.13 | G130: =BASEOld!L130 -> 0 | J130: 0 | K130: 0
A131: =BASEOld!B131 -> Goûter | B131: =BASEOld!C131 -> Sans sucre | C131: =BASEOld!D131 -> Lingot amande sans sucre 25g | D131: =BASEOld!H131 -> 80 | E131: =BASEOld!I131 -> CT | F131: =BASEOld!K131 -> 0.32 | G131: =BASEOld!L131 -> 0 | J131: 0 | K131: 0
A132: =BASEOld!B132 -> Goûter | B132: =BASEOld!C132 -> Sans sucre | C132: =BASEOld!D132 -> Madeleine nature sans sucre 25g | D132: =BASEOld!H132 -> 100 | E132: =BASEOld!I132 -> CT | F132: =BASEOld!K132 -> 0.19 | G132: =BASEOld!L132 -> 0 | J132: 0 | K132: 0
A133: =BASEOld!B133 -> goûter | B133: =BASEOld!C133 -> Sans sucre | C133: =BASEOld!D133 -> Moelleux cacao sans sucre 40g | D133: =BASEOld!H133 -> 100 | E133: =BASEOld!I133 -> CT | F133: =BASEOld!K133 -> 0.28 | G133: =BASEOld!L133 -> 0 | J133: 0 | K133: 0
A134: =BASEOld!B134 -> goûter | B134: =BASEOld!C134 -> Sans sucre | C134: =BASEOld!D134 -> Moelleux citron sans sucre 40g | D134: =BASEOld!H134 -> 100 | E134: =BASEOld!I134 -> CT | F134: =BASEOld!K134 -> 0.27 | G134: =BASEOld!L134 -> 0 | J134: 0 | K134: 0
A135: =BASEOld!B135 -> goûter | B135: =BASEOld!C135 -> Sans sucre | C135: =BASEOld!D135 -> Moelleux framboise sans sucre 40g | D135: =BASEOld!H135 -> 100 | E135: =BASEOld!I135 -> CT | F135: =BASEOld!K135 -> 0.29 | G135: =BASEOld!L135 -> 0 | J135: =H135*D135*F135 -> 0 | K135: =I135*F135*D135 -> 0
A136: =BASEOld!B136 -> Goûter | B136: =BASEOld!C136 -> Sans sucre | C136: =BASEOld!D136 -> Palmiers sans sucre x2 17g | D136: =BASEOld!H136 -> 120 | E136: =BASEOld!I136 -> CT | F136: =BASEOld!K136 -> 0.16 | G136: =BASEOld!L136 -> 0 | J136: 0 | K136: 0
A137: =BASEOld!B137 -> Goûter | B137: =BASEOld!C137 -> Sans sucre | C137: =BASEOld!D137 -> Tranche nature 50g | D137: =BASEOld!H137 -> 36 | E137: =BASEOld!I137 -> CT | F137: =BASEOld!K137 -> 0.32 | G137: =BASEOld!L137 -> 0 | J137: 0 | K137: 0
A138: =BASEOld!B138 -> Goûter | B138: =BASEOld!C138 -> Viennoiserie | C138: =BASEOld!D138 -> Mini croissant au beurre prêt à cuire 25g | D138: =BASEOld!H138 -> 160 | E138: =BASEOld!I138 -> CT | F138: =BASEOld!K138 -> 0.09 | G138: =BASEOld!L138 -> 0 | J138: 0 | K138: 0
A139: =BASEOld!B139 -> Goûter | B139: =BASEOld!C139 -> Viennoiserie | C139: =BASEOld!D139 -> Mini pain au chocolat au beurre prêt à cuire 25g | D139: =BASEOld!H139 -> 160 | E139: =BASEOld!I139 -> CT | F139: =BASEOld!K139 -> 0.1 | G139: =BASEOld!L139 -> 0 | J139: 0 | K139: 0
A140: =BASEOld!B140 -> Goûter | B140: =BASEOld!C140 -> Viennoiserie | C140: =BASEOld!D140 -> Mini pain aux raisins prêt à cuire 35g | D140: =BASEOld!H140 -> 150 | E140: =BASEOld!I140 -> CT | F140: =BASEOld!K140 -> 0.13 | G140: =BASEOld!L140 -> 0 | J140: 0 | K140: 0
A141: =BASEOld!B141 -> Goûter | B141: =BASEOld!C141 -> 0 | C141: =BASEOld!D141 -> Goûter sec brioché 25 tranches (spécial mixé) 350g | D141: =BASEOld!H141 -> 24 | E141: =BASEOld!I141 -> CT | F141: =BASEOld!K141 -> 0.8 | G141: =BASEOld!L141 -> 0 | J141: 0 | K141: 0
A142: =BASEOld!B142 -> Goûter / PDJ | B142: =BASEOld!C142 -> Individuel | C142: =BASEOld!D142 -> Pain au chocolat 75g prêt à cuire | D142: =BASEOld!H142 -> 70 | E142: =BASEOld!I142 -> CT | F142: =BASEOld!K142 -> 0.25 | G142: =BASEOld!L142 -> 0 | J142: 0 | K142: 0
A143: =BASEOld!B143 -> Goûter / PDJ | B143: =BASEOld!C143 -> Individuel | C143: =BASEOld!D143 -> Pain chocolat cuit 45g | D143: =BASEOld!H143 -> 50 | E143: =BASEOld!I143 -> CT | F143: =BASEOld!K143 -> 0.6 | G143: =BASEOld!L143 -> 0 | J143: 0 | K143: 0
A144: =BASEOld!B144 -> Goûter / PDJ | B144: =BASEOld!C144 -> Viennoiserie | C144: =BASEOld!D144 -> Croissant au beurre 60g prêt à cuire | D144: =BASEOld!H144 -> 84 | E144: =BASEOld!I144 -> CT | F144: =BASEOld!K144 -> 0.2 | G144: =BASEOld!L144 -> 0 | J144: 0 | K144: 0
A145: =BASEOld!B145 -> Goûter / PDJ | B145: =BASEOld!C145 -> Viennoiserie | C145: =BASEOld!D145 -> Croissant cuit surgelé 40g x 10 | D145: =BASEOld!H145 -> 1 | E145: =BASEOld!I145 -> SHT | F145: =BASEOld!K145 -> 2.78 | G145: =BASEOld!L145 -> 0 | J145: 0 | K145: 0
A146: =BASEOld!B146 -> PDJ | B146: =BASEOld!C146 -> Confiture | C146: =BASEOld!D146 -> Confiture abricot pot 1kg | D146: =BASEOld!H146 -> 6 | E146: =BASEOld!I146 -> CT | F146: =BASEOld!K146 -> 1.71 | G146: =BASEOld!L146 -> 0 | J146: 0 | K146: 0
A147: =BASEOld!B147 -> PDJ | B147: =BASEOld!C147 -> Confiture | C147: =BASEOld!D147 -> Confiture fraise pot 1Kg | D147: =BASEOld!H147 -> 6 | E147: =BASEOld!I147 -> CT | F147: =BASEOld!K147 -> 2.17 | G147: =BASEOld!L147 -> 0 | J147: 0 | K147: 0
A148: =BASEOld!B148 -> PDJ | B148: =BASEOld!C148 -> Confiture | C148: =BASEOld!D148 -> Confiture myrtille pot 1kg | D148: =BASEOld!H148 -> 6 | E148: =BASEOld!I148 -> CT | F148: =BASEOld!K148 -> 5.61 | G148: =BASEOld!L148 -> 0 | J148: 0 | K148: 0
A149: =BASEOld!B149 -> PDJ | B149: =BASEOld!C149 -> Confiture | C149: =BASEOld!D149 -> Confitures assorties en coupelle 5 parfums 30g | D149: =BASEOld!H149 -> 120 | E149: =BASEOld!I149 -> CT | F149: =BASEOld!K149 -> 0.06 | G149: =BASEOld!L149 -> 0 | J149: 0 | K149: 0
A150: =BASEOld!B150 -> PDJ | B150: =BASEOld!C150 -> Confiture | C150: =BASEOld!D150 -> Gelée de groseille pot 450g | D150: =BASEOld!H150 -> 1 | E150: =BASEOld!I150 -> POT | F150: =BASEOld!K150 -> 1.07 | G150: =BASEOld!L150 -> 0 | J150: 0 | K150: 0
A151: =BASEOld!B151 -> PDJ | B151: =BASEOld!C151 -> Confiture | C151: =BASEOld!D151 -> Marmelade orange pot 1Kg | D151: =BASEOld!H151 -> 6 | E151: =BASEOld!I151 -> LOT | F151: =BASEOld!K151 -> 2.18 | G151: =BASEOld!L151 -> 0 | J151: 0 | K151: 0
A152: =BASEOld!B152 -> PDJ | B152: =BASEOld!C152 -> Divers | C152: =BASEOld!D152 -> Beurre micro pain 10g x 100 | D152: =BASEOld!H152 -> 1 | E152: =BASEOld!I152 -> KG | F152: =BASEOld!K152 -> 5.61 | G152: =BASEOld!L152 -> 0 | J152: 0 | K152: 0
A153: =BASEOld!B153 -> PDJ | B153: =BASEOld!C153 -> Divers | C153: =BASEOld!D153 -> Beurre tablette 250 gr | D153: =BASEOld!H153 -> 1 | E153: =BASEOld!I153 -> PCE | F153: =BASEOld!K153 -> 1.28 | G153: =BASEOld!L153 -> 0 | J153: 0 | K153: 0
A154: =BASEOld!B154 -> PDJ | B154: =BASEOld!C154 -> Divers | C154: =BASEOld!D154 -> Beurre tendre tartinable 40% MG 1Kg | D154: =BASEOld!H154 -> 1 | E154: =BASEOld!I154 -> KG | F154: =BASEOld!K154 -> 5.41 | G154: =BASEOld!L154 -> 0 | J154: 0 | K154: 0
A155: =BASEOld!B155 -> 0 | B155: =BASEOld!C155 -> 0 | C155: =BASEOld!D155 -> Agitateurs 113mm | D155: =BASEOld!H155 -> 1 | E155: =BASEOld!I155 -> SHT | F155: =BASEOld!K155 -> 2.95 | G155: =BASEOld!L155 -> 0 | J155: 0 | K155: 0
A156: =BASEOld!B156 -> 0 | B156: =BASEOld!C156 -> 0 | C156: =BASEOld!D156 -> Anthésite anis Ss sucre 13Cl | D156: =BASEOld!H156 -> 1 | E156: =BASEOld!I156 -> FLC | F156: =BASEOld!K156 -> 6 | G156: =BASEOld!L156 -> 0 | J156: 0 | K156: 0
A157: =BASEOld!B157 -> 0 | B157: =BASEOld!C157 -> 0 | C157: =BASEOld!D157 -> Arlequin de fruits 5/1 | D157: =BASEOld!H157 -> 1 | E157: =BASEOld!I157 -> BTE | F157: =BASEOld!K157 -> 5.36 | G157: =BASEOld!L157 -> 0 | J157: 0 | K157: 0
A158: =BASEOld!B158 -> 0 | B158: =BASEOld!C158 -> 0 | C158: =BASEOld!D158 -> Assiette à dessertx100 | D158: =BASEOld!H158 -> 1 | E158: =BASEOld!I158 -> st | F158: =BASEOld!K158 -> 3.43 | G158: =BASEOld!L158 -> 0 | J158: 0 | K158: 0
A159: =BASEOld!B159 -> 0 | B159: =BASEOld!C159 -> 0 | C159: =BASEOld!D159 -> Barquette charcutiere 125cc x500 | D159: =BASEOld!H159 -> 1 | E159: =BASEOld!I159 -> SHT | F159: =BASEOld!K159 -> 4.22 | G159: =BASEOld!L159 -> 0 | J159: 0 | K159: 0
A160: =BASEOld!B160 -> 0 | B160: =BASEOld!C160 -> 0 | C160: =BASEOld!D160 -> Barquette choco 120g | D160: =BASEOld!H160 -> 4 | E160: =BASEOld!I160 -> LOT | F160: =BASEOld!K160 -> 1.54 | G160: =BASEOld!L160 -> 0 | J160: 0 | K160: 0
A161: =BASEOld!B161 -> 0 | B161: =BASEOld!C161 -> 0 | C161: =BASEOld!D161 -> Barquette fraise 120g | D161: =BASEOld!H161 -> 4 | E161: =BASEOld!I161 -> LOT | F161: =BASEOld!K161 -> 1.54 | G161: =BASEOld!L161 -> 0 | J161: 0 | K161: 0
A162: =BASEOld!B162 -> 0 | B162: =BASEOld!C162 -> 0 | C162: =BASEOld!D162 -> Barre pâtissiere | D162: =BASEOld!H162 -> 1 | E162: =BASEOld!I162 -> PCE | F162: =BASEOld!K162 -> 1.49 | G162: =BASEOld!L162 -> 0 | J162: 0 | K162: 0
A163: =BASEOld!B163 -> 0 | B163: =BASEOld!C163 -> 0 | C163: =BASEOld!D163 -> Bière Kronembourg boite 33cl | D163: =BASEOld!H163 -> 24 | E163: =BASEOld!I163 -> CT | F163: =BASEOld!K163 -> 0.7 | G163: =BASEOld!L163 -> 0 | J163: 0 | K163: 0
A164: =BASEOld!B164 -> 0 | B164: =BASEOld!C164 -> 0 | C164: =BASEOld!D164 -> Biscotte 2 tranches | D164: =BASEOld!H164 -> 208 | E164: =BASEOld!I164 -> CT | F164: =BASEOld!K164 -> 0.05 | G164: =BASEOld!L164 -> 0 | J164: 0 | K164: 0
A165: =BASEOld!B165 -> 0 | B165: =BASEOld!C165 -> 0 | C165: =BASEOld!D165 -> Biscotte 2T x208 sans sel | D165: =BASEOld!H165 -> 1 | E165: =BASEOld!I165 -> CT | F165: =BASEOld!K165 -> 9.46 | G165: =BASEOld!L165 -> 0 | J165: 0 | K165: 0
A166: =BASEOld!B166 -> 0 | B166: =BASEOld!C166 -> 0 | C166: =BASEOld!D166 -> Biscotte paquet 72 tranches 580g | D166: =BASEOld!H166 -> 12 | E166: =BASEOld!I166 -> CT | F166: =BASEOld!K166 -> 1.19 | G166: =BASEOld!L166 -> 0 | J166: 0 | K166: 0
A167: =BASEOld!B167 -> 0 | B167: =BASEOld!C167 -> 0 | C167: =BASEOld!D167 -> Biscuits apéritif Belin boîte 720g | D167: =BASEOld!H167 -> 1 | E167: =BASEOld!I167 -> BTE | F167: =BASEOld!K167 -> 5.55 | G167: =BASEOld!L167 -> 0 | J167: 0 | K167: 0
A168: =BASEOld!B168 -> 0 | B168: =BASEOld!C168 -> 0 | C168: =BASEOld!D168 -> Blédine biscuitée paquet 500g | D168: =BASEOld!H168 -> 1 | E168: =BASEOld!I168 -> PQ | F168: =BASEOld!K168 -> 3.33 | G168: =BASEOld!L168 -> 0 | J168: 0 | K168: 0
A169: =BASEOld!B169 -> 0 | B169: =BASEOld!C169 -> 0 | C169: =BASEOld!D169 -> Blédine céréales-vanille paquet 500g | D169: =BASEOld!H169 -> 1 | E169: =BASEOld!I169 -> PQ | F169: =BASEOld!K169 -> 3.33 | G169: =BASEOld!L169 -> 0 | J169: 0 | K169: 0
A170: =BASEOld!B170 -> 0 | B170: =BASEOld!C170 -> 0 | C170: =BASEOld!D170 -> Blédine chocolat paquet 500g | D170: =BASEOld!H170 -> 1 | E170: =BASEOld!I170 -> PQ | F170: =BASEOld!K170 -> 3.33 | G170: =BASEOld!L170 -> 0 | J170: 0 | K170: 0
A171: =BASEOld!B171 -> 0 | B171: =BASEOld!C171 -> 0 | C171: =BASEOld!D171 -> Boudoirs 400g | D171: =BASEOld!H171 -> 1 | E171: =BASEOld!I171 -> PCE | F171: =BASEOld!K171 -> 1.62 | G171: =BASEOld!L171 -> 0 | J171: 0 | K171: 0
A172: =BASEOld!B172 -> 0 | B172: =BASEOld!C172 -> 0 | C172: =BASEOld!D172 -> Boudoirs ration 190 x 2 2,2Kg | D172: =BASEOld!H172 -> 1 | E172: =BASEOld!I172 -> CT | F172: =BASEOld!K172 -> 11.43 | G172: =BASEOld!L172 -> 0 | J172: 0 | K172: 0
A173: =BASEOld!B173 -> 0 | B173: =BASEOld!C173 -> 0 | C173: =BASEOld!D173 -> Brioche tranchée 500g | D173: =BASEOld!H173 -> 7 | E173: =BASEOld!I173 -> CT | F173: =BASEOld!K173 -> 1.79 | G173: =BASEOld!L173 -> 0 | J173: 0 | K173: 0
A174: =BASEOld!B174 -> 0 | B174: =BASEOld!C174 -> 0 | C174: =BASEOld!D174 -> Café moulu 100%A 250g x 12 | D174: =BASEOld!H174 -> 12 | E174: =BASEOld!I174 -> LOT | F174: =BASEOld!K174 -> 1.26 | G174: =BASEOld!L174 -> 0 | J174: 0 | K174: 0
A175: =BASEOld!B175 -> 0 | B175: =BASEOld!C175 -> 0 | C175: =BASEOld!D175 -> Café sol (60kf 40chic) dse L15g x 100 | D175: =BASEOld!H175 -> 1 | E175: =BASEOld!I175 -> CT | F175: =BASEOld!K175 -> 23.29 | G175: =BASEOld!L175 -> 0 | J175: 0 | K175: 0
A176: =BASEOld!B176 -> 0 | B176: =BASEOld!C176 -> 0 | C176: =BASEOld!D176 -> Café soluble Nescafé dose 2g | D176: =BASEOld!H176 -> 300 | E176: =BASEOld!I176 -> CT | F176: =BASEOld!K176 -> 0.11 | G176: =BASEOld!L176 -> 0 | J176: 0 | K176: 0
A177: =BASEOld!B177 -> 0 | B177: =BASEOld!C177 -> 0 | C177: =BASEOld!D177 -> Café soluble Nescafé dose 2g décaféiné | D177: =BASEOld!H177 -> 300 | E177: =BASEOld!I177 -> CT | F177: =BASEOld!K177 -> 0.13 | G177: =BASEOld!L177 -> 0 | J177: 0 | K177: 0
A178: =BASEOld!B178 -> 0 | B178: =BASEOld!C178 -> 0 | C178: =BASEOld!D178 -> Café soluble Nescoré (60%café/40%chicorée) poche 500g | D178: =BASEOld!H178 -> 12 | E178: =BASEOld!I178 -> CT | F178: =BASEOld!K178 -> 8.76 | G178: =BASEOld!L178 -> 0 | J178: 0 | K178: 0
A179: =BASEOld!B179 -> 0 | B179: =BASEOld!C179 -> 0 | C179: =BASEOld!D179 -> Café soluble Sagy (60% café/40% chicorée) poche 500g | D179: =BASEOld!H179 -> 10 | E179: =BASEOld!I179 -> CT | F179: =BASEOld!K179 -> 5.89 | G179: =BASEOld!L179 -> 0 | J179: 0 | K179: 0
A180: =BASEOld!B180 -> 0 | B180: =BASEOld!C180 -> 0 | C180: =BASEOld!D180 -> Café soluble Sagy dose 2g | D180: =BASEOld!H180 -> 300 | E180: =BASEOld!I180 -> CT | F180: =BASEOld!K180 -> 0.06 | G180: =BASEOld!L180 -> 0 | J180: 0 | K180: 0
A181: =BASEOld!B181 -> 0 | B181: =BASEOld!C181 -> 0 | C181: =BASEOld!D181 -> Carré fourré amandes 40g | D181: =BASEOld!H181 -> 100 | E181: =BASEOld!I181 -> CT | F181: =BASEOld!K181 -> 0.21 | G181: =BASEOld!L181 -> 0 | J181: 0 | K181: 0
A182: =BASEOld!B182 -> 0 | B182: =BASEOld!C182 -> 0 | C182: =BASEOld!D182 -> Charlotte clip TU x 100 | D182: =BASEOld!H182 -> 1 | E182: =BASEOld!I182 -> PQ | F182: =BASEOld!K182 -> 2.75 | G182: =BASEOld!L182 -> 0 | J182: 0 | K182: 0
A183: =BASEOld!B183 -> 0 | B183: =BASEOld!C183 -> 0 | C183: =BASEOld!D183 -> Chips paquet 500g | D183: =BASEOld!H183 -> 1 | E183: =BASEOld!I183 -> Pce | F183: =BASEOld!K183 -> 1.62 | G183: =BASEOld!L183 -> 0 | J183: 0 | K183: 0
A184: =BASEOld!B184 -> 0 | B184: =BASEOld!C184 -> 0 | C184: =BASEOld!D184 -> Chocolat au lait tablette 100g | D184: =BASEOld!H184 -> 5 | E184: =BASEOld!I184 -> LOT | F184: =BASEOld!K184 -> 0.41 | G184: =BASEOld!L184 -> 0 | J184: 0 | K184: 0
A185: =BASEOld!B185 -> 0 | B185: =BASEOld!C185 -> 0 | C185: =BASEOld!D185 -> Chocolat en poudre dose 20g | D185: =BASEOld!H185 -> 200 | E185: =BASEOld!I185 -> ct | F185: =BASEOld!K185 -> 0.07 | G185: =BASEOld!L185 -> 0 | J185: 0 | K185: 0
A186: =BASEOld!B186 -> 0 | B186: =BASEOld!C186 -> 0 | C186: =BASEOld!D186 -> Chocolat petit déjeuner paquet 1Kg | D186: =BASEOld!H186 -> 1 | E186: =BASEOld!I186 -> BTE | F186: =BASEOld!K186 -> 2.79 | G186: =BASEOld!L186 -> 0 | J186: 0 | K186: 0
A187: =BASEOld!B187 -> 0 | B187: =BASEOld!C187 -> 0 | C187: =BASEOld!D187 -> Cidre bouché brut 75Cl | D187: =BASEOld!H187 -> 6 | E187: =BASEOld!I187 -> CT | F187: =BASEOld!K187 -> 1.27 | G187: =BASEOld!L187 -> 0 | J187: 0 | K187: 0
A188: =BASEOld!B188 -> 0 | B188: =BASEOld!C188 -> 0 | C188: =BASEOld!D188 -> Cidre bouché doux 75Cl | D188: =BASEOld!H188 -> 6 | E188: =BASEOld!I188 -> CT | F188: =BASEOld!K188 -> 1.27 | G188: =BASEOld!L188 -> 0 | J188: 0 | K188: 0
A189: =BASEOld!B189 -> 0 | B189: =BASEOld!C189 -> 0 | C189: =BASEOld!D189 -> Cigarettes croustillantes 1Kg | D189: =BASEOld!H189 -> 1 | E189: =BASEOld!I189 -> BTE | F189: =BASEOld!K189 -> 10.25 | G189: =BASEOld!L189 -> 0 | J189: 0 | K189: 0
A190: =BASEOld!B190 -> 0 | B190: =BASEOld!C190 -> 0 | C190: =BASEOld!D190 -> Citron | D190: =BASEOld!H190 -> 1 | E190: =BASEOld!I190 -> KG | F190: =BASEOld!K190 -> 1.54 | G190: =BASEOld!L190 -> 0 | J190: 0 | K190: 0
A191: =BASEOld!B191 -> 0 | B191: =BASEOld!C191 -> 0 | C191: =BASEOld!D191 -> Coca cola 1,5L | D191: =BASEOld!H191 -> 12 | E191: =BASEOld!I191 -> CT | F191: =BASEOld!K191 -> 1.67 | G191: =BASEOld!L191 -> 0 | J191: 0 | K191: 0
A192: =BASEOld!B192 -> 0 | B192: =BASEOld!C192 -> 0 | C192: =BASEOld!D192 -> Coca cola zéro ou light 1,5L | D192: =BASEOld!H192 -> 12 | E192: =BASEOld!I192 -> CT | F192: =BASEOld!K192 -> 1.54 | G192: =BASEOld!L192 -> 0 | J192: 0 | K192: 0
A193: =BASEOld!B193 -> 0 | B193: =BASEOld!C193 -> 0 | C193: =BASEOld!D193 -> Cocktail de fruits sans sucre 90g | D193: =BASEOld!H193 -> 120 | E193: =BASEOld!I193 -> CT | F193: =BASEOld!K193 -> 0.28 | G193: =BASEOld!L193 -> 0 | J193: 0 | K193: 0
A194: =BASEOld!B194 -> 0 | B194: =BASEOld!C194 -> 0 | C194: =BASEOld!D194 -> Compote de pomme 100g | D194: =BASEOld!H194 -> 120 | E194: =BASEOld!I194 -> CT | F194: =BASEOld!K194 -> 0.12 | G194: =BASEOld!L194 -> 0 | J194: 0 | K194: 0
A195: =BASEOld!B195 -> 0 | B195: =BASEOld!C195 -> 0 | C195: =BASEOld!D195 -> Compote pomme/abricot 100g | D195: =BASEOld!H195 -> 120 | E195: =BASEOld!I195 -> CT | F195: =BASEOld!K195 -> 0.21 | G195: =BASEOld!L195 -> 0 | J195: 0 | K195: 0
A196: =BASEOld!B196 -> 0 | B196: =BASEOld!C196 -> 0 | C196: =BASEOld!D196 -> Compote pomme/banane 100g | D196: =BASEOld!H196 -> 120 | E196: =BASEOld!I196 -> CT | F196: =BASEOld!K196 -> 0.21 | G196: =BASEOld!L196 -> 0 | J196: 0 | K196: 0
A197: =BASEOld!B197 -> 0 | B197: =BASEOld!C197 -> 0 | C197: =BASEOld!D197 -> Compote pomme/cassis 100g | D197: =BASEOld!H197 -> 120 | E197: =BASEOld!I197 -> CT | F197: =BASEOld!K197 -> 0.17 | G197: =BASEOld!L197 -> 0 | J197: 0 | K197: 0
A198: =BASEOld!B198 -> 0 | B198: =BASEOld!C198 -> 0 | C198: =BASEOld!D198 -> Cornichons pot 72cl | D198: =BASEOld!H198 -> 6 | E198: =BASEOld!I198 -> CT | F198: =BASEOld!K198 -> 2.15 | G198: =BASEOld!L198 -> 0 | J198: 0 | K198: 0
A199: =BASEOld!B199 -> 0 | B199: =BASEOld!C199 -> 0 | C199: =BASEOld!D199 -> Crème anglaise 1L | D199: =BASEOld!H199 -> 1 | E199: =BASEOld!I199 -> PCE | F199: =BASEOld!K199 -> 1.76 | G199: =BASEOld!L199 -> 0 | J199: =H199*D199*F199 -> 0 | K199: =I199*F199*D199 -> 0
A200: =BASEOld!B200 -> 0 | B200: =BASEOld!C200 -> 0 | C200: =BASEOld!D200 -> Crème de cassis 16° 70Cl | D200: =BASEOld!H200 -> 1 | E200: =BASEOld!I200 -> BLLE | F200: =BASEOld!K200 -> 6.24 | G200: =BASEOld!L200 -> 0 | J200: 0 | K200: 0
A201: =BASEOld!B201 -> 0 | B201: =BASEOld!C201 -> 0 | C201: =BASEOld!D201 -> Crème pâtissière à froid 2,5Kg | D201: =BASEOld!H201 -> 4 | E201: =BASEOld!I201 -> CT | F201: =BASEOld!K201 -> 6.88 | G201: =BASEOld!L201 -> 0 | J201: 0 | K201: 0
... 300 more rows

Sheet Rivoli
A1: =MID(CELL("filename",A1),FIND("]",CELL("filename",A1))+1,32) -> Rivoli | C1: Livraison du | D1: =BASEOld!J1 -> 2015-02-18 | F1: au | G1: =D1+6 -> 2015-02-24
D2: Date de dépôt | G2: =TODAY() -> 2015-02-24 | N2: Produits plus spécifiques à noter vous-même selon vos besoins
A3: Bon de commande Produits annexes
A5: FR | B5: FAMILLE | C5: Intitulés produits | D5: CDT | E5: U/F | F5: Prix HT € | G5: TVA | H5: Qté com | I5: Qté liv | J5: M. T. HT € prévisionnel | K5: M. T. HT € facturé
A6: =BASEOld!B6 -> Divers | B6: =BASEOld!C6 -> 0 | C6: =BASEOld!D6 -> Emmental rapé 1 KG | D6: =BASEOld!H6 -> 1 | E6: =BASEOld!I6 -> SHT | F6: =BASEOld!K6 -> 5.39 | G6: =BASEOld!L6 -> 0 | J6: =H6*D6*F6 -> 0 | K6: =I6*F6*D6 -> 0
A7: =BASEOld!B7 -> Divers | B7: =BASEOld!C7 -> 0 | C7: =BASEOld!D7 -> Jambon de Paris 10 tranches 400g | D7: =BASEOld!H7 -> 1 | E7: =BASEOld!I7 -> PQT | F7: =BASEOld!K7 -> 2.94 | G7: =BASEOld!L7 -> 0 | J7: =H7*D7*F7 -> 0 | K7: =I7*F7*D7 -> 0 | N7: Prévisionnel sur commande | Q7: Réel sur livraison
A8: =BASEOld!B8 -> Divers | B8: =BASEOld!C8 -> 0 | C8: =BASEOld!D8 -> Jambon de Paris 20 tranches 800g | D8: =BASEOld!H8 -> 1 | E8: =BASEOld!I8 -> PQT | F8: =BASEOld!K8 -> 4.05 | G8: =BASEOld!L8 -> 0 | J8: 0 | K8: 0 | N8: TOTAL H.T TVA 5,5% | O8: =SUMIF(G6:G501,N12,J6:J501) -> 0 | Q8: TOTAL H.T TVA 5,5% | R8: =SUMIF(I6:I501,N12,K6:K501) -> 0
A9: =BASEOld!B9 -> Divers | B9: =BASEOld!C9 -> 0 | C9: =BASEOld!D9 -> Jambon de Paris hyposodé 10 tranches 450g | D9: =BASEOld!H9 -> 1 | E9: =BASEOld!I9 -> PQT | F9: =BASEOld!K9 -> 3.5 | G9: =BASEOld!L9 -> 0 | J9: 0 | K9: 0 | N9: TOTAL H.T TVA 20% | O9: =SUMIF(G6:G501,N13,J6:J501) -> 0 | Q9: TOTAL H.T TVA 20% | R9: =SUMIF(I6:I501,N13,K6:K501) -> 0
A10: =BASEOld!B10 -> Goûter | B10: =BASEOld!C10 -> Biscuit à partager | C10: =BASEOld!D10 -> Cake marbré 400g (moule alu) | D10: =BASEOld!H10 -> 6 | E10: =BASEOld!I10 -> LOT | F10: =BASEOld!K10 -> 1.65 | G10: =BASEOld!L10 -> 0 | J10: 0 | K10: 0 | N10: TOTAL H.T TVA 20% non alimentaire | O10: =SUMIF(G6:G501,N14,J6:J501) -> 0 | Q10: TOTAL H.T TVA 20% non alimentaire | R10: =SUMIF(I6:I501,N14,K6:K501) -> 0
A11: =BASEOld!B11 -> Goûter | B11: =BASEOld!C11 -> Biscuit à partager | C11: =BASEOld!D11 -> Cake parfum chocolat 400g (moule alu) | D11: =BASEOld!H11 -> 6 | E11: =BASEOld!I11 -> LOT | F11: =BASEOld!K11 -> 1.65 | G11: =BASEOld!L11 -> 0 | J11: 0 | K11: 0
A12: =BASEOld!B12 -> Goûter | B12: =BASEOld!C12 -> Biscuit à partager | C12: =BASEOld!D12 -> Cake parfum kiwi 400g (moule alu) | D12: =BASEOld!H12 -> 6 | E12: =BASEOld!I12 -> LOT | F12: =BASEOld!K12 -> 1.65 | G12: =BASEOld!L12 -> 0 | J12: 0 | K12: 0 | N12: 0.055
A13: =BASEOld!B13 -> Goûter | B13: =BASEOld!C13 -> Biscuit à partager | C13: =BASEOld!D13 -> Roulade chocolat 300g | D13: =BASEOld!H13 -> 7 | E13: =BASEOld!I13 -> CT | F13: =BASEOld!K13 -> 1.65 | G13: =BASEOld!L13 -> 0 | J13: 0 | K13: 0 | N13: 0.2
A14: =BASEOld!B14 -> Goûter | B14: =BASEOld!C14 -> Biscuit à partager | C14: =BASEOld!D14 -> Roulade fraise 300g | D14: =BASEOld!H14 -> 7 | E14: =BASEOld!I14 -> CT | F14: =BASEOld!K14 -> 1.65 | G14: =BASEOld!L14 -> 0 | J14: 0 | K14: 0 | N14: 20% NA
A15: =BASEOld!B15 -> Goûter | B15: =BASEOld!C15 -> Biscuit à partager | C15: =BASEOld!D15 -> Roulade myrtille 300g | D15: =BASEOld!H15 -> 7 | E15: =BASEOld!I15 -> CT | F15: =BASEOld!K15 -> 1.65 | G15: =BASEOld!L15 -> 0 | J15: 0 | K15: 0
A16: =BASEOld!B16 -> Goûter | B16: =BASEOld!C16 -> Biscuit individuel | C16: =BASEOld!D16 -> Financier aux amandes 20g | D16: =BASEOld!H16 -> 150 | E16: =BASEOld!I16 -> CT | F16: =BASEOld!K16 -> 0.24 | G16: =BASEOld!L16 -> 0 | J16: 0 | K16: 0
A17: =BASEOld!B17 -> Goûter | B17: =BASEOld!C17 -> Biscuit individuel | C17: =BASEOld!D17 -> Gaufrette chocolat 20g | D17: =BASEOld!H17 -> 320 | E17: =BASEOld!I17 -> CT | F17: =BASEOld!K17 -> 0.11 | G17: =BASEOld!L17 -> 0 | J17: 0 | K17: 0
A18: =BASEOld!B18 -> Goûter | B18: =BASEOld!C18 -> Biscuit individuel | C18: =BASEOld!D18 -> Gaufrette vanille 20g | D18: =BASEOld!H18 -> 320 | E18: =BASEOld!I18 -> CT | F18: =BASEOld!K18 -> 0.11 | G18: =BASEOld!L18 -> 0 | J18: 0 | K18: 0
A19: =BASEOld!B19 -> Goûter | B19: =BASEOld!C19 -> Biscuit individuel | C19: =BASEOld!D19 -> Goûter fourré choco x 2 x 37g | D19: =BASEOld!H19 -> 144 | E19: =BASEOld!I19 -> CT | F19: =BASEOld!K19 -> 0.18 | G19: =BASEOld!L19 -> 0 | J19: 0 | K19: 0
A20: =BASEOld!B20 -> Goûter | B20: =BASEOld!C20 -> Biscuit individuel | C20: =BASEOld!D20 -> Lingot fondant orange 20g | D20: =BASEOld!H20 -> 150 | E20: =BASEOld!I20 -> CT | F20: =BASEOld!K20 -> 0.25 | G20: =BASEOld!L20 -> 0 | J20: 0 | K20: 0
A21: =BASEOld!B21 -> Goûter | B21: =BASEOld!C21 -> Biscuit individuel | C21: =BASEOld!D21 -> Madeleine carrée fourrée abricot 40g | D21: =BASEOld!H21 -> 50 | E21: =BASEOld!I21 -> CT | F21: =BASEOld!K21 -> 0.18 | G21: =BASEOld!L21 -> 0 | J21: 0 | K21: 0
A22: =BASEOld!B22 -> Goûter | B22: =BASEOld!C22 -> Biscuit individuel | C22: =BASEOld!D22 -> Madeleine carrée fourrée chocolat 40g | D22: =BASEOld!H22 -> 50 | E22: =BASEOld!I22 -> CT | F22: =BASEOld!K22 -> 0.18 | G22: =BASEOld!L22 -> 0 | J22: 0 | K22: 0
A23: =BASEOld!B23 -> Goûter | B23: =BASEOld!C23 -> Biscuit individuel | C23: =BASEOld!D23 -> Madeleine carrée fourrée fraise 40g | D23: =BASEOld!H23 -> 50 | E23: =BASEOld!I23 -> CT | F23: =BASEOld!K23 -> 0.18 | G23: =BASEOld!L23 -> 0 | J23: 0 | K23: 0
A24: =BASEOld!B24 -> Goûter | B24: =BASEOld!C24 -> Biscuit individuel | C24: =BASEOld!D24 -> Madeleine carrée fourrée fruits des bois 40g | D24: =BASEOld!H24 -> 50 | E24: =BASEOld!I24 -> CT | F24: =BASEOld!K24 -> 0.18 | G24: =BASEOld!L24 -> 0 | J24: 0 | K24: 0
A25: =BASEOld!B25 -> Goûter | B25: =BASEOld!C25 -> Biscuit individuel | C25: =BASEOld!D25 -> Madeleine carrée nature 30g | D25: =BASEOld!H25 -> 56 | E25: =BASEOld!I25 -> CT | F25: =BASEOld!K25 -> 0.22 | G25: =BASEOld!L25 -> 0 | J25: 0 | K25: 0
A26: =BASEOld!B26 -> Goûter | B26: =BASEOld!C26 -> Biscuit individuel | C26: =BASEOld!D26 -> Madeleine coquille aux œufs 25g | D26: =BASEOld!H26 -> 120 | E26: =BASEOld!I26 -> CT | F26: =BASEOld!K26 -> 0.07 | G26: =BASEOld!L26 -> 0 | J26: 0 | K26: 0
A27: =BASEOld!B27 -> Goûter | B27: =BASEOld!C27 -> Biscuit individuel | C27: =BASEOld!D27 -> Madeleine nappée chocolat 20g | D27: =BASEOld!H27 -> 120 | E27: =BASEOld!I27 -> CT | F27: =BASEOld!K27 -> 0.18 | G27: =BASEOld!L27 -> 0 | J27: 0 | K27: 0
A28: =BASEOld!B28 -> Goûter | B28: =BASEOld!C28 -> Biscuit individuel | C28: =BASEOld!D28 -> Mini cake fourré crème de lait 30g | D28: =BASEOld!H28 -> 120 | E28: =BASEOld!I28 -> CT | F28: =BASEOld!K28 -> 0.14 | G28: =BASEOld!L28 -> 0 | J28: 0 | K28: 0
A29: =BASEOld!B29 -> Goûter | B29: =BASEOld!C29 -> Biscuit individuel | C29: =BASEOld!D29 -> Mini génoise abricot 25g | D29: =BASEOld!H29 -> 120 | E29: =BASEOld!I29 -> CT | F29: =BASEOld!K29 -> 0.17 | G29: =BASEOld!L29 -> 0 | J29: 0 | K29: 0
A30: =BASEOld!B30 -> Goûter | B30: =BASEOld!C30 -> Biscuit individuel | C30: =BASEOld!D30 -> Mini génoise chocolat 25g | D30: =BASEOld!H30 -> 120 | E30: =BASEOld!I30 -> CT | F30: =BASEOld!K30 -> 0.17 | G30: =BASEOld!L30 -> 0 | J30: 0 | K30: 0
A31: =BASEOld!B31 -> Goûter | B31: =BASEOld!C31 -> Biscuit individuel | C31: =BASEOld!D31 -> Mini génoise fraise 25g | D31: =BASEOld!H31 -> 120 | E31: =BASEOld!I31 -> CT | F31: =BASEOld!K31 -> 0.17 | G31: =BASEOld!L31 -> 0 | J31: 0 | K31: 0
A32: =BASEOld!B32 -> Goûter | B32: =BASEOld!C32 -> Biscuit individuel | C32: =BASEOld!D32 -> Mini génoise nappée chocolat / fourrée chocolat 35g | D32: =BASEOld!H32 -> 120 | E32: =BASEOld!I32 -> CT | F32: =BASEOld!K32 -> 0.2 | G32: =BASEOld!L32 -> 0 | J32: 0 | K32: 0
A33: =BASEOld!B33 -> Goûter | B33: =BASEOld!C33 -> Biscuit individuel | C33: =BASEOld!D33 -> Mini génoise tiramisu 25g | D33: =BASEOld!H33 -> 120 | E33: =BASEOld!I33 -> CT | F33: =BASEOld!K33 -> 0.17 | G33: =BASEOld!L33 -> 0 | J33: 0 | K33: 0
A34: =BASEOld!B34 -> Goûter | B34: =BASEOld!C34 -> Biscuit individuel | C34: =BASEOld!D34 -> Mini marbré chocolat 30g | D34: =BASEOld!H34 -> 120 | E34: =BASEOld!I34 -> CT | F34: =BASEOld!K34 -> 0.14 | G34: =BASEOld!L34 -> 0 | J34: 0 | K34: 0
A35: =BASEOld!B35 -> Goûter | B35: =BASEOld!C35 -> Biscuit individuel | C35: =BASEOld!D35 -> Mini moelleux fourré abricot 30g | D35: =BASEOld!H35 -> 120 | E35: =BASEOld!I35 -> CT | F35: =BASEOld!K35 -> 0.12 | G35: =BASEOld!L35 -> 0 | J35: 0 | K35: 0
A36: =BASEOld!B36 -> Goûter | B36: =BASEOld!C36 -> Biscuit individuel | C36: =BASEOld!D36 -> Mini moelleux fourré cacao 30g | D36: =BASEOld!H36 -> 130 | E36: =BASEOld!I36 -> CT | F36: =BASEOld!K36 -> 0.12 | G36: =BASEOld!L36 -> 0 | J36: 0 | K36: 0
A37: =BASEOld!B37 -> Goûter | B37: =BASEOld!C37 -> Biscuit individuel | C37: =BASEOld!D37 -> Mini moelleux fourré cacao-noisette 30g | D37: =BASEOld!H37 -> 120 | E37: =BASEOld!I37 -> CT | F37: =BASEOld!K37 -> 0.12 | G37: =BASEOld!L37 -> 0 | J37: 0 | K37: 0
A38: =BASEOld!B38 -> Goûter | B38: =BASEOld!C38 -> Biscuit individuel | C38: =BASEOld!D38 -> Mini moelleux fourré citron 30g | D38: =BASEOld!H38 -> 100 | E38: =BASEOld!I38 -> CT | F38: =BASEOld!K38 -> 0.12 | G38: =BASEOld!L38 -> 0 | J38: 0 | K38: 0
A39: =BASEOld!B39 -> Goûter | B39: =BASEOld!C39 -> Biscuit individuel | C39: =BASEOld!D39 -> Mini moelleux fourré fraise 30g | D39: =BASEOld!H39 -> 120 | E39: =BASEOld!I39 -> CT | F39: =BASEOld!K39 -> 0.1 | G39: =BASEOld!L39 -> 0 | J39: 0 | K39: 0
A40: =BASEOld!B40 -> Goûter | B40: =BASEOld!C40 -> Biscuit individuel | C40: =BASEOld!D40 -> Mini moelleux fourré fruits rouges 30g | D40: =BASEOld!H40 -> 100 | E40: =BASEOld!I40 -> CT | F40: =BASEOld!K40 -> 0.12 | G40: =BASEOld!L40 -> 0 | J40: 0 | K40: 0
A41: =BASEOld!B41 -> Goûter | B41: =BASEOld!C41 -> Biscuit individuel | C41: =BASEOld!D41 -> Moelleux amande 40g | D41: =BASEOld!H41 -> 100 | E41: =BASEOld!I41 -> CT | F41: =BASEOld!K41 -> 0.21 | G41: =BASEOld!L41 -> 0 | J41: 0 | K41: 0
A42: =BASEOld!B42 -> Goûter | B42: =BASEOld!C42 -> Biscuit individuel | C42: =BASEOld!D42 -> Moelleux chocolat 40g | D42: =BASEOld!H42 -> 100 | E42: =BASEOld!I42 -> CT | F42: =BASEOld!K42 -> 0.2 | G42: =BASEOld!L42 -> 0 | J42: 0 | K42: 0
A43: =BASEOld!B43 -> Goûter | B43: =BASEOld!C43 -> Biscuit individuel | C43: =BASEOld!D43 -> Moelleux citron 40g | D43: =BASEOld!H43 -> 100 | E43: =BASEOld!I43 -> CT | F43: =BASEOld!K43 -> 0.19 | G43: =BASEOld!L43 -> 0 | J43: 0 | K43: 0
A44: =BASEOld!B44 -> Goûter | B44: =BASEOld!C44 -> Biscuit individuel | C44: =BASEOld!D44 -> Moelleux framboise 40g | D44: =BASEOld!H44 -> 100 | E44: =BASEOld!I44 -> CT | F44: =BASEOld!K44 -> 0.22 | G44: =BASEOld!L44 -> 0 | J44: 0 | K44: 0
A45: =BASEOld!B45 -> Goûter | B45: =BASEOld!C45 -> Biscuit individuel | C45: =BASEOld!D45 -> Moelleux marbré 40g | D45: =BASEOld!H45 -> 100 | E45: =BASEOld!I45 -> CT | F45: =BASEOld!K45 -> 0.2 | G45: =BASEOld!L45 -> 0 | J45: 0 | K45: 0
A46: =BASEOld!B46 -> Goûter | B46: =BASEOld!C46 -> Biscuit individuel | C46: =BASEOld!D46 -> Rocher coco nappé chocolat 40g | D46: =BASEOld!H46 -> 100 | E46: =BASEOld!I46 -> CT | F46: =BASEOld!K46 -> 0.29 | G46: =BASEOld!L46 -> 0 | J46: 0 | K46: 0
A47: =BASEOld!B47 -> Goûter | B47: =BASEOld!C47 -> Biscuit individuel | C47: =BASEOld!D47 -> Rocher coco nature 35g | D47: =BASEOld!H47 -> 100 | E47: =BASEOld!I47 -> CT | F47: =BASEOld!K47 -> 0.15 | G47: =BASEOld!L47 -> 0 | J47: 0 | K47: 0
A48: =BASEOld!B48 -> Goûter | B48: =BASEOld!C48 -> Biscuit individuel | C48: =BASEOld!D48 -> Tranche marbrée cacao 50g | D48: =BASEOld!H48 -> 48 | E48: =BASEOld!I48 -> CT | F48: =BASEOld!K48 -> 0.26 | G48: =BASEOld!L48 -> 0 | J48: 0 | K48: 0
A49: =BASEOld!B49 -> Goûter | B49: =BASEOld!C49 -> Biscuit individuel | C49: =BASEOld!D49 -> Tranche nature citron 50g | D49: =BASEOld!H49 -> 48 | E49: =BASEOld!I49 -> CT | F49: =BASEOld!K49 -> 0.26 | G49: =BASEOld!L49 -> 0 | J49: 0 | K49: 0
A50: =BASEOld!B50 -> Goûter | B50: =BASEOld!C50 -> Divers | C50: =BASEOld!D50 -> Framboise en bille surgelée 1Kg | D50: =BASEOld!H50 -> 5 | E50: =BASEOld!I50 -> CT | F50: =BASEOld!K50 -> 4.65 | G50: =BASEOld!L50 -> 0 | J50: 0 | K50: 0
A51: =BASEOld!B51 -> Goûter | B51: =BASEOld!C51 -> Divers | C51: =BASEOld!D51 -> Framboises entières surgelées Williamette 1Kg | D51: =BASEOld!H51 -> 1 | E51: =BASEOld!I51 -> SHT | F51: =BASEOld!K51 -> 3.56 | G51: =BASEOld!L51 -> 0 | J51: 0 | K51: 0
A52: =BASEOld!B52 -> Goûter | B52: =BASEOld!C52 -> Divers | C52: =BASEOld!D52 -> Griottes dénoyautées surgelées 1Kg | D52: =BASEOld!H52 -> 1 | E52: =BASEOld!I52 -> SHT | F52: =BASEOld!K52 -> 3.71 | G52: =BASEOld!L52 -> 0 | J52: 0 | K52: 0
A53: =BASEOld!B53 -> Goûter | B53: =BASEOld!C53 -> Divers | C53: =BASEOld!D53 -> Melon en bille surgelé 1Kg | D53: =BASEOld!H53 -> 1 | E53: =BASEOld!I53 -> SHT | F53: =BASEOld!K53 -> 4.24 | G53: =BASEOld!L53 -> 0 | J53: 0 | K53: 0
A54: =BASEOld!B54 -> Goûter | B54: =BASEOld!C54 -> Divers | C54: =BASEOld!D54 -> Mûre cultivée surgelée 1Kg | D54: =BASEOld!H54 -> 1 | E54: =BASEOld!I54 -> SHT | F54: =BASEOld!K54 -> 5.16 | G54: =BASEOld!L54 -> 0 | J54: 0 | K54: 0
A55: =BASEOld!B55 -> Goûter | B55: =BASEOld!C55 -> Divers | C55: =BASEOld!D55 -> Salade de fruits exotiques surgelée 1Kg | D55: =BASEOld!H55 -> 1 | E55: =BASEOld!I55 -> SHT | F55: =BASEOld!K55 -> 3.1 | G55: =BASEOld!L55 -> 0 | J55: 0 | K55: 0
A56: =BASEOld!B56 -> Goûter | B56: =BASEOld!C56 -> Gâteau à partager | C56: =BASEOld!D56 -> Bavarois cappuccino 700g | D56: =BASEOld!H56 -> 2 | E56: =BASEOld!I56 -> PCE | F56: =BASEOld!K56 -> 5.12 | G56: =BASEOld!L56 -> 0 | J56: 0 | K56: 0
A57: =BASEOld!B57 -> Goûter | B57: =BASEOld!C57 -> Gâteau à partager | C57: =BASEOld!D57 -> Bavarois parfum abricot 700 g | D57: =BASEOld!H57 -> 2 | E57: =BASEOld!I57 -> PCE | F57: =BASEOld!K57 -> 5.12 | G57: =BASEOld!L57 -> 0 | J57: 0 | K57: 0
A58: =BASEOld!B58 -> Goûter | B58: =BASEOld!C58 -> Gâteau à partager | C58: =BASEOld!D58 -> Bavarois parfum chocolat 700 g | D58: =BASEOld!H58 -> 2 | E58: =BASEOld!I58 -> PCE | F58: =BASEOld!K58 -> 5.19 | G58: =BASEOld!L58 -> 0 | J58: 0 | K58: 0
A59: =BASEOld!B59 -> Goûter | B59: =BASEOld!C59 -> Gâteau à partager | C59: =BASEOld!D59 -> Bavarois parfum framboise 700g | D59: =BASEOld!H59 -> 2 | E59: =BASEOld!I59 -> PCE | F59: =BASEOld!K59 -> 5.37 | G59: =BASEOld!L59 -> 0 | J59: 0 | K59: 0
A60: =BASEOld!B60 -> Goûter | B60: =BASEOld!C60 -> Gâteau à partager | C60: =BASEOld!D60 -> Bavarois parfum fruits rouges 700 g | D60: =BASEOld!H60 -> 2 | E60: =BASEOld!I60 -> PCE | F60: =BASEOld!K60 -> 5.12 | G60: =BASEOld!L60 -> 0 | J60: 0 | K60: 0
A61: =BASEOld!B61 -> Goûter | B61: =BASEOld!C61 -> Gâteau à partager | C61: =BASEOld!D61 -> Bavarois parfum poire 700g | D61: =BASEOld!H61 -> 2 | E61: =BASEOld!I61 -> PCE | F61: =BASEOld!K61 -> 5.25 | G61: =BASEOld!L61 -> 0 | J61: 0 | K61: 0
A62: =BASEOld!B62 -> Goûter | B62: =BASEOld!C62 -> Gâteau à partager | C62: =BASEOld!D62 -> Boléro chocolat marrons en bande 550g | D62: =BASEOld!H62 -> 4 | E62: =BASEOld!I62 -> PCE | F62: =BASEOld!K62 -> 4.05 | G62: =BASEOld!L62 -> 0 | J62: 0 | K62: 0
A63: =BASEOld!B63 -> Goûter | B63: =BASEOld!C63 -> Gâteau à partager | C63: =BASEOld!D63 -> Carré bavarois cacao 45g x 60 (demi-cadre) | D63: =BASEOld!H63 -> 60 | E63: =BASEOld!I63 -> CT | F63: =BASEOld!K63 -> 0.31 | G63: =BASEOld!L63 -> 0 | J63: 0 | K63: 0
A64: =BASEOld!B64 -> Goûter | B64: =BASEOld!C64 -> Gâteau à partager | C64: =BASEOld!D64 -> Carré bavarois fruits rouges 45g x 60 (demi-cadre) | D64: =BASEOld!H64 -> 60 | E64: =BASEOld!I64 -> CT | F64: =BASEOld!K64 -> 0.31 | G64: =BASEOld!L64 -> 0 | J64: 0 | K64: 0
A65: =BASEOld!B65 -> Goûter | B65: =BASEOld!C65 -> Gâteau à partager | C65: =BASEOld!D65 -> Charlotte aux fruits rouges en bande 800g | D65: =BASEOld!H65 -> 2 | E65: =BASEOld!I65 -> PCE | F65: =BASEOld!K65 -> 7.18 | G65: =BASEOld!L65 -> 0 | J65: 0 | K65: 0
A66: =BASEOld!B66 -> Goûter | B66: =BASEOld!C66 -> Gâteau à partager | C66: =BASEOld!D66 -> Charlotte aux poires en bande 850g | D66: =BASEOld!H66 -> 2 | E66: =BASEOld!I66 -> PCE | F66: =BASEOld!K66 -> 9.08 | G66: =BASEOld!L66 -> 0 | J66: 0 | K66: 0
A67: =BASEOld!B67 -> Goûter | B67: =BASEOld!C67 -> Gâteau à partager | C67: =BASEOld!D67 -> Clafoutis à la cerise en bande 550g | D67: =BASEOld!H67 -> 4 | E67: =BASEOld!I67 -> PCE | F67: =BASEOld!K67 -> 3.11 | G67: =BASEOld!L67 -> 0 | J67: 0 | K67: 0
A68: =BASEOld!B68 -> Goûter | B68: =BASEOld!C68 -> Gâteau à partager | C68: =BASEOld!D68 -> Clafoutis aux griottes 1Kg | D68: =BASEOld!H68 -> 1 | E68: =BASEOld!I68 -> PCE | F68: =BASEOld!K68 -> 5.78 | G68: =BASEOld!L68 -> 0 | J68: 0 | K68: 0
A69: =BASEOld!B69 -> Goûter | B69: =BASEOld!C69 -> Gâteau à partager | C69: =BASEOld!D69 -> Craquant crème brulée-fruits rouges en bande 750g | D69: =BASEOld!H69 -> 2 | E69: =BASEOld!I69 -> PCE | F69: =BASEOld!K69 -> 11.22 | G69: =BASEOld!L69 -> 0 | J69: 0 | K69: 0
A70: =BASEOld!B70 -> Goûter | B70: =BASEOld!C70 -> Gâteau à partager | C70: =BASEOld!D70 -> Forêt noire aux griottes 1,4kg | D70: =BASEOld!H70 -> 2 | E70: =BASEOld!I70 -> PCE | F70: =BASEOld!K70 -> 8.12 | G70: =BASEOld!L70 -> 0 | J70: 0 | K70: 0
A71: =BASEOld!B71 -> Goûter | B71: =BASEOld!C71 -> Gâteau à partager | C71: =BASEOld!D71 -> Forêt noire sans sucre ajouté 57g | D71: =BASEOld!H71 -> 28 | E71: =BASEOld!I71 -> PCE | F71: =BASEOld!K71 -> 0.57 | G71: =BASEOld!L71 -> 0 | J71: =H71*D71*F71 -> 0 | K71: =I71*F71*D71 -> 0
A72: =BASEOld!B72 -> Goûter | B72: =BASEOld!C72 -> Gâteau à partager | C72: =BASEOld!D72 -> Framboisier en bande 550g | D72: =BASEOld!H72 -> 2 | E72: =BASEOld!I72 -> CT | F72: =BASEOld!K72 -> 7.56 | G72: =BASEOld!L72 -> 0 | J72: 0 | K72: 0
A73: =BASEOld!B73 -> Goûter | B73: =BASEOld!C73 -> Gâteau à partager | C73: =BASEOld!D73 -> Gâteau aux 3 chocolats 1Kg | D73: =BASEOld!H73 -> 1 | E73: =BASEOld!I73 -> PCE | F73: =BASEOld!K73 -> 13.01 | G73: =BASEOld!L73 -> 0 | J73: 0 | K73: 0
A74: =BASEOld!B74 -> Goûter | B74: =BASEOld!C74 -> Gâteau à partager | C74: =BASEOld!D74 -> Gâteau Basque 1kg | D74: =BASEOld!H74 -> 4 | E74: =BASEOld!I74 -> PCE | F74: =BASEOld!K74 -> 3.73 | G74: =BASEOld!L74 -> 0 | J74: 0 | K74: 0
A75: =BASEOld!B75 -> Goûter | B75: =BASEOld!C75 -> Individuel | C75: =BASEOld!D75 -> Millefeuille 65g x 36 | D75: =BASEOld!H75 -> 3 | E75: =BASEOld!I75 -> CT | F75: =BASEOld!K75 -> 13.64 | G75: =BASEOld!L75 -> 0 | J75: 0 | K75: 0
A76: =BASEOld!B76 -> Goûter | B76: =BASEOld!C76 -> Gâteau à partager | C76: =BASEOld!D76 -> Omelette norvégienne 2L | D76: =BASEOld!H76 -> 6 | E76: =BASEOld!I76 -> CT | F76: =BASEOld!K76 -> 7.86 | G76: =BASEOld!L76 -> 0 | J76: 0 | K76: 0
A77: =BASEOld!B77 -> Goûter | B77: =BASEOld!C77 -> Gâteau à partager | C77: =BASEOld!D77 -> Opéra en bande 750g | D77: =BASEOld!H77 -> 2 | E77: =BASEOld!I77 -> PCE | F77: =BASEOld!K77 -> 9.81 | G77: =BASEOld!L77 -> 0 | J77: 0 | K77: 0
A78: =BASEOld!B78 -> Goûter | B78: =BASEOld!C78 -> Gâteau à partager | C78: =BASEOld!D78 -> Privilège poire chocolat en bande 750g | D78: =BASEOld!H78 -> 2 | E78: =BASEOld!I78 -> PCE | F78: =BASEOld!K78 -> 8.1 | G78: =BASEOld!L78 -> 0 | J78: 0 | K78: 0
A79: =BASEOld!B79 -> Goûter | B79: =BASEOld!C79 -> Gâteau à partager | C79: =BASEOld!D79 -> Royal chocolat en bande 650g | D79: =BASEOld!H79 -> 3 | E79: =BASEOld!I79 -> PCE | F79: =BASEOld!K79 -> 7.92 | G79: =BASEOld!L79 -> 0 | J79: 0 | K79: 0
A80: =BASEOld!B80 -> Goûter | B80: =BASEOld!C80 -> Gâteau à partager | C80: =BASEOld!D80 -> Tarte à la noix de coco 1,15Kg | D80: =BASEOld!H80 -> 2 | E80: =BASEOld!I80 -> CT | F80: =BASEOld!K80 -> 5.86 | G80: =BASEOld!L80 -> 0 | J80: 0 | K80: 0
A81: =BASEOld!B81 -> Goûter | B81: =BASEOld!C81 -> Gâteau à partager | C81: =BASEOld!D81 -> Tarte au chocolat entière 900g | D81: =BASEOld!H81 -> 2 | E81: =BASEOld!I81 -> CT | F81: =BASEOld!K81 -> 5.48 | G81: =BASEOld!L81 -> 0 | J81: 0 | K81: 0
A82: =BASEOld!B82 -> Goûter | B82: =BASEOld!C82 -> Gâteau à partager | C82: =BASEOld!D82 -> Tarte au chocolat prédécoupée en 10 700g | D82: =BASEOld!H82 -> 8 | E82: =BASEOld!I82 -> CT | F82: =BASEOld!K82 -> 3.3 | G82: =BASEOld!L82 -> 0 | J82: 0 | K82: 0
A83: =BASEOld!B83 -> Goûter | B83: =BASEOld!C83 -> Gâteau à partager | C83: =BASEOld!D83 -> Tarte au citron 1,15kg | D83: =BASEOld!H83 -> 2 | E83: =BASEOld!I83 -> PCE | F83: =BASEOld!K83 -> 5.81 | G83: =BASEOld!L83 -> 0 | J83: 0 | K83: 0
A84: =BASEOld!B84 -> Goûter | B84: =BASEOld!C84 -> Gâteau à partager | C84: =BASEOld!D84 -> Tarte au citron meringuée 1kg | D84: =BASEOld!H84 -> 2 | E84: =BASEOld!I84 -> PCE | F84: =BASEOld!K84 -> 5.06 | G84: =BASEOld!L84 -> 0 | J84: 0 | K84: 0
A85: =BASEOld!B85 -> Goûter | B85: =BASEOld!C85 -> Gâteau à partager | C85: =BASEOld!D85 -> Tarte au citron prédrécoupée en 10 parts 700g | D85: =BASEOld!H85 -> 8 | E85: =BASEOld!I85 -> CT | F85: =BASEOld!K85 -> 3.27 | G85: =BASEOld!L85 -> 0 | J85: 0 | K85: 0
A86: =BASEOld!B86 -> Goûter | B86: =BASEOld!C86 -> Gâteau à partager | C86: =BASEOld!D86 -> Tarte au flan 1Kg | D86: =BASEOld!H86 -> 4 | E86: =BASEOld!I86 -> CT | F86: =BASEOld!K86 -> 3.51 | G86: =BASEOld!L86 -> 0 | J86: 0 | K86: 0
A87: =BASEOld!B87 -> Goûter | B87: =BASEOld!C87 -> Gâteau à partager | C87: =BASEOld!D87 -> Tarte au flan prédécoupée en 10 parts 750g | D87: =BASEOld!H87 -> 1 | E87: =BASEOld!I87 -> PCE | F87: =BASEOld!K87 -> 3.03 | G87: =BASEOld!L87 -> 0 | J87: 0 | K87: 0
A88: =BASEOld!B88 -> Goûter | B88: =BASEOld!C88 -> Gâteau à partager | C88: =BASEOld!D88 -> Tarte aux abricots 1,3kg | D88: =BASEOld!H88 -> 1 | E88: =BASEOld!I88 -> PCE | F88: =BASEOld!K88 -> 13.09 | G88: =BASEOld!L88 -> 0 | J88: 0 | K88: 0
A89: =BASEOld!B89 -> Goûter | B89: =BASEOld!C89 -> Gâteau à partager | C89: =BASEOld!D89 -> Tarte aux abricots 1,3Kg | D89: =BASEOld!H89 -> 1 | E89: =BASEOld!I89 -> PCE | F89: =BASEOld!K89 -> 12.61 | G89: =BASEOld!L89 -> 0 | J89: 0 | K89: 0
A90: =BASEOld!B90 -> Goûter | B90: =BASEOld!C90 -> Gâteau à partager | C90: =BASEOld!D90 -> Tarte aux abricots croisillon prédécoupée en 12 parts 900g | D90: =BASEOld!H90 -> 6 | E90: =BASEOld!I90 -> CT | F90: =BASEOld!K90 -> 3.19 | G90: =BASEOld!L90 -> 0 | J90: 0 | K90: 0
A91: =BASEOld!B91 -> Goûter | B91: =BASEOld!C91 -> Gâteau à partager | C91: =BASEOld!D91 -> Tarte aux fraises 800g | D91: =BASEOld!H91 -> 1 | E91: =BASEOld!I91 -> PCE | F91: =BASEOld!K91 -> 8.29 | G91: =BASEOld!L91 -> 0 | J91: 0 | K91: 0
A92: =BASEOld!B92 -> Goûter | B92: =BASEOld!C92 -> Gâteau à partager | C92: =BASEOld!D92 -> Tarte aux fraises prédécoupée en 8 900g | D92: =BASEOld!H92 -> 1 | E92: =BASEOld!I92 -> PCE | F92: =BASEOld!K92 -> 6.72 | G92: =BASEOld!L92 -> 0 | J92: 0 | K92: 0
A93: =BASEOld!B93 -> Goûter | B93: =BASEOld!C93 -> Gâteau à partager | C93: =BASEOld!D93 -> Tarte aux framboises 1,4kg | D93: =BASEOld!H93 -> 1 | E93: =BASEOld!I93 -> PCE | F93: =BASEOld!K93 -> 13.86 | G93: =BASEOld!L93 -> 0 | J93: 0 | K93: 0
A94: =BASEOld!B94 -> Goûter | B94: =BASEOld!C94 -> Gâteau à partager | C94: =BASEOld!D94 -> Tarte aux framboises 880g | D94: =BASEOld!H94 -> 1 | E94: =BASEOld!I94 -> PCE | F94: =BASEOld!K94 -> 7.13 | G94: =BASEOld!L94 -> 0 | J94: 0 | K94: 0
A95: =BASEOld!B95 -> Goûter | B95: =BASEOld!C95 -> Gâteau à partager | C95: =BASEOld!D95 -> Tarte aux framboises meringuée 1,15kg | D95: =BASEOld!H95 -> 2 | E95: =BASEOld!I95 -> CT | F95: =BASEOld!K95 -> 7.26 | G95: =BASEOld!L95 -> 0 | J95: 0 | K95: 0
A96: =BASEOld!B96 -> Goûter | B96: =BASEOld!C96 -> Gâteau à partager | C96: =BASEOld!D96 -> Tarte aux myrtilles 900g | D96: =BASEOld!H96 -> 2 | E96: =BASEOld!I96 -> CT | F96: =BASEOld!K96 -> 7.01 | G96: =BASEOld!L96 -> 0 | J96: 0 | K96: 0
A97: =BASEOld!B97 -> Goûter | B97: =BASEOld!C97 -> Gâteau à partager | C97: =BASEOld!D97 -> Tarte aux poires 900g | D97: =BASEOld!H97 -> 1 | E97: =BASEOld!I97 -> PCE | F97: =BASEOld!K97 -> 6.78 | G97: =BASEOld!L97 -> 0 | J97: 0 | K97: 0
A98: =BASEOld!B98 -> Goûter | B98: =BASEOld!C98 -> Gâteau à partager | C98: =BASEOld!D98 -> Tarte aux poires Bourdaloue 1,1kg | D98: =BASEOld!H98 -> 2 | E98: =BASEOld!I98 -> CT | F98: =BASEOld!K98 -> 8.31 | G98: =BASEOld!L98 -> 0 | J98: 0 | K98: 0
A99: =BASEOld!B99 -> Goûter | B99: =BASEOld!C99 -> Gâteau à partager | C99: =BASEOld!D99 -> Tarte aux poires prédécoupée en 10 parts 750g | D99: =BASEOld!H99 -> 1 | E99: =BASEOld!I99 -> PCE | F99: =BASEOld!K99 -> 4.8 | G99: =BASEOld!L99 -> 0 | J99: 0 | K99: 0
A100: =BASEOld!B100 -> Goûter | B100: =BASEOld!C100 -> Gâteau à partager | C100: =BASEOld!D100 -> Tarte aux pommes croissillon prédécoupée en 12 parts 900g | D100: =BASEOld!H100 -> 1 | E100: =BASEOld!I100 -> PCE | F100: =BASEOld!K100 -> 3.07 | G100: =BASEOld!L100 -> 0 | J100: 0 | K100: 0
A101: =BASEOld!B101 -> Goûter | B101: =BASEOld!C101 -> Gâteau à partager | C101: =BASEOld!D101 -> Tarte aux pommes crumble 1,15Kg | D101: =BASEOld!H101 -> 2 | E101: =BASEOld!I101 -> CT | F101: =BASEOld!K101 -> 6.58 | G101: =BASEOld!L101 -> 0 | J101: 0 | K101: 0
A102: =BASEOld!B102 -> Goûter | B102: =BASEOld!C102 -> Gâteau à partager | C102: =BASEOld!D102 -> Tarte aux pommes et noix 1,1Kg | D102: =BASEOld!H102 -> 2 | E102: =BASEOld!I102 -> CT | F102: =BASEOld!K102 -> 6.1 | G102: =BASEOld!L102 -> 0 | J102: 0 | K102: 0
A103: =BASEOld!B103 -> Goûter | B103: =BASEOld!C103 -> Gâteau à partager | C103: =BASEOld!D103 -> Tarte aux pommes Normande 800g | D103: =BASEOld!H103 -> 2 | E103: =BASEOld!I103 -> CT | F103: =BASEOld!K103 -> 4.02 | G103: =BASEOld!L103 -> 0 | J103: 0 | K103: 0
A104: =BASEOld!B104 -> Goûter | B104: =BASEOld!C104 -> Gâteau à partager | C104: =BASEOld!D104 -> Tarte aux pommes Normande 950g | D104: =BASEOld!H104 -> 1 | E104: =BASEOld!I104 -> PCE | F104: =BASEOld!K104 -> 3.86 | G104: =BASEOld!L104 -> 0 | J104: 0 | K104: 0
A105: =BASEOld!B105 -> Goûter | B105: =BASEOld!C105 -> Gâteau à partager | C105: =BASEOld!D105 -> Tarte aux pommes Normande prédécoupée en 10 parts 700g | D105: =BASEOld!H105 -> 6 | E105: =BASEOld!I105 -> CT | F105: =BASEOld!K105 -> 3.05 | G105: =BASEOld!L105 -> 0 | J105: 0 | K105: 0
A106: =BASEOld!B106 -> Goûter | B106: =BASEOld!C106 -> Gâteau à partager | C106: =BASEOld!D106 -> Tarte aux pommes prédécoupée en 10 parts 750g | D106: =BASEOld!H106 -> 1 | E106: =BASEOld!I106 -> PCE | F106: =BASEOld!K106 -> 3.18 | G106: =BASEOld!L106 -> 0 | J106: 0 | K106: 0
A107: =BASEOld!B107 -> Goûter | B107: =BASEOld!C107 -> Gâteau à partager | C107: =BASEOld!D107 -> Tarte rosace aux fruits entiers, questches, abricots, framboises | D107: =BASEOld!H107 -> 1 | E107: =BASEOld!I107 -> PCE | F107: =BASEOld!K107 -> 6.35 | G107: =BASEOld!L107 -> 0 | J107: 0 | K107: 0
A108: =BASEOld!B108 -> Goûter | B108: =BASEOld!C108 -> Gâteau à partager | C108: =BASEOld!D108 -> Tarte tropézienne 650g | D108: =BASEOld!H108 -> 6 | E108: =BASEOld!I108 -> CT | F108: =BASEOld!K108 -> 4.51 | G108: =BASEOld!L108 -> 0 | J108: 0 | K108: 0
A109: =BASEOld!B109 -> Goûter | B109: =BASEOld!C109 -> Gâteau à partager | C109: =BASEOld!D109 -> Tiramisu en bande 900g | D109: =BASEOld!H109 -> 2 | E109: =BASEOld!I109 -> CT | F109: =BASEOld!K109 -> 7.59 | G109: =BASEOld!L109 -> 0 | J109: 0 | K109: 0
A110: =BASEOld!B110 -> Goûter | B110: =BASEOld!C110 -> Gâteau à partager | C110: =BASEOld!D110 -> Tiramisu en bande 900g | D110: =BASEOld!H110 -> 2 | E110: =BASEOld!I110 -> PCE | F110: =BASEOld!K110 -> 6.96 | G110: =BASEOld!L110 -> 0 | J110: 0 | K110: 0
A111: =BASEOld!B111 -> Goûter | B111: =BASEOld!C111 -> Gâteau à partager | C111: =BASEOld!D111 -> Vacherin vanille/framboise glacé 2L | D111: =BASEOld!H111 -> 2 | E111: =BASEOld!I111 -> PCE | F111: =BASEOld!K111 -> 7.11 | G111: =BASEOld!L111 -> 0 | J111: 0 | K111: 0
A112: =BASEOld!B112 -> Goûter | B112: =BASEOld!C112 -> Individuel | C112: =BASEOld!D112 -> Beignet abricot 75g | D112: =BASEOld!H112 -> 60 | E112: =BASEOld!I112 -> CT | F112: =BASEOld!K112 -> 0.31 | G112: =BASEOld!L112 -> 0 | J112: 0 | K112: 0
A113: =BASEOld!B113 -> Goûter | B113: =BASEOld!C113 -> Individuel | C113: =BASEOld!D113 -> Beignet chocolat-noisette 75g | D113: =BASEOld!H113 -> 60 | E113: =BASEOld!I113 -> PCE | F113: =BASEOld!K113 -> 0.3 | G113: =BASEOld!L113 -> 0 | J113: 0 | K113: 0
A114: =BASEOld!B114 -> Goûter | B114: =BASEOld!C114 -> Individuel | C114: =BASEOld!D114 -> Beignet framboise 75g | D114: =BASEOld!H114 -> 60 | E114: =BASEOld!I114 -> PCE | F114: =BASEOld!K114 -> 0.31 | G114: =BASEOld!L114 -> 0 | J114: 0 | K114: 0
A115: =BASEOld!B115 -> Goûter | B115: =BASEOld!C115 -> Individuel | C115: =BASEOld!D115 -> Beignet nature 55g | D115: =BASEOld!H115 -> 60 | E115: =BASEOld!I115 -> CT | F115: =BASEOld!K115 -> 0.25 | G115: =BASEOld!L115 -> 0 | J115: 0 | K115: 0
A116: =BASEOld!B116 -> Goûter | B116: =BASEOld!C116 -> Individuel | C116: =BASEOld!D116 -> Beignet pommes 75g | D116: =BASEOld!H116 -> 60 | E116: =BASEOld!I116 -> CT | F116: =BASEOld!K116 -> 0.26 | G116: =BASEOld!L116 -> 0 | J116: 0 | K116: 0
A117: =BASEOld!B117 -> Goûter | B117: =BASEOld!C117 -> Individuel | C117: =BASEOld!D117 -> Brioche perdue 100g (peut être coupée en 2) | D117: =BASEOld!H117 -> 28 | E117: =BASEOld!I117 -> PCE | F117: =BASEOld!K117 -> 0.95 | G117: =BASEOld!L117 -> 0 | J117: 0 | K117: 0
A118: =BASEOld!B118 -> Goûter | B118: =BASEOld!C118 -> Individuel | C118: =BASEOld!D118 -> Briochette à tête pur beurre cuite 45g | D118: =BASEOld!H118 -> 45 | E118: =BASEOld!I118 -> CT | F118: =BASEOld!K118 -> 0.35 | G118: =BASEOld!L118 -> 0 | J118: 0 | K118: 0
A119: =BASEOld!B119 -> Goûter | B119: =BASEOld!C119 -> Individuel | C119: =BASEOld!D119 -> Crèpes au chocolat 40g | D119: =BASEOld!H119 -> 40 | E119: =BASEOld!I119 -> PCE | F119: =BASEOld!K119 -> 0.25 | G119: =BASEOld!L119 -> 0 | J119: 0 | K119: 0
A120: =BASEOld!B120 -> Goûter | B120: =BASEOld!C120 -> Individuel | C120: =BASEOld!D120 -> Crèpes nature 50g | D120: =BASEOld!H120 -> 40 | E120: =BASEOld!I120 -> PCE | F120: =BASEOld!K120 -> 0.26 | G120: =BASEOld!L120 -> 0 | J120: 0 | K120: 0
A121: =BASEOld!B121 -> Goûter | B121: =BASEOld!C121 -> Individuel | C121: =BASEOld!D121 -> Donuts chocolat 55g | D121: =BASEOld!H121 -> 36 | E121: =BASEOld!I121 -> CT | F121: =BASEOld!K121 -> 0.3 | G121: =BASEOld!L121 -> 0 | J121: 0 | K121: 0
A122: =BASEOld!B122 -> Goûter | B122: =BASEOld!C122 -> Individuel | C122: =BASEOld!D122 -> Donuts nature sucré 49g | D122: =BASEOld!H122 -> 72 | E122: =BASEOld!I122 -> CT | F122: =BASEOld!K122 -> 0.24 | G122: =BASEOld!L122 -> 0 | J122: 0 | K122: 0
